Workbook

Sheet Range names (hidden)
A1: Range Name | B1: RefersTo | C1: Scope | D1: Parent
A2: _xlfn.COUNTIFS | B2: =#NAME? ->  | C2: Workbook | D2: LTFP_General_Main_Workfile.xlsm
A3: _xlfn.SUMIFS | B3: =#NAME? ->  | C3: Workbook | D3: LTFP_General_Main_Workfile.xlsm
A4: asset_class_list_general | B4: =OFFSET('IPP&E Reconciliation'!$A$5,0,0,COUNTA('IPP&E Reconciliation'!$A$5:$A$31)-COUNTBLANK('IPP&E Reconciliation'!$A$5:$A$31),1) ->  | C4: Workbook | D4: LTFP_General_Main_Workfile.xlsm
A5: balance_sheet_general_main | B5: ='Balance Sheet'!$A$3 -> BALANCE SHEET - GENERAL FUND | C5: Workbook | D5: LTFP_General_Main_Workfile.xlsm
A6: balance_sheet_list_general | B6: ='IS-BS table general'!$R$5:$R$21 -> Receivables | C6: Workbook | D6: LTFP_General_Main_Workfile.xlsm
A7: balance_sheet_workings_general_main | B7: ='BS workings'!$A$3 -> BALANCE SHEET - GENERAL FUND - WORKINGS | C7: Workbook | D7: LTFP_General_Main_Workfile.xlsm
A8: BS_area_1_general | B8: ='Balance Sheet'!$6:$68 -> 0 | C8: Workbook | D8: LTFP_General_Main_Workfile.xlsm
A9: BS_area_10_general | B9: ='BS workings'!$470:$484 ->  | C9: Workbook | D9: LTFP_General_Main_Workfile.xlsm
A10: BS_area_11_general | B10: ='BS workings'!$485:$500 ->  | C10: Workbook | D10: LTFP_General_Main_Workfile.xlsm
A11: BS_area_12_general | B11: ='BS workings'!$501:$793 ->  | C11: Workbook | D11: LTFP_General_Main_Workfile.xlsm
A12: BS_area_14_general | B12: ='BS workings'!$794:$935 ->  | C12: Workbook | D12: LTFP_General_Main_Workfile.xlsm
A13: BS_area_16_general | B13: ='Balance Sheet'!$150:$374 ->  | C13: Workbook | D13: LTFP_General_Main_Workfile.xlsm
A14: BS_area_3_general | B14: ='BS workings'!$356:$368 ->  | C14: Workbook | D14: LTFP_General_Main_Workfile.xlsm
A15: BS_area_5_general | B15: ='BS workings'!$371:$388 ->  | C15: Workbook | D15: LTFP_General_Main_Workfile.xlsm
A16: BS_area_6_general | B16: ='BS workings'!$389:$403 ->  | C16: Workbook | D16: LTFP_General_Main_Workfile.xlsm
A17: BS_area_7_general | B17: ='BS workings'!$404:$518 ->  | C17: Workbook | D17: LTFP_General_Main_Workfile.xlsm
A18: BS_area_8_general | B18: ='BS workings'!$453:$454 ->  | C18: Workbook | D18: LTFP_General_Main_Workfile.xlsm
A19: BS_area_9_general | B19: ='BS workings'!$455:$469 ->  | C19: Workbook | D19: LTFP_General_Main_Workfile.xlsm
A20: BS_workings_area_1_general | B20: ='BS workings'!$B$6:$P$61 -> 0 | C20: Workbook | D20: LTFP_General_Main_Workfile.xlsm
A21: BS_workings_area_10_general | B21: ='BS workings'!$C$158:$P$174 ->  | C21: Workbook | D21: LTFP_General_Main_Workfile.xlsm
A22: BS_workings_area_11_general | B22: ='BS workings'!$C$176:$P$178 ->  | C22: Workbook | D22: LTFP_General_Main_Workfile.xlsm
A23: BS_workings_area_12_general | B23: ='BS workings'!$C$181:$P$220 ->  | C23: Workbook | D23: LTFP_General_Main_Workfile.xlsm
A24: BS_workings_area_13_general | B24: ='BS workings'!$C$222:$P$224 ->  | C24: Workbook | D24: LTFP_General_Main_Workfile.xlsm
A25: BS_workings_area_14_general | B25: ='BS workings'!$C$227:$P$249 ->  | C25: Workbook | D25: LTFP_General_Main_Workfile.xlsm
A26: BS_workings_area_15_general | B26: ='BS workings'!$C$250:$P$330 ->  | C26: Workbook | D26: LTFP_General_Main_Workfile.xlsm
A27: BS_workings_area_16_general | B27: ='BS workings'!$C$332:$P$337 ->  | C27: Workbook | D27: LTFP_General_Main_Workfile.xlsm
A28: BS_workings_area_17_general | B28: ='BS workings'!$C$340:$P$371 ->  | C28: Workbook | D28: LTFP_General_Main_Workfile.xlsm
A29: BS_workings_area_18_general | B29: ='BS workings'!$C$373:$P$378 ->  | C29: Workbook | D29: LTFP_General_Main_Workfile.xlsm
A30: BS_workings_area_19_general | B30: ='BS workings'!$C$381:$P$389 ->  | C30: Workbook | D30: LTFP_General_Main_Workfile.xlsm
A31: BS_workings_area_2_general | B31: ='BS workings'!$C$64:$P$82 ->  | C31: Workbook | D31: LTFP_General_Main_Workfile.xlsm
A32: BS_workings_area_20_general | B32: ='BS workings'!$C$391:$P$393 ->  | C32: Workbook | D32: LTFP_General_Main_Workfile.xlsm
A33: BS_workings_area_21_general | B33: ='BS workings'!$C$396:$P$404 ->  | C33: Workbook | D33: LTFP_General_Main_Workfile.xlsm
A34: BS_workings_area_22_general | B34: ='BS workings'!$C$406:$P$408 ->  | C34: Workbook | D34: LTFP_General_Main_Workfile.xlsm
A35: BS_workings_area_23_general | B35: ='BS workings'!$C$411:$P$425 ->  | C35: Workbook | D35: LTFP_General_Main_Workfile.xlsm
A36: BS_workings_area_24_general | B36: ='BS workings'!$C$428:$P$455 ->  | C36: Workbook | D36: LTFP_General_Main_Workfile.xlsm
A37: BS_workings_area_25_general | B37: ='BS workings'!$C$457:$P$459 ->  | C37: Workbook | D37: LTFP_General_Main_Workfile.xlsm
A38: BS_workings_area_26_general | B38: ='BS workings'!$C$462:$P$474 ->  | C38: Workbook | D38: LTFP_General_Main_Workfile.xlsm
A39: BS_workings_area_27_general | B39: ='BS workings'!$C$477:$P$484 ->  | C39: Workbook | D39: LTFP_General_Main_Workfile.xlsm
A40: BS_workings_area_28_general | B40: ='BS workings'!$C$487:$P$489 ->  | C40: Workbook | D40: LTFP_General_Main_Workfile.xlsm
A41: BS_workings_area_29_general | B41: ='BS workings'!$C$492:$P$501 ->  | C41: Workbook | D41: LTFP_General_Main_Workfile.xlsm
A42: BS_workings_area_3_general | B42: ='BS workings'!$C$84:$P$86 ->  | C42: Workbook | D42: LTFP_General_Main_Workfile.xlsm
A43: BS_workings_area_30_general | B43: ='BS workings'!$C$503:$P$508 ->  | C43: Workbook | D43: LTFP_General_Main_Workfile.xlsm
A44: BS_workings_area_31_general | B44: ='BS workings'!$C$511:$P$538 ->  | C44: Workbook | D44: LTFP_General_Main_Workfile.xlsm
A45: BS_workings_area_32_general | B45: ='BS workings'!$C$541:$P$638 ->  | C45: Workbook | D45: LTFP_General_Main_Workfile.xlsm
A46: BS_workings_area_33_general | B46: ='BS workings'!$C$640:$P$642 ->  | C46: Workbook | D46: LTFP_General_Main_Workfile.xlsm
A47: BS_workings_area_34_general | B47: ='BS workings'!$C$645:$P$653 ->  | C47: Workbook | D47: LTFP_General_Main_Workfile.xlsm
A48: BS_workings_area_35_general | B48: ='BS workings'!$C$655:$P$657 ->  | C48: Workbook | D48: LTFP_General_Main_Workfile.xlsm
A49: BS_workings_area_36_general | B49: ='BS workings'!$C$660:$P$668 ->  | C49: Workbook | D49: LTFP_General_Main_Workfile.xlsm
A50: BS_workings_area_37_general | B50: ='BS workings'!$C$670:$P$672 ->  | C50: Workbook | D50: LTFP_General_Main_Workfile.xlsm
A51: BS_workings_area_38_general | B51: ='BS workings'!$C$675:$P$683 ->  | C51: Workbook | D51: LTFP_General_Main_Workfile.xlsm
A52: BS_workings_area_39_general | B52: ='BS workings'!$C$685:$P$687 ->  | C52: Workbook | D52: LTFP_General_Main_Workfile.xlsm
A53: BS_workings_area_4_general | B53: ='BS workings'!$C$89:$P$105 ->  | C53: Workbook | D53: LTFP_General_Main_Workfile.xlsm
A54: BS_workings_area_40_general | B54: ='BS workings'!$C$690:$P$698 ->  | C54: Workbook | D54: LTFP_General_Main_Workfile.xlsm
A55: BS_workings_area_41_general | B55: ='BS workings'!$C$700:$P$702 ->  | C55: Workbook | D55: LTFP_General_Main_Workfile.xlsm
A56: BS_workings_area_42_general | B56: ='BS workings'!$C$705:$P$713 ->  | C56: Workbook | D56: LTFP_General_Main_Workfile.xlsm
A57: BS_workings_area_43_general | B57: ='BS workings'!$C$715:$P$717 ->  | C57: Workbook | D57: LTFP_General_Main_Workfile.xlsm
A58: BS_workings_area_44_general | B58: ='BS workings'!$C$720:$P$764 ->  | C58: Workbook | D58: LTFP_General_Main_Workfile.xlsm
A59: BS_workings_area_45_general | B59: ='BS workings'!$C$767:$P$775 ->  | C59: Workbook | D59: LTFP_General_Main_Workfile.xlsm
A60: BS_workings_area_46_general | B60: ='BS workings'!$C$777:$P$782 ->  | C60: Workbook | D60: LTFP_General_Main_Workfile.xlsm
A61: BS_workings_area_47_general | B61: ='BS workings'!$C$785:$P$857 ->  | C61: Workbook | D61: LTFP_General_Main_Workfile.xlsm
A62: BS_workings_area_48_general | B62: ='BS workings'!$C$860:$P$891 ->  | C62: Workbook | D62: LTFP_General_Main_Workfile.xlsm
... 77 more rows

Sheet Check Range names (hidden)

Sheet Cover Page
A3: ='[1]Cover Page'!$A$3 -> Yass Valley Council
A5: ='[1]Cover Page'!$A$5 -> 10 Year Financial Plan for the Years ending 30 June 2025
C11: Scenario Name: | E11: Rural Road Maintenance With Revised Rate Peg, 1yr 6.7% SRV, $600k Efficiency, Revised Proj & 3yr 6% SRV
C13: Fund Name: | E13: ='[1]Cover Page'!$C$13 -> General Fund
K16: hide this column
K19: =IF(K20=2,TRUE,FALSE) -> TRUE
K20: 2
K22: FALSE
K27: 1
K40: TRUE
K42: TRUE
K44: TRUE
K46: TRUE
K48: TRUE
K50: TRUE
K52: TRUE

Sheet year (hidden)
C5: Starting Year: | E5: =[1]!Starting_year -> 2015

Sheet Assumptions
D1: Base Case
A3: FY15-16
B4: : Based on GM review w/e 6 Feb 2015
B5: : Source Spreadsheet W:\05. Budget\Budget 2015-16\Budget 2015-16.xls
A7: Inflation
B8: : 3%
B9: : Based on RBA upper limit
B10: : Consistent with Independent Economics forecast and Trading Economic forecast
B11: : Inflation to be applied to all activities
B12: : Materials and Contracts inflation based on industry average 5%
A14: Salary / Wages
B15: : 2.7% (FY15/16) and 2.8% (FY16/17) in line with the State Award
B16: : FY17/18 onwards at 2.5 - 3% - keeping pace with upper end inflation
A18: Superannuation
B19: : Based on projected salaries at new rates
B20: : Employer contribution rates based on Govt target of 12% by FY18/19
A22: Workers Compensation
B23: : Based on projected salary
B24: : Percentage determined by prior yrs average costs
A26: Materials & Consumables
B27: : Based on Inflation by Category
B28: : Based on average $3.5m
B29: : Balance to Business Units / Capitalised
A31: Maintenance:
B32: : Based on no underlying activity change
A34: Capital Contributions
B35: : Based on Rates
A37: Rates & Utilities
B38: : FY15/16 based on: IPART 2.4%
B39: : FY16/17 onwards bason on long term average 2009 - 2015
A41: User Charges
B42: : Based on movement in Rates
A44: Contributions:
B45: : Based on Inflation
A47: Depreciation
B48: : Based on 2% annual increase
A50: Borrowings
B51: : Based on Loans and Interest Calc 2013-14 Spreadsheet
A53: Assets
B54: : Based on additions at 2%pa
A56: Grants
B57: : Inflation factor of 1.5% used as not all gtrants will be indexed by inflation eg R2R
A59: Depn - Roads, Footpath, Bridge
B60: :FY14/15 based on JRA Rpt of $2713, $307, $72 as a total portion of the opening GBV of $206497 of 1.49735%
B61: : The % for Bridges and Footpaths are not used by the model
B62: : Roads - 1.637%, Bridges 1.0276%, Footpaths 1.4694%
A64: 14/15 Revals:
B65: : Roads, Footpaths, Bridges at 5.12940% reduction as a group
B66: : Stormawater 3.3424% reduction
B67: : Revals not booked due to depn calculation issues
B68: : Stormwater - GBV ($616004), Accum Depn ($4568189)
B69: : Roads, Bridges, Footpaths - GBV ($10592057), Accum Depn ($50828079)
A71: IPART Response Assumptions
B72: : No Borrowings in FY16/17 - $1.5m
B73: : Additional R2R in FY16/17 - $1,375,020
B74: : Reprogram Grader Team to FY17/18 - $550k
B75: : Reprogram Eng Staff to FY17/18 - $150k
B76: : Reprogram Eng Staff to FY18/19 - $75k
B77: : Reprogram Eng Staff to FY19/20 - $75k
B78: : IPART Advised Rate Peg - 2.5%
B79: : Additional $475k into R2R
B80: : R2R as Operational Granst - Specific Purpose
B81: : Plant Program Removed 16/11
B82: : Transport Infrastructure SRV Projects rolled into 1 line from FY2021/22
B83: : Community Projects rolled out from
B84: : Bldg and Infra Ratio updated for FY14/15 Depn and revised DP Projects
A86: Ratio Assumptions
B87: : JRA Report v5 used for Infrastructure Backlog, Asset Maintenance, Builkding and Infrastructure Renewal Rations

Sheet Checklist
C1: Overall | D1: =Starting_year_general-1&"/"&RIGHT(Starting_year_general,2) -> 2014/15 | E1: =Starting_year_general&"/"&RIGHT(Starting_year_general+1,2) -> 2015/16 | F1: =Starting_year_general+1&"/"&RIGHT(Starting_year_general+2,2) -> 2016/17 | G1: =Starting_year_general+2&"/"&RIGHT(Starting_year_general+3,2) -> 2017/18 | H1: =Starting_year_general+3&"/"&RIGHT(Starting_year_general+4,2) -> 2018/19 | I1: =Starting_year_general+4&"/"&RIGHT(Starting_year_general+5,2) -> 2019/20 | J1: =Starting_year_general+5&"/"&RIGHT(Starting_year_general+6,2) -> 2020/21 | K1: =Starting_year_general+6&"/"&RIGHT(Starting_year_general+7,2) -> 2021/22 | L1: =Starting_year_general+7&"/"&RIGHT(Starting_year_general+8,2) -> 2022/23 | M1: =Starting_year_general+8&"/"&RIGHT(Starting_year_general+9,2) -> 2023/24 | N1: =Starting_year_general+9&"/"&RIGHT(Starting_year_general+10,2) -> 2024/25 | AA1: hide | AB1: hide | AC1: hide | AD1: hide | AE1: hide | AF1: hide | AG1: hide | AH1: hide | AI1: hide | AJ1: hide | AK1: hide | AL1: hide | AM1: hide | AN1: hide | AO1: hide | AP1: hide | AQ1: hide | AR1: hide | AS1: hide | AT1: hide | AU1: hide | AV1: hide | AW1: hide | AX1: hide | AY1: hide | AZ1: hide | BA1: hide | BB1: hide | BC1: hide | BD1: hide | BE1: hide | BF1: hide | BG1: hide | BH1: hide | BI1: hide | BJ1: hide | BK1: hide | BL1: hide | BM1: hide | BN1: hide | BO1: hide | BP1: hide | BQ1: hide | BR1: hide | BS1: hide | BT1: hide | BU1: hide | BV1: hide | BW1: hide | BX1: hide | BY1: hide | BZ1: hide | CA1: hide | CB1: hide | CC1: hide | CD1: hide | CE1: hide | CF1: hide | CG1: hide | CH1: hide | CI1: hide | CJ1: hide | CK1: hide | CL1: hide | CM1: hide | CN1: hide | CO1: hide | CP1: hide | CQ1: hide | CR1: hide | CS1: hide | CT1: hide | CU1: hide | CV1: hide | CW1: hide | CX1: hide | CY1: hide | CZ1: hide | DA1: hide | DB1: hide | DC1: hide | DD1: hide | DE1: hide | DF1: hide | DG1: hide | DH1: hide | DI1: hide | DJ1: hide | DK1: hide | DL1: hide | DM1: hide | DN1: hide | DO1: hide | DP1: hide | DQ1: hide | DR1: hide | DS1: hide | DT1: hide | DU1: hide | DV1: hide | DW1: hide | DX1: hide | DY1: hide | DZ1: hide | EA1: hide | EB1: hide | EC1: hide | ED1: hide | EE1: hide | EF1: hide | EG1: hide | EH1: hide | EI1: hide | EJ1: hide | EK1: hide | EL1: hide | EM1: hide | EN1: hide | EO1: hide | EP1: hide | EQ1: hide | ER1: hide | ES1: hide | ET1: hide | EU1: hide | EV1: hide | EW1: hide | EX1: hide | EY1: hide | EZ1: hide | FA1: hide | FB1: hide | FC1: hide | FD1: hide | FE1: hide | FF1: hide | FG1: hide | FH1: hide | FI1: hide | FJ1: hide | FK1: hide | FL1: hide | FM1: hide | FN1: hide | FO1: hide | FP1: hide | FQ1: hide | FR1: hide | FS1: hide | FT1: hide | FU1: hide | FV1: hide | FW1: hide | FX1: hide | FY1: hide | FZ1: hide | GA1: hide | GB1: hide | GC1: hide | GD1: hide | GE1: hide | GF1: hide | GG1: hide | GH1: hide | GI1: hide | GJ1: hide | GK1: hide | GL1: hide | GM1: hide | GN1: hide | GO1: hide | GP1: hide | GQ1: hide | GR1: hide | GS1: hide | GT1: hide | GU1: hide | GV1: hide | GW1: hide | GX1: hide | GY1: hide | GZ1: hide | HA1: hide | HB1: hide | HC1: hide | HD1: hide | HE1: hide | HF1: hide | HG1: hide | HH1: hide | HI1: hide | HJ1: hide | HK1: hide | HL1: hide | HM1: hide | HN1: hide | HO1: hide | HP1: hide | HQ1: hide | HR1: hide | HS1: hide | HT1: hide | HU1: hide | HV1: hide | HW1: hide | HX1: hide | HY1: hide | HZ1: hide | IA1: hide | IB1: hide | IC1: hide | ID1: hide | IE1: hide | IF1: hide | IG1: hide | IH1: hide | II1: hide | IJ1: hide | IK1: hide | IL1: hide | IM1: hide | IN1: hide | IO1: hide | IP1: hide | IQ1: hide | IR1: hide | IS1: hide | IT1: hide | IU1: hide | IV1: hide | IW1: hide | IX1: hide | IY1: hide | IZ1: hide | JA1: hide | JB1: hide | JC1: hide | JD1: hide | JE1: hide | JF1: hide | JG1: hide | JH1: hide | JI1: hide | JJ1: hide | JK1: hide | JL1: hide | JM1: hide | JN1: hide | JO1: hide | JP1: hide | JQ1: hide | JR1: hide | JS1: hide | JT1: hide | JU1: hide | JV1: hide | JW1: hide | JX1: hide | JY1: hide | JZ1: hide | KA1: hide | KB1: hide | KC1: hide | KD1: hide | KE1: hide | KF1: hide | KG1: hide | KH1: hide | KI1: hide | KJ1: hide | KK1: hide | KL1: hide | KM1: hide | KN1: hide | KO1: hide | KP1: hide | KQ1: hide | KR1: hide | KS1: hide | KT1: hide | KU1: hide | KV1: hide | KW1: hide | KX1: hide | KY1: hide | KZ1: hide | LA1: hide | LB1: hide | LC1: hide | LD1: hide | LE1: hide | LF1: hide | LG1: hide | LH1: hide | LI1: hide | LJ1: hide | LK1: hide | LL1: hide | LM1: hide | LN1: hide | LO1: hide | LP1: hide | LQ1: hide | LR1: hide | LS1: hide | LT1: hide | LU1: hide | LV1: hide | LW1: hide | LX1: hide | LY1: hide | LZ1: hide
A3: =PROPER(general_fund_name)&" - Database updated & Data Integrity" -> General Fund - Database updated & Data Integrity
A5: =PROPER(general_fund_name)&" workfile" -> General Fund workfile | B5: =PROPER(general_fund_name)&" Database has been updated" -> General Fund Database has been updated | C5: 1 | D5: =IF(C5=1,"","Changes have been made to the database ("&PROPER(general_fund_name)&") but has not been updated.") -> 
D6: =IF(C5=1,"","To update the database go to worksheet """&IF(ISERROR(sheetname_general(general_database_unique_key))=TRUE,"<activate macros>",sheetname_general(general_database_unique_key))&""" and click on the") -> 
D7: =IF(C5=1,"","button ""Update database"" to update database and the LTFP.") -> 
A9: =PROPER(general_fund_name)&" workfile" -> General Fund workfile | B9: Integrity Check has been run | C9: 1 | D9: =IF(C9=1,"","The last time a Data Integrity Check has been run, errors have ocurred.") -> 
D10: =IF(C9=1,"","Go to worksheet """&IF(ISERROR(sheetname_general(writing_errors_general))=TRUE,"<activate macros>",sheetname_general(writing_errors_general))&""", view all errors and fix errors.") -> 
D11: =IF(C9=1,"","After errors have been fixed, run the Data Integrity Check again to ensure all errors have been fixed.") -> 
A13: =PROPER(general_fund_name)&" workfile" -> General Fund workfile | B13: G/L Table has been updated | C13: 1 | D13: =IF(C13=1,"","Changes have been made to the G/L Table but it has not been updated.") -> 
D14: =IF(C13=1,"","To update the G/L Table click on the button ""Update G/L Table"".") -> 
D15: =IF(C13=1,"","") -> 
A17: =PROPER(general_fund_name)&" workfile" -> General Fund workfile | B17: COA Tables have been updated | C17: 1 | D17: =IF(C17=1,"","Changes have been made to the COA Tables but they have not been updated.") -> 
D18: =IF(C17=1,"","To update the COA Tables click on the button ""Update COA Tables"".") -> 
D19: =IF(C17=1,"","") -> 
A21: =PROPER(general_fund_name)&" workfile" -> General Fund workfile | B21: Reserve Schedules have been updated | C21: =IF(OR(MAX([1]!reserves_external_data_time,[1]!reserves_internal_data_time)>reserve_schedule_general_updated,[1]!internal_reserve_schedule_update_consol<>"",[1]!external_reserve_schedule_update_consol<>""),-2,1) -> 1 | D21: =IF(C21=1,"","Changes have been made to the Reserve Schedules in the Consolidated") -> 
D22: =IF(C21=1,"",IF(OR([1]!internal_reserve_schedule_update_consol<>"",[1]!external_reserve_schedule_update_consol<>""),"working file but the Schedules have not been updated in the consolidated file.","working file but the Schedules have not been updated in this fund file.")) -> 
D23: =IF(C21=1,"",IF(OR([1]!internal_reserve_schedule_update_consol<>"",[1]!external_reserve_schedule_update_consol<>""),"Update first the Schedules in the consolidated file and then in this fund file.","To update the Schedules click on the button ""Update Reserve Schedules"".")) -> 
A25: =PROPER(general_fund_name)&" workfile" -> General Fund workfile | B25: Global changes % in matrix agree to database (i.e. database has been updated for global changes %). | C25: =IF(SUM('Global Indexation'!AB341:AK341)<>0,-2,1) -> 1 | D25: =IF(C25=1,"","The database has not been updated for global changes %.") -> 
D26: =IF(C25=1,"","To update the database click on the button .") -> 
A28: =PROPER(general_fund_name)&" workfile" -> General Fund workfile | B28: Population changes % in matrix agree to database (i.e. database has been updated for population changes %). | C28: =IF(SUM('Population Indexation'!Y144:AH144)<>0,-2,1) -> 1 | D28: =IF(C28=1,"","The database has not been updated for population changes %.") -> 
D29: =IF(C28=1,"","To update the database click on the button .") -> 
A33: Consolidated Workfile
A35: Consolidated Workfile | B35: =[1]Checklist!$B194 -> Global changes have been entered | C35: =[1]Checklist!$C194 -> YES | E35: =[1]Checklist!E194 -> 0 | F35: =[1]Checklist!F194 -> 0 | G35: =[1]Checklist!G194 -> 0 | H35: =[1]Checklist!H194 -> 0 | I35: =[1]Checklist!I194 -> 0 | J35: =[1]Checklist!J194 -> 0 | K35: =[1]Checklist!K194 -> 0 | L35: =[1]Checklist!L194 -> 0 | M35: =[1]Checklist!M194 -> 0 | N35: =[1]Checklist!N194 -> 0
D36: =IF(C35="NO","","To ensure this is correct, go to worksheet ""Global Indexation"" in the ""Consolidated Main"" workfile.") -> To ensure this is correct, go to worksheet "Global Indexation" in the "Consolidated Main" workfile.
A38: Consolidated Workfile | B38: =[1]Checklist!$B197 -> Population changes have been entered | C38: =[1]Checklist!$C197 -> YES | E38: =[1]Checklist!E197 -> 0 | F38: =[1]Checklist!F197 -> 0 | G38: =[1]Checklist!G197 -> 0 | H38: =[1]Checklist!H197 -> 0 | I38: =[1]Checklist!I197 -> 0 | J38: =[1]Checklist!J197 -> 0 | K38: =[1]Checklist!K197 -> 0 | L38: =[1]Checklist!L197 -> 0 | M38: =[1]Checklist!M197 -> 0 | N38: =[1]Checklist!N197 -> 0
D39: =IF(C38="NO","","To ensure this is correct, go to worksheet ""Population Indexation"" in the ""Consolidated Main"" workfile.") -> To ensure this is correct, go to worksheet "Population Indexation" in the "Consolidated Main" workfile.
A43: ="This workfile - "&PROPER(general_fund_name)&" workfile" -> This workfile - General Fund workfile
A45: Database | B45: Individual changes have been entered in the database | D45: Indiv %: | E45: =IF(COUNTA(Database!AZ:AZ)>1,1,"NO") -> NO | F45: =IF(COUNTA(Database!BG:BG)>1,1,"NO") -> NO | G45: =IF(COUNTA(Database!BN:BN)>1,1,"NO") -> NO | H45: =IF(COUNTA(Database!BU:BU)>1,1,"NO") -> NO | I45: =IF(COUNTA(Database!CB:CB)>1,1,"NO") -> NO | J45: =IF(COUNTA(Database!CI:CI)>1,1,"NO") -> NO | K45: =IF(COUNTA(Database!CP:CP)>1,1,"NO") -> NO | L45: =IF(COUNTA(Database!CW:CW)>1,1,"NO") -> NO | M45: =IF(COUNTA(Database!DD:DD)>1,1,"NO") -> NO | N45: =IF(COUNTA(Database!DK:DK)>1,1,"NO") -> NO
D46: $ recurrent: | E46: =IF(COUNTA(Database!BA:BA)>2,1,"NO") -> 1 | F46: =IF(COUNTA(Database!BH:BH)>2,1,"NO") -> 1 | G46: =IF(COUNTA(Database!BO:BO)>2,1,"NO") -> 1 | H46: =IF(COUNTA(Database!BV:BV)>2,1,"NO") -> 1 | I46: =IF(COUNTA(Database!CC:CC)>2,1,"NO") -> 1 | J46: =IF(COUNTA(Database!CJ:CJ)>2,1,"NO") -> 1 | K46: =IF(COUNTA(Database!CQ:CQ)>2,1,"NO") -> 1 | L46: =IF(COUNTA(Database!CX:CX)>2,1,"NO") -> NO | M46: =IF(COUNTA(Database!DE:DE)>2,1,"NO") -> NO | N46: =IF(COUNTA(Database!DL:DL)>2,1,"NO") -> NO
D47: $ one-off: | E47: =IF(COUNTA(Database!BB:BB)>2,1,"NO") -> 1 | F47: =IF(COUNTA(Database!BI:BI)>2,1,"NO") -> 1 | G47: =IF(COUNTA(Database!BP:BP)>2,1,"NO") -> 1 | H47: =IF(COUNTA(Database!BW:BW)>2,1,"NO") -> 1 | I47: =IF(COUNTA(Database!CD:CD)>2,1,"NO") -> 1 | J47: =IF(COUNTA(Database!CK:CK)>2,1,"NO") -> 1 | K47: =IF(COUNTA(Database!CR:CR)>2,1,"NO") -> 1 | L47: =IF(COUNTA(Database!CY:CY)>2,1,"NO") -> 1 | M47: =IF(COUNTA(Database!DF:DF)>2,1,"NO") -> 1 | N47: =IF(COUNTA(Database!DM:DM)>2,1,"NO") -> 1
A49: Global % Changes | B49: Global changes have been entered | E49: =IF('Global Indexation'!D351=0,"NO","YES") -> YES | F49: =IF('Global Indexation'!E351=0,"NO","YES") -> YES | G49: =IF('Global Indexation'!F351=0,"NO","YES") -> YES | H49: =IF('Global Indexation'!G351=0,"NO","YES") -> YES | I49: =IF('Global Indexation'!H351=0,"NO","YES") -> YES | J49: =IF('Global Indexation'!I351=0,"NO","YES") -> YES | K49: =IF('Global Indexation'!J351=0,"NO","YES") -> YES | L49: =IF('Global Indexation'!K351=0,"NO","YES") -> YES | M49: =IF('Global Indexation'!L351=0,"NO","YES") -> YES | N49: =IF('Global Indexation'!M351=0,"NO","YES") -> YES
A54: Income Statement | B54: Rate for Investment Revenues entered | D54: =IF('Target %'!G11="",0,1) -> 1 | E54: =IF('Target %'!H11="",0,1) -> 1 | F54: =IF('Target %'!I11="",0,1) -> 1 | G54: =IF('Target %'!J11="",0,1) -> 1 | H54: =IF('Target %'!K11="",0,1) -> 1 | I54: =IF('Target %'!L11="",0,1) -> 1 | J54: =IF('Target %'!M11="",0,1) -> 1 | K54: =IF('Target %'!N11="",0,1) -> 1 | L54: =IF('Target %'!O11="",0,1) -> 1 | M54: =IF('Target %'!P11="",0,1) -> 1 | N54: =IF('Target %'!Q11="",0,1) -> 1
B55: Rate for S94 Interest entered | D55: =IF('Target %'!G12="",0,1) -> 0 | E55: =IF('Target %'!H12="",0,1) -> 0 | F55: =IF('Target %'!I12="",0,1) -> 0 | G55: =IF('Target %'!J12="",0,1) -> 0 | H55: =IF('Target %'!K12="",0,1) -> 0 | I55: =IF('Target %'!L12="",0,1) -> 0 | J55: =IF('Target %'!M12="",0,1) -> 0 | K55: =IF('Target %'!N12="",0,1) -> 0 | L55: =IF('Target %'!O12="",0,1) -> 0 | M55: =IF('Target %'!P12="",0,1) -> 0 | N55: =IF('Target %'!Q12="",0,1) -> 0
B56: Rate for S94 Interest is not larger than Rate for Investment Revenues | D56: =IF('Target %'!G12>'Target %'!G11,0,1) -> 1 | E56: =IF('Target %'!H12>'Target %'!H11,0,1) -> 1 | F56: =IF('Target %'!I12>'Target %'!I11,0,1) -> 1 | G56: =IF('Target %'!J12>'Target %'!J11,0,1) -> 1 | H56: =IF('Target %'!K12>'Target %'!K11,0,1) -> 1 | I56: =IF('Target %'!L12>'Target %'!L11,0,1) -> 1 | J56: =IF('Target %'!M12>'Target %'!M11,0,1) -> 1 | K56: =IF('Target %'!N12>'Target %'!N11,0,1) -> 1 | L56: =IF('Target %'!O12>'Target %'!O11,0,1) -> 1 | M56: =IF('Target %'!P12>'Target %'!P11,0,1) -> 1 | N56: =IF('Target %'!Q12>'Target %'!Q11,0,1) -> 1
A58: Balance Sheet | B58: Net Assets balance to Equity | D58: =IF('Balance Sheet'!E57=0,1,-2) -> 1 | E58: =IF('Balance Sheet'!G57=0,1,-2) -> 1 | F58: =IF('Balance Sheet'!H57=0,1,-2) -> 1 | G58: =IF('Balance Sheet'!I57=0,1,-2) -> 1 | H58: =IF('Balance Sheet'!J57=0,1,-2) -> 1 | I58: =IF('Balance Sheet'!K57=0,1,-2) -> 1 | J58: =IF('Balance Sheet'!L57=0,1,-2) -> 1 | K58: =IF('Balance Sheet'!M57=0,1,-2) -> 1 | L58: =IF('Balance Sheet'!N57=0,1,-2) -> 1 | M58: =IF('Balance Sheet'!O57=0,1,-2) -> 1 | N58: =IF('Balance Sheet'!P57=0,1,-2) -> 1
B59: No Bank Overdraft amount in Balance Sheet | D59: =IF('Balance Sheet'!E32=0,1,-2) -> 1 | E59: =IF('Balance Sheet'!G32=0,1,-2) -> 1 | F59: =IF('Balance Sheet'!H32=0,1,-2) -> 1 | G59: =IF('Balance Sheet'!I32=0,1,-2) -> 1 | H59: =IF('Balance Sheet'!J32=0,1,-2) -> 1 | I59: =IF('Balance Sheet'!K32=0,1,-2) -> 1 | J59: =IF('Balance Sheet'!L32=0,1,-2) -> 1 | K59: =IF('Balance Sheet'!M32=0,1,-2) -> 1 | L59: =IF('Balance Sheet'!N32=0,1,-2) -> 1 | M59: =IF('Balance Sheet'!O32=0,1,-2) -> 1 | N59: =IF('Balance Sheet'!P32=0,1,-2) -> 1
B61: Ensure no Balance Sheet amounts are negative:
B62: Cash & Cash Equivalents - current | D62: =IF('Balance Sheet'!E8<0,-2,1) -> 1 | E62: =IF('Balance Sheet'!G8<0,-2,1) -> 1 | F62: =IF('Balance Sheet'!H8<0,-2,1) -> 1 | G62: =IF('Balance Sheet'!I8<0,-2,1) -> 1 | H62: =IF('Balance Sheet'!J8<0,-2,1) -> 1 | I62: =IF('Balance Sheet'!K8<0,-2,1) -> 1 | J62: =IF('Balance Sheet'!L8<0,-2,1) -> 1 | K62: =IF('Balance Sheet'!M8<0,-2,1) -> 1 | L62: =IF('Balance Sheet'!N8<0,-2,1) -> 1 | M62: =IF('Balance Sheet'!O8<0,-2,1) -> 1 | N62: =IF('Balance Sheet'!P8<0,-2,1) -> 1 | O62: =IF(COUNT(D62:N62)-COUNTIF(D62:N62,"=1")=0,"","Refer worksheet """&IF(ISERROR(sheetname_general(balance_sheet_workings_general_main))=TRUE,"<activate macros>",sheetname_general(balance_sheet_workings_general_main))&""" rows """&ROW('BS workings'!A$8)&""" to """&ROW('BS workings'!A$50)&""".") -> 
... 64 more rows

Sheet Income Statement
A1: hide | B1: ='Cover Page'!$A$3 -> Yass Valley Council | R1: hide | S1: hide | T1: hide | U1: hide | V1: hide | W1: hide | X1: hide | Y1: hide | Z1: hide | AA1: hide | AB1: hide | AC1: hide | AD1: hide | AE1: hide | AF1: hide | AG1: hide | AH1: hide | AI1: hide | AJ1: hide | AK1: hide | AL1: hide | AM1: hide | AN1: hide | AO1: hide | AP1: hide | AQ1: hide | AR1: hide | AS1: hide | AT1: hide | AU1: hide | AV1: hide | AW1: hide | AX1: hide | AY1: hide | AZ1: hide | BA1: hide | BB1: hide | BC1: hide | BD1: hide | BE1: hide | BF1: hide | BG1: hide | BH1: hide | BI1: hide | BJ1: hide | BK1: hide | BL1: hide | BM1: hide | BN1: hide | BO1: hide | BP1: hide | BQ1: hide | BR1: hide | BS1: hide | BT1: hide | BU1: hide | BV1: hide | BW1: hide | BX1: hide | BY1: hide | BZ1: hide | CA1: hide | CB1: hide | CC1: hide | CD1: hide | CE1: hide | CF1: hide | CG1: hide | CH1: hide | CI1: hide | CJ1: hide | CK1: hide | CL1: hide | CM1: hide | CN1: hide | CO1: hide | CP1: hide | CQ1: hide | CR1: hide | CS1: hide | CT1: hide | CU1: hide | CV1: hide | CW1: hide | CX1: hide | CY1: hide | CZ1: hide | DA1: hide | DB1: hide | DC1: hide | DD1: hide | DE1: hide | DF1: hide | DG1: hide | DH1: hide | DI1: hide | DJ1: hide | DK1: hide | DL1: hide | DM1: hide | DN1: hide | DO1: hide | DP1: hide | DQ1: hide | DR1: hide | DS1: hide | DT1: hide | DU1: hide | DV1: hide | DW1: hide | DX1: hide | DY1: hide | DZ1: hide
B2: ='Cover Page'!$A$5 -> 10 Year Financial Plan for the Years ending 30 June 2025 | DZ2: end
B3: ="INCOME STATEMENT - "&UPPER(general_fund_name) -> INCOME STATEMENT - GENERAL FUND | D3: Actuals | F3: Current Year | H3: Projected Years | AG3: Forecasted Income | DZ3: end
B4: ="Scenario: "&general_scenario_name -> Scenario: Rural Road Maintenance With Revised Rate Peg, 1yr 6.7% SRV, $600k Efficiency, Revised Proj & 3yr 6% SRV | D4: =Starting_year_general-2&"/"&RIGHT(Starting_year_general-1,2) -> 2013/14 | F4: =Starting_year_general-1&"/"&RIGHT(Starting_year_general,2) -> 2014/15 | H4: =Starting_year_general&"/"&RIGHT(Starting_year_general+1,2) -> 2015/16 | I4: =Starting_year_general+1&"/"&RIGHT(Starting_year_general+2,2) -> 2016/17 | J4: =Starting_year_general+2&"/"&RIGHT(Starting_year_general+3,2) -> 2017/18 | K4: =Starting_year_general+3&"/"&RIGHT(Starting_year_general+4,2) -> 2018/19 | L4: =Starting_year_general+4&"/"&RIGHT(Starting_year_general+5,2) -> 2019/20 | M4: =Starting_year_general+5&"/"&RIGHT(Starting_year_general+6,2) -> 2020/21 | N4: =Starting_year_general+6&"/"&RIGHT(Starting_year_general+7,2) -> 2021/22 | O4: =Starting_year_general+7&"/"&RIGHT(Starting_year_general+8,2) -> 2022/23 | P4: =Starting_year_general+8&"/"&RIGHT(Starting_year_general+9,2) -> 2023/24 | Q4: =Starting_year_general+9&"/"&RIGHT(Starting_year_general+10,2) -> 2024/25 | U4: =F4 -> 2014/15 | V4: =H4 -> 2015/16 | W4: 2016/17 | X4: 2017/18 | Y4: 2018/19 | Z4: 2019/20 | AA4: 2020/21 | AB4: 2021/22 | AC4: 2022/23 | AD4: 2023/24 | AE4: 2024/25 | AG4: =LEFT(Q4,4)+1&"/"&RIGHT(LEFT(Q4,4)+2,2) -> 2025/26 | AH4: =LEFT(AG4,4)+1&"/"&RIGHT(LEFT(AG4,4)+2,2) -> 2026/27 | AI4: 2027/28 | AJ4: 2028/29 | AK4: 2029/30 | AL4: 2030/31 | AM4: 2031/32 | AN4: 2032/33 | AO4: 2033/34 | AP4: 2034/35 | BD4: Non-cash Income | CD4: Cash Income | DD4: Cash Receivables | DZ4: end
D5: =IF('Cover Page'!$K$19=TRUE,"$","$'000") -> $ | F5: =IF('Cover Page'!$K$19=TRUE,"$","$'000") -> $ | H5: =IF('Cover Page'!$K$19=TRUE,"$","$'000") -> $ | I5: =IF('Cover Page'!$K$19=TRUE,"$","$'000") -> $ | J5: =IF('Cover Page'!$K$19=TRUE,"$","$'000") -> $ | K5: =IF('Cover Page'!$K$19=TRUE,"$","$'000") -> $ | L5: =IF('Cover Page'!$K$19=TRUE,"$","$'000") -> $ | M5: =IF('Cover Page'!$K$19=TRUE,"$","$'000") -> $ | N5: =IF('Cover Page'!$K$19=TRUE,"$","$'000") -> $ | O5: =IF('Cover Page'!$K$19=TRUE,"$","$'000") -> $ | P5: =IF('Cover Page'!$K$19=TRUE,"$","$'000") -> $ | Q5: =IF('Cover Page'!$K$19=TRUE,"$","$'000") -> $ | BD5: =F4 -> 2014/15 | BE5: =H4 -> 2015/16 | BF5: 2016/17 | BG5: 2017/18 | BH5: 2018/19 | BI5: 2019/20 | BJ5: 2020/21 | BK5: 2021/22 | BL5: 2022/23 | BM5: 2023/24 | BN5: 2024/25 | BO5: =AG4 -> 2025/26 | BP5: =AH4 -> 2026/27 | BQ5: 2027/28 | BR5: 2028/29 | BS5: 2029/30 | BT5: 2030/31 | BU5: 2031/32 | BV5: 2032/33 | BW5: 2033/34 | BX5: 2034/35 | CD5: =BD5 -> 2014/15 | CE5: =BE5 -> 2015/16 | CF5: 2016/17 | CG5: 2017/18 | CH5: 2018/19 | CI5: 2019/20 | CJ5: 2020/21 | CK5: 2021/22 | CL5: 2022/23 | CM5: 2023/24 | CN5: 2024/25 | CO5: 2025/26 | CP5: 2026/27 | CQ5: 2027/28 | CR5: =BR5 -> 2028/29 | CS5: 2029/30 | CT5: 2030/31 | CU5: 2031/32 | CV5: 2032/33 | CW5: 2033/34 | CX5: 2034/35 | DD5: =CD5 -> 2014/15 | DE5: =CE5 -> 2015/16 | DF5: 2016/17 | DG5: 2017/18 | DH5: 2018/19 | DI5: 2019/20 | DJ5: 2020/21 | DK5: 2021/22 | DL5: 2022/23 | DM5: 2023/24 | DN5: 2024/25 | DO5: 2025/26 | DP5: 2026/27 | DQ5: 2027/28 | DR5: 2028/29 | DS5: 2029/30 | DT5: 2030/31 | DU5: 2031/32 | DV5: =CV5 -> 2032/33 | DW5: =CW5 -> 2033/34 | DX5: =CX5 -> 2034/35 | DZ5: end
B6: Income from Continuing Operations | DZ6: end
A7: Code | B7: Revenue: | DZ7: end
A8: =B8 -> Rates & Annual Charges | B8: Rates & Annual Charges | D8: =SUM('Historical Data'!C9)*1000 -> 7132000 | F8: =SUMIF('Budget Summary 1'!$C:$C,$A8,'Budget Summary 1'!J:J) -> 7338485 | H8: =SUMIF('Budget Summary 1'!$C:$C,$A8,'Budget Summary 1'!L:L) -> 7526903.04 | I8: =SUMIF('Budget Summary 1'!$C:$C,$A8,'Budget Summary 1'!M:M) -> 8309684.11 | J8: =SUMIF('Budget Summary 1'!$C:$C,$A8,'Budget Summary 1'!N:N) -> 9174187.53 | K8: =SUMIF('Budget Summary 1'!$C:$C,$A8,'Budget Summary 1'!O:O) -> 10128945.1 | L8: =SUMIF('Budget Summary 1'!$C:$C,$A8,'Budget Summary 1'!P:P) -> 11183379.36 | M8: =SUMIF('Budget Summary 1'!$C:$C,$A8,'Budget Summary 1'!Q:Q) -> 11678633.8 | N8: =SUMIF('Budget Summary 1'!$C:$C,$A8,'Budget Summary 1'!R:R) -> 12195877.54 | O8: =SUMIF('Budget Summary 1'!$C:$C,$A8,'Budget Summary 1'!S:S) -> 12736086.9 | P8: =SUMIF('Budget Summary 1'!$C:$C,$A8,'Budget Summary 1'!T:T) -> 13300281.55 | Q8: =SUMIF('Budget Summary 1'!$C:$C,$A8,'Budget Summary 1'!U:U) -> 13889526.45 | S8: yes | U8: =IF($S8="yes",F8-BD8,0) -> 7338485 | V8: =IF($S8="yes",H8-BE8,0) -> 7526903.04 | W8: 8309684.11 | X8: 9174187.53 | Y8: 10128945.1 | Z8: 11183379.36 | AA8: 11678633.8 | AB8: 12195877.54 | AC8: 12736086.9 | AD8: 13300281.55 | AE8: 13889526.45 | BD8: =SUMIF('Budget Summary 1'!$C:$C,$A8,'Budget Summary 1'!BC:BC) -> 0 | BE8: =SUMIF('Budget Summary 1'!$C:$C,$A8,'Budget Summary 1'!BD:BD) -> 0 | BF8: =SUMIF('Budget Summary 1'!$C:$C,$A8,'Budget Summary 1'!BE:BE) -> 0 | BG8: =SUMIF('Budget Summary 1'!$C:$C,$A8,'Budget Summary 1'!BF:BF) -> 0 | BH8: =SUMIF('Budget Summary 1'!$C:$C,$A8,'Budget Summary 1'!BG:BG) -> 0 | BI8: =SUMIF('Budget Summary 1'!$C:$C,$A8,'Budget Summary 1'!BH:BH) -> 0 | BJ8: =SUMIF('Budget Summary 1'!$C:$C,$A8,'Budget Summary 1'!BI:BI) -> 0 | BK8: =SUMIF('Budget Summary 1'!$C:$C,$A8,'Budget Summary 1'!BJ:BJ) -> 0 | BL8: =SUMIF('Budget Summary 1'!$C:$C,$A8,'Budget Summary 1'!BK:BK) -> 0 | BM8: =SUMIF('Budget Summary 1'!$C:$C,$A8,'Budget Summary 1'!BL:BL) -> 0 | BN8: =SUMIF('Budget Summary 1'!$C:$C,$A8,'Budget Summary 1'!BM:BM) -> 0 | CD8: =F8-BD8 -> 7338485 | CE8: =H8-BE8 -> 7526903.04 | CF8: 8309684.11 | CG8: 9174187.53 | CH8: 10128945.1 | CI8: 11183379.36 | CJ8: 11678633.8 | CK8: 12195877.54 | CL8: 12736086.9 | CM8: 13300281.55 | CN8: 13889526.45 | DD8: =IF($S8="yes",CD8,0) -> 7338485 | DE8: =IF($S8="yes",CE8,0) -> 7526903.04 | DF8: 8309684.11 | DG8: 9174187.53 | DH8: 10128945.1 | DI8: 11183379.36 | DJ8: 11678633.8 | DK8: 12195877.54 | DL8: 12736086.9 | DM8: 13300281.55 | DN8: 13889526.45 | DZ8: end
A9: =B9 -> User Charges & Fees | B9: User Charges & Fees | D9: =SUM('Historical Data'!C10)*1000 -> 4712000 | F9: =SUMIF('Budget Summary 1'!$C:$C,$A9,'Budget Summary 1'!J:J)+'RE Dev Summary'!E43+'RE Dev Summary'!E48+'Major Projects summary'!E80+'Major Projects summary'!E85 -> 1919988 | H9: =SUMIF('Budget Summary 1'!$C:$C,$A9,'Budget Summary 1'!L:L)+'RE Dev Summary'!G43+'RE Dev Summary'!G48+'Major Projects summary'!G80+'Major Projects summary'!G85 -> 1840888.64 | I9: =SUMIF('Budget Summary 1'!$C:$C,$A9,'Budget Summary 1'!M:M)+'RE Dev Summary'!H43+'RE Dev Summary'!H48+'Major Projects summary'!H80+'Major Projects summary'!H85 -> 1873574.66 | J9: =SUMIF('Budget Summary 1'!$C:$C,$A9,'Budget Summary 1'!N:N)+'RE Dev Summary'!I43+'RE Dev Summary'!I48+'Major Projects summary'!I80+'Major Projects summary'!I85 -> 1919789.04 | K9: =SUMIF('Budget Summary 1'!$C:$C,$A9,'Budget Summary 1'!O:O)+'RE Dev Summary'!J43+'RE Dev Summary'!J48+'Major Projects summary'!J80+'Major Projects summary'!J85 -> 1967158.8 | L9: =SUMIF('Budget Summary 1'!$C:$C,$A9,'Budget Summary 1'!P:P)+'RE Dev Summary'!K43+'RE Dev Summary'!K48+'Major Projects summary'!K80+'Major Projects summary'!K85 -> 2025423.57 | M9: =SUMIF('Budget Summary 1'!$C:$C,$A9,'Budget Summary 1'!Q:Q)+'RE Dev Summary'!L43+'RE Dev Summary'!L48+'Major Projects summary'!L80+'Major Projects summary'!L85 -> 2085436.25 | N9: =SUMIF('Budget Summary 1'!$C:$C,$A9,'Budget Summary 1'!R:R)+'RE Dev Summary'!M43+'RE Dev Summary'!M48+'Major Projects summary'!M80+'Major Projects summary'!M85 -> 2147249.31 | O9: =SUMIF('Budget Summary 1'!$C:$C,$A9,'Budget Summary 1'!S:S)+'RE Dev Summary'!N43+'RE Dev Summary'!N48+'Major Projects summary'!N80+'Major Projects summary'!N85 -> 2210916.79 | P9: =SUMIF('Budget Summary 1'!$C:$C,$A9,'Budget Summary 1'!T:T)+'RE Dev Summary'!O43+'RE Dev Summary'!O48+'Major Projects summary'!O80+'Major Projects summary'!O85 -> 2276494.25 | Q9: =SUMIF('Budget Summary 1'!$C:$C,$A9,'Budget Summary 1'!U:U)+'RE Dev Summary'!P43+'RE Dev Summary'!P48+'Major Projects summary'!P80+'Major Projects summary'!P85 -> 2344039.09 | S9: yes | U9: =IF($S9="yes",F9-BD9,0) -> 1919988 | V9: 1840888.64 | W9: 1873574.66 | X9: 1919789.04 | Y9: 1967158.8 | Z9: 2025423.57 | AA9: 2085436.25 | AB9: 2147249.31 | AC9: 2210916.79 | AD9: 2276494.25 | AE9: 2344039.09 | BD9: =SUMIF('Budget Summary 1'!$C:$C,$A9,'Budget Summary 1'!BC:BC) -> 0 | BE9: =SUMIF('Budget Summary 1'!$C:$C,$A9,'Budget Summary 1'!BD:BD) -> 0 | BF9: =SUMIF('Budget Summary 1'!$C:$C,$A9,'Budget Summary 1'!BE:BE) -> 0 | BG9: =SUMIF('Budget Summary 1'!$C:$C,$A9,'Budget Summary 1'!BF:BF) -> 0 | BH9: =SUMIF('Budget Summary 1'!$C:$C,$A9,'Budget Summary 1'!BG:BG) -> 0 | BI9: =SUMIF('Budget Summary 1'!$C:$C,$A9,'Budget Summary 1'!BH:BH) -> 0 | BJ9: =SUMIF('Budget Summary 1'!$C:$C,$A9,'Budget Summary 1'!BI:BI) -> 0 | BK9: =SUMIF('Budget Summary 1'!$C:$C,$A9,'Budget Summary 1'!BJ:BJ) -> 0 | BL9: =SUMIF('Budget Summary 1'!$C:$C,$A9,'Budget Summary 1'!BK:BK) -> 0 | BM9: =SUMIF('Budget Summary 1'!$C:$C,$A9,'Budget Summary 1'!BL:BL) -> 0 | BN9: =SUMIF('Budget Summary 1'!$C:$C,$A9,'Budget Summary 1'!BM:BM) -> 0 | CD9: =F9-BD9 -> 1919988 | CE9: =H9-BE9 -> 1840888.64 | CF9: 1873574.66 | CG9: 1919789.04 | CH9: 1967158.8 | CI9: 2025423.57 | CJ9: 2085436.25 | CK9: 2147249.31 | CL9: 2210916.79 | CM9: 2276494.25 | CN9: 2344039.09 | DD9: 1919988 | DE9: 1840888.64 | DF9: 1873574.66 | DG9: 1919789.04 | DH9: 1967158.8 | DI9: 2025423.57 | DJ9: 2085436.25 | DK9: 2147249.31 | DL9: 2210916.79 | DM9: 2276494.25 | DN9: 2344039.09 | DZ9: end
A10: =IF(R10="","Interest & Investment Revenues - Other","Interest & Investment Revenue") -> Interest & Investment Revenue | B10: Interest & Investment Revenue | D10: =SUM('Historical Data'!C11)*1000 -> 901000 | F10: =IF($R10="",'Interest Calculation'!P72+'Interest Calculation'!P75+SUMIF('Budget Summary 1'!$A:$A,$A10,'Budget Summary 1'!J:J),SUMIF('Budget Summary 1'!$C:$C,$A10,'Budget Summary 1'!J:J))+'Loans Receivable - Internal'!J44 -> 735655 | H10: =IF($R10="",'Interest Calculation'!AE72+'Interest Calculation'!AE75+SUMIF('Budget Summary 1'!$A:$A,$A10,'Budget Summary 1'!L:L),SUMIF('Budget Summary 1'!$C:$C,$A10,'Budget Summary 1'!L:L))+'Loans Receivable - Internal'!K44 -> 389935 | I10: =IF($R10="",'Interest Calculation'!AF72+'Interest Calculation'!AF75+SUMIF('Budget Summary 1'!$A:$A,$A10,'Budget Summary 1'!M:M),SUMIF('Budget Summary 1'!$C:$C,$A10,'Budget Summary 1'!M:M))+'Loans Receivable - Internal'!L44 -> 389935 | J10: =IF($R10="",'Interest Calculation'!AG72+'Interest Calculation'!AG75+SUMIF('Budget Summary 1'!$A:$A,$A10,'Budget Summary 1'!N:N),SUMIF('Budget Summary 1'!$C:$C,$A10,'Budget Summary 1'!N:N))+'Loans Receivable - Internal'!M44 -> 389935 | K10: =IF($R10="",'Interest Calculation'!AH72+'Interest Calculation'!AH75+SUMIF('Budget Summary 1'!$A:$A,$A10,'Budget Summary 1'!O:O),SUMIF('Budget Summary 1'!$C:$C,$A10,'Budget Summary 1'!O:O))+'Loans Receivable - Internal'!N44 -> 389935 | L10: =IF($R10="",'Interest Calculation'!AI72+'Interest Calculation'!AI75+SUMIF('Budget Summary 1'!$A:$A,$A10,'Budget Summary 1'!P:P),SUMIF('Budget Summary 1'!$C:$C,$A10,'Budget Summary 1'!P:P))+'Loans Receivable - Internal'!O44 -> 389935 | M10: =IF($R10="",'Interest Calculation'!AJ72+'Interest Calculation'!AJ75+SUMIF('Budget Summary 1'!$A:$A,$A10,'Budget Summary 1'!Q:Q),SUMIF('Budget Summary 1'!$C:$C,$A10,'Budget Summary 1'!Q:Q))+'Loans Receivable - Internal'!P44 -> 389935 | N10: =IF($R10="",'Interest Calculation'!AK72+'Interest Calculation'!AK75+SUMIF('Budget Summary 1'!$A:$A,$A10,'Budget Summary 1'!R:R),SUMIF('Budget Summary 1'!$C:$C,$A10,'Budget Summary 1'!R:R))+'Loans Receivable - Internal'!Q44 -> 389935 | O10: =IF($R10="",'Interest Calculation'!AL72+'Interest Calculation'!AL75+SUMIF('Budget Summary 1'!$A:$A,$A10,'Budget Summary 1'!S:S),SUMIF('Budget Summary 1'!$C:$C,$A10,'Budget Summary 1'!S:S))+'Loans Receivable - Internal'!R44 -> 389935 | P10: =IF($R10="",'Interest Calculation'!AM72+'Interest Calculation'!AM75+SUMIF('Budget Summary 1'!$A:$A,$A10,'Budget Summary 1'!T:T),SUMIF('Budget Summary 1'!$C:$C,$A10,'Budget Summary 1'!T:T))+'Loans Receivable - Internal'!S44 -> 389935 | Q10: =IF($R10="",'Interest Calculation'!AN72+'Interest Calculation'!AN75+SUMIF('Budget Summary 1'!$A:$A,$A10,'Budget Summary 1'!U:U),SUMIF('Budget Summary 1'!$C:$C,$A10,'Budget Summary 1'!U:U))+'Loans Receivable - Internal'!T44 -> 389935 | R10: rc | S10: yes | U10: 735655 | V10: 389935 | W10: 389935 | X10: 389935 | Y10: 389935 | Z10: 389935 | AA10: 389935 | AB10: 389935 | AC10: 389935 | AD10: 389935 | AE10: 389935 | BD10: =SUMIF('Budget Summary 1'!$C:$C,$A10,'Budget Summary 1'!BC:BC) -> 0 | BE10: =SUMIF('Budget Summary 1'!$C:$C,$A10,'Budget Summary 1'!BD:BD) -> 0 | BF10: =SUMIF('Budget Summary 1'!$C:$C,$A10,'Budget Summary 1'!BE:BE) -> 0 | BG10: =SUMIF('Budget Summary 1'!$C:$C,$A10,'Budget Summary 1'!BF:BF) -> 0 | BH10: =SUMIF('Budget Summary 1'!$C:$C,$A10,'Budget Summary 1'!BG:BG) -> 0 | BI10: =SUMIF('Budget Summary 1'!$C:$C,$A10,'Budget Summary 1'!BH:BH) -> 0 | BJ10: =SUMIF('Budget Summary 1'!$C:$C,$A10,'Budget Summary 1'!BI:BI) -> 0 | BK10: =SUMIF('Budget Summary 1'!$C:$C,$A10,'Budget Summary 1'!BJ:BJ) -> 0 | BL10: =SUMIF('Budget Summary 1'!$C:$C,$A10,'Budget Summary 1'!BK:BK) -> 0 | BM10: =SUMIF('Budget Summary 1'!$C:$C,$A10,'Budget Summary 1'!BL:BL) -> 0 | BN10: =SUMIF('Budget Summary 1'!$C:$C,$A10,'Budget Summary 1'!BM:BM) -> 0 | CD10: =+SUMIF('Budget Summary 1'!$C:$C,$A10,'Budget Summary 1'!J:J)-BD10 -> 735655 | CE10: =+SUMIF('Budget Summary 1'!$C:$C,$A10,'Budget Summary 1'!L:L)-BE10 -> 389935 | CF10: =+SUMIF('Budget Summary 1'!$C:$C,$A10,'Budget Summary 1'!M:M)-BF10 -> 389935 | CG10: =+SUMIF('Budget Summary 1'!$C:$C,$A10,'Budget Summary 1'!N:N)-BG10 -> 389935 | CH10: =+SUMIF('Budget Summary 1'!$C:$C,$A10,'Budget Summary 1'!O:O)-BH10 -> 389935 | CI10: =+SUMIF('Budget Summary 1'!$C:$C,$A10,'Budget Summary 1'!P:P)-BI10 -> 389935 | CJ10: =+SUMIF('Budget Summary 1'!$C:$C,$A10,'Budget Summary 1'!Q:Q)-BJ10 -> 389935 | CK10: =+SUMIF('Budget Summary 1'!$C:$C,$A10,'Budget Summary 1'!R:R)-BK10 -> 389935 | CL10: =+SUMIF('Budget Summary 1'!$C:$C,$A10,'Budget Summary 1'!S:S)-BL10 -> 389935 | CM10: =+SUMIF('Budget Summary 1'!$C:$C,$A10,'Budget Summary 1'!T:T)-BM10 -> 389935 | CN10: =+SUMIF('Budget Summary 1'!$C:$C,$A10,'Budget Summary 1'!U:U)-BN10 -> 389935 | DD10: 735655 | DE10: 389935 | DF10: 389935 | DG10: 389935 | DH10: 389935 | DI10: 389935 | DJ10: 389935 | DK10: 389935 | DL10: 389935 | DM10: 389935 | DN10: 389935 | DZ10: end
A11: =B11 -> Other Revenues | B11: Other Revenues | D11: =SUM('Historical Data'!C12)*1000 -> 383000 | F11: =SUMIF('Budget Summary 1'!$C:$C,$A11,'Budget Summary 1'!J:J)+'RE Dev Summary'!E44+'RE Dev Summary'!E49+'Major Projects summary'!E81+'Major Projects summary'!E86 -> 4767629 | H11: =SUMIF('Budget Summary 1'!$C:$C,$A11,'Budget Summary 1'!L:L)+'RE Dev Summary'!G44+'RE Dev Summary'!G49+'Major Projects summary'!G81+'Major Projects summary'!G86 -> 4628934.5 | I11: =SUMIF('Budget Summary 1'!$C:$C,$A11,'Budget Summary 1'!M:M)+'RE Dev Summary'!H44+'RE Dev Summary'!H49+'Major Projects summary'!H81+'Major Projects summary'!H86 -> 4730610.52 | J11: =SUMIF('Budget Summary 1'!$C:$C,$A11,'Budget Summary 1'!N:N)+'RE Dev Summary'!I44+'RE Dev Summary'!I49+'Major Projects summary'!I81+'Major Projects summary'!I86 -> 4846125.8 | K11: =SUMIF('Budget Summary 1'!$C:$C,$A11,'Budget Summary 1'!O:O)+'RE Dev Summary'!J44+'RE Dev Summary'!J49+'Major Projects summary'!J81+'Major Projects summary'!J86 -> 4964528.94 | L11: =SUMIF('Budget Summary 1'!$C:$C,$A11,'Budget Summary 1'!P:P)+'RE Dev Summary'!K44+'RE Dev Summary'!K49+'Major Projects summary'!K81+'Major Projects summary'!K86 -> 5110164.81 | M11: =SUMIF('Budget Summary 1'!$C:$C,$A11,'Budget Summary 1'!Q:Q)+'RE Dev Summary'!L44+'RE Dev Summary'!L49+'Major Projects summary'!L81+'Major Projects summary'!L86 -> 5260169.76 | N11: =SUMIF('Budget Summary 1'!$C:$C,$A11,'Budget Summary 1'!R:R)+'RE Dev Summary'!M44+'RE Dev Summary'!M49+'Major Projects summary'!M81+'Major Projects summary'!M86 -> 5414674.84 | O11: =SUMIF('Budget Summary 1'!$C:$C,$A11,'Budget Summary 1'!S:S)+'RE Dev Summary'!N44+'RE Dev Summary'!N49+'Major Projects summary'!N81+'Major Projects summary'!N86 -> 5573815.07 | P11: =SUMIF('Budget Summary 1'!$C:$C,$A11,'Budget Summary 1'!T:T)+'RE Dev Summary'!O44+'RE Dev Summary'!O49+'Major Projects summary'!O81+'Major Projects summary'!O86 -> 5737729.51 | Q11: =SUMIF('Budget Summary 1'!$C:$C,$A11,'Budget Summary 1'!U:U)+'RE Dev Summary'!P44+'RE Dev Summary'!P49+'Major Projects summary'!P81+'Major Projects summary'!P86 -> 5906561.4 | S11: yes | U11: 4767629 | V11: 4628934.5 | W11: 4730610.52 | X11: 4846125.8 | Y11: 4964528.94 | Z11: 5110164.81 | AA11: 5260169.76 | AB11: 5414674.84 | AC11: 5573815.07 | AD11: 5737729.51 | AE11: 5906561.4 | BD11: =SUMIF('Budget Summary 1'!$C:$C,$A11,'Budget Summary 1'!BC:BC) -> 0 | BE11: =SUMIF('Budget Summary 1'!$C:$C,$A11,'Budget Summary 1'!BD:BD) -> 0 | BF11: =SUMIF('Budget Summary 1'!$C:$C,$A11,'Budget Summary 1'!BE:BE) -> 0 | BG11: =SUMIF('Budget Summary 1'!$C:$C,$A11,'Budget Summary 1'!BF:BF) -> 0 | BH11: =SUMIF('Budget Summary 1'!$C:$C,$A11,'Budget Summary 1'!BG:BG) -> 0 | BI11: =SUMIF('Budget Summary 1'!$C:$C,$A11,'Budget Summary 1'!BH:BH) -> 0 | BJ11: =SUMIF('Budget Summary 1'!$C:$C,$A11,'Budget Summary 1'!BI:BI) -> 0 | BK11: =SUMIF('Budget Summary 1'!$C:$C,$A11,'Budget Summary 1'!BJ:BJ) -> 0 | BL11: =SUMIF('Budget Summary 1'!$C:$C,$A11,'Budget Summary 1'!BK:BK) -> 0 | BM11: =SUMIF('Budget Summary 1'!$C:$C,$A11,'Budget Summary 1'!BL:BL) -> 0 | BN11: =SUMIF('Budget Summary 1'!$C:$C,$A11,'Budget Summary 1'!BM:BM) -> 0 | CD11: =F11-BD11 -> 4767629 | CE11: =H11-BE11 -> 4628934.5 | CF11: 4730610.52 | CG11: 4846125.8 | CH11: 4964528.94 | CI11: 5110164.81 | CJ11: 5260169.76 | CK11: 5414674.84 | CL11: 5573815.07 | CM11: 5737729.51 | CN11: 5906561.4 | DD11: 4767629 | DE11: 4628934.5 | DF11: 4730610.52 | DG11: 4846125.8 | DH11: 4964528.94 | DI11: 5110164.81 | DJ11: 5260169.76 | DK11: 5414674.84 | DL11: 5573815.07 | DM11: 5737729.51 | DN11: 5906561.4 | DZ11: end
A12: =B12 -> Grants & Contributions provided for Operating Purposes | B12: Grants & Contributions provided for Operating Purposes | D12: =SUM('Historical Data'!C13)*1000 -> 3063000 | F12: =SUMIF('Budget Summary 1'!$C:$C,$A12,'Budget Summary 1'!J:J)+'S94 - Plan Summary'!D9 -> 5078733 | H12: =SUMIF('Budget Summary 1'!$C:$C,$A12,'Budget Summary 1'!L:L)+'S94 - Plan Summary'!F9 -> 7115559.52 | I12: =SUMIF('Budget Summary 1'!$C:$C,$A12,'Budget Summary 1'!M:M)+'S94 - Plan Summary'!G9 -> 7625211.3 | J12: =SUMIF('Budget Summary 1'!$C:$C,$A12,'Budget Summary 1'!N:N)+'S94 - Plan Summary'!H9 -> 6415107.83 | K12: =SUMIF('Budget Summary 1'!$C:$C,$A12,'Budget Summary 1'!O:O)+'S94 - Plan Summary'!I9 -> 6550595.97 | L12: =SUMIF('Budget Summary 1'!$C:$C,$A12,'Budget Summary 1'!P:P)+'S94 - Plan Summary'!J9 -> 6717246.36 | M12: =SUMIF('Budget Summary 1'!$C:$C,$A12,'Budget Summary 1'!Q:Q)+'S94 - Plan Summary'!K9 -> 6888896.25 | N12: =SUMIF('Budget Summary 1'!$C:$C,$A12,'Budget Summary 1'!R:R)+'S94 - Plan Summary'!L9 -> 7075695.66 | O12: =SUMIF('Budget Summary 1'!$C:$C,$A12,'Budget Summary 1'!S:S)+'S94 - Plan Summary'!M9 -> 7257799.04 | P12: =SUMIF('Budget Summary 1'!$C:$C,$A12,'Budget Summary 1'!T:T)+'S94 - Plan Summary'!N9 -> 7445365.51 | Q12: =SUMIF('Budget Summary 1'!$C:$C,$A12,'Budget Summary 1'!U:U)+'S94 - Plan Summary'!O9 -> 7638558.98 | S12: yes | U12: 5078733 | V12: 7115559.52 | W12: 7625211.3 | X12: 6415107.83 | Y12: 6550595.97 | Z12: 6717246.36 | AA12: 6888896.25 | AB12: 7075695.66 | AC12: 7257799.04 | AD12: 7445365.51 | AE12: 7638558.98 | BD12: =SUMIF('Budget Summary 1'!$C:$C,$A12,'Budget Summary 1'!BC:BC) -> 0 | BE12: =SUMIF('Budget Summary 1'!$C:$C,$A12,'Budget Summary 1'!BD:BD) -> 0 | BF12: =SUMIF('Budget Summary 1'!$C:$C,$A12,'Budget Summary 1'!BE:BE) -> 0 | BG12: =SUMIF('Budget Summary 1'!$C:$C,$A12,'Budget Summary 1'!BF:BF) -> 0 | BH12: =SUMIF('Budget Summary 1'!$C:$C,$A12,'Budget Summary 1'!BG:BG) -> 0 | BI12: =SUMIF('Budget Summary 1'!$C:$C,$A12,'Budget Summary 1'!BH:BH) -> 0 | BJ12: =SUMIF('Budget Summary 1'!$C:$C,$A12,'Budget Summary 1'!BI:BI) -> 0 | BK12: =SUMIF('Budget Summary 1'!$C:$C,$A12,'Budget Summary 1'!BJ:BJ) -> 0 | BL12: =SUMIF('Budget Summary 1'!$C:$C,$A12,'Budget Summary 1'!BK:BK) -> 0 | BM12: =SUMIF('Budget Summary 1'!$C:$C,$A12,'Budget Summary 1'!BL:BL) -> 0 | BN12: =SUMIF('Budget Summary 1'!$C:$C,$A12,'Budget Summary 1'!BM:BM) -> 0 | CD12: =F12-BD12 -> 5078733 | CE12: 7115559.52 | CF12: 7625211.3 | CG12: 6415107.83 | CH12: 6550595.97 | CI12: 6717246.36 | CJ12: 6888896.25 | CK12: 7075695.66 | CL12: 7257799.04 | CM12: 7445365.51 | CN12: 7638558.98 | DD12: 5078733 | DE12: 7115559.52 | DF12: 7625211.3 | DG12: 6415107.83 | DH12: 6550595.97 | DI12: 6717246.36 | DJ12: 6888896.25 | DK12: 7075695.66 | DL12: 7257799.04 | DM12: 7445365.51 | DN12: 7638558.98 | DZ12: end
A13: =B13 -> Grants & Contributions provided for Capital Purposes | B13: Grants & Contributions provided for Capital Purposes | D13: =SUM('Historical Data'!C14)*1000 -> 4116000 | F13: ='S94 - Plan Summary'!D16+'CAPEX Summary'!E11+'CAPEX Summary'!E35+'Major Projects summary'!E11 -> 3182555 | H13: ='S94 - Plan Summary'!F16+'CAPEX Summary'!G11+'CAPEX Summary'!G35+'Major Projects summary'!G11 -> 1002330.22 | I13: ='S94 - Plan Summary'!G16+'CAPEX Summary'!H11+'CAPEX Summary'!H35+'Major Projects summary'!H11 -> 890910.16 | J13: ='S94 - Plan Summary'!H16+'CAPEX Summary'!I11+'CAPEX Summary'!I35+'Major Projects summary'!I11 -> 914856.76 | K13: ='S94 - Plan Summary'!I16+'CAPEX Summary'!J11+'CAPEX Summary'!J35+'Major Projects summary'!J11 -> 939536.52 | L13: ='S94 - Plan Summary'!J16+'CAPEX Summary'!K11+'CAPEX Summary'!K35+'Major Projects summary'!K11 -> 1005138.79 | M13: ='S94 - Plan Summary'!K16+'CAPEX Summary'!L11+'CAPEX Summary'!L35+'Major Projects summary'!L11 -> 1037129.92 | N13: ='S94 - Plan Summary'!L16+'CAPEX Summary'!M11+'CAPEX Summary'!M35+'Major Projects summary'!M11 -> 1070258.78 | O13: ='S94 - Plan Summary'!M16+'CAPEX Summary'!N11+'CAPEX Summary'!N35+'Major Projects summary'!N11 -> 1096368.41 | P13: ='S94 - Plan Summary'!N16+'CAPEX Summary'!O11+'CAPEX Summary'!O35+'Major Projects summary'!O11 -> 1139890.84 | Q13: ='S94 - Plan Summary'!O16+'CAPEX Summary'!P11+'CAPEX Summary'!P35+'Major Projects summary'!P11 -> 1176664.92 | S13: yes | U13: 3182555 | V13: 1002330.22 | W13: 890910.16 | X13: 914856.76 | Y13: 939536.52 | Z13: 1005138.79 | AA13: 1037129.92 | AB13: 1070258.78 | AC13: 1096368.41 | AD13: 1139890.84 | AE13: 1176664.92 | BD13: =SUMIF('Budget Summary 1'!$C:$C,$A13,'Budget Summary 1'!BC:BC) -> 0 | BE13: =SUMIF('Budget Summary 1'!$C:$C,$A13,'Budget Summary 1'!BD:BD) -> 0 | BF13: =SUMIF('Budget Summary 1'!$C:$C,$A13,'Budget Summary 1'!BE:BE) -> 0 | BG13: =SUMIF('Budget Summary 1'!$C:$C,$A13,'Budget Summary 1'!BF:BF) -> 0 | BH13: =SUMIF('Budget Summary 1'!$C:$C,$A13,'Budget Summary 1'!BG:BG) -> 0 | BI13: =SUMIF('Budget Summary 1'!$C:$C,$A13,'Budget Summary 1'!BH:BH) -> 0 | BJ13: =SUMIF('Budget Summary 1'!$C:$C,$A13,'Budget Summary 1'!BI:BI) -> 0 | BK13: =SUMIF('Budget Summary 1'!$C:$C,$A13,'Budget Summary 1'!BJ:BJ) -> 0 | BL13: =SUMIF('Budget Summary 1'!$C:$C,$A13,'Budget Summary 1'!BK:BK) -> 0 | BM13: =SUMIF('Budget Summary 1'!$C:$C,$A13,'Budget Summary 1'!BL:BL) -> 0 | BN13: =SUMIF('Budget Summary 1'!$C:$C,$A13,'Budget Summary 1'!BM:BM) -> 0 | CD13: =F13-BD13 -> 3182555 | CE13: 1002330.22 | CF13: 890910.16 | CG13: 914856.76 | CH13: 939536.52 | CI13: 1005138.79 | CJ13: 1037129.92 | CK13: 1070258.78 | CL13: 1096368.41 | CM13: 1139890.84 | CN13: 1176664.92 | DD13: 3182555 | DE13: 1002330.22 | DF13: 890910.16 | DG13: 914856.76 | DH13: 939536.52 | DI13: 1005138.79 | DJ13: 1037129.92 | DK13: 1070258.78 | DL13: 1096368.41 | DM13: 1139890.84 | DN13: 1176664.92 | DZ13: end
B14: Other Income: | DZ14: end
A15: =B15 -> Net gains from the disposal of assets | B15: Net gains from the disposal of assets | D15: =SUM('Historical Data'!C16)*1000 -> 294000 | F15: =IF(('BS workings'!E71+'BS workings'!E435+'BS workings'!E548+'BS workings'!E575+'BS workings'!E596+'BS workings'!E628)>0,('BS workings'!E71+'BS workings'!E435+'BS workings'!E548+'BS workings'!E575+'BS workings'!E596+'BS workings'!E628),0) -> 0 | H15: =IF(('BS workings'!G71+'BS workings'!G435+'BS workings'!G548+'BS workings'!G575+'BS workings'!G596+'BS workings'!G628)>0,('BS workings'!G71+'BS workings'!G435+'BS workings'!G548+'BS workings'!G575+'BS workings'!G596+'BS workings'!G628),0) -> 0 | I15: =IF(('BS workings'!H71+'BS workings'!H435+'BS workings'!H548+'BS workings'!H575+'BS workings'!H596+'BS workings'!H628)>0,('BS workings'!H71+'BS workings'!H435+'BS workings'!H548+'BS workings'!H575+'BS workings'!H596+'BS workings'!H628),0) -> 0 | J15: =IF(('BS workings'!I71+'BS workings'!I435+'BS workings'!I548+'BS workings'!I575+'BS workings'!I596+'BS workings'!I628)>0,('BS workings'!I71+'BS workings'!I435+'BS workings'!I548+'BS workings'!I575+'BS workings'!I596+'BS workings'!I628),0) -> 0 | K15: =IF(('BS workings'!J71+'BS workings'!J435+'BS workings'!J548+'BS workings'!J575+'BS workings'!J596+'BS workings'!J628)>0,('BS workings'!J71+'BS workings'!J435+'BS workings'!J548+'BS workings'!J575+'BS workings'!J596+'BS workings'!J628),0) -> 0 | L15: =IF(('BS workings'!K71+'BS workings'!K435+'BS workings'!K548+'BS workings'!K575+'BS workings'!K596+'BS workings'!K628)>0,('BS workings'!K71+'BS workings'!K435+'BS workings'!K548+'BS workings'!K575+'BS workings'!K596+'BS workings'!K628),0) -> 0 | M15: =IF(('BS workings'!L71+'BS workings'!L435+'BS workings'!L548+'BS workings'!L575+'BS workings'!L596+'BS workings'!L628)>0,('BS workings'!L71+'BS workings'!L435+'BS workings'!L548+'BS workings'!L575+'BS workings'!L596+'BS workings'!L628),0) -> 0 | N15: =IF(('BS workings'!M71+'BS workings'!M435+'BS workings'!M548+'BS workings'!M575+'BS workings'!M596+'BS workings'!M628)>0,('BS workings'!M71+'BS workings'!M435+'BS workings'!M548+'BS workings'!M575+'BS workings'!M596+'BS workings'!M628),0) -> 0 | O15: =IF(('BS workings'!N71+'BS workings'!N435+'BS workings'!N548+'BS workings'!N575+'BS workings'!N596+'BS workings'!N628)>0,('BS workings'!N71+'BS workings'!N435+'BS workings'!N548+'BS workings'!N575+'BS workings'!N596+'BS workings'!N628),0) -> 0 | P15: =IF(('BS workings'!O71+'BS workings'!O435+'BS workings'!O548+'BS workings'!O575+'BS workings'!O596+'BS workings'!O628)>0,('BS workings'!O71+'BS workings'!O435+'BS workings'!O548+'BS workings'!O575+'BS workings'!O596+'BS workings'!O628),0) -> 0 | Q15: =IF(('BS workings'!P71+'BS workings'!P435+'BS workings'!P548+'BS workings'!P575+'BS workings'!P596+'BS workings'!P628)>0,('BS workings'!P71+'BS workings'!P435+'BS workings'!P548+'BS workings'!P575+'BS workings'!P596+'BS workings'!P628),0) -> 0 | S15: yes | U15: 0 | V15: =IF($S15="yes",H15-BE15,0) -> 0 | W15: 0 | X15: 0 | Y15: 0 | Z15: 0 | AA15: 0 | AB15: 0 | AC15: 0 | AD15: 0 | AE15: 0 | BB15: different formula | BD15: =F15 -> 0 | BE15: =H15 -> 0 | BF15: =I15 -> 0 | BG15: 0 | BH15: 0 | BI15: 0 | BJ15: 0 | BK15: 0 | BL15: 0 | BM15: 0 | BN15: 0 | CD15: =F15-BD15 -> 0 | CE15: =H15-BE15 -> 0 | CF15: 0 | CG15: 0 | CH15: 0 | CI15: 0 | CJ15: 0 | CK15: 0 | CL15: 0 | CM15: 0 | CN15: 0 | DD15: =IF($S15="yes",CD15,0) -> 0 | DE15: =IF($S15="yes",CE15,0) -> 0 | DF15: 0 | DG15: 0 | DH15: 0 | DI15: 0 | DJ15: 0 | DK15: 0 | DL15: 0 | DM15: 0 | DN15: 0 | DZ15: end
A16: =B16&" - Gain" -> Joint Ventures & Associated Entities - Gain | B16: Joint Ventures & Associated Entities | D16: =SUM('Historical Data'!C17)*1000 -> 0 | F16: =SUMIF('Budget Summary 1'!$C:$C,$A16,'Budget Summary 1'!J:J) -> 0 | H16: =SUMIF('Budget Summary 1'!$C:$C,$A16,'Budget Summary 1'!L:L) -> 0 | I16: =SUMIF('Budget Summary 1'!$C:$C,$A16,'Budget Summary 1'!M:M) -> 0 | J16: =SUMIF('Budget Summary 1'!$C:$C,$A16,'Budget Summary 1'!N:N) -> 0 | K16: =SUMIF('Budget Summary 1'!$C:$C,$A16,'Budget Summary 1'!O:O) -> 0 | L16: =SUMIF('Budget Summary 1'!$C:$C,$A16,'Budget Summary 1'!P:P) -> 0 | M16: =SUMIF('Budget Summary 1'!$C:$C,$A16,'Budget Summary 1'!Q:Q) -> 0 | N16: =SUMIF('Budget Summary 1'!$C:$C,$A16,'Budget Summary 1'!R:R) -> 0 | O16: =SUMIF('Budget Summary 1'!$C:$C,$A16,'Budget Summary 1'!S:S) -> 0 | P16: =SUMIF('Budget Summary 1'!$C:$C,$A16,'Budget Summary 1'!T:T) -> 0 | Q16: =SUMIF('Budget Summary 1'!$C:$C,$A16,'Budget Summary 1'!U:U) -> 0 | S16: yes | U16: 0 | V16: 0 | W16: 0 | X16: 0 | Y16: 0 | Z16: 0 | AA16: 0 | AB16: 0 | AC16: 0 | AD16: 0 | AE16: 0 | BB16: different formula | BD16: =F16 -> 0 | BE16: =H16 -> 0 | BF16: =I16 -> 0 | BG16: 0 | BH16: 0 | BI16: 0 | BJ16: 0 | BK16: 0 | BL16: 0 | BM16: 0 | BN16: 0 | CD16: =F16-BD16 -> 0 | CE16: 0 | CF16: 0 | CG16: 0 | CH16: 0 | CI16: 0 | CJ16: 0 | CK16: 0 | CL16: 0 | CM16: 0 | CN16: 0 | DD16: =IF($S16="yes",CD16,0) -> 0 | DE16: 0 | DF16: 0 | DG16: 0 | DH16: 0 | DI16: 0 | DJ16: 0 | DK16: 0 | DL16: 0 | DM16: 0 | DN16: 0 | DZ16: end
B17: Total Income from Continuing Operations | D17: =SUM(D7:D16) -> 20601000 | F17: 23023045 | H17: 22504550.92 | I17: 23819925.75 | J17: 23660001.96 | K17: 24940700.33 | L17: 26431287.89 | M17: 27340200.98 | N17: 28293691.13 | O17: 29264921.21 | P17: 30289696.66 | Q17: 31345285.84 | U17: =SUM(U8:U16) -> 23023045 | V17: =SUM(V8:V16) -> 22504550.92 | W17: =SUM(W8:W16) -> 23819925.75 | X17: 23660001.96 | Y17: 24940700.33 | Z17: 26431287.89 | AA17: 27340200.98 | AB17: 28293691.13 | AC17: 29264921.21 | AD17: 30289696.66 | AE17: 31345285.84 | BD17: =SUM(BD7:BD16) -> 0 | BE17: 0 | BF17: 0 | BG17: 0 | BH17: 0 | BI17: 0 | BJ17: 0 | BK17: 0 | BL17: 0 | BM17: 0 | BN17: 0 | CD17: =SUM(CD7:CD16) -> 23023045 | CE17: 22504550.92 | CF17: 23819925.75 | CG17: 23660001.96 | CH17: 24940700.33 | CI17: 26431287.89 | CJ17: 27340200.98 | CK17: 28293691.13 | CL17: 29264921.21 | CM17: 30289696.66 | CN17: 31345285.84 | DD17: =SUM(DD7:DD16) -> 23023045 | DE17: 22504550.92 | DF17: 23819925.75 | DG17: 23660001.96 | DH17: 24940700.33 | DI17: 26431287.89 | DJ17: 27340200.98 | DK17: 28293691.13 | DL17: 29264921.21 | DM17: 30289696.66 | DN17: 31345285.84 | DZ17: end
DZ18: end
B19: Expenses from Continuing Operations | AF19: Forecasted Expenditure | BD19: Non-cash Expenditure | CD19: Cash Expenditure | DD19: Cash Payables | DZ19: end
A20: =B20 -> Employee Benefits & On-Costs | B20: Employee Benefits & On-Costs | D20: =SUM('Historical Data'!C21)*1000 -> 8602000 | F20: =SUMIF('Budget Summary 1'!$C:$C,$A20,'Budget Summary 1'!J:J)+'S94 - Plan Summary'!D22+'Major Projects summary'!E36+'Major Projects summary'!E90+'Major Projects summary'!E103+'BS workings'!E886+'BS workings'!E888+'Budget Summary 1'!J140-'Budget Summary 1'!J131 -> 8316780 | H20: =SUMIF('Budget Summary 1'!$C:$C,$A20,'Budget Summary 1'!L:L)+'S94 - Plan Summary'!F22+'Major Projects summary'!G36+'Major Projects summary'!G90+'Major Projects summary'!G103+'BS workings'!G886+'BS workings'!G888+'Budget Summary 1'!L140-'Budget Summary 1'!L131 -> 8008604.9 | I20: =SUMIF('Budget Summary 1'!$C:$C,$A20,'Budget Summary 1'!M:M)+'S94 - Plan Summary'!G22+'Major Projects summary'!H36+'Major Projects summary'!H90+'Major Projects summary'!H103+'BS workings'!H886+'BS workings'!H888+'Budget Summary 1'!M140-'Budget Summary 1'!M131 -> 8225994.88 | J20: =SUMIF('Budget Summary 1'!$C:$C,$A20,'Budget Summary 1'!N:N)+'S94 - Plan Summary'!H22+'Major Projects summary'!I36+'Major Projects summary'!I90+'Major Projects summary'!I103+'BS workings'!I886+'BS workings'!I888+'Budget Summary 1'!N140-'Budget Summary 1'!N131 -> 8577620.26 | K20: =SUMIF('Budget Summary 1'!$C:$C,$A20,'Budget Summary 1'!O:O)+'S94 - Plan Summary'!I22+'Major Projects summary'!J36+'Major Projects summary'!J90+'Major Projects summary'!J103+'BS workings'!J886+'BS workings'!J888+'Budget Summary 1'!O140-'Budget Summary 1'!O131 -> 8863453.99 | L20: =SUMIF('Budget Summary 1'!$C:$C,$A20,'Budget Summary 1'!P:P)+'S94 - Plan Summary'!J22+'Major Projects summary'!K36+'Major Projects summary'!K90+'Major Projects summary'!K103+'BS workings'!K886+'BS workings'!K888+'Budget Summary 1'!P140-'Budget Summary 1'!P131 -> 9179954.77 | M20: =SUMIF('Budget Summary 1'!$C:$C,$A20,'Budget Summary 1'!Q:Q)+'S94 - Plan Summary'!K22+'Major Projects summary'!L36+'Major Projects summary'!L90+'Major Projects summary'!L103+'BS workings'!L886+'BS workings'!L888+'Budget Summary 1'!Q140-'Budget Summary 1'!Q131 -> 9430950.55 | N20: =SUMIF('Budget Summary 1'!$C:$C,$A20,'Budget Summary 1'!R:R)+'S94 - Plan Summary'!L22+'Major Projects summary'!M36+'Major Projects summary'!M90+'Major Projects summary'!M103+'BS workings'!M886+'BS workings'!M888+'Budget Summary 1'!R140-'Budget Summary 1'!R131 -> 9689476.23 | O20: =SUMIF('Budget Summary 1'!$C:$C,$A20,'Budget Summary 1'!S:S)+'S94 - Plan Summary'!M22+'Major Projects summary'!N36+'Major Projects summary'!N90+'Major Projects summary'!N103+'BS workings'!N886+'BS workings'!N888+'Budget Summary 1'!S140-'Budget Summary 1'!S131 -> 9955757.69 | P20: =SUMIF('Budget Summary 1'!$C:$C,$A20,'Budget Summary 1'!T:T)+'S94 - Plan Summary'!N22+'Major Projects summary'!O36+'Major Projects summary'!O90+'Major Projects summary'!O103+'BS workings'!O886+'BS workings'!O888+'Budget Summary 1'!T140-'Budget Summary 1'!T131 -> 10230027.6 | Q20: =SUMIF('Budget Summary 1'!$C:$C,$A20,'Budget Summary 1'!U:U)+'S94 - Plan Summary'!O22+'Major Projects summary'!P36+'Major Projects summary'!P90+'Major Projects summary'!P103+'BS workings'!P886+'BS workings'!P888+'Budget Summary 1'!U140-'Budget Summary 1'!U131 -> 10512525.58 | S20: yes | BD20: =SUMIF('Budget Summary 1'!$C:$C,$A20,'Budget Summary 1'!BC:BC) -> 0 | BE20: =SUMIF('Budget Summary 1'!$C:$C,$A20,'Budget Summary 1'!BD:BD) -> 0 | BF20: =SUMIF('Budget Summary 1'!$C:$C,$A20,'Budget Summary 1'!BE:BE) -> 0 | BG20: =SUMIF('Budget Summary 1'!$C:$C,$A20,'Budget Summary 1'!BF:BF) -> 0 | BH20: =SUMIF('Budget Summary 1'!$C:$C,$A20,'Budget Summary 1'!BG:BG) -> 0 | BI20: =SUMIF('Budget Summary 1'!$C:$C,$A20,'Budget Summary 1'!BH:BH) -> 0 | BJ20: =SUMIF('Budget Summary 1'!$C:$C,$A20,'Budget Summary 1'!BI:BI) -> 0 | BK20: =SUMIF('Budget Summary 1'!$C:$C,$A20,'Budget Summary 1'!BJ:BJ) -> 0 | BL20: =SUMIF('Budget Summary 1'!$C:$C,$A20,'Budget Summary 1'!BK:BK) -> 0 | BM20: =SUMIF('Budget Summary 1'!$C:$C,$A20,'Budget Summary 1'!BL:BL) -> 0 | BN20: =SUMIF('Budget Summary 1'!$C:$C,$A20,'Budget Summary 1'!BM:BM) -> 0 | CD20: =F20-BD20 -> 8316780 | CE20: =H20-BE20 -> 8008604.9 | CF20: 8225994.88 | CG20: 8577620.26 | CH20: 8863453.99 | CI20: 9179954.77 | CJ20: 9430950.55 | CK20: 9689476.23 | CL20: 9955757.69 | CM20: 10230027.6 | CN20: 10512525.58 | DD20: =IF($S20="yes",CD20,0) -> 8316780 | DE20: =IF($S20="yes",CE20,0) -> 8008604.9 | DF20: 8225994.88 | DG20: 8577620.26 | DH20: 8863453.99 | DI20: 9179954.77 | DJ20: 9430950.55 | DK20: 9689476.23 | DL20: 9955757.69 | DM20: 10230027.6 | DN20: 10512525.58 | DZ20: end
A21: =B21 -> Borrowing Costs | B21: Borrowing Costs | D21: =SUM('Historical Data'!C22)*1000 -> 338000 | F21: =+'Loans - External'!J60+'Loans Payable - Internal'!J44+SUMIF('Budget Summary 1'!$D:$D,$A21&" - Other",'Budget Summary 1'!J:J)+SUMIF('Budget Summary 1'!$D:$D,$A21&" - Capitalised",'Budget Summary 1'!J:J)+'S94 - Plan Summary'!D23+'Finance Leases'!J44 -> 269960 | H21: =+'Loans - External'!K60+'Loans Payable - Internal'!K44+SUMIF('Budget Summary 1'!$D:$D,$A21&" - Other",'Budget Summary 1'!L:L)+SUMIF('Budget Summary 1'!$D:$D,$A21&" - Capitalised",'Budget Summary 1'!L:L)+'S94 - Plan Summary'!F23+'Finance Leases'!K44 -> 188892.55 | I21: =+'Loans - External'!L60+'Loans Payable - Internal'!L44+SUMIF('Budget Summary 1'!$D:$D,$A21&" - Other",'Budget Summary 1'!M:M)+SUMIF('Budget Summary 1'!$D:$D,$A21&" - Capitalised",'Budget Summary 1'!M:M)+'S94 - Plan Summary'!G23+'Finance Leases'!L44 -> 159069 | J21: =+'Loans - External'!M60+'Loans Payable - Internal'!M44+SUMIF('Budget Summary 1'!$D:$D,$A21&" - Other",'Budget Summary 1'!N:N)+SUMIF('Budget Summary 1'!$D:$D,$A21&" - Capitalised",'Budget Summary 1'!N:N)+'S94 - Plan Summary'!H23+'Finance Leases'!M44 -> 125383 | K21: =+'Loans - External'!N60+'Loans Payable - Internal'!N44+SUMIF('Budget Summary 1'!$D:$D,$A21&" - Other",'Budget Summary 1'!O:O)+SUMIF('Budget Summary 1'!$D:$D,$A21&" - Capitalised",'Budget Summary 1'!O:O)+'S94 - Plan Summary'!I23+'Finance Leases'!N44 -> 90722 | L21: =+'Loans - External'!O60+'Loans Payable - Internal'!O44+SUMIF('Budget Summary 1'!$D:$D,$A21&" - Other",'Budget Summary 1'!P:P)+SUMIF('Budget Summary 1'!$D:$D,$A21&" - Capitalised",'Budget Summary 1'!P:P)+'S94 - Plan Summary'!J23+'Finance Leases'!O44 -> 53966 | M21: =+'Loans - External'!P60+'Loans Payable - Internal'!P44+SUMIF('Budget Summary 1'!$D:$D,$A21&" - Other",'Budget Summary 1'!Q:Q)+SUMIF('Budget Summary 1'!$D:$D,$A21&" - Capitalised",'Budget Summary 1'!Q:Q)+'S94 - Plan Summary'!K23+'Finance Leases'!P44 -> 15023.19 | N21: =+'Loans - External'!Q60+'Loans Payable - Internal'!Q44+SUMIF('Budget Summary 1'!$D:$D,$A21&" - Other",'Budget Summary 1'!R:R)+SUMIF('Budget Summary 1'!$D:$D,$A21&" - Capitalised",'Budget Summary 1'!R:R)+'S94 - Plan Summary'!L23+'Finance Leases'!Q44 -> 0 | O21: =+'Loans - External'!R60+'Loans Payable - Internal'!R44+SUMIF('Budget Summary 1'!$D:$D,$A21&" - Other",'Budget Summary 1'!S:S)+SUMIF('Budget Summary 1'!$D:$D,$A21&" - Capitalised",'Budget Summary 1'!S:S)+'S94 - Plan Summary'!M23+'Finance Leases'!R44 -> 0 | P21: =+'Loans - External'!S60+'Loans Payable - Internal'!S44+SUMIF('Budget Summary 1'!$D:$D,$A21&" - Other",'Budget Summary 1'!T:T)+SUMIF('Budget Summary 1'!$D:$D,$A21&" - Capitalised",'Budget Summary 1'!T:T)+'S94 - Plan Summary'!N23+'Finance Leases'!S44 -> 0 | Q21: =+'Loans - External'!T60+'Loans Payable - Internal'!T44+SUMIF('Budget Summary 1'!$D:$D,$A21&" - Other",'Budget Summary 1'!U:U)+SUMIF('Budget Summary 1'!$D:$D,$A21&" - Capitalised",'Budget Summary 1'!U:U)+'S94 - Plan Summary'!O23+'Finance Leases'!T44 -> 0 | S21: yes | BD21: =SUMIF('Budget Summary 1'!$C:$C,$A21,'Budget Summary 1'!BC:BC) -> 0 | BE21: =SUMIF('Budget Summary 1'!$C:$C,$A21,'Budget Summary 1'!BD:BD) -> 0 | BF21: =SUMIF('Budget Summary 1'!$C:$C,$A21,'Budget Summary 1'!BE:BE) -> 0 | BG21: =SUMIF('Budget Summary 1'!$C:$C,$A21,'Budget Summary 1'!BF:BF) -> 0 | BH21: =SUMIF('Budget Summary 1'!$C:$C,$A21,'Budget Summary 1'!BG:BG) -> 0 | BI21: =SUMIF('Budget Summary 1'!$C:$C,$A21,'Budget Summary 1'!BH:BH) -> 0 | BJ21: =SUMIF('Budget Summary 1'!$C:$C,$A21,'Budget Summary 1'!BI:BI) -> 0 | BK21: =SUMIF('Budget Summary 1'!$C:$C,$A21,'Budget Summary 1'!BJ:BJ) -> 0 | BL21: =SUMIF('Budget Summary 1'!$C:$C,$A21,'Budget Summary 1'!BK:BK) -> 0 | BM21: =SUMIF('Budget Summary 1'!$C:$C,$A21,'Budget Summary 1'!BL:BL) -> 0 | BN21: =SUMIF('Budget Summary 1'!$C:$C,$A21,'Budget Summary 1'!BM:BM) -> 0 | CD21: =F21-BD21 -> 269960 | CE21: =H21-BE21 -> 188892.55 | CF21: =I21-BF21 -> 159069 | CG21: =J21-BG21 -> 125383 | CH21: =K21-BH21 -> 90722 | CI21: =L21-BI21 -> 53966 | CJ21: =M21-BJ21 -> 15023.19 | CK21: =N21-BK21 -> 0 | CL21: =O21-BL21 -> 0 | CM21: =P21-BM21 -> 0 | CN21: =Q21-BN21 -> 0 | DD21: =IF($S21="yes",CD21,0) -> 269960 | DE21: 188892.55 | DF21: 159069 | DG21: 125383 | DH21: 90722 | DI21: 53966 | DJ21: 15023.19 | DK21: 0 | DL21: 0 | DM21: 0 | DN21: 0 | DZ21: end
A22: Materials & Contracts | B22: Materials & Contracts | D22: =SUM('Historical Data'!C23)*1000 -> 3100000 | F22: =SUMIF('Budget Summary 1'!$C:$C,$A22,'Budget Summary 1'!J:J)+'S94 - Plan Summary'!D24+IF('S94 - Plan Summary'!$R64=TRUE,'S94 - Plan Summary'!D64,0)+IF('CAPEX Summary'!$BS84=TRUE,SUM('CAPEX Summary'!E84),0)+'Major Projects summary'!E37+'Major Projects summary'!E91+'Major Projects summary'!E92+'Major Projects summary'!E104+'RE Dev Summary'!E53+'RE Dev Summary'!E63+'Assets - Disposals & Transfers'!E465+F45-F44+'Budget Summary 1'!J139 -> 6033368 | H22: =SUMIF('Budget Summary 1'!$C:$C,$A22,'Budget Summary 1'!L:L)+'S94 - Plan Summary'!F24+IF('S94 - Plan Summary'!$R64=TRUE,'S94 - Plan Summary'!F64,0)+IF('CAPEX Summary'!$BS84=TRUE,SUM('CAPEX Summary'!G84),0)+'Major Projects summary'!G37+'Major Projects summary'!G91+'Major Projects summary'!G92+'Major Projects summary'!G104+'RE Dev Summary'!G53+'RE Dev Summary'!G63+'Assets - Disposals & Transfers'!G465+H45-H44+'Budget Summary 1'!L139 -> 6897730.2 | I22: =SUMIF('Budget Summary 1'!$C:$C,$A22,'Budget Summary 1'!M:M)+'S94 - Plan Summary'!G24+IF('S94 - Plan Summary'!$R64=TRUE,'S94 - Plan Summary'!G64,0)+IF('CAPEX Summary'!$BS84=TRUE,SUM('CAPEX Summary'!H84),0)+'Major Projects summary'!H37+'Major Projects summary'!H91+'Major Projects summary'!H92+'Major Projects summary'!H104+'RE Dev Summary'!H53+'RE Dev Summary'!H63+'Assets - Disposals & Transfers'!H465+I45-I44+'Budget Summary 1'!M139 -> 7092403.99 | J22: =SUMIF('Budget Summary 1'!$C:$C,$A22,'Budget Summary 1'!N:N)+'S94 - Plan Summary'!H24+IF('S94 - Plan Summary'!$R64=TRUE,'S94 - Plan Summary'!H64,0)+IF('CAPEX Summary'!$BS84=TRUE,SUM('CAPEX Summary'!I84),0)+'Major Projects summary'!I37+'Major Projects summary'!I91+'Major Projects summary'!I92+'Major Projects summary'!I104+'RE Dev Summary'!I53+'RE Dev Summary'!I63+'Assets - Disposals & Transfers'!I465+J45-J44+'Budget Summary 1'!N139 -> 7836825.36 | K22: =SUMIF('Budget Summary 1'!$C:$C,$A22,'Budget Summary 1'!O:O)+'S94 - Plan Summary'!I24+IF('S94 - Plan Summary'!$R64=TRUE,'S94 - Plan Summary'!I64,0)+IF('CAPEX Summary'!$BS84=TRUE,SUM('CAPEX Summary'!J84),0)+'Major Projects summary'!J37+'Major Projects summary'!J91+'Major Projects summary'!J92+'Major Projects summary'!J104+'RE Dev Summary'!J53+'RE Dev Summary'!J63+'Assets - Disposals & Transfers'!J465+K45-K44+'Budget Summary 1'!O139 -> 8144147.18 | L22: =SUMIF('Budget Summary 1'!$C:$C,$A22,'Budget Summary 1'!P:P)+'S94 - Plan Summary'!J24+IF('S94 - Plan Summary'!$R64=TRUE,'S94 - Plan Summary'!J64,0)+IF('CAPEX Summary'!$BS84=TRUE,SUM('CAPEX Summary'!K84),0)+'Major Projects summary'!K37+'Major Projects summary'!K91+'Major Projects summary'!K92+'Major Projects summary'!K104+'RE Dev Summary'!K53+'RE Dev Summary'!K63+'Assets - Disposals & Transfers'!K465+L45-L44+'Budget Summary 1'!P139 -> 8463918.27 | M22: =SUMIF('Budget Summary 1'!$C:$C,$A22,'Budget Summary 1'!Q:Q)+'S94 - Plan Summary'!K24+IF('S94 - Plan Summary'!$R64=TRUE,'S94 - Plan Summary'!K64,0)+IF('CAPEX Summary'!$BS84=TRUE,SUM('CAPEX Summary'!L84),0)+'Major Projects summary'!L37+'Major Projects summary'!L91+'Major Projects summary'!L92+'Major Projects summary'!L104+'RE Dev Summary'!L53+'RE Dev Summary'!L63+'Assets - Disposals & Transfers'!L465+M45-M44+'Budget Summary 1'!Q139 -> 8802552.07 | N22: =SUMIF('Budget Summary 1'!$C:$C,$A22,'Budget Summary 1'!R:R)+'S94 - Plan Summary'!L24+IF('S94 - Plan Summary'!$R64=TRUE,'S94 - Plan Summary'!L64,0)+IF('CAPEX Summary'!$BS84=TRUE,SUM('CAPEX Summary'!M84),0)+'Major Projects summary'!M37+'Major Projects summary'!M91+'Major Projects summary'!M92+'Major Projects summary'!M104+'RE Dev Summary'!M53+'RE Dev Summary'!M63+'Assets - Disposals & Transfers'!M465+N45-N44+'Budget Summary 1'!R139 -> 9154576.64 | O22: =SUMIF('Budget Summary 1'!$C:$C,$A22,'Budget Summary 1'!S:S)+'S94 - Plan Summary'!M24+IF('S94 - Plan Summary'!$R64=TRUE,'S94 - Plan Summary'!M64,0)+IF('CAPEX Summary'!$BS84=TRUE,SUM('CAPEX Summary'!N84),0)+'Major Projects summary'!N37+'Major Projects summary'!N91+'Major Projects summary'!N92+'Major Projects summary'!N104+'RE Dev Summary'!N53+'RE Dev Summary'!N63+'Assets - Disposals & Transfers'!N465+O45-O44+'Budget Summary 1'!S139 -> 9520512.96 | P22: =SUMIF('Budget Summary 1'!$C:$C,$A22,'Budget Summary 1'!T:T)+'S94 - Plan Summary'!N24+IF('S94 - Plan Summary'!$R64=TRUE,'S94 - Plan Summary'!N64,0)+IF('CAPEX Summary'!$BS84=TRUE,SUM('CAPEX Summary'!O84),0)+'Major Projects summary'!O37+'Major Projects summary'!O91+'Major Projects summary'!O92+'Major Projects summary'!O104+'RE Dev Summary'!O53+'RE Dev Summary'!O63+'Assets - Disposals & Transfers'!O465+P45-P44+'Budget Summary 1'!T139 -> 9900911.07 | Q22: =SUMIF('Budget Summary 1'!$C:$C,$A22,'Budget Summary 1'!U:U)+'S94 - Plan Summary'!O24+IF('S94 - Plan Summary'!$R64=TRUE,'S94 - Plan Summary'!O64,0)+IF('CAPEX Summary'!$BS84=TRUE,SUM('CAPEX Summary'!P84),0)+'Major Projects summary'!P37+'Major Projects summary'!P91+'Major Projects summary'!P92+'Major Projects summary'!P104+'RE Dev Summary'!P53+'RE Dev Summary'!P63+'Assets - Disposals & Transfers'!P465+Q45-Q44+'Budget Summary 1'!U139 -> 10296335.89 | S22: yes | BD22: =SUMIF('Budget Summary 1'!$C:$C,$A22,'Budget Summary 1'!BC:BC) -> 0 | BE22: =SUMIF('Budget Summary 1'!$C:$C,$A22,'Budget Summary 1'!BD:BD) -> 0 | BF22: =SUMIF('Budget Summary 1'!$C:$C,$A22,'Budget Summary 1'!BE:BE) -> 0 | BG22: =SUMIF('Budget Summary 1'!$C:$C,$A22,'Budget Summary 1'!BF:BF) -> 0 | BH22: =SUMIF('Budget Summary 1'!$C:$C,$A22,'Budget Summary 1'!BG:BG) -> 0 | BI22: =SUMIF('Budget Summary 1'!$C:$C,$A22,'Budget Summary 1'!BH:BH) -> 0 | BJ22: =SUMIF('Budget Summary 1'!$C:$C,$A22,'Budget Summary 1'!BI:BI) -> 0 | BK22: =SUMIF('Budget Summary 1'!$C:$C,$A22,'Budget Summary 1'!BJ:BJ) -> 0 | BL22: =SUMIF('Budget Summary 1'!$C:$C,$A22,'Budget Summary 1'!BK:BK) -> 0 | BM22: =SUMIF('Budget Summary 1'!$C:$C,$A22,'Budget Summary 1'!BL:BL) -> 0 | BN22: =SUMIF('Budget Summary 1'!$C:$C,$A22,'Budget Summary 1'!BM:BM) -> 0 | CD22: 6033368 | CE22: 6897730.2 | CF22: 7092403.99 | CG22: 7836825.36 | CH22: 8144147.18 | CI22: 8463918.27 | CJ22: 8802552.07 | CK22: 9154576.64 | CL22: 9520512.96 | CM22: 9900911.07 | CN22: 10296335.89 | DD22: 6033368 | DE22: 6897730.2 | DF22: 7092403.99 | DG22: 7836825.36 | DH22: 8144147.18 | DI22: 8463918.27 | DJ22: 8802552.07 | DK22: 9154576.64 | DL22: 9520512.96 | DM22: 9900911.07 | DN22: 10296335.89 | DZ22: end
A23: Depreciation & Amortisation | B23: Depreciation & Amortisation | D23: =SUM('Historical Data'!C24)*1000 -> 6145000 | F23: =SUMIF('Budget Summary 1'!$C:$C,$A23,'Budget Summary 1'!J:J)+IF('S94 - Plan Summary'!$R66=TRUE,'S94 - Plan Summary'!D66,0)+IF('CAPEX Summary'!$BS87=TRUE,SUM('CAPEX Summary'!E87),0)+'Major Projects summary'!E94+'Assets - Disposals & Transfers'!E467+'IPP&E Reconciliation'!D708 -> 4746123 | H23: =SUMIF('Budget Summary 1'!$C:$C,$A23,'Budget Summary 1'!L:L)+IF('S94 - Plan Summary'!$R66=TRUE,'S94 - Plan Summary'!F66,0)+IF('CAPEX Summary'!$BS87=TRUE,SUM('CAPEX Summary'!G87),0)+'Major Projects summary'!G94+'Assets - Disposals & Transfers'!G467+'IPP&E Reconciliation'!E708 -> 4849512.73 | I23: =SUMIF('Budget Summary 1'!$C:$C,$A23,'Budget Summary 1'!M:M)+IF('S94 - Plan Summary'!$R66=TRUE,'S94 - Plan Summary'!G66,0)+IF('CAPEX Summary'!$BS87=TRUE,SUM('CAPEX Summary'!H87),0)+'Major Projects summary'!H94+'Assets - Disposals & Transfers'!H467+'IPP&E Reconciliation'!F708 -> 4962476.231 | J23: =SUMIF('Budget Summary 1'!$C:$C,$A23,'Budget Summary 1'!N:N)+IF('S94 - Plan Summary'!$R66=TRUE,'S94 - Plan Summary'!H66,0)+IF('CAPEX Summary'!$BS87=TRUE,SUM('CAPEX Summary'!I87),0)+'Major Projects summary'!I94+'Assets - Disposals & Transfers'!I467+'IPP&E Reconciliation'!G708 -> 5062321.381 | K23: =SUMIF('Budget Summary 1'!$C:$C,$A23,'Budget Summary 1'!O:O)+IF('S94 - Plan Summary'!$R66=TRUE,'S94 - Plan Summary'!I66,0)+IF('CAPEX Summary'!$BS87=TRUE,SUM('CAPEX Summary'!J87),0)+'Major Projects summary'!J94+'Assets - Disposals & Transfers'!J467+'IPP&E Reconciliation'!H708 -> 5165782.791 | L23: =SUMIF('Budget Summary 1'!$C:$C,$A23,'Budget Summary 1'!P:P)+IF('S94 - Plan Summary'!$R66=TRUE,'S94 - Plan Summary'!J66,0)+IF('CAPEX Summary'!$BS87=TRUE,SUM('CAPEX Summary'!K87),0)+'Major Projects summary'!K94+'Assets - Disposals & Transfers'!K467+'IPP&E Reconciliation'!I708 -> 5331022.781 | M23: =SUMIF('Budget Summary 1'!$C:$C,$A23,'Budget Summary 1'!Q:Q)+IF('S94 - Plan Summary'!$R66=TRUE,'S94 - Plan Summary'!K66,0)+IF('CAPEX Summary'!$BS87=TRUE,SUM('CAPEX Summary'!L87),0)+'Major Projects summary'!L94+'Assets - Disposals & Transfers'!L467+'IPP&E Reconciliation'!J708 -> 5485107.701 | N23: =SUMIF('Budget Summary 1'!$C:$C,$A23,'Budget Summary 1'!R:R)+IF('S94 - Plan Summary'!$R66=TRUE,'S94 - Plan Summary'!L66,0)+IF('CAPEX Summary'!$BS87=TRUE,SUM('CAPEX Summary'!M87),0)+'Major Projects summary'!M94+'Assets - Disposals & Transfers'!M467+'IPP&E Reconciliation'!K708 -> 5635605.171 | O23: =SUMIF('Budget Summary 1'!$C:$C,$A23,'Budget Summary 1'!S:S)+IF('S94 - Plan Summary'!$R66=TRUE,'S94 - Plan Summary'!M66,0)+IF('CAPEX Summary'!$BS87=TRUE,SUM('CAPEX Summary'!N87),0)+'Major Projects summary'!N94+'Assets - Disposals & Transfers'!N467+'IPP&E Reconciliation'!L708 -> 5812451.401 | P23: =SUMIF('Budget Summary 1'!$C:$C,$A23,'Budget Summary 1'!T:T)+IF('S94 - Plan Summary'!$R66=TRUE,'S94 - Plan Summary'!N66,0)+IF('CAPEX Summary'!$BS87=TRUE,SUM('CAPEX Summary'!O87),0)+'Major Projects summary'!O94+'Assets - Disposals & Transfers'!O467+'IPP&E Reconciliation'!M708 -> 5920238.471 | Q23: =SUMIF('Budget Summary 1'!$C:$C,$A23,'Budget Summary 1'!U:U)+IF('S94 - Plan Summary'!$R66=TRUE,'S94 - Plan Summary'!O66,0)+IF('CAPEX Summary'!$BS87=TRUE,SUM('CAPEX Summary'!P87),0)+'Major Projects summary'!P94+'Assets - Disposals & Transfers'!P467+'IPP&E Reconciliation'!N708 -> 6081843.011 | S23: yes | BD23: =SUMIF('Budget Summary 1'!$C:$C,$A23,'Budget Summary 1'!BC:BC) -> 4746123 | BE23: =SUMIF('Budget Summary 1'!$C:$C,$A23,'Budget Summary 1'!BD:BD) -> 4849513.04 | BF23: =SUMIF('Budget Summary 1'!$C:$C,$A23,'Budget Summary 1'!BE:BE) -> 4978156.1 | BG23: =SUMIF('Budget Summary 1'!$C:$C,$A23,'Budget Summary 1'!BF:BF) -> 5078001.25 | BH23: =SUMIF('Budget Summary 1'!$C:$C,$A23,'Budget Summary 1'!BG:BG) -> 5181462.66 | BI23: =SUMIF('Budget Summary 1'!$C:$C,$A23,'Budget Summary 1'!BH:BH) -> 5346702.65 | BJ23: =SUMIF('Budget Summary 1'!$C:$C,$A23,'Budget Summary 1'!BI:BI) -> 5500787.57 | BK23: =SUMIF('Budget Summary 1'!$C:$C,$A23,'Budget Summary 1'!BJ:BJ) -> 5651285.04 | BL23: =SUMIF('Budget Summary 1'!$C:$C,$A23,'Budget Summary 1'!BK:BK) -> 5828131.27 | BM23: =SUMIF('Budget Summary 1'!$C:$C,$A23,'Budget Summary 1'!BL:BL) -> 5935918.34 | BN23: =SUMIF('Budget Summary 1'!$C:$C,$A23,'Budget Summary 1'!BM:BM) -> 6097522.88 | CD23: 0 | CE23: -0.3102031173 | CF23: -15679.86896 | CG23: -15679.86896 | CH23: -15679.86896 | CI23: -15679.86896 | CJ23: -15679.86896 | CK23: -15679.86896 | CL23: -15679.86896 | CM23: -15679.86896 | CN23: -15679.86896 | DD23: 0 | DE23: -0.3102031173 | DF23: -15679.86896 | DG23: -15679.86896 | DH23: -15679.86896 | DI23: -15679.86896 | DJ23: -15679.86896 | DK23: -15679.86896 | DL23: -15679.86896 | DM23: -15679.86896 | DN23: -15679.86896 | DZ23: end
A24: Impairment | B24: Impairment | D24: =SUM('Historical Data'!C25)*1000 -> 0 | F24: =SUMIF('Budget Summary 1'!$C:$C,$A24,'Budget Summary 1'!J:J) -> 0 | H24: =SUMIF('Budget Summary 1'!$C:$C,$A24,'Budget Summary 1'!L:L) -> 0 | I24: =SUMIF('Budget Summary 1'!$C:$C,$A24,'Budget Summary 1'!M:M) -> 0 | J24: =SUMIF('Budget Summary 1'!$C:$C,$A24,'Budget Summary 1'!N:N) -> 0 | K24: =SUMIF('Budget Summary 1'!$C:$C,$A24,'Budget Summary 1'!O:O) -> 0 | L24: =SUMIF('Budget Summary 1'!$C:$C,$A24,'Budget Summary 1'!P:P) -> 0 | M24: =SUMIF('Budget Summary 1'!$C:$C,$A24,'Budget Summary 1'!Q:Q) -> 0 | N24: =SUMIF('Budget Summary 1'!$C:$C,$A24,'Budget Summary 1'!R:R) -> 0 | O24: =SUMIF('Budget Summary 1'!$C:$C,$A24,'Budget Summary 1'!S:S) -> 0 | P24: =SUMIF('Budget Summary 1'!$C:$C,$A24,'Budget Summary 1'!T:T) -> 0 | Q24: =SUMIF('Budget Summary 1'!$C:$C,$A24,'Budget Summary 1'!U:U) -> 0 | S24: yes | BD24: =SUMIF('Budget Summary 1'!$C:$C,$A24,'Budget Summary 1'!BC:BC) -> 0 | BE24: =SUMIF('Budget Summary 1'!$C:$C,$A24,'Budget Summary 1'!BD:BD) -> 0 | BF24: =SUMIF('Budget Summary 1'!$C:$C,$A24,'Budget Summary 1'!BE:BE) -> 0 | BG24: =SUMIF('Budget Summary 1'!$C:$C,$A24,'Budget Summary 1'!BF:BF) -> 0 | BH24: =SUMIF('Budget Summary 1'!$C:$C,$A24,'Budget Summary 1'!BG:BG) -> 0 | BI24: =SUMIF('Budget Summary 1'!$C:$C,$A24,'Budget Summary 1'!BH:BH) -> 0 | BJ24: =SUMIF('Budget Summary 1'!$C:$C,$A24,'Budget Summary 1'!BI:BI) -> 0 | BK24: =SUMIF('Budget Summary 1'!$C:$C,$A24,'Budget Summary 1'!BJ:BJ) -> 0 | BL24: =SUMIF('Budget Summary 1'!$C:$C,$A24,'Budget Summary 1'!BK:BK) -> 0 | BM24: =SUMIF('Budget Summary 1'!$C:$C,$A24,'Budget Summary 1'!BL:BL) -> 0 | BN24: =SUMIF('Budget Summary 1'!$C:$C,$A24,'Budget Summary 1'!BM:BM) -> 0 | CD24: 0 | CE24: 0 | CF24: 0 | CG24: 0 | CH24: 0 | CI24: 0 | CJ24: 0 | CK24: 0 | CL24: 0 | CM24: 0 | CN24: 0 | DD24: 0 | DE24: 0 | DF24: 0 | DG24: 0 | DH24: 0 | DI24: 0 | DJ24: 0 | DK24: 0 | DL24: 0 | DM24: 0 | DN24: 0 | DZ24: end
A25: Other Expenses | B25: Other Expenses | D25: =SUM('Historical Data'!C26)*1000 -> 4053000 | F25: =SUMIF('Budget Summary 1'!$C:$C,$A25,'Budget Summary 1'!J:J)+'S94 - Plan Summary'!D25+'Major Projects summary'!E38+'Major Projects summary'!E95+'Major Projects summary'!E105+'RE Dev Summary'!E55+'RE Dev Summary'!E64 -> 3333537 | H25: =SUMIF('Budget Summary 1'!$C:$C,$A25,'Budget Summary 1'!L:L)+'S94 - Plan Summary'!F25+'Major Projects summary'!G38+'Major Projects summary'!G95+'Major Projects summary'!G105+'RE Dev Summary'!G55+'RE Dev Summary'!G64 -> 3032005.11 | I25: =SUMIF('Budget Summary 1'!$C:$C,$A25,'Budget Summary 1'!M:M)+'S94 - Plan Summary'!G25+'Major Projects summary'!H38+'Major Projects summary'!H95+'Major Projects summary'!H105+'RE Dev Summary'!H55+'RE Dev Summary'!H64 -> 2888282.27 | J25: =SUMIF('Budget Summary 1'!$C:$C,$A25,'Budget Summary 1'!N:N)+'S94 - Plan Summary'!H25+'Major Projects summary'!I38+'Major Projects summary'!I95+'Major Projects summary'!I105+'RE Dev Summary'!I55+'RE Dev Summary'!I64 -> 2760489.36 | K25: =SUMIF('Budget Summary 1'!$C:$C,$A25,'Budget Summary 1'!O:O)+'S94 - Plan Summary'!I25+'Major Projects summary'!J38+'Major Projects summary'!J95+'Major Projects summary'!J105+'RE Dev Summary'!J55+'RE Dev Summary'!J64 -> 2629501.61 | L25: =SUMIF('Budget Summary 1'!$C:$C,$A25,'Budget Summary 1'!P:P)+'S94 - Plan Summary'!J25+'Major Projects summary'!K38+'Major Projects summary'!K95+'Major Projects summary'!K105+'RE Dev Summary'!K55+'RE Dev Summary'!K64 -> 2708386.63 | M25: =SUMIF('Budget Summary 1'!$C:$C,$A25,'Budget Summary 1'!Q:Q)+'S94 - Plan Summary'!K25+'Major Projects summary'!L38+'Major Projects summary'!L95+'Major Projects summary'!L105+'RE Dev Summary'!L55+'RE Dev Summary'!L64 -> 2789638.18 | N25: =SUMIF('Budget Summary 1'!$C:$C,$A25,'Budget Summary 1'!R:R)+'S94 - Plan Summary'!L25+'Major Projects summary'!M38+'Major Projects summary'!M95+'Major Projects summary'!M105+'RE Dev Summary'!M55+'RE Dev Summary'!M64 -> 2873327.3 | O25: =SUMIF('Budget Summary 1'!$C:$C,$A25,'Budget Summary 1'!S:S)+'S94 - Plan Summary'!M25+'Major Projects summary'!N38+'Major Projects summary'!N95+'Major Projects summary'!N105+'RE Dev Summary'!N55+'RE Dev Summary'!N64 -> 2959527.13 | P25: =SUMIF('Budget Summary 1'!$C:$C,$A25,'Budget Summary 1'!T:T)+'S94 - Plan Summary'!N25+'Major Projects summary'!O38+'Major Projects summary'!O95+'Major Projects summary'!O105+'RE Dev Summary'!O55+'RE Dev Summary'!O64 -> 3048312.93 | Q25: =SUMIF('Budget Summary 1'!$C:$C,$A25,'Budget Summary 1'!U:U)+'S94 - Plan Summary'!O25+'Major Projects summary'!P38+'Major Projects summary'!P95+'Major Projects summary'!P105+'RE Dev Summary'!P55+'RE Dev Summary'!P64 -> 3139762.34 | S25: yes | BD25: =SUMIF('Budget Summary 1'!$C:$C,$A25,'Budget Summary 1'!BC:BC) -> 0 | BE25: =SUMIF('Budget Summary 1'!$C:$C,$A25,'Budget Summary 1'!BD:BD) -> 0 | BF25: =SUMIF('Budget Summary 1'!$C:$C,$A25,'Budget Summary 1'!BE:BE) -> 0 | BG25: =SUMIF('Budget Summary 1'!$C:$C,$A25,'Budget Summary 1'!BF:BF) -> 0 | BH25: =SUMIF('Budget Summary 1'!$C:$C,$A25,'Budget Summary 1'!BG:BG) -> 0 | BI25: =SUMIF('Budget Summary 1'!$C:$C,$A25,'Budget Summary 1'!BH:BH) -> 0 | BJ25: =SUMIF('Budget Summary 1'!$C:$C,$A25,'Budget Summary 1'!BI:BI) -> 0 | BK25: =SUMIF('Budget Summary 1'!$C:$C,$A25,'Budget Summary 1'!BJ:BJ) -> 0 | BL25: =SUMIF('Budget Summary 1'!$C:$C,$A25,'Budget Summary 1'!BK:BK) -> 0 | BM25: =SUMIF('Budget Summary 1'!$C:$C,$A25,'Budget Summary 1'!BL:BL) -> 0 | BN25: =SUMIF('Budget Summary 1'!$C:$C,$A25,'Budget Summary 1'!BM:BM) -> 0 | CD25: 3333537 | CE25: 3032005.11 | CF25: 2888282.27 | CG25: 2760489.36 | CH25: 2629501.61 | CI25: 2708386.63 | CJ25: 2789638.18 | CK25: 2873327.3 | CL25: 2959527.13 | CM25: 3048312.93 | CN25: 3139762.34 | DD25: 3333537 | DE25: 3032005.11 | DF25: 2888282.27 | DG25: 2760489.36 | DH25: 2629501.61 | DI25: 2708386.63 | DJ25: 2789638.18 | DK25: 2873327.3 | DL25: 2959527.13 | DM25: 3048312.93 | DN25: 3139762.34 | DZ25: end
A26: Interest & Investment Losses | B26: Interest & Investment Losses | D26: =SUM('Historical Data'!C27)*1000 -> 0 | F26: =IF(SUMIF('Budget Summary 1'!$C:$C,$A26,'Budget Summary 1'!J:J)<0,-SUMIF('Budget Summary 1'!$C:$C,$A26,'Budget Summary 1'!J:J),0) -> 0 | H26: =IF(SUMIF('Budget Summary 1'!$C:$C,$A26,'Budget Summary 1'!L:L)<0,-SUMIF('Budget Summary 1'!$C:$C,$A26,'Budget Summary 1'!L:L),0) -> 0 | I26: =IF(SUMIF('Budget Summary 1'!$C:$C,$A26,'Budget Summary 1'!M:M)<0,-SUMIF('Budget Summary 1'!$C:$C,$A26,'Budget Summary 1'!M:M),0) -> 0 | J26: =IF(SUMIF('Budget Summary 1'!$C:$C,$A26,'Budget Summary 1'!N:N)<0,-SUMIF('Budget Summary 1'!$C:$C,$A26,'Budget Summary 1'!N:N),0) -> 0 | K26: =IF(SUMIF('Budget Summary 1'!$C:$C,$A26,'Budget Summary 1'!O:O)<0,-SUMIF('Budget Summary 1'!$C:$C,$A26,'Budget Summary 1'!O:O),0) -> 0 | L26: =IF(SUMIF('Budget Summary 1'!$C:$C,$A26,'Budget Summary 1'!P:P)<0,-SUMIF('Budget Summary 1'!$C:$C,$A26,'Budget Summary 1'!P:P),0) -> 0 | M26: =IF(SUMIF('Budget Summary 1'!$C:$C,$A26,'Budget Summary 1'!Q:Q)<0,-SUMIF('Budget Summary 1'!$C:$C,$A26,'Budget Summary 1'!Q:Q),0) -> 0 | N26: =IF(SUMIF('Budget Summary 1'!$C:$C,$A26,'Budget Summary 1'!R:R)<0,-SUMIF('Budget Summary 1'!$C:$C,$A26,'Budget Summary 1'!R:R),0) -> 0 | O26: =IF(SUMIF('Budget Summary 1'!$C:$C,$A26,'Budget Summary 1'!S:S)<0,-SUMIF('Budget Summary 1'!$C:$C,$A26,'Budget Summary 1'!S:S),0) -> 0 | P26: =IF(SUMIF('Budget Summary 1'!$C:$C,$A26,'Budget Summary 1'!T:T)<0,-SUMIF('Budget Summary 1'!$C:$C,$A26,'Budget Summary 1'!T:T),0) -> 0 | Q26: =IF(SUMIF('Budget Summary 1'!$C:$C,$A26,'Budget Summary 1'!U:U)<0,-SUMIF('Budget Summary 1'!$C:$C,$A26,'Budget Summary 1'!U:U),0) -> 0 | S26: yes | BD26: =SUMIF('Budget Summary 1'!$C:$C,$A26,'Budget Summary 1'!BC:BC) -> 0 | BE26: =SUMIF('Budget Summary 1'!$C:$C,$A26,'Budget Summary 1'!BD:BD) -> 0 | BF26: =SUMIF('Budget Summary 1'!$C:$C,$A26,'Budget Summary 1'!BE:BE) -> 0 | BG26: =SUMIF('Budget Summary 1'!$C:$C,$A26,'Budget Summary 1'!BF:BF) -> 0 | BH26: =SUMIF('Budget Summary 1'!$C:$C,$A26,'Budget Summary 1'!BG:BG) -> 0 | BI26: =SUMIF('Budget Summary 1'!$C:$C,$A26,'Budget Summary 1'!BH:BH) -> 0 | BJ26: =SUMIF('Budget Summary 1'!$C:$C,$A26,'Budget Summary 1'!BI:BI) -> 0 | BK26: =SUMIF('Budget Summary 1'!$C:$C,$A26,'Budget Summary 1'!BJ:BJ) -> 0 | BL26: =SUMIF('Budget Summary 1'!$C:$C,$A26,'Budget Summary 1'!BK:BK) -> 0 | BM26: =SUMIF('Budget Summary 1'!$C:$C,$A26,'Budget Summary 1'!BL:BL) -> 0 | BN26: =SUMIF('Budget Summary 1'!$C:$C,$A26,'Budget Summary 1'!BM:BM) -> 0 | CD26: 0 | CE26: 0 | CF26: 0 | CG26: 0 | CH26: 0 | CI26: 0 | CJ26: 0 | CK26: 0 | CL26: 0 | CM26: 0 | CN26: 0 | DD26: 0 | DE26: 0 | DF26: 0 | DG26: 0 | DH26: 0 | DI26: 0 | DJ26: 0 | DK26: 0 | DL26: 0 | DM26: 0 | DN26: 0 | DZ26: end
A27: Net Losses from the Disposal of Assets | B27: Net Losses from the Disposal of Assets | D27: =SUM('Historical Data'!C28)*1000 -> 0 | F27: =IF(('BS workings'!E71+'BS workings'!E435+'BS workings'!E548+'BS workings'!E575+'BS workings'!E596+'BS workings'!E628)<0,-('BS workings'!E71+'BS workings'!E435+'BS workings'!E548+'BS workings'!E575+'BS workings'!E596+'BS workings'!E628),0) -> 0 | H27: =IF(('BS workings'!G71+'BS workings'!G435+'BS workings'!G548+'BS workings'!G575+'BS workings'!G596+'BS workings'!G628)<0,-('BS workings'!G71+'BS workings'!G435+'BS workings'!G548+'BS workings'!G575+'BS workings'!G596+'BS workings'!G628),0) -> 0 | I27: =IF(('BS workings'!H71+'BS workings'!H435+'BS workings'!H548+'BS workings'!H575+'BS workings'!H596+'BS workings'!H628)<0,-('BS workings'!H71+'BS workings'!H435+'BS workings'!H548+'BS workings'!H575+'BS workings'!H596+'BS workings'!H628),0) -> 0 | J27: =IF(('BS workings'!I71+'BS workings'!I435+'BS workings'!I548+'BS workings'!I575+'BS workings'!I596+'BS workings'!I628)<0,-('BS workings'!I71+'BS workings'!I435+'BS workings'!I548+'BS workings'!I575+'BS workings'!I596+'BS workings'!I628),0) -> 0 | K27: =IF(('BS workings'!J71+'BS workings'!J435+'BS workings'!J548+'BS workings'!J575+'BS workings'!J596+'BS workings'!J628)<0,-('BS workings'!J71+'BS workings'!J435+'BS workings'!J548+'BS workings'!J575+'BS workings'!J596+'BS workings'!J628),0) -> 0 | L27: =IF(('BS workings'!K71+'BS workings'!K435+'BS workings'!K548+'BS workings'!K575+'BS workings'!K596+'BS workings'!K628)<0,-('BS workings'!K71+'BS workings'!K435+'BS workings'!K548+'BS workings'!K575+'BS workings'!K596+'BS workings'!K628),0) -> 0 | M27: =IF(('BS workings'!L71+'BS workings'!L435+'BS workings'!L548+'BS workings'!L575+'BS workings'!L596+'BS workings'!L628)<0,-('BS workings'!L71+'BS workings'!L435+'BS workings'!L548+'BS workings'!L575+'BS workings'!L596+'BS workings'!L628),0) -> 0 | N27: =IF(('BS workings'!M71+'BS workings'!M435+'BS workings'!M548+'BS workings'!M575+'BS workings'!M596+'BS workings'!M628)<0,-('BS workings'!M71+'BS workings'!M435+'BS workings'!M548+'BS workings'!M575+'BS workings'!M596+'BS workings'!M628),0) -> 0 | O27: =IF(('BS workings'!N71+'BS workings'!N435+'BS workings'!N548+'BS workings'!N575+'BS workings'!N596+'BS workings'!N628)<0,-('BS workings'!N71+'BS workings'!N435+'BS workings'!N548+'BS workings'!N575+'BS workings'!N596+'BS workings'!N628),0) -> 0 | P27: =IF(('BS workings'!O71+'BS workings'!O435+'BS workings'!O548+'BS workings'!O575+'BS workings'!O596+'BS workings'!O628)<0,-('BS workings'!O71+'BS workings'!O435+'BS workings'!O548+'BS workings'!O575+'BS workings'!O596+'BS workings'!O628),0) -> 0 | Q27: =IF(('BS workings'!P71+'BS workings'!P435+'BS workings'!P548+'BS workings'!P575+'BS workings'!P596+'BS workings'!P628)<0,-('BS workings'!P71+'BS workings'!P435+'BS workings'!P548+'BS workings'!P575+'BS workings'!P596+'BS workings'!P628),0) -> 0 | S27: yes | BB27: different formula | BD27: =F27 -> 0 | BE27: =H27 -> 0 | BF27: 0 | BG27: 0 | BH27: 0 | BI27: 0 | BJ27: 0 | BK27: 0 | BL27: 0 | BM27: 0 | BN27: 0 | CD27: 0 | CE27: 0 | CF27: 0 | CG27: 0 | CH27: 0 | CI27: 0 | CJ27: 0 | CK27: 0 | CL27: 0 | CM27: 0 | CN27: 0 | DD27: 0 | DE27: 0 | DF27: 0 | DG27: 0 | DH27: 0 | DI27: 0 | DJ27: 0 | DK27: 0 | DL27: 0 | DM27: 0 | DN27: 0 | DZ27: end
A28: =B28&" - Loss" -> Joint Ventures & Associated Entities - Loss | B28: Joint Ventures & Associated Entities | D28: =SUM('Historical Data'!C29)*1000 -> 0 | F28: =SUMIF('Budget Summary 1'!$C:$C,$A28,'Budget Summary 1'!J:J) -> 0 | H28: =SUMIF('Budget Summary 1'!$C:$C,$A28,'Budget Summary 1'!L:L) -> 0 | I28: =SUMIF('Budget Summary 1'!$C:$C,$A28,'Budget Summary 1'!M:M) -> 0 | J28: =SUMIF('Budget Summary 1'!$C:$C,$A28,'Budget Summary 1'!N:N) -> 0 | K28: =SUMIF('Budget Summary 1'!$C:$C,$A28,'Budget Summary 1'!O:O) -> 0 | L28: =SUMIF('Budget Summary 1'!$C:$C,$A28,'Budget Summary 1'!P:P) -> 0 | M28: =SUMIF('Budget Summary 1'!$C:$C,$A28,'Budget Summary 1'!Q:Q) -> 0 | N28: =SUMIF('Budget Summary 1'!$C:$C,$A28,'Budget Summary 1'!R:R) -> 0 | O28: =SUMIF('Budget Summary 1'!$C:$C,$A28,'Budget Summary 1'!S:S) -> 0 | P28: =SUMIF('Budget Summary 1'!$C:$C,$A28,'Budget Summary 1'!T:T) -> 0 | Q28: =SUMIF('Budget Summary 1'!$C:$C,$A28,'Budget Summary 1'!U:U) -> 0 | S28: yes | BB28: different formula | BD28: =F28 -> 0 | BE28: 0 | BF28: 0 | BG28: 0 | BH28: 0 | BI28: 0 | BJ28: 0 | BK28: 0 | BL28: 0 | BM28: 0 | BN28: 0 | CD28: 0 | CE28: 0 | CF28: 0 | CG28: 0 | CH28: 0 | CI28: 0 | CJ28: 0 | CK28: 0 | CL28: 0 | CM28: 0 | CN28: 0 | DD28: 0 | DE28: 0 | DF28: 0 | DG28: 0 | DH28: 0 | DI28: 0 | DJ28: 0 | DK28: 0 | DL28: 0 | DM28: 0 | DN28: 0 | DZ28: end
B29: Total Expenses from Continuing Operations | D29: =SUM(D20:D28) -> 22238000 | F29: =SUM(F20:F28) -> 22699768 | H29: =SUM(H20:H28) -> 22976745.49 | I29: =SUM(I20:I28) -> 23328226.37 | J29: =SUM(J20:J28) -> 24362639.36 | K29: 24893607.57 | L29: 25737248.45 | M29: 26523271.69 | N29: 27352985.34 | O29: 28248249.18 | P29: 29099490.07 | Q29: 30030466.82 | U29: =SUMIF($S20:$S28,"yes",F20:F28) -> 22699768 | V29: =SUMIF($S20:$S28,"yes",H20:H28) -> 22976745.49 | W29: =SUMIF($S20:$S28,"yes",I20:I28) -> 23328226.37 | X29: 24362639.36 | Y29: 24893607.57 | Z29: 25737248.45 | AA29: 26523271.69 | AB29: 27352985.34 | AC29: 28248249.18 | AD29: 29099490.07 | AE29: 30030466.82 | BD29: =SUM(BD20:BD28) -> 4746123 | BE29: 4849513.04 | BF29: 4978156.1 | BG29: 5078001.25 | BH29: 5181462.66 | BI29: 5346702.65 | BJ29: 5500787.57 | BK29: 5651285.04 | BL29: 5828131.27 | BM29: 5935918.34 | BN29: 6097522.88 | CD29: =SUM(CD20:CD28) -> 17953645 | CE29: 18127232.45 | CF29: 18350070.27 | CG29: 19284638.11 | CH29: 19712144.91 | CI29: 20390545.8 | CJ29: 21022484.12 | CK29: 21701700.3 | CL29: 22420117.91 | CM29: 23163571.73 | CN29: 23932943.94 | DD29: =SUM(DD20:DD28) -> 17953645 | DE29: 18127232.45 | DF29: 18350070.27 | DG29: 19284638.11 | DH29: 19712144.91 | DI29: 20390545.8 | DJ29: 21022484.12 | DK29: 21701700.3 | DL29: 22420117.91 | DM29: 23163571.73 | DN29: 23932943.94 | DZ29: end
DZ30: end
B31: Operating Result from Continuing Operations | D31: =D17-D29 -> -1637000 | F31: =F17-F29 -> 323277 | H31: =H17-H29 -> -472194.5698 | I31: 491699.379 | J31: -702637.401 | K31: 47092.75896 | L31: 694039.439 | M31: 816929.289 | N31: 940705.789 | O31: 1016672.029 | P31: 1190206.589 | Q31: 1314819.019 | BD31: =BD17-BD29 -> -4746123 | BE31: -4849513.04 | BF31: -4978156.1 | BG31: -5078001.25 | BH31: -5181462.66 | BI31: -5346702.65 | BJ31: -5500787.57 | BK31: -5651285.04 | BL31: -5828131.27 | BM31: -5935918.34 | BN31: -6097522.88 | CD31: =CD17-CD29 -> 5069400 | CE31: 4377318.47 | CF31: 5469855.479 | CG31: 4375363.849 | CH31: 5228555.419 | CI31: 6040742.089 | CJ31: 6317716.859 | CK31: 6591990.829 | CL31: 6844803.299 | CM31: 7126124.929 | CN31: 7412341.899 | DZ31: end
DZ32: end
B33: Discontinued Operations - Profit/(Loss) | D33: =SUM('Historical Data'!C34)*1000 -> 0 | F33: 0 | H33: 0 | I33: 0 | J33: 0 | K33: 0 | L33: 0 | M33: 0 | N33: 0 | O33: 0 | P33: 0 | Q33: 0 | BD33: 0 | BE33: 0 | BF33: 0 | BG33: 0 | BH33: 0 | BI33: 0 | BJ33: 0 | BK33: 0 | BL33: 0 | BM33: 0 | BN33: 0 | CD33: =F33-BD33 -> 0 | CE33: =H33-BE33 -> 0 | CF33: 0 | CG33: 0 | CH33: 0 | CI33: 0 | CJ33: 0 | CK33: 0 | CL33: 0 | CM33: 0 | CN33: 0 | DZ33: end
B34: Net Profit/(Loss) from Discontinued Operations | D34: =D33 -> 0 | F34: =F33 -> 0 | H34: =H33 -> 0 | I34: =I33 -> 0 | J34: 0 | K34: 0 | L34: 0 | M34: 0 | N34: 0 | O34: 0 | P34: 0 | Q34: 0 | BD34: =BD33 -> 0 | BE34: 0 | BF34: 0 | BG34: 0 | BH34: 0 | BI34: 0 | BJ34: 0 | BK34: 0 | BL34: 0 | BM34: 0 | BN34: 0 | CD34: =CD33 -> 0 | CE34: 0 | CF34: 0 | CG34: 0 | CH34: 0 | CI34: 0 | CJ34: 0 | CK34: 0 | CL34: 0 | CM34: 0 | CN34: 0 | DZ34: end
DZ35: end
B36: Net Operating Result for the Year | D36: =D34+D31 -> -1637000 | F36: =F34+F31 -> 323277 | H36: =H34+H31 -> -472194.5698 | I36: 491699.379 | J36: -702637.401 | K36: 47092.75896 | L36: 694039.439 | M36: 816929.289 | N36: 940705.789 | O36: 1016672.029 | P36: 1190206.589 | Q36: 1314819.019 | BD36: =BD34+BD31 -> -4746123 | BE36: -4849513.04 | BF36: -4978156.1 | BG36: -5078001.25 | BH36: -5181462.66 | BI36: -5346702.65 | BJ36: -5500787.57 | BK36: -5651285.04 | BL36: -5828131.27 | BM36: -5935918.34 | BN36: -6097522.88 | CD36: =CD34+CD31 -> 5069400 | CE36: 4377318.47 | CF36: 5469855.479 | CG36: 4375363.849 | CH36: 5228555.419 | CI36: 6040742.089 | CJ36: 6317716.859 | CK36: 6591990.829 | CL36: 6844803.299 | CM36: 7126124.929 | CN36: 7412341.899 | DZ36: end
DZ37: end
B38: Net Operating Result before Grants and Contributions provided for | DZ38: end
B39: Capital Purposes | D39: =D36-D13 -> -5753000 | F39: =F36-F13 -> -2859278 | H39: =H36-H13 -> -1474524.79 | I39: -399210.781 | J39: -1617494.161 | K39: -892443.761 | L39: -311099.351 | M39: -220200.631 | N39: -129552.991 | O39: -79696.38104 | P39: 50315.74896 | Q39: 138154.099 | BD39: =BD36-BD13 -> -4746123 | BE39: -4849513.04 | BF39: -4978156.1 | BG39: -5078001.25 | BH39: -5181462.66 | BI39: -5346702.65 | BJ39: -5500787.57 | BK39: -5651285.04 | BL39: -5828131.27 | BM39: -5935918.34 | BN39: -6097522.88 | CD39: =CD36-CD13 -> 1886845 | CE39: 3374988.25 | CF39: 4578945.319 | CG39: 3460507.089 | CH39: 4289018.899 | CI39: 5035603.299 | CJ39: 5280586.939 | CK39: 5521732.049 | CL39: 5748434.889 | CM39: 5986234.089 | CN39: 6235676.979 | DZ39: end
DZ40: end
C41: hide row | DZ41: end
C42: hide row | DZ42: end
C43: hide row | DZ43: end
B44: Net Internal Surplus | C44: hide row | F44: =IF('Budget Summary 1'!J608>0,'Budget Summary 1'!J608,0) -> 752636 | H44: =IF('Budget Summary 1'!L608>0,'Budget Summary 1'!L608,0) -> 777104 | I44: =IF('Budget Summary 1'!M608>0,'Budget Summary 1'!M608,0) -> 794232 | J44: =IF('Budget Summary 1'!N608>0,'Budget Summary 1'!N608,0) -> 831632 | K44: =IF('Budget Summary 1'!O608>0,'Budget Summary 1'!O608,0) -> 870705 | L44: =IF('Budget Summary 1'!P608>0,'Budget Summary 1'!P608,0) -> 911528 | M44: =IF('Budget Summary 1'!Q608>0,'Budget Summary 1'!Q608,0) -> 947912 | N44: =IF('Budget Summary 1'!R608>0,'Budget Summary 1'!R608,0) -> 985906 | O44: =IF('Budget Summary 1'!S608>0,'Budget Summary 1'!S608,0) -> 1025589 | P44: =IF('Budget Summary 1'!T608>0,'Budget Summary 1'!T608,0) -> 1067035 | Q44: =IF('Budget Summary 1'!U608>0,'Budget Summary 1'!U608,0) -> 1110328 | DZ44: end
B45: Net Internal Deficit | C45: hide row | F45: =IF('Budget Summary 1'!J608<0,-'Budget Summary 1'!J608,0) -> 0 | H45: =IF('Budget Summary 1'!L608<0,-'Budget Summary 1'!L608,0) -> 0 | I45: =IF('Budget Summary 1'!M608<0,-'Budget Summary 1'!M608,0) -> 0 | J45: =IF('Budget Summary 1'!N608<0,-'Budget Summary 1'!N608,0) -> 0 | K45: =IF('Budget Summary 1'!O608<0,-'Budget Summary 1'!O608,0) -> 0 | L45: =IF('Budget Summary 1'!P608<0,-'Budget Summary 1'!P608,0) -> 0 | M45: =IF('Budget Summary 1'!Q608<0,-'Budget Summary 1'!Q608,0) -> 0 | N45: =IF('Budget Summary 1'!R608<0,-'Budget Summary 1'!R608,0) -> 0 | O45: =IF('Budget Summary 1'!S608<0,-'Budget Summary 1'!S608,0) -> 0 | P45: =IF('Budget Summary 1'!T608<0,-'Budget Summary 1'!T608,0) -> 0 | Q45: =IF('Budget Summary 1'!U608<0,-'Budget Summary 1'!U608,0) -> 0 | DZ45: end
C46: hide row | DZ46: end
B47: Interest receivable on Internal Loans | C47: hide row | F47: =+'Loans Receivable - Internal'!J44 -> 0 | H47: =+'Loans Receivable - Internal'!K44 -> 0 | I47: =+'Loans Receivable - Internal'!L44 -> 0 | J47: =+'Loans Receivable - Internal'!M44 -> 0 | K47: =+'Loans Receivable - Internal'!N44 -> 0 | L47: =+'Loans Receivable - Internal'!O44 -> 0 | M47: =+'Loans Receivable - Internal'!P44 -> 0 | N47: =+'Loans Receivable - Internal'!Q44 -> 0 | O47: =+'Loans Receivable - Internal'!R44 -> 0 | P47: =+'Loans Receivable - Internal'!S44 -> 0 | Q47: =+'Loans Receivable - Internal'!T44 -> 0 | DZ47: end
B48: Interest payable on Internal Loans | C48: hide row | F48: =+'Loans Payable - Internal'!J44 -> 0 | H48: =+'Loans Payable - Internal'!K44 -> 0 | I48: =+'Loans Payable - Internal'!L44 -> 0 | J48: =+'Loans Payable - Internal'!M44 -> 0 | K48: =+'Loans Payable - Internal'!N44 -> 0 | L48: =+'Loans Payable - Internal'!O44 -> 0 | M48: =+'Loans Payable - Internal'!P44 -> 0 | N48: =+'Loans Payable - Internal'!Q44 -> 0 | O48: =+'Loans Payable - Internal'!R44 -> 0 | P48: =+'Loans Payable - Internal'!S44 -> 0 | Q48: =+'Loans Payable - Internal'!T44 -> 0 | DZ48: end
C49: hide row | DZ49: end
C50: hide row | DZ50: end
C51: hide row | F51: 1 | H51: =F51+1 -> 2 | I51: =H51+1 -> 3 | J51: 4 | K51: 5 | L51: 6 | M51: 7 | N51: 8 | O51: 9 | P51: 10 | Q51: 11 | AG51: =Q51+1 -> 12 | AH51: =AG51+1 -> 13 | AI51: 14 | AJ51: 15 | AK51: 16 | AL51: 17 | AM51: 18 | AN51: 19 | AO51: 20 | AP51: 21 | BO51: =Q51+1 -> 12 | BP51: =BO51+1 -> 13 | BQ51: 14 | BR51: 15 | BS51: 16 | BT51: 17 | BU51: 18 | BV51: 19 | BW51: 20 | BX51: 21 | DZ51: end
C52: hide row | DZ52: end
B53: Reconciliation of Budget Result (from Recurrent Operations) | C53: hide row | DZ53: end
B54: Net Operating Result for the Year | C54: hide row | F54: =F36 -> 323277 | H54: =H36 -> -472194.5698 | I54: 491699.379 | J54: -702637.401 | K54: 47092.75896 | L54: 694039.439 | M54: 816929.289 | N54: 940705.789 | O54: 1016672.029 | P54: 1190206.589 | Q54: 1314819.019 | DZ54: end
B55: Less: Grants & Contributions provided for Capital Purposes | C55: hide row | DZ55: end
B56: Plus: Depreciation & Amortisation | C56: hide row | F56: =F23-SUMIF('Budget Summary 1'!$C:$C,$A23,'Budget Summary 1'!J:J) -> 0 | H56: =H23-SUMIF('Budget Summary 1'!$C:$C,$A23,'Budget Summary 1'!L:L) -> -0.3102031173 | I56: =I23-SUMIF('Budget Summary 1'!$C:$C,$A23,'Budget Summary 1'!M:M) -> -15679.86896 | J56: =J23-SUMIF('Budget Summary 1'!$C:$C,$A23,'Budget Summary 1'!N:N) -> -15679.86896 | K56: =K23-SUMIF('Budget Summary 1'!$C:$C,$A23,'Budget Summary 1'!O:O) -> -15679.86896 | L56: =L23-SUMIF('Budget Summary 1'!$C:$C,$A23,'Budget Summary 1'!P:P) -> -15679.86896 | M56: =M23-SUMIF('Budget Summary 1'!$C:$C,$A23,'Budget Summary 1'!Q:Q) -> -15679.86896 | N56: =N23-SUMIF('Budget Summary 1'!$C:$C,$A23,'Budget Summary 1'!R:R) -> -15679.86896 | O56: =O23-SUMIF('Budget Summary 1'!$C:$C,$A23,'Budget Summary 1'!S:S) -> -15679.86896 | P56: =P23-SUMIF('Budget Summary 1'!$C:$C,$A23,'Budget Summary 1'!T:T) -> -15679.86896 | Q56: =Q23-SUMIF('Budget Summary 1'!$C:$C,$A23,'Budget Summary 1'!U:U) -> -15679.86896 | DZ56: end
B57: Plus/(Less) Net Reserve Transfer | C57: hide row | F57: ='Budget Summary 1'!J124 -> 3272165 | H57: ='Budget Summary 1'!L124 -> 932762 | I57: ='Budget Summary 1'!M124 -> 191976 | J57: ='Budget Summary 1'!N124 -> -53108 | K57: ='Budget Summary 1'!O124 -> -141600 | L57: ='Budget Summary 1'!P124 -> -400661 | M57: ='Budget Summary 1'!Q124 -> -647326 | N57: ='Budget Summary 1'!R124 -> -1154104 | O57: ='Budget Summary 1'!S124 -> -1209168 | P57: ='Budget Summary 1'!T124 -> -1284246 | Q57: ='Budget Summary 1'!U124 -> -1358443 | DZ57: end
B58: Plus/(Less) Investment Revenue variance (Model vs BU's) | C58: hide row | F58: =(-F10+SUMIF('Budget Summary 1'!$C:$C,"Interest & Investment Revenue",'Budget Summary 1'!J:J)-F59) -> 0 | H58: =(-H10+SUMIF('Budget Summary 1'!$C:$C,"Interest & Investment Revenue",'Budget Summary 1'!L:L)-H59) -> 0 | I58: =(-I10+SUMIF('Budget Summary 1'!$C:$C,"Interest & Investment Revenue",'Budget Summary 1'!M:M)-I59) -> 0 | J58: =(-J10+SUMIF('Budget Summary 1'!$C:$C,"Interest & Investment Revenue",'Budget Summary 1'!N:N)-J59) -> 0 | K58: =(-K10+SUMIF('Budget Summary 1'!$C:$C,"Interest & Investment Revenue",'Budget Summary 1'!O:O)-K59) -> 0 | L58: =(-L10+SUMIF('Budget Summary 1'!$C:$C,"Interest & Investment Revenue",'Budget Summary 1'!P:P)-L59) -> 0 | M58: =(-M10+SUMIF('Budget Summary 1'!$C:$C,"Interest & Investment Revenue",'Budget Summary 1'!Q:Q)-M59) -> 0 | N58: =(-N10+SUMIF('Budget Summary 1'!$C:$C,"Interest & Investment Revenue",'Budget Summary 1'!R:R)-N59) -> 0 | O58: =(-O10+SUMIF('Budget Summary 1'!$C:$C,"Interest & Investment Revenue",'Budget Summary 1'!S:S)-O59) -> 0 | P58: =(-P10+SUMIF('Budget Summary 1'!$C:$C,"Interest & Investment Revenue",'Budget Summary 1'!T:T)-P59) -> 0 | Q58: =(-Q10+SUMIF('Budget Summary 1'!$C:$C,"Interest & Investment Revenue",'Budget Summary 1'!U:U)-Q59) -> 0 | DZ58: end
B59: Plus/(Less): Investment (Revenues)/Deficit applicable to Section 94 | C59: hide row | DZ59: end
B60: Plus/(Less) User Charges & Fees variance (Model vs BU's) | C60: hide row | F60: =-(+'RE Dev Summary'!E43+'RE Dev Summary'!E48+'Major Projects summary'!E80+'Major Projects summary'!E85) -> 0 | H60: =-(+'RE Dev Summary'!G43+'RE Dev Summary'!G48+'Major Projects summary'!G80+'Major Projects summary'!G85) -> 0 | I60: =-(+'RE Dev Summary'!H43+'RE Dev Summary'!H48+'Major Projects summary'!H80+'Major Projects summary'!H85) -> 0 | J60: =-(+'RE Dev Summary'!I43+'RE Dev Summary'!I48+'Major Projects summary'!I80+'Major Projects summary'!I85) -> 0 | K60: =-(+'RE Dev Summary'!J43+'RE Dev Summary'!J48+'Major Projects summary'!J80+'Major Projects summary'!J85) -> 0 | L60: =-(+'RE Dev Summary'!K43+'RE Dev Summary'!K48+'Major Projects summary'!K80+'Major Projects summary'!K85) -> 0 | M60: =-(+'RE Dev Summary'!L43+'RE Dev Summary'!L48+'Major Projects summary'!L80+'Major Projects summary'!L85) -> 0 | N60: =-(+'RE Dev Summary'!M43+'RE Dev Summary'!M48+'Major Projects summary'!M80+'Major Projects summary'!M85) -> 0 | O60: =-(+'RE Dev Summary'!N43+'RE Dev Summary'!N48+'Major Projects summary'!N80+'Major Projects summary'!N85) -> 0 | P60: =-(+'RE Dev Summary'!O43+'RE Dev Summary'!O48+'Major Projects summary'!O80+'Major Projects summary'!O85) -> 0 | Q60: =-(+'RE Dev Summary'!P43+'RE Dev Summary'!P48+'Major Projects summary'!P80+'Major Projects summary'!P85) -> 0 | DZ60: end
B61: Plus/(Less) Other Revenue variance (Model vs BU's) | C61: hide row | F61: =-(+'RE Dev Summary'!E44+'RE Dev Summary'!E49+'Major Projects summary'!E81+'Major Projects summary'!E86) -> 0 | H61: =-(+'RE Dev Summary'!G44+'RE Dev Summary'!G49+'Major Projects summary'!G81+'Major Projects summary'!G86) -> 0 | I61: =-(+'RE Dev Summary'!H44+'RE Dev Summary'!H49+'Major Projects summary'!H81+'Major Projects summary'!H86) -> 0 | J61: =-(+'RE Dev Summary'!I44+'RE Dev Summary'!I49+'Major Projects summary'!I81+'Major Projects summary'!I86) -> 0 | K61: =-(+'RE Dev Summary'!J44+'RE Dev Summary'!J49+'Major Projects summary'!J81+'Major Projects summary'!J86) -> 0 | L61: =-(+'RE Dev Summary'!K44+'RE Dev Summary'!K49+'Major Projects summary'!K81+'Major Projects summary'!K86) -> 0 | M61: =-(+'RE Dev Summary'!L44+'RE Dev Summary'!L49+'Major Projects summary'!L81+'Major Projects summary'!L86) -> 0 | N61: =-(+'RE Dev Summary'!M44+'RE Dev Summary'!M49+'Major Projects summary'!M81+'Major Projects summary'!M86) -> 0 | O61: =-(+'RE Dev Summary'!N44+'RE Dev Summary'!N49+'Major Projects summary'!N81+'Major Projects summary'!N86) -> 0 | P61: =-(+'RE Dev Summary'!O44+'RE Dev Summary'!O49+'Major Projects summary'!O81+'Major Projects summary'!O86) -> 0 | Q61: =-(+'RE Dev Summary'!P44+'RE Dev Summary'!P49+'Major Projects summary'!P81+'Major Projects summary'!P86) -> 0 | DZ61: end
B62: Plus/(Less) Capital Grants & Contribution variance (Model vs BU's) | C62: hide row | F62: =-(+'CAPEX Summary'!E10+'CAPEX Summary'!E35+'Major Projects summary'!E11) -> 0 | H62: =-(+'CAPEX Summary'!G10+'CAPEX Summary'!G35+'Major Projects summary'!G11) -> 0 | I62: =-(+'CAPEX Summary'!H10+'CAPEX Summary'!H35+'Major Projects summary'!H11) -> 0 | J62: =-(+'CAPEX Summary'!I10+'CAPEX Summary'!I35+'Major Projects summary'!I11) -> 0 | K62: =-(+'CAPEX Summary'!J10+'CAPEX Summary'!J35+'Major Projects summary'!J11) -> 0 | L62: =-(+'CAPEX Summary'!K10+'CAPEX Summary'!K35+'Major Projects summary'!K11) -> 0 | M62: =-(+'CAPEX Summary'!L10+'CAPEX Summary'!L35+'Major Projects summary'!L11) -> 0 | N62: =-(+'CAPEX Summary'!M10+'CAPEX Summary'!M35+'Major Projects summary'!M11) -> 0 | O62: =-(+'CAPEX Summary'!N10+'CAPEX Summary'!N35+'Major Projects summary'!N11) -> 0 | P62: =-(+'CAPEX Summary'!O10+'CAPEX Summary'!O35+'Major Projects summary'!O11) -> 0 | Q62: =-(+'CAPEX Summary'!P10+'CAPEX Summary'!P35+'Major Projects summary'!P11) -> 0 | DZ62: end
... 70 more rows

Sheet Balance Sheet
A1: ='Cover Page'!$A$3 -> Yass Valley Council
A2: ='Cover Page'!$A$5 -> 10 Year Financial Plan for the Years ending 30 June 2025
A3: ="BALANCE SHEET - "&UPPER(general_fund_name) -> BALANCE SHEET - GENERAL FUND | C3: Actuals | E3: Current Year | G3: Projected Years
A4: ="Scenario: "&general_scenario_name -> Scenario: Rural Road Maintenance With Revised Rate Peg, 1yr 6.7% SRV, $600k Efficiency, Revised Proj & 3yr 6% SRV | C4: =Starting_year_general-2&"/"&RIGHT(Starting_year_general-1,2) -> 2013/14 | E4: =Starting_year_general-1&"/"&RIGHT(Starting_year_general,2) -> 2014/15 | G4: =Starting_year_general&"/"&RIGHT(Starting_year_general+1,2) -> 2015/16 | H4: =Starting_year_general+1&"/"&RIGHT(Starting_year_general+2,2) -> 2016/17 | I4: =Starting_year_general+2&"/"&RIGHT(Starting_year_general+3,2) -> 2017/18 | J4: =Starting_year_general+3&"/"&RIGHT(Starting_year_general+4,2) -> 2018/19 | K4: =Starting_year_general+4&"/"&RIGHT(Starting_year_general+5,2) -> 2019/20 | L4: =Starting_year_general+5&"/"&RIGHT(Starting_year_general+6,2) -> 2020/21 | M4: =Starting_year_general+6&"/"&RIGHT(Starting_year_general+7,2) -> 2021/22 | N4: =Starting_year_general+7&"/"&RIGHT(Starting_year_general+8,2) -> 2022/23 | O4: =Starting_year_general+8&"/"&RIGHT(Starting_year_general+9,2) -> 2023/24 | P4: =Starting_year_general+9&"/"&RIGHT(Starting_year_general+10,2) -> 2024/25
C5: =IF('Cover Page'!$K$19=TRUE,"$","$'000") -> $ | E5: =IF('Cover Page'!$K$19=TRUE,"$","$'000") -> $ | G5: =IF('Cover Page'!$K$19=TRUE,"$","$'000") -> $ | H5: =IF('Cover Page'!$K$19=TRUE,"$","$'000") -> $ | I5: =IF('Cover Page'!$K$19=TRUE,"$","$'000") -> $ | J5: =IF('Cover Page'!$K$19=TRUE,"$","$'000") -> $ | K5: =IF('Cover Page'!$K$19=TRUE,"$","$'000") -> $ | L5: =IF('Cover Page'!$K$19=TRUE,"$","$'000") -> $ | M5: =IF('Cover Page'!$K$19=TRUE,"$","$'000") -> $ | N5: =IF('Cover Page'!$K$19=TRUE,"$","$'000") -> $ | O5: =IF('Cover Page'!$K$19=TRUE,"$","$'000") -> $ | P5: =IF('Cover Page'!$K$19=TRUE,"$","$'000") -> $
A6: ASSETS
A7: Current Assets
A8: Cash & Cash Equivalents | C8: =SUM('Historical Data'!C49)*1000 -> 6283000 | E8: ='BS workings'!E47 -> 2405663.419 | G8: ='BS workings'!G47 -> 1455455.565 | H8: ='BS workings'!H47 -> 1122486.825 | I8: ='BS workings'!I47 -> 1116732.085 | J8: ='BS workings'!J47 -> 1110638.122 | K8: ='BS workings'!K47 -> 1377861.975 | L8: ='BS workings'!L47 -> 1937544.496 | M8: ='BS workings'!M47 -> 3020532.404 | N8: ='BS workings'!N47 -> 4156898.022 | O8: ='BS workings'!O47 -> 5364385.954 | P8: ='BS workings'!P47 -> 6643475.826
A9: Investments | C9: =SUM('Historical Data'!C50)*1000 -> 0 | E9: ='BS workings'!E65 -> 0 | G9: ='BS workings'!G65 -> 0 | H9: ='BS workings'!H65 -> 0 | I9: ='BS workings'!I65 -> 0 | J9: ='BS workings'!J65 -> 0 | K9: ='BS workings'!K65 -> 0 | L9: ='BS workings'!L65 -> 0 | M9: ='BS workings'!M65 -> 0 | N9: ='BS workings'!N65 -> 0 | O9: ='BS workings'!O65 -> 0 | P9: ='BS workings'!P65 -> 0
A10: Receivables | C10: =SUM('Historical Data'!C51)*1000 -> 1923000 | E10: ='BS workings'!E357 -> 1996115.923 | G10: ='BS workings'!G357 -> 1950866.128 | H10: ='BS workings'!H357 -> 2049087.65 | I10: ='BS workings'!I357 -> 2064261.556 | J10: ='BS workings'!J357 -> 2168590.843 | K10: ='BS workings'!K357 -> 2290686.309 | L10: ='BS workings'!L357 -> 2370483.085 | M10: ='BS workings'!M357 -> 2456043.096 | N10: ='BS workings'!N357 -> 2543691.389 | O10: ='BS workings'!O357 -> 2635709.115 | P10: ='BS workings'!P357 -> 2730744.762
A11: Inventories | C11: =SUM('Historical Data'!C52)*1000 -> 354000 | E11: ='BS workings'!E441 -> 1055015.391 | G11: ='BS workings'!G441 -> 1193201.213 | H11: ='BS workings'!H441 -> 1226129.892 | I11: ='BS workings'!I441 -> 1347679.124 | J11: ='BS workings'!J441 -> 1401532.889 | K11: ='BS workings'!K441 -> 1457594.205 | L11: ='BS workings'!L441 -> 1515897.966 | M11: ='BS workings'!M441 -> 1576533.886 | N11: ='BS workings'!N441 -> 1639595.243 | O11: ='BS workings'!O441 -> 1705179.058 | P11: ='BS workings'!P441 -> 1773386.217
A12: Other | C12: =SUM('Historical Data'!C53)*1000 -> 103000 | E12: ='BS workings'!E520 -> 120954.7253 | G12: ='BS workings'!G520 -> 127974.4613 | H12: ='BS workings'!H520 -> 128788.1811 | I12: ='BS workings'!I520 -> 136605.5151 | J12: ='BS workings'!J520 -> 139180.1876 | K12: ='BS workings'!K520 -> 144433.1012 | L12: ='BS workings'!L520 -> 149886.7017 | M12: ='BS workings'!M520 -> 155548.7355 | N12: ='BS workings'!N520 -> 161427.2482 | O12: ='BS workings'!O520 -> 167530.5982 | P12: ='BS workings'!P520 -> 173867.4698
A13: Non-current assets classified as "held for sale" | C13: =SUM('Historical Data'!C54)*1000 -> 0 | E13: ='BS workings'!E542 -> 0 | G13: ='BS workings'!G542 -> 0 | H13: ='BS workings'!H542 -> 0 | I13: ='BS workings'!I542 -> 0 | J13: ='BS workings'!J542 -> 0 | K13: ='BS workings'!K542 -> 0 | L13: ='BS workings'!L542 -> 0 | M13: ='BS workings'!M542 -> 0 | N13: ='BS workings'!N542 -> 0 | O13: ='BS workings'!O542 -> 0 | P13: ='BS workings'!P542 -> 0
A14: Rounding adjustment (keep line always hidden!!!!!) | C14: =-C63 -> 0 | E14: 0 | G14: 0 | H14: 0 | I14: 0 | J14: 0 | K14: 0 | L14: 0 | M14: 0 | N14: 0 | O14: 0 | P14: 0
A15: Total Current Assets | C15: =SUM(C6:C14) -> 8663000 | E15: 5577749.458 | G15: 4727497.367 | H15: 4526492.547 | I15: 4665278.28 | J15: 4819942.042 | K15: 5270575.591 | L15: 5973812.249 | M15: 7208658.121 | N15: 8501611.903 | O15: 9872804.725 | P15: 11321474.27
A17: Non-Current Assets
A18: Investments | C18: =SUM('Historical Data'!C58)*1000 -> 6311000 | E18: ='BS workings'!E66 -> 6311000 | G18: ='BS workings'!G66 -> 6311000 | H18: ='BS workings'!H66 -> 6311000 | I18: ='BS workings'!I66 -> 6311000 | J18: ='BS workings'!J66 -> 6311000 | K18: ='BS workings'!K66 -> 6311000 | L18: ='BS workings'!L66 -> 6311000 | M18: ='BS workings'!M66 -> 6311000 | N18: ='BS workings'!N66 -> 6311000 | O18: ='BS workings'!O66 -> 6311000 | P18: ='BS workings'!P66 -> 6311000
A19: Receivables | C19: =SUM('Historical Data'!C59)*1000 -> 0 | E19: ='BS workings'!E358 -> 0 | G19: ='BS workings'!G358 -> 0 | H19: ='BS workings'!H358 -> 0 | I19: ='BS workings'!I358 -> 0 | J19: ='BS workings'!J358 -> 0 | K19: ='BS workings'!K358 -> 0 | L19: ='BS workings'!L358 -> 0 | M19: ='BS workings'!M358 -> 0 | N19: ='BS workings'!N358 -> 0 | O19: ='BS workings'!O358 -> 0 | P19: ='BS workings'!P358 -> 0
A20: Inventories | C20: =SUM('Historical Data'!C60)*1000 -> 0 | E20: ='BS workings'!E442 -> 720090 | G20: ='BS workings'!G442 -> 720090 | H20: ='BS workings'!H442 -> 220090 | I20: ='BS workings'!I442 -> -279910 | J20: ='BS workings'!J442 -> -279910 | K20: ='BS workings'!K442 -> -279910 | L20: ='BS workings'!L442 -> -279910 | M20: ='BS workings'!M442 -> -279910 | N20: ='BS workings'!N442 -> -279910 | O20: ='BS workings'!O442 -> -279910 | P20: ='BS workings'!P442 -> -279910
A21: Infrastructure, Property, Plant & Equipment | C21: =SUM('Historical Data'!C61)*1000 -> 344809000 | E21: ='BS workings'!E572 -> 346953534 | G21: ='BS workings'!G572 -> 346885544.3 | H21: ='BS workings'!H572 -> 347529264 | I21: ='BS workings'!I572 -> 346699876 | J21: ='BS workings'!J572 -> 345997066.8 | K21: ='BS workings'!K572 -> 345645386.9 | L21: ='BS workings'!L572 -> 345307969.2 | M21: ='BS workings'!M572 -> 345094571.6 | N21: ='BS workings'!N572 -> 344902075.8 | O21: ='BS workings'!O572 -> 344808035.3 | P21: ='BS workings'!P572 -> 344764410.9
A22: Investments Accounted for using the equity method | C22: =SUM('Historical Data'!C62)*1000 -> 0 | E22: =IF('BS workings'!E609>0,'BS workings'!E609,0) -> 0 | G22: =IF('BS workings'!G609>0,'BS workings'!G609,0) -> 0 | H22: =IF('BS workings'!H609>0,'BS workings'!H609,0) -> 0 | I22: =IF('BS workings'!I609>0,'BS workings'!I609,0) -> 0 | J22: =IF('BS workings'!J609>0,'BS workings'!J609,0) -> 0 | K22: =IF('BS workings'!K609>0,'BS workings'!K609,0) -> 0 | L22: =IF('BS workings'!L609>0,'BS workings'!L609,0) -> 0 | M22: =IF('BS workings'!M609>0,'BS workings'!M609,0) -> 0 | N22: =IF('BS workings'!N609>0,'BS workings'!N609,0) -> 0 | O22: =IF('BS workings'!O609>0,'BS workings'!O609,0) -> 0 | P22: =IF('BS workings'!P609>0,'BS workings'!P609,0) -> 0
A23: Investment Property | C23: =SUM('Historical Data'!C63)*1000 -> 2213000 | E23: ='BS workings'!E592 -> 2213000 | G23: ='BS workings'!G592 -> 2213000 | H23: ='BS workings'!H592 -> 2213000 | I23: ='BS workings'!I592 -> 2213000 | J23: ='BS workings'!J592 -> 2213000 | K23: ='BS workings'!K592 -> 2213000 | L23: ='BS workings'!L592 -> 2213000 | M23: ='BS workings'!M592 -> 2213000 | N23: ='BS workings'!N592 -> 2213000 | O23: ='BS workings'!O592 -> 2213000 | P23: ='BS workings'!P592 -> 2213000
A24: Intangible Assets | C24: =SUM('Historical Data'!C64)*1000 -> 0 | E24: ='BS workings'!E624 -> 0 | G24: ='BS workings'!G624 -> 0 | H24: ='BS workings'!H624 -> 0 | I24: ='BS workings'!I624 -> 0 | J24: ='BS workings'!J624 -> 0 | K24: ='BS workings'!K624 -> 0 | L24: ='BS workings'!L624 -> 0 | M24: ='BS workings'!M624 -> 0 | N24: ='BS workings'!N624 -> 0 | O24: ='BS workings'!O624 -> 0 | P24: ='BS workings'!P624 -> 0
A25: Non-current assets classified as "held for sale" | C25: =SUM('Historical Data'!C65)*1000 -> 0 | E25: ='BS workings'!E543 -> 0 | G25: ='BS workings'!G543 -> 0 | H25: ='BS workings'!H543 -> 0 | I25: ='BS workings'!I543 -> 0 | J25: ='BS workings'!J543 -> 0 | K25: ='BS workings'!K543 -> 0 | L25: ='BS workings'!L543 -> 0 | M25: ='BS workings'!M543 -> 0 | N25: ='BS workings'!N543 -> 0 | O25: ='BS workings'!O543 -> 0 | P25: ='BS workings'!P543 -> 0
A26: Other | C26: =SUM('Historical Data'!C66)*1000 -> 0 | E26: ='BS workings'!E521 -> 0 | G26: ='BS workings'!G521 -> 0 | H26: ='BS workings'!H521 -> 0 | I26: ='BS workings'!I521 -> 0 | J26: ='BS workings'!J521 -> 0 | K26: ='BS workings'!K521 -> 0 | L26: ='BS workings'!L521 -> 0 | M26: ='BS workings'!M521 -> 0 | N26: ='BS workings'!N521 -> 0 | O26: ='BS workings'!O521 -> 0 | P26: ='BS workings'!P521 -> 0
A27: Total Non-Current Assets | C27: =SUM(C17:C26) -> 353333000 | E27: 356197624 | G27: 356129634.3 | H27: 356273354 | I27: 354943966 | J27: 354241156.8 | K27: 353889476.9 | L27: 353552059.2 | M27: 353338661.6 | N27: 353146165.8 | O27: 353052125.3 | P27: 353008500.9
A28: TOTAL ASSETS | C28: =C27+C15 -> 361996000 | E28: 361775373.5 | G28: 360857131.6 | H28: 360799846.6 | I28: 359609244.3 | J28: 359061098.8 | K28: 359160052.5 | L28: 359525871.4 | M28: 360547319.7 | N28: 361647777.7 | O28: 362924930.1 | P28: 364329975.2
A30: LIABILITIES
A31: Current Liabilities
A32: Bank Overdraft | C32: =SUM('Historical Data'!C493)*1000 -> 0 | E32: =+'BS workings'!E48 -> 0 | G32: =+'BS workings'!G48 -> 0 | H32: =+'BS workings'!H48 -> 0 | I32: =+'BS workings'!I48 -> 0 | J32: =+'BS workings'!J48 -> 0 | K32: =+'BS workings'!K48 -> 0 | L32: =+'BS workings'!L48 -> 0 | M32: =+'BS workings'!M48 -> 0 | N32: =+'BS workings'!N48 -> 0 | O32: =+'BS workings'!O48 -> 0 | P32: =+'BS workings'!P48 -> 0
A33: Payables | C33: =SUM('Historical Data'!C72)*1000 -> 2104000 | E33: ='BS workings'!E794 -> 2840893.548 | G33: ='BS workings'!G794 -> 2904978.297 | H33: ='BS workings'!H794 -> 2895949.867 | I33: ='BS workings'!I794 -> 2981627 | J33: ='BS workings'!J794 -> 2994691.772 | K33: ='BS workings'!K794 -> 3044663.991 | L33: ='BS workings'!L794 -> 3101665.639 | M33: ='BS workings'!M794 -> 3182408.081 | N33: ='BS workings'!N794 -> 3266194.103 | O33: ='BS workings'!O794 -> 3353139.855 | P33: ='BS workings'!P794 -> 3443365.974
A34: Borrowings | C34: =SUM('Historical Data'!C73)*1000-C32 -> 481000 | E34: ='BS workings'!E868 -> 510132 | G34: ='BS workings'!G868 -> 539956 | H34: ='BS workings'!H868 -> 573642 | I34: ='BS workings'!I868 -> 608303 | J34: ='BS workings'!J868 -> 645058 | K34: ='BS workings'!K868 -> 508111.91 | L34: ='BS workings'!L868 -> -0.08999999985 | M34: ='BS workings'!M868 -> -0.08999999985 | N34: ='BS workings'!N868 -> -0.08999999985 | O34: ='BS workings'!O868 -> -0.08999999985 | P34: ='BS workings'!P868 -> -0.08999999985
A35: Provisions | C35: =SUM('Historical Data'!C74)*1000 -> 2116000 | E35: ='BS workings'!E938 -> 2124500 | G35: ='BS workings'!G938 -> 2124500 | H35: ='BS workings'!H938 -> 2124500 | I35: ='BS workings'!I938 -> 2124500 | J35: ='BS workings'!J938 -> 2124500 | K35: ='BS workings'!K938 -> 2124500 | L35: ='BS workings'!L938 -> 2124500 | M35: ='BS workings'!M938 -> 2124500 | N35: ='BS workings'!N938 -> 2124500 | O35: ='BS workings'!O938 -> 2124500 | P35: ='BS workings'!P938 -> 2124500
A36: Liabilities associated with assets classified as "held for sale" | C36: =SUM('Historical Data'!C75)*1000 -> 0 | E36: ='BS workings'!E955 -> 0 | G36: ='BS workings'!G955 -> 0 | H36: ='BS workings'!H955 -> 0 | I36: ='BS workings'!I955 -> 0 | J36: ='BS workings'!J955 -> 0 | K36: ='BS workings'!K955 -> 0 | L36: ='BS workings'!L955 -> 0 | M36: ='BS workings'!M955 -> 0 | N36: ='BS workings'!N955 -> 0 | O36: ='BS workings'!O955 -> 0 | P36: ='BS workings'!P955 -> 0
A37: Total Current Liabilities | C37: =SUM(C30:C36) -> 4701000 | E37: 5475525.548 | G37: 5569434.297 | H37: 5594091.867 | I37: 5714430 | J37: 5764249.772 | K37: 5677275.901 | L37: 5226165.549 | M37: 5306907.991 | N37: 5390694.013 | O37: 5477639.765 | P37: 5567865.884
A39: Non-Current Liabilities
A40: Payables | C40: =SUM('Historical Data'!C79)*1000 -> 0 | E40: ='BS workings'!E795 -> 0 | G40: ='BS workings'!G795 -> 0 | H40: ='BS workings'!H795 -> 0 | I40: ='BS workings'!I795 -> 0 | J40: ='BS workings'!J795 -> 0 | K40: ='BS workings'!K795 -> 0 | L40: ='BS workings'!L795 -> 0 | M40: ='BS workings'!M795 -> 0 | N40: ='BS workings'!N795 -> 0 | O40: ='BS workings'!O795 -> 0 | P40: ='BS workings'!P795 -> 0
A41: Borrowings | C41: =SUM('Historical Data'!C80)*1000 -> 4185000 | E41: ='BS workings'!E869 -> 2875070.91 | G41: ='BS workings'!G869 -> 2335114.91 | H41: ='BS workings'!H869 -> 1761472.91 | I41: ='BS workings'!I869 -> 1153169.91 | J41: ='BS workings'!J869 -> 508111.91 | K41: ='BS workings'!K869 -> 0 | L41: ='BS workings'!L869 -> 0 | M41: ='BS workings'!M869 -> 0 | N41: ='BS workings'!N869 -> 0 | O41: ='BS workings'!O869 -> 0 | P41: ='BS workings'!P869 -> 0
A42: Provisions | C42: =SUM('Historical Data'!C81)*1000 -> 323000 | E42: ='BS workings'!E939 -> 314500 | G42: ='BS workings'!G939 -> 314500 | H42: ='BS workings'!H939 -> 314500 | I42: ='BS workings'!I939 -> 314500 | J42: ='BS workings'!J939 -> 314500 | K42: ='BS workings'!K939 -> 314500 | L42: ='BS workings'!L939 -> 314500 | M42: ='BS workings'!M939 -> 314500 | N42: ='BS workings'!N939 -> 314500 | O42: ='BS workings'!O939 -> 314500 | P42: ='BS workings'!P939 -> 314500
A43: Investments Accounted for using the equity method | C43: =SUM('Historical Data'!C82)*1000 -> 0 | E43: =IF('BS workings'!E609<0,-'BS workings'!E609,0) -> 0 | G43: =IF('BS workings'!G609<0,-'BS workings'!G609,0) -> 0 | H43: =IF('BS workings'!H609<0,-'BS workings'!H609,0) -> 0 | I43: =IF('BS workings'!I609<0,-'BS workings'!I609,0) -> 0 | J43: =IF('BS workings'!J609<0,-'BS workings'!J609,0) -> 0 | K43: =IF('BS workings'!K609<0,-'BS workings'!K609,0) -> 0 | L43: =IF('BS workings'!L609<0,-'BS workings'!L609,0) -> 0 | M43: =IF('BS workings'!M609<0,-'BS workings'!M609,0) -> 0 | N43: =IF('BS workings'!N609<0,-'BS workings'!N609,0) -> 0 | O43: =IF('BS workings'!O609<0,-'BS workings'!O609,0) -> 0 | P43: =IF('BS workings'!P609<0,-'BS workings'!P609,0) -> 0
A44: Liabilities associated with assets classified as "held for sale" | C44: =SUM('Historical Data'!C83)*1000 -> 0 | E44: ='BS workings'!E956 -> 0 | G44: ='BS workings'!G956 -> 0 | H44: ='BS workings'!H956 -> 0 | I44: ='BS workings'!I956 -> 0 | J44: ='BS workings'!J956 -> 0 | K44: ='BS workings'!K956 -> 0 | L44: ='BS workings'!L956 -> 0 | M44: ='BS workings'!M956 -> 0 | N44: ='BS workings'!N956 -> 0 | O44: ='BS workings'!O956 -> 0 | P44: ='BS workings'!P956 -> 0
A45: Total Non-Current Liabilities | C45: =SUM(C39:C44) -> 4508000 | E45: 3189570.91 | G45: 2649614.91 | H45: 2075972.91 | I45: 1467669.91 | J45: 822611.91 | K45: 314500 | L45: 314500 | M45: 314500 | N45: 314500 | O45: 314500 | P45: 314500
A46: TOTAL LIABILITIES | C46: =C45+C37 -> 9209000 | E46: 8665096.458 | G46: 8219049.207 | H46: 7670064.777 | I46: 7182099.91 | J46: 6586861.682 | K46: 5991775.901 | L46: 5540665.549 | M46: 5621407.991 | N46: 5705194.013 | O46: 5792139.765 | P46: 5882365.884
A47: Net Assets | C47: =C28-C46 -> 352787000 | E47: 353110277 | G47: 352638082.4 | H47: 353129781.8 | I47: 352427144.4 | J47: 352474237.2 | K47: 353168276.6 | L47: 353985205.9 | M47: 354925911.7 | N47: 355942583.7 | O47: 357132790.3 | P47: 358447609.3
A49: EQUITY
A50: Retained Earnings | C50: =SUM('Historical Data'!C89)*1000 -> 248779000 | E50: ='BS workings'!E968 -> 249102277 | G50: ='BS workings'!G968 -> 248630082.4 | H50: ='BS workings'!H968 -> 249121781.8 | I50: ='BS workings'!I968 -> 248419144.4 | J50: ='BS workings'!J968 -> 248466237.2 | K50: ='BS workings'!K968 -> 249160276.6 | L50: ='BS workings'!L968 -> 249977205.9 | M50: ='BS workings'!M968 -> 250917911.7 | N50: ='BS workings'!N968 -> 251934583.7 | O50: ='BS workings'!O968 -> 253124790.3 | P50: ='BS workings'!P968 -> 254439609.3
A51: Revaluation Reserves | C51: =SUM('Historical Data'!C90)*1000 -> 104008000 | E51: ='BS workings'!E979 -> 104008000 | G51: ='BS workings'!G979 -> 104008000 | H51: ='BS workings'!H979 -> 104008000 | I51: ='BS workings'!I979 -> 104008000 | J51: ='BS workings'!J979 -> 104008000 | K51: ='BS workings'!K979 -> 104008000 | L51: ='BS workings'!L979 -> 104008000 | M51: ='BS workings'!M979 -> 104008000 | N51: ='BS workings'!N979 -> 104008000 | O51: ='BS workings'!O979 -> 104008000 | P51: ='BS workings'!P979 -> 104008000
A52: Council Equity Interest | C52: =SUM('Historical Data'!C91)*1000 -> 352787000 | E52: =SUM(E50:E51) -> 353110277 | G52: 352638082.4 | H52: 353129781.8 | I52: 352427144.4 | J52: 352474237.2 | K52: 353168276.6 | L52: 353985205.9 | M52: 354925911.7 | N52: 355942583.7 | O52: 357132790.3 | P52: 358447609.3
A53: Minority Equity Interest | C53: =SUM('Historical Data'!C92)*1000 -> 0 | E53: 0 | G53: 0 | H53: 0 | I53: 0 | J53: 0 | K53: 0 | L53: 0 | M53: 0 | N53: 0 | O53: 0 | P53: 0
A54: Total Equity | C54: =C50+C51+C53 -> 352787000 | E54: 353110277 | G54: 352638082.4 | H54: 353129781.8 | I54: 352427144.4 | J54: 352474237.2 | K54: 353168276.6 | L54: 353985205.9 | M54: 354925911.7 | N54: 355942583.7 | O54: 357132790.3 | P54: 358447609.3
A57: Variance Net assets to Total Equity | C57: =ROUND(C47,0)-ROUND(C54,0) -> 0 | E57: 0 | G57: 0 | H57: 0 | I57: 0 | J57: 0 | K57: 0 | L57: 0 | M57: 0 | N57: 0 | O57: 0 | P57: 0
A58: Check that variance above is NIL | C58: =IF(C57<>0,C4,"") ->  | E58: =IF(E57<>0,IF(C58="",E$4,C58&", "&E$4),C58) ->  | G58: =IF(G57<>0,IF(E58="",G$4,E58&", "&G$4),E58) ->  | H58: =IF(H57<>0,IF(G58="",H$4,G58&", "&H$4),G58) -> 
E60: 1 | G60: =E60+1 -> 2 | H60: =G60+1 -> 3 | I60: 4 | J60: 5 | K60: 6 | L60: 7 | M60: 8 | N60: 9 | O60: 10 | P60: 11
A62: Variance Net assets to Total Equity (excluding rounding adjustment) | C62: =ROUND(SUM(C8:C13)+C27-C46,0)-ROUND(C54,0) -> 0 | E62: 0 | G62: 0 | H62: 0 | I62: 0 | J62: 0 | K62: 0 | L62: 0 | M62: 0 | N62: 0 | O62: 0 | P62: 0
A63: Rounding adjustment required | C63: =IF(AND(ABS(C62)>0,OR(ABS(C62)<1,ABS(C62)=1)),SUM(C8:C13)+C27-C46-C54,0) -> 0 | E63: 0 | G63: 0 | H63: 0 | I63: 0 | J63: 0 | K63: 0 | L63: 0 | M63: 0 | N63: 0 | O63: 0 | P63: 0
A69: Internal Loans receivable - Current | C69: =SUM('Historical Data'!C286)*1000 -> 0 | E69: ='BS workings'!E274 -> 0 | G69: ='BS workings'!G274 -> 0 | H69: ='BS workings'!H274 -> 0 | I69: ='BS workings'!I274 -> 0 | J69: ='BS workings'!J274 -> 0 | K69: ='BS workings'!K274 -> 0 | L69: ='BS workings'!L274 -> 0 | M69: ='BS workings'!M274 -> 0 | N69: ='BS workings'!N274 -> 0 | O69: ='BS workings'!O274 -> 0 | P69: ='BS workings'!P274 -> 0
A70: Internal Loans receivable - Non-current | C70: =SUM('Historical Data'!C287)*1000 -> 0 | E70: ='BS workings'!E275 -> 0 | G70: ='BS workings'!G275 -> 0 | H70: ='BS workings'!H275 -> 0 | I70: ='BS workings'!I275 -> 0 | J70: ='BS workings'!J275 -> 0 | K70: ='BS workings'!K275 -> 0 | L70: ='BS workings'!L275 -> 0 | M70: ='BS workings'!M275 -> 0 | N70: ='BS workings'!N275 -> 0 | O70: ='BS workings'!O275 -> 0 | P70: ='BS workings'!P275 -> 0
A72: Internal Loans payable - Current | C72: =SUM('Historical Data'!C496)*1000 -> 0 | E72: ='BS workings'!E826 -> 0 | G72: ='BS workings'!G826 -> 0 | H72: ='BS workings'!H826 -> 0 | I72: ='BS workings'!I826 -> 0 | J72: ='BS workings'!J826 -> 0 | K72: ='BS workings'!K826 -> 0 | L72: ='BS workings'!L826 -> 0 | M72: ='BS workings'!M826 -> 0 | N72: ='BS workings'!N826 -> 0 | O72: ='BS workings'!O826 -> 0 | P72: ='BS workings'!P826 -> 0
A73: Internal Loans payable - Non-current | C73: =SUM('Historical Data'!C497)*1000 -> 0 | E73: ='BS workings'!E827 -> 0 | G73: ='BS workings'!G827 -> 0 | H73: ='BS workings'!H827 -> 0 | I73: ='BS workings'!I827 -> 0 | J73: ='BS workings'!J827 -> 0 | K73: ='BS workings'!K827 -> 0 | L73: ='BS workings'!L827 -> 0 | M73: ='BS workings'!M827 -> 0 | N73: ='BS workings'!N827 -> 0 | O73: ='BS workings'!O827 -> 0 | P73: ='BS workings'!P827 -> 0
A75: Debit Balance | E75: ='BS workings'!E47 -> 2405663.419 | G75: ='BS workings'!G47 -> 1455455.565 | H75: ='BS workings'!H47 -> 1122486.825 | I75: ='BS workings'!I47 -> 1116732.085 | J75: ='BS workings'!J47 -> 1110638.122 | K75: ='BS workings'!K47 -> 1377861.975 | L75: ='BS workings'!L47 -> 1937544.496 | M75: ='BS workings'!M47 -> 3020532.404 | N75: ='BS workings'!N47 -> 4156898.022 | O75: ='BS workings'!O47 -> 5364385.954 | P75: ='BS workings'!P47 -> 6643475.826
A76: Overdraft Balance | E76: ='BS workings'!E48 -> 0 | G76: ='BS workings'!G48 -> 0 | H76: ='BS workings'!H48 -> 0 | I76: ='BS workings'!I48 -> 0 | J76: ='BS workings'!J48 -> 0 | K76: ='BS workings'!K48 -> 0 | L76: ='BS workings'!L48 -> 0 | M76: ='BS workings'!M48 -> 0 | N76: ='BS workings'!N48 -> 0 | O76: ='BS workings'!O48 -> 0 | P76: ='BS workings'!P48 -> 0
A81: end | B81: end | C81: end | D81: end | E81: end | F81: end | G81: end | H81: end | I81: end | J81: end | K81: end | L81: end | M81: end | N81: end | O81: end | P81: end

Sheet BS workings
A1: ='Cover Page'!$A$3 -> Yass Valley Council
A2: ='Cover Page'!$A$5 -> 10 Year Financial Plan for the Years ending 30 June 2025
A3: ="BALANCE SHEET - "&UPPER(general_fund_name)&" - WORKINGS" -> BALANCE SHEET - GENERAL FUND - WORKINGS | C3: Actuals | E3: Current Year | G3: Projected Years
A4: ="Scenario: "&general_scenario_name -> Scenario: Rural Road Maintenance With Revised Rate Peg, 1yr 6.7% SRV, $600k Efficiency, Revised Proj & 3yr 6% SRV | C4: =Starting_year_general-2&"/"&RIGHT(Starting_year_general-1,2) -> 2013/14 | E4: =Starting_year_general-1&"/"&RIGHT(Starting_year_general,2) -> 2014/15 | G4: =Starting_year_general&"/"&RIGHT(Starting_year_general+1,2) -> 2015/16 | H4: =Starting_year_general+1&"/"&RIGHT(Starting_year_general+2,2) -> 2016/17 | I4: =Starting_year_general+2&"/"&RIGHT(Starting_year_general+3,2) -> 2017/18 | J4: =Starting_year_general+3&"/"&RIGHT(Starting_year_general+4,2) -> 2018/19 | K4: =Starting_year_general+4&"/"&RIGHT(Starting_year_general+5,2) -> 2019/20 | L4: =Starting_year_general+5&"/"&RIGHT(Starting_year_general+6,2) -> 2020/21 | M4: =Starting_year_general+6&"/"&RIGHT(Starting_year_general+7,2) -> 2021/22 | N4: =Starting_year_general+7&"/"&RIGHT(Starting_year_general+8,2) -> 2022/23 | O4: =Starting_year_general+8&"/"&RIGHT(Starting_year_general+9,2) -> 2023/24 | P4: =Starting_year_general+9&"/"&RIGHT(Starting_year_general+10,2) -> 2024/25
C5: =IF('Cover Page'!$K$19=TRUE,"$","$") -> $ | E5: =IF('Cover Page'!$K$19=TRUE,"$","$") -> $ | G5: =IF('Cover Page'!$K$19=TRUE,"$","$") -> $ | H5: =IF('Cover Page'!$K$19=TRUE,"$","$") -> $ | I5: =IF('Cover Page'!$K$19=TRUE,"$","$") -> $ | J5: =IF('Cover Page'!$K$19=TRUE,"$","$") -> $ | K5: =IF('Cover Page'!$K$19=TRUE,"$","$") -> $ | L5: =IF('Cover Page'!$K$19=TRUE,"$","$") -> $ | M5: =IF('Cover Page'!$K$19=TRUE,"$","$") -> $ | N5: =IF('Cover Page'!$K$19=TRUE,"$","$") -> $ | O5: =IF('Cover Page'!$K$19=TRUE,"$","$") -> $ | P5: =IF('Cover Page'!$K$19=TRUE,"$","$") -> $
A8: Cash & Cash Equivalents
A9: Opening Balance | E9: =(SUM('Historical Data'!C49)-SUM('Historical Data'!C493))*1000 -> 6283000 | G9: =E45 -> 2405663.419 | H9: =G45 -> 1455455.565 | I9: 1122486.825 | J9: 1116732.085 | K9: 1110638.122 | L9: 1377861.975 | M9: 1937544.496 | N9: 3020532.404 | O9: 4156898.022 | P9: 5364385.954
A10: Add: Operating Result | E10: ='Income Statement'!F36 -> 323277 | G10: ='Income Statement'!H36 -> -472194.5698 | H10: ='Income Statement'!I36 -> 491699.379 | I10: ='Income Statement'!J36 -> -702637.401 | J10: ='Income Statement'!K36 -> 47092.75896 | K10: ='Income Statement'!L36 -> 694039.439 | L10: ='Income Statement'!M36 -> 816929.289 | M10: ='Income Statement'!N36 -> 940705.789 | N10: ='Income Statement'!O36 -> 1016672.029 | O10: ='Income Statement'!P36 -> 1190206.589 | P10: ='Income Statement'!Q36 -> 1314819.019
A11: Less: non-cash Income | E11: =-'Budget Summary 1'!BC32-'Budget Summary 1'!BC92-'Income Statement'!BD15-'Income Statement'!BD16+SUM('Budget Summary 1'!BC25:BC31) -> 0 | G11: =-'Budget Summary 1'!BD32-'Budget Summary 1'!BD92-'Income Statement'!BE15-'Income Statement'!BE16+SUM('Budget Summary 1'!BD25:BD31) -> 0 | H11: =-'Budget Summary 1'!BE32-'Budget Summary 1'!BE92-'Income Statement'!BF15-'Income Statement'!BF16+SUM('Budget Summary 1'!BE25:BE31) -> 0 | I11: =-'Budget Summary 1'!BF32-'Budget Summary 1'!BF92-'Income Statement'!BG15-'Income Statement'!BG16+SUM('Budget Summary 1'!BF25:BF31) -> 0 | J11: =-'Budget Summary 1'!BG32-'Budget Summary 1'!BG92-'Income Statement'!BH15-'Income Statement'!BH16+SUM('Budget Summary 1'!BG25:BG31) -> 0 | K11: =-'Budget Summary 1'!BH32-'Budget Summary 1'!BH92-'Income Statement'!BI15-'Income Statement'!BI16+SUM('Budget Summary 1'!BH25:BH31) -> 0 | L11: =-'Budget Summary 1'!BI32-'Budget Summary 1'!BI92-'Income Statement'!BJ15-'Income Statement'!BJ16+SUM('Budget Summary 1'!BI25:BI31) -> 0 | M11: =-'Budget Summary 1'!BJ32-'Budget Summary 1'!BJ92-'Income Statement'!BK15-'Income Statement'!BK16+SUM('Budget Summary 1'!BJ25:BJ31) -> 0 | N11: =-'Budget Summary 1'!BK32-'Budget Summary 1'!BK92-'Income Statement'!BL15-'Income Statement'!BL16+SUM('Budget Summary 1'!BK25:BK31) -> 0 | O11: =-'Budget Summary 1'!BL32-'Budget Summary 1'!BL92-'Income Statement'!BM15-'Income Statement'!BM16+SUM('Budget Summary 1'!BL25:BL31) -> 0 | P11: =-'Budget Summary 1'!BM32-'Budget Summary 1'!BM92-'Income Statement'!BN15-'Income Statement'!BN16+SUM('Budget Summary 1'!BM25:BM31) -> 0
A12: Add: Depreciation & Impairment | E12: =('Income Statement'!F23+'Income Statement'!F24) -> 4746123 | G12: =('Income Statement'!H23+'Income Statement'!H24) -> 4849512.73 | H12: =('Income Statement'!I23+'Income Statement'!I24) -> 4962476.231 | I12: =('Income Statement'!J23+'Income Statement'!J24) -> 5062321.381 | J12: =('Income Statement'!K23+'Income Statement'!K24) -> 5165782.791 | K12: =('Income Statement'!L23+'Income Statement'!L24) -> 5331022.781 | L12: =('Income Statement'!M23+'Income Statement'!M24) -> 5485107.701 | M12: =('Income Statement'!N23+'Income Statement'!N24) -> 5635605.171 | N12: =('Income Statement'!O23+'Income Statement'!O24) -> 5812451.401 | O12: =('Income Statement'!P23+'Income Statement'!P24) -> 5920238.471 | P12: =('Income Statement'!Q23+'Income Statement'!Q24) -> 6081843.011
A13: Add: Depreciation - capitalised
A14: Add: other non-cash Expenditure | E14: ='Income Statement'!BD29-'Income Statement'!BD23-'Income Statement'!BD24 -> 0 | G14: ='Income Statement'!BE29-'Income Statement'!BE23-'Income Statement'!BE24 -> 0 | H14: ='Income Statement'!BF29-'Income Statement'!BF23-'Income Statement'!BF24 -> 0 | I14: ='Income Statement'!BG29-'Income Statement'!BG23-'Income Statement'!BG24 -> 0 | J14: ='Income Statement'!BH29-'Income Statement'!BH23-'Income Statement'!BH24 -> 0 | K14: ='Income Statement'!BI29-'Income Statement'!BI23-'Income Statement'!BI24 -> 0 | L14: ='Income Statement'!BJ29-'Income Statement'!BJ23-'Income Statement'!BJ24 -> 0 | M14: ='Income Statement'!BK29-'Income Statement'!BK23-'Income Statement'!BK24 -> 0 | N14: ='Income Statement'!BL29-'Income Statement'!BL23-'Income Statement'!BL24 -> 0 | O14: ='Income Statement'!BM29-'Income Statement'!BM23-'Income Statement'!BM24 -> 0 | P14: ='Income Statement'!BN29-'Income Statement'!BN23-'Income Statement'!BN24 -> 0
A15: Add: Change in Receivables | E15: =-E361 -> -73115.9232 | G15: =-G361 -> 45249.79474 | H15: =-H361 -> -98221.52133 | I15: =-I361 -> -15173.90582 | J15: -104329.2875 | K15: -122095.4658 | L15: -79796.77632 | M15: -85560.01073 | N15: -87648.29307 | O15: -92017.72635 | P15: -95035.6463
A16: Less: Additions in Real Estate Assets | E16: =-E420 -> -720090 | G16: =-G420 -> 0 | H16: 0 | I16: 0 | J16: 0 | K16: 0 | L16: 0 | M16: 0 | N16: 0 | O16: 0 | P16: 0
A17: Add: Disposals in Real Estate Assets | E17: =E436 -> 0 | G17: =G436 -> 0 | H17: =H436 -> 500000 | I17: 500000 | J17: 0 | K17: 0 | L17: 0 | M17: 0 | N17: 0 | O17: 0 | P17: 0
A18: Add: Change in Inventories | E18: =-E445 -> -701015.3906 | G18: =-G445 -> -138185.822 | H18: =-H445 -> -32928.67912 | I18: -121549.2325 | J18: -53853.76524 | K18: -56061.31601 | L18: -58303.76032 | M18: -60635.91975 | N18: -63061.35766 | O18: -65583.81464 | P18: -68207.15877
A19: Add: Change in Other Assets | E19: =-E524 -> -17954.72533 | G19: =-G524 -> -7019.735952 | H19: =-H524 -> -813.7197822 | I19: -7817.334081 | J19: -2574.672407 | K19: -5252.913649 | L19: -5453.600505 | M19: -5662.033835 | N19: -5878.512692 | O19: -6103.349995 | P19: -6336.871572
A20: Less: Additions in IPP&E | E20: =-E557 -> -7290657 | G20: =-G557 -> -4781523 | H20: =-H557 -> -5606196 | I20: -4232933.38 | J20: -4462973.56 | K20: -4979342.89 | L20: -5147689.98 | M20: -5422207.53 | N20: -5619955.67 | O20: -5826197.99 | P20: -6038218.6
A21: Add: Disposals in IPP&E (Proceeds) | E21: =E576 -> 400000 | G21: =G576 -> 0 | H21: 0 | I21: 0 | J21: 0 | K21: 0 | L21: 0 | M21: 0 | N21: 0 | O21: 0 | P21: 0
A22: Add: Assets "held for sale" sold | E22: =E546 -> 0 | G22: =G546 -> 0 | H22: =H546 -> 0 | I22: 0 | J22: 0 | K22: 0 | L22: 0 | M22: 0 | N22: 0 | O22: 0 | P22: 0
A23: Less: Additions in Investment property | E23: =-E584 -> 0 | G23: 0 | H23: 0 | I23: 0 | J23: 0 | K23: 0 | L23: 0 | M23: 0 | N23: 0 | O23: 0 | P23: 0
A24: Add: Disposals in Investment property | E24: =E594 -> 0 | G24: =G594 -> 0 | H24: =H594 -> 0 | I24: 0 | J24: 0 | K24: 0 | L24: 0 | M24: 0 | N24: 0 | O24: 0 | P24: 0
A25: Add: Disposals in Investments | E25: =E72 -> 0 | G25: =G72 -> 0 | H25: =H72 -> 0 | I25: 0 | J25: 0 | K25: 0 | L25: 0 | M25: 0 | N25: 0 | O25: 0 | P25: 0
A26: Add: Change in Investments Accounted for using the equity method | E26: =E604-E609+E605+E607 -> 0 | G26: =G604-G609+G605+G607 -> 0 | H26: =H604-H609+H605+H607 -> 0 | I26: 0 | J26: 0 | K26: 0 | L26: 0 | M26: 0 | N26: 0 | O26: 0 | P26: 0
A27: Add: Change in Intangible Assets | E27: =E630 -> 0 | G27: =G630 -> 0 | H27: =H630 -> 0 | I27: 0 | J27: 0 | K27: 0 | L27: 0 | M27: 0 | N27: 0 | O27: 0 | P27: 0
A28: Less: Change in Payables | E28: =E798 -> 736893.5484 | G28: =G798 -> 64084.74857 | H28: =H798 -> -9028.429934 | I28: 85677.13255 | J28: 13064.77237 | K28: 49972.2186 | L28: 57001.6481 | M28: 80742.44221 | N28: 83786.02179 | O28: 86945.75226 | P28: 90226.11899
A29: Less: Change in Provisions | E29: =(E938+E939)-(C890+C907+C924)-E883-E903-E886-E889-E905-E906-E922 -> 0 | G29: =(G938+G939)-(E890+E907+E924)-G883-G903-G886-G889-G905-G906-G922 -> 0 | H29: =(H938+H939)-(G890+G907+G924)-H883-H903-H886-H889-H905-H906-H922 -> 0 | I29: =(I938+I939)-(H890+H907+H924)-I883-I903-I886-I889-I905-I906-I922 -> 0 | J29: 0 | K29: 0 | L29: 0 | M29: 0 | N29: 0 | O29: 0 | P29: 0
A30: Less: Change in Borrowings | E30: =E867-C867-E848-E810-E842 -> -1280797.09 | G30: =G867-E867-G848-G810-G842 -> -510132 | H30: =H867-G867-H848-H810-H842 -> -539956 | I30: =I867-H867-I848-I810-I842 -> -573642 | J30: =J867-I867-J848-J810-J842 -> -608303 | K30: -645058 | L30: -508112 | M30: 0 | N30: 0 | O30: 0 | P30: 0
A31: Less: Change in Liabilities associated with assets classified as "held for sale" | E31: =E950 -> 0 | G31: 0 | H31: 0 | I31: 0 | J31: 0 | K31: 0 | L31: 0 | M31: 0 | N31: 0 | O31: 0 | P31: 0
A32: Add/(Less): manual adjustments on Investments | E32: =-E59 -> 0 | G32: =-G59 -> 0 | H32: 0 | I32: 0 | J32: 0 | K32: 0 | L32: 0 | M32: 0 | N32: 0 | O32: 0 | P32: 0
A33: Add: Deferred Debtor repayments | E33: =-E245-E247-E268-E270 -> 0 | G33: =-G245-G247-G268-G270 -> 0 | H33: =-H245-H247-H268-H270 -> 0 | I33: 0 | J33: 0 | K33: 0 | L33: 0 | M33: 0 | N33: 0 | O33: 0 | P33: 0
A34: Less: New Deferred Debtors | E34: =-E244-E246-E267-E269 -> 0 | G34: =-G244-G246-G267-G269 -> 0 | H34: =-H244-H246-H267-H269 -> 0 | I34: 0 | J34: 0 | K34: 0 | L34: 0 | M34: 0 | N34: 0 | O34: 0 | P34: 0
A35: Add/(Less): manual adjustments on Other Assets
A36: (Less): manual adjustments Provisions | E36: =E886+E889+E905+E906 -> 0 | G36: =G886+G889+G905+G906 -> 0 | H36: =H886+H889+H905+H906 -> 0 | I36: =I886+I889+I905+I906 -> 0 | J36: 0 | K36: 0 | L36: 0 | M36: 0 | N36: 0 | O36: 0 | P36: 0
A40: Closing Balance | E40: =SUM(E9:E39) -> 2405663.419 | G40: =SUM(G9:G39) -> 1455455.565 | H40: 1122486.825 | I40: 1116732.085 | J40: 1110638.122 | K40: 1377861.975 | L40: 1937544.496 | M40: 3020532.404 | N40: 4156898.022 | O40: 5364385.954 | P40: 6643475.826
A42: Minimum Level of Cash & Cash Equivalents (in $) | E42: =IF('Target %'!G5="",IF('Target %'!G6="","",'Target %'!G6*E50),'Target %'!G5) ->  | G42: =IF('Target %'!H5="",IF('Target %'!H6="","",'Target %'!H6*G50),'Target %'!H5) ->  | H42: =IF('Target %'!I5="",IF('Target %'!I6="","",'Target %'!I6*H50),'Target %'!I5) ->  | I42: =IF('Target %'!J5="",IF('Target %'!J6="","",'Target %'!J6*I50),'Target %'!J5) ->  | J42: =IF('Target %'!K5="",IF('Target %'!K6="","",'Target %'!K6*J50),'Target %'!K5) ->  | K42: =IF('Target %'!L5="",IF('Target %'!L6="","",'Target %'!L6*K50),'Target %'!L5) ->  | L42: =IF('Target %'!M5="",IF('Target %'!M6="","",'Target %'!M6*L50),'Target %'!M5) ->  | M42: =IF('Target %'!N5="",IF('Target %'!N6="","",'Target %'!N6*M50),'Target %'!N5) ->  | N42: =IF('Target %'!O5="",IF('Target %'!O6="","",'Target %'!O6*N50),'Target %'!O5) ->  | O42: =IF('Target %'!P5="",IF('Target %'!P6="","",'Target %'!P6*O50),'Target %'!P5) ->  | P42: =IF('Target %'!Q5="",IF('Target %'!Q6="","",'Target %'!Q6*P50),'Target %'!Q5) -> 
A43: Maximum Level of Cash & Cash Equivalents (in $) | E43: =IF('Target %'!G8="",IF('Target %'!G9="","",'Target %'!G9*E50),'Target %'!G8) ->  | G43: =IF('Target %'!H8="",IF('Target %'!H9="","",'Target %'!H9*G50),'Target %'!H8) ->  | H43: =IF('Target %'!I8="",IF('Target %'!I9="","",'Target %'!I9*H50),'Target %'!I8) ->  | I43: =IF('Target %'!J8="",IF('Target %'!J9="","",'Target %'!J9*I50),'Target %'!J8) ->  | J43: =IF('Target %'!K8="",IF('Target %'!K9="","",'Target %'!K9*J50),'Target %'!K8) ->  | K43: =IF('Target %'!L8="",IF('Target %'!L9="","",'Target %'!L9*K50),'Target %'!L8) ->  | L43: =IF('Target %'!M8="",IF('Target %'!M9="","",'Target %'!M9*L50),'Target %'!M8) ->  | M43: =IF('Target %'!N8="",IF('Target %'!N9="","",'Target %'!N9*M50),'Target %'!N8) ->  | N43: =IF('Target %'!O8="",IF('Target %'!O9="","",'Target %'!O9*N50),'Target %'!O8) ->  | O43: =IF('Target %'!P8="",IF('Target %'!P9="","",'Target %'!P9*O50),'Target %'!P8) ->  | P43: =IF('Target %'!Q8="",IF('Target %'!Q9="","",'Target %'!Q9*P50),'Target %'!Q8) -> 
A44: Auto adjustment from/(to) Investments | E44: =IF(SUM(E55:E57)=0,0,IF(SUM(E42)>E40,IF(SUM(E55:E57)>SUM(E42)-E40,SUM(E42)-E40,SUM(E55:E57)),IF(AND(E43<>0,E43<>"",E40>SUM(E43)),SUM(E43)-E40,0))) -> 0 | G44: =IF(SUM(G55:G57)=0,0,IF(SUM(G42)>G40,IF(SUM(G55:G57)>SUM(G42)-G40,SUM(G42)-G40,SUM(G55:G57)),IF(AND(G43<>0,G43<>"",G40>SUM(G43)),SUM(G43)-G40,0))) -> 0 | H44: =IF(SUM(H55:H57)=0,0,IF(SUM(H42)>H40,IF(SUM(H55:H57)>SUM(H42)-H40,SUM(H42)-H40,SUM(H55:H57)),IF(AND(H43<>0,H43<>"",H40>SUM(H43)),SUM(H43)-H40,0))) -> 0 | I44: 0 | J44: 0 | K44: 0 | L44: 0 | M44: 0 | N44: 0 | O44: 0 | P44: 0
A45: Closing Balance | E45: =E40+E44 -> 2405663.419 | G45: 1455455.565 | H45: 1122486.825 | I45: 1116732.085 | J45: 1110638.122 | K45: 1377861.975 | L45: 1937544.496 | M45: 3020532.404 | N45: 4156898.022 | O45: 5364385.954 | P45: 6643475.826
A47: Debit Balance | E47: =IF(E45>0,E45,0) -> 2405663.419 | G47: 1455455.565 | H47: 1122486.825 | I47: 1116732.085 | J47: 1110638.122 | K47: 1377861.975 | L47: 1937544.496 | M47: 3020532.404 | N47: 4156898.022 | O47: 5364385.954 | P47: 6643475.826
A48: Overdraft Balance | E48: =IF(E45<0,-E45,0) -> 0 | G48: 0 | H48: 0 | I48: 0 | J48: 0 | K48: 0 | L48: 0 | M48: 0 | N48: 0 | O48: 0 | P48: 0
A50: Closing Balance Cash, Cash Equivalents & Investments | E50: =E40+E55+E56 -> 8716663.419 | G50: 7766455.565 | H50: 7433486.825 | I50: 7427732.085 | J50: 7421638.122 | K50: 7688861.975 | L50: 8248544.496 | M50: 9331532.404 | N50: 10467898.02 | O50: 11675385.95 | P50: 12954475.83
A54: Investments
A55: Opening Balance | E55: =(SUM('Historical Data'!C50)+SUM('Historical Data'!C58))*1000 -> 6311000 | G55: =E60 -> 6311000 | H55: =G60 -> 6311000 | I55: 6311000 | J55: 6311000 | K55: 6311000 | L55: 6311000 | M55: 6311000 | N55: 6311000 | O55: 6311000 | P55: 6311000
A56: Non-cash movement | E56: ='Budget Summary 1'!J163-'Assets - Disposals & Transfers'!E270-'Assets - Disposals & Transfers'!E271 -> 0 | G56: ='Budget Summary 1'!L163-'Assets - Disposals & Transfers'!G270-'Assets - Disposals & Transfers'!G271 -> 0 | H56: ='Budget Summary 1'!M163-'Assets - Disposals & Transfers'!H270-'Assets - Disposals & Transfers'!H271 -> 0 | I56: ='Budget Summary 1'!N163-'Assets - Disposals & Transfers'!I270-'Assets - Disposals & Transfers'!I271 -> 0 | J56: ='Budget Summary 1'!O163-'Assets - Disposals & Transfers'!J270-'Assets - Disposals & Transfers'!J271 -> 0 | K56: ='Budget Summary 1'!P163-'Assets - Disposals & Transfers'!K270-'Assets - Disposals & Transfers'!K271 -> 0 | L56: ='Budget Summary 1'!Q163-'Assets - Disposals & Transfers'!L270-'Assets - Disposals & Transfers'!L271 -> 0 | M56: ='Budget Summary 1'!R163-'Assets - Disposals & Transfers'!M270-'Assets - Disposals & Transfers'!M271 -> 0 | N56: ='Budget Summary 1'!S163-'Assets - Disposals & Transfers'!N270-'Assets - Disposals & Transfers'!N271 -> 0 | O56: ='Budget Summary 1'!T163-'Assets - Disposals & Transfers'!O270-'Assets - Disposals & Transfers'!O271 -> 0 | P56: ='Budget Summary 1'!U163-'Assets - Disposals & Transfers'!P270-'Assets - Disposals & Transfers'!P271 -> 0
A57: Capital Disposals (WDV) | E57: =E70 -> 0 | G57: =G70 -> 0 | H57: =H70 -> 0 | I57: 0 | J57: 0 | K57: 0 | L57: 0 | M57: 0 | N57: 0 | O57: 0 | P57: 0
A58: Auto adjustment from/(to) Cash | E58: =-E44 -> 0 | G58: 0 | H58: 0 | I58: 0 | J58: 0 | K58: 0 | L58: 0 | M58: 0 | N58: 0 | O58: 0 | P58: 0
A59: Add/(Less): manual adjustments against cash (in $)
A60: Closing Balance | E60: =SUM(E55:E59) -> 6311000 | G60: 6311000 | H60: 6311000 | I60: 6311000 | J60: 6311000 | K60: 6311000 | L60: 6311000 | M60: 6311000 | N60: 6311000 | O60: 6311000 | P60: 6311000
A62: Current ratio | E62: ='Target %'!G19 -> 0 | G62: ='Target %'!H19 -> 0 | H62: ='Target %'!I19 -> 0 | I62: ='Target %'!J19 -> 0 | J62: ='Target %'!K19 -> 0 | K62: ='Target %'!L19 -> 0 | L62: ='Target %'!M19 -> 0 | M62: ='Target %'!N19 -> 0 | N62: ='Target %'!O19 -> 0 | O62: ='Target %'!P19 -> 0 | P62: ='Target %'!Q19 -> 0
... 42 more rows

Sheet Target %
A1: ='Cover Page'!$A$3 -> Yass Valley Council
A2: ='Cover Page'!$A$5 -> 10 Year Financial Plan for the Years ending 30 June 2025
A3: ="Target % for Balance sheet amounts & ratios - "&PROPER(general_fund_name) -> Target % for Balance sheet amounts & ratios - General Fund
A4: ="Scenario: "&general_scenario_name -> Scenario: Rural Road Maintenance With Revised Rate Peg, 1yr 6.7% SRV, $600k Efficiency, Revised Proj & 3yr 6% SRV | C4: =Starting_year_general-5&"/"&RIGHT(Starting_year_general-4,2) -> 2010/11 | D4: =Starting_year_general-4&"/"&RIGHT(Starting_year_general-3,2) -> 2011/12 | E4: =Starting_year_general-3&"/"&RIGHT(Starting_year_general-2,2) -> 2012/13 | F4: =Starting_year_general-2&"/"&RIGHT(Starting_year_general-1,2) -> 2013/14 | G4: =Starting_year_general-1&"/"&RIGHT(Starting_year_general,2) -> 2014/15 | H4: =Starting_year_general&"/"&RIGHT(Starting_year_general+1,2) -> 2015/16 | I4: =Starting_year_general+1&"/"&RIGHT(Starting_year_general+2,2) -> 2016/17 | J4: =Starting_year_general+2&"/"&RIGHT(Starting_year_general+3,2) -> 2017/18 | K4: =Starting_year_general+3&"/"&RIGHT(Starting_year_general+4,2) -> 2018/19 | L4: =Starting_year_general+4&"/"&RIGHT(Starting_year_general+5,2) -> 2019/20 | M4: =Starting_year_general+5&"/"&RIGHT(Starting_year_general+6,2) -> 2020/21 | N4: =Starting_year_general+6&"/"&RIGHT(Starting_year_general+7,2) -> 2021/22 | O4: =Starting_year_general+7&"/"&RIGHT(Starting_year_general+8,2) -> 2022/23 | P4: =Starting_year_general+8&"/"&RIGHT(Starting_year_general+9,2) -> 2023/24 | Q4: =Starting_year_general+9&"/"&RIGHT(Starting_year_general+10,2) -> 2024/25
A5: Minimum Level of Cash & Cash Equivalents (in $) | D5: Note: the $ field takes precedent if both are entered
A6: Minimum Level of Cash & Cash Equivalents (in % of all cash, cash equivalents & investments)
A8: Maximum Level of Cash & Cash Equivalents (in $) | D8: Note: the $ field takes precedent if both are entered
A9: Maximum Level of Cash & Cash Equivalents (in % of all cash, cash equivalents & investments)
A11: Investment Revenue / Interest Rate (applicable to calculate Investment Revenues) | G11: 0.06 | H11: 0.06 | I11: 0.06 | J11: 0.06 | K11: 0.06 | L11: 0.06 | M11: 0.06 | N11: 0.06 | O11: 0.06 | P11: 0.06 | Q11: 0.06
A12: Investment Revenue / Interest Rate (applicable to Section 94)
A15: Current and Non-Current Ratios
A17: Investments - Current | B17: Historical / Average of historical | C17: ='Historical Data'!U$50 -> 0 | D17: ='Historical Data'!T$50 -> 0 | E17: ='Historical Data'!S$50 -> 0 | F17: ='Historical Data'!R$50 -> 0 | G17: ='Historical Data'!V$50 -> 0 | H17: =$G17 -> 0 | I17: 0 | J17: 0 | K17: 0 | L17: 0 | M17: 0 | N17: 0 | O17: 0 | P17: 0 | Q17: 0
B18: Target
B19: Used in Model | G19: =IF(G18="",G17,G18) -> 0 | H19: =IF(H18="",H17,H18) -> 0 | I19: 0 | J19: 0 | K19: 0 | L19: 0 | M19: 0 | N19: 0 | O19: 0 | P19: 0 | Q19: 0
A21: Receivables
A22: ='Historical Data'!A266 -> Rates & Annual Charges - Current | B22: Historical / Average of historical | C22: ='Historical Data'!U$266 -> 1 | D22: ='Historical Data'!T$266 -> 1 | E22: ='Historical Data'!S$266 -> 1 | F22: ='Historical Data'!R$266 -> 1 | G22: ='Historical Data'!V$266 -> 1 | H22: =$G22 -> 1 | I22: 1 | J22: 1 | K22: 1 | L22: 1 | M22: 1 | N22: 1 | O22: 1 | P22: 1 | Q22: 1
B23: Target
B24: Used in Model | G24: =IF(G23="",G22,G23) -> 1 | H24: =IF(H23="",H22,H23) -> 1 | I24: 1 | J24: 1 | K24: 1 | L24: 1 | M24: 1 | N24: 1 | O24: 1 | P24: 1 | Q24: 1
A26: ='Historical Data'!A268 -> Interest & Extra Charges - Current | B26: Historical / Average of historical | C26: ='Historical Data'!U$268 -> 1 | D26: ='Historical Data'!T$268 -> 1 | E26: ='Historical Data'!S$268 -> 1 | F26: ='Historical Data'!R$268 -> 1 | G26: ='Historical Data'!V$268 -> 1 | H26: =$G26 -> 1 | I26: 1 | J26: 1 | K26: 1 | L26: 1 | M26: 1 | N26: 1 | O26: 1 | P26: 1 | Q26: 1
B27: Target
B28: Used in Model | G28: =IF(G27="",G26,G27) -> 1 | H28: =IF(H27="",H26,H27) -> 1 | I28: 1 | J28: 1 | K28: 1 | L28: 1 | M28: 1 | N28: 1 | O28: 1 | P28: 1 | Q28: 1
A30: ='Historical Data'!A270 -> User Charges & Fees and Private Works - Current | B30: Historical / Average of historical | C30: ='Historical Data'!U$270 -> 1 | D30: ='Historical Data'!T$270 -> 1 | E30: ='Historical Data'!S$270 -> 1 | F30: ='Historical Data'!R$270 -> 1 | G30: ='Historical Data'!V$270 -> 1 | H30: =$G30 -> 1 | I30: 1 | J30: 1 | K30: 1 | L30: 1 | M30: 1 | N30: 1 | O30: 1 | P30: 1 | Q30: 1
B31: Target
B32: Used in Model | G32: =IF(G31="",G30,G31) -> 1 | H32: =IF(H31="",H30,H31) -> 1 | I32: 1 | J32: 1 | K32: 1 | L32: 1 | M32: 1 | N32: 1 | O32: 1 | P32: 1 | Q32: 1
A34: ='Historical Data'!A272 -> Grants & Contributions - Current | B34: Historical / Average of historical | C34: ='Historical Data'!U$272 -> 1 | D34: ='Historical Data'!T$272 ->  | E34: ='Historical Data'!S$272 ->  | F34: ='Historical Data'!R$272 ->  | G34: ='Historical Data'!V$272 -> 1 | H34: =$G34 -> 1 | I34: 1 | J34: 1 | K34: 1 | L34: 1 | M34: 1 | N34: 1 | O34: 1 | P34: 1 | Q34: 1
B35: Target
B36: Used in Model | G36: =IF(G35="",G34,G35) -> 1 | H36: =IF(H35="",H34,H35) -> 1 | I36: 1 | J36: 1 | K36: 1 | L36: 1 | M36: 1 | N36: 1 | O36: 1 | P36: 1 | Q36: 1
A38: ='Historical Data'!A274 -> Accrued Interest - Current | B38: Historical / Average of historical | C38: ='Historical Data'!U$274 -> 1 | D38: ='Historical Data'!T$274 -> 1 | E38: ='Historical Data'!S$274 -> 1 | F38: ='Historical Data'!R$274 -> 1 | G38: ='Historical Data'!V$274 -> 1 | H38: =$G38 -> 1 | I38: 1 | J38: 1 | K38: 1 | L38: 1 | M38: 1 | N38: 1 | O38: 1 | P38: 1 | Q38: 1
B39: Target
B40: Used in Model | G40: =IF(G39="",G38,G39) -> 1 | H40: =IF(H39="",H38,H39) -> 1 | I40: 1 | J40: 1 | K40: 1 | L40: 1 | M40: 1 | N40: 1 | O40: 1 | P40: 1 | Q40: 1
A42: ='Historical Data'!A276 -> Other Accrued Revenue - Current | B42: Historical / Average of historical | C42: ='Historical Data'!U$276 -> 1 | D42: ='Historical Data'!T$276 ->  | E42: ='Historical Data'!S$276 ->  | F42: ='Historical Data'!R$276 ->  | G42: ='Historical Data'!V$276 -> 1 | H42: =$G42 -> 1 | I42: 1 | J42: 1 | K42: 1 | L42: 1 | M42: 1 | N42: 1 | O42: 1 | P42: 1 | Q42: 1
B43: Target
B44: Used in Model | G44: =IF(G43="",G42,G43) -> 1 | H44: =IF(H43="",H42,H43) -> 1 | I44: 1 | J44: 1 | K44: 1 | L44: 1 | M44: 1 | N44: 1 | O44: 1 | P44: 1 | Q44: 1
A46: ='Historical Data'!A278 -> Capital Debtors - Current | B46: Historical / Average of historical | C46: ='Historical Data'!U$278 ->  | D46: ='Historical Data'!T$278 ->  | E46: ='Historical Data'!S$278 ->  | F46: ='Historical Data'!R$278 ->  | G46: ='Historical Data'!V$278 -> 0 | H46: =$G46 -> 0 | I46: 0 | J46: 0 | K46: 0 | L46: 0 | M46: 0 | N46: 0 | O46: 0 | P46: 0 | Q46: 0
B47: Target
B48: Used in Model | G48: =IF(G47="",G46,G47) -> 0 | H48: =IF(H47="",H46,H47) -> 0 | I48: 0 | J48: 0 | K48: 0 | L48: 0 | M48: 0 | N48: 0 | O48: 0 | P48: 0 | Q48: 0
A50: ='Historical Data'!A280 -> Deferred Debtors - Current | B50: Historical / Average of historical | C50: ='Historical Data'!U$280 ->  | D50: ='Historical Data'!T$280 ->  | E50: ='Historical Data'!S$280 ->  | F50: ='Historical Data'!R$280 ->  | G50: ='Historical Data'!V$280 -> 0 | H50: =$G50 -> 0 | I50: 0 | J50: 0 | K50: 0 | L50: 0 | M50: 0 | N50: 0 | O50: 0 | P50: 0 | Q50: 0
B51: Target
B52: Used in Model | G52: =IF(G51="",G50,G51) -> 0 | H52: =IF(H51="",H50,H51) -> 0 | I52: 0 | J52: 0 | K52: 0 | L52: 0 | M52: 0 | N52: 0 | O52: 0 | P52: 0 | Q52: 0
A54: ='Historical Data'!A282 -> GST Receivable - Current | B54: Historical / Average of historical | C54: ='Historical Data'!U$282 ->  | D54: ='Historical Data'!T$282 -> 1 | E54: ='Historical Data'!S$282 -> 1 | F54: ='Historical Data'!R$282 ->  | G54: ='Historical Data'!V$282 -> 1 | H54: =$G54 -> 1 | I54: 1 | J54: 1 | K54: 1 | L54: 1 | M54: 1 | N54: 1 | O54: 1 | P54: 1 | Q54: 1
B55: Target
B56: Used in Model | G56: =IF(G55="",G54,G55) -> 1 | H56: =IF(H55="",H54,H55) -> 1 | I56: 1 | J56: 1 | K56: 1 | L56: 1 | M56: 1 | N56: 1 | O56: 1 | P56: 1 | Q56: 1
A58: ='Historical Data'!A284 -> Due from other Councils - Current | B58: Historical / Average of historical | C58: ='Historical Data'!U$284 ->  | D58: ='Historical Data'!T$284 ->  | E58: ='Historical Data'!S$284 ->  | F58: ='Historical Data'!R$284 ->  | G58: ='Historical Data'!V$284 -> 0 | H58: =$G58 -> 0 | I58: 0 | J58: 0 | K58: 0 | L58: 0 | M58: 0 | N58: 0 | O58: 0 | P58: 0 | Q58: 0
B59: Target
B60: Used in Model | G60: =IF(G59="",G58,G59) -> 0 | H60: =IF(H59="",H58,H59) -> 0 | I60: 0 | J60: 0 | K60: 0 | L60: 0 | M60: 0 | N60: 0 | O60: 0 | P60: 0 | Q60: 0
A62: ='Historical Data'!A288 -> Other Debtors - Current | B62: Historical / Average of historical | C62: ='Historical Data'!U$288 ->  | D62: ='Historical Data'!T$288 ->  | E62: ='Historical Data'!S$288 ->  | F62: ='Historical Data'!R$288 -> 1 | G62: ='Historical Data'!V$288 -> 1 | H62: =$G62 -> 1 | I62: 1 | J62: 1 | K62: 1 | L62: 1 | M62: 1 | N62: 1 | O62: 1 | P62: 1 | Q62: 1
... 39 more rows

Sheet Cash Flow
A1: ='Cover Page'!$A$3 -> Yass Valley Council | Q1: end | R1: end | S1: end | T1: end | U1: end | V1: end | W1: end | X1: end | Y1: end | Z1: end | AA1: end | AB1: end | AC1: end | AD1: end | AE1: end | AF1: end | AG1: end | AH1: end | AI1: end | AJ1: end | AK1: end | AL1: end | AM1: end | AN1: end | AO1: end | AP1: end | AQ1: end | AR1: end | AS1: end | AT1: end | AU1: end | AV1: end | AW1: end | AX1: end | AY1: end | AZ1: end
A2: ='Cover Page'!$A$5 -> 10 Year Financial Plan for the Years ending 30 June 2025 | AZ2: end
A3: ="CASH FLOW STATEMENT - "&UPPER(general_fund_name) -> CASH FLOW STATEMENT - GENERAL FUND | C3: Actuals | E3: Current Year | G3: Projected Years | AZ3: end
A4: ="Scenario: "&general_scenario_name -> Scenario: Rural Road Maintenance With Revised Rate Peg, 1yr 6.7% SRV, $600k Efficiency, Revised Proj & 3yr 6% SRV | C4: =Starting_year_general-2&"/"&RIGHT(Starting_year_general-1,2) -> 2013/14 | E4: =Starting_year_general-1&"/"&RIGHT(Starting_year_general,2) -> 2014/15 | G4: =Starting_year_general&"/"&RIGHT(Starting_year_general+1,2) -> 2015/16 | H4: =Starting_year_general+1&"/"&RIGHT(Starting_year_general+2,2) -> 2016/17 | I4: =Starting_year_general+2&"/"&RIGHT(Starting_year_general+3,2) -> 2017/18 | J4: =Starting_year_general+3&"/"&RIGHT(Starting_year_general+4,2) -> 2018/19 | K4: =Starting_year_general+4&"/"&RIGHT(Starting_year_general+5,2) -> 2019/20 | L4: =Starting_year_general+5&"/"&RIGHT(Starting_year_general+6,2) -> 2020/21 | M4: =Starting_year_general+6&"/"&RIGHT(Starting_year_general+7,2) -> 2021/22 | N4: =Starting_year_general+7&"/"&RIGHT(Starting_year_general+8,2) -> 2022/23 | O4: =Starting_year_general+8&"/"&RIGHT(Starting_year_general+9,2) -> 2023/24 | P4: =Starting_year_general+9&"/"&RIGHT(Starting_year_general+10,2) -> 2024/25 | V4: =E4 -> 2014/15 | W4: =G4 -> 2015/16 | X4: 2016/17 | Y4: 2017/18 | Z4: 2018/19 | AA4: 2019/20 | AB4: 2020/21 | AC4: 2021/22 | AD4: 2022/23 | AE4: 2023/24 | AF4: 2024/25 | AZ4: end
C5: =IF('Cover Page'!$K$19=TRUE,"$","$'000") -> $ | E5: =IF('Cover Page'!$K$19=TRUE,"$","$'000") -> $ | G5: =IF('Cover Page'!$K$19=TRUE,"$","$'000") -> $ | H5: =IF('Cover Page'!$K$19=TRUE,"$","$'000") -> $ | I5: =IF('Cover Page'!$K$19=TRUE,"$","$'000") -> $ | J5: =IF('Cover Page'!$K$19=TRUE,"$","$'000") -> $ | K5: =IF('Cover Page'!$K$19=TRUE,"$","$'000") -> $ | L5: =IF('Cover Page'!$K$19=TRUE,"$","$'000") -> $ | M5: =IF('Cover Page'!$K$19=TRUE,"$","$'000") -> $ | N5: =IF('Cover Page'!$K$19=TRUE,"$","$'000") -> $ | O5: =IF('Cover Page'!$K$19=TRUE,"$","$'000") -> $ | P5: =IF('Cover Page'!$K$19=TRUE,"$","$'000") -> $ | AZ5: end
A6: Cash Flows from Operating Activities | AZ6: end
A7: Receipts: | R7: Allocate Income Line items here | AZ7: end
A8: Rates & Annual Charges | C8: =SUM('Historical Data'!C128)*1000 -> 0 | E8: ='CF workings'!E16 -> 7322413.07 | G8: ='CF workings'!G16 -> 7513318.942 | H8: ='CF workings'!H16 -> 8253249.098 | I8: ='CF workings'!I16 -> 9111860.702 | J8: ='CF workings'!J16 -> 10060111.35 | K8: ='CF workings'!K16 -> 11107359.37 | L8: ='CF workings'!L16 -> 11642928.17 | M8: ='CF workings'!M16 -> 12158586.58 | N8: ='CF workings'!N16 -> 12697140.22 | O8: ='CF workings'!O16 -> 13259605.64 | P8: ='CF workings'!P16 -> 13847044.53 | R8: Rates & Annual Charges | AZ8: end
A9: User Charges & Fees | C9: =SUM('Historical Data'!C129)*1000 -> 0 | E9: ='CF workings'!E24 -> 2462332.656 | G9: ='CF workings'!G24 -> 1871278.447 | H9: ='CF workings'!H24 -> 1861016.76 | I9: ='CF workings'!I24 -> 1902033.573 | J9: ='CF workings'!J24 -> 1948959.438 | K9: ='CF workings'!K24 -> 2003038.368 | L9: ='CF workings'!L24 -> 2062379.505 | M9: ='CF workings'!M24 -> 2123500.863 | N9: ='CF workings'!N24 -> 2186455.878 | O9: ='CF workings'!O24 -> 2251299.528 | P9: ='CF workings'!P24 -> 2318088.505 | R9: User Charges & Fees | AZ9: end
A10: Interest & Investment Revenue Received | C10: =SUM('Historical Data'!C130)*1000 -> 0 | E10: ='CF workings'!E32 -> 764733.8394 | G10: ='CF workings'!G32 -> 393547.6336 | H10: ='CF workings'!H32 -> 387944.8213 | I10: ='CF workings'!I32 -> 387255.1519 | J10: ='CF workings'!J32 -> 386250.8665 | K10: ='CF workings'!K32 -> 385093.2465 | L10: ='CF workings'!L32 -> 386126.8419 | M10: ='CF workings'!M32 -> 383764.2675 | N10: ='CF workings'!N32 -> 383484.8384 | O10: ='CF workings'!O32 -> 383107.0305 | P10: ='CF workings'!P32 -> 382738.0955 | R10: Interest & Investment Revenue | AZ10: end
A11: Grants & Contributions | C11: =SUM('Historical Data'!C131)*1000 -> 0 | E11: ='CF workings'!E40 -> 7801654.311 | G11: ='CF workings'!G40 -> 8137236.341 | H11: ='CF workings'!H40 -> 8494314.698 | I11: ='CF workings'!I40 -> 7396344.923 | J11: ='CF workings'!J40 -> 7481624.427 | K11: ='CF workings'!K40 -> 7709931.827 | L11: ='CF workings'!L40 -> 7915187.86 | M11: ='CF workings'!M40 -> 8134234.245 | N11: ='CF workings'!N40 -> 8343124.546 | O11: ='CF workings'!O40 -> 8572967.447 | P11: ='CF workings'!P40 -> 8803025.455 | R11: Grants & Contributions provided for Operating Purposes | S11: Grants & Contributions provided for Capital Purposes | AZ11: end
A12: Bonds & Deposits Received | C12: =SUM('Historical Data'!C132)*1000 -> 0 | E12: ='CF workings'!E46 -> 0 | G12: ='CF workings'!G46 -> 0 | H12: ='CF workings'!H46 -> 0 | I12: ='CF workings'!I46 -> 0 | J12: ='CF workings'!J46 -> 0 | K12: ='CF workings'!K46 -> 0 | L12: ='CF workings'!L46 -> 0 | M12: ='CF workings'!M46 -> 0 | N12: ='CF workings'!N46 -> 0 | O12: ='CF workings'!O46 -> 0 | P12: ='CF workings'!P46 -> 0 | AZ12: end
A13: Other | C13: =SUM('Historical Data'!C133)*1000 -> 0 | E13: ='CF workings'!E59-SUM(E32)-E52-E34+E93 -> 4598795.2 | G13: ='CF workings'!G59-SUM(G32)-G52-G34+G93 -> 4634419.351 | H13: ='CF workings'!H59-SUM(H32)-H52-H34+H93 -> 4725178.852 | I13: ='CF workings'!I59-SUM(I32)-I52-I34+I93 -> 4847333.705 | J13: ='CF workings'!J59-SUM(J32)-J52-J34+J93 -> 4959424.96 | K13: ='CF workings'!K59-SUM(K32)-K52-K34+K93 -> 5103769.614 | L13: ='CF workings'!L59-SUM(L32)-L52-L34+L93 -> 5253781.826 | M13: ='CF workings'!M59-SUM(M32)-M52-M34+M93 -> 5408045.164 | N13: ='CF workings'!N59-SUM(N32)-N52-N34+N93 -> 5567067.432 | O13: ='CF workings'!O59-SUM(O32)-O52-O34+O93 -> 5730699.288 | P13: ='CF workings'!P59-SUM(P32)-P52-P34+P93 -> 5899353.609 | R13: Other Revenues | AZ13: end
A14: Payments: | AZ14: end
A15: Employee Benefits & On-Costs | C15: =SUM('Historical Data'!C136)*1000 -> 0 | E15: =-'CF workings'!E75 -> -8316780 | G15: =-'CF workings'!G75 -> -8008604.9 | H15: =-'CF workings'!H75 -> -8225994.88 | I15: =-'CF workings'!I75 -> -8577620.26 | J15: =-'CF workings'!J75 -> -8863453.99 | K15: =-'CF workings'!K75 -> -9179954.77 | L15: =-'CF workings'!L75 -> -9430950.55 | M15: =-'CF workings'!M75 -> -9689476.23 | N15: =-'CF workings'!N75 -> -9955757.69 | O15: =-'CF workings'!O75 -> -10230027.6 | P15: =-'CF workings'!P75 -> -10512525.58 | R15: Employee Benefits & On-Costs | AZ15: end
A16: Materials & Contracts | C16: =SUM('Historical Data'!C137)*1000 -> 0 | E16: =-'CF workings'!E90 -> -5732813.626 | G16: =-'CF workings'!G90 -> -6958698.173 | H16: =-'CF workings'!H90 -> -7113147.291 | I16: =-'CF workings'!I90 -> -7857844.95 | J16: =-'CF workings'!J90 -> -8162869.627 | K16: =-'CF workings'!K90 -> -8449395.74 | L16: =-'CF workings'!L90 -> -8789072.811 | M16: =-'CF workings'!M90 -> -9140728.177 | N16: =-'CF workings'!N90 -> -9506285.622 | O16: =-'CF workings'!O90 -> -9886294.964 | P16: =-'CF workings'!P90 -> -10281320.86 | R16: Materials & Contracts | AZ16: end
A17: Borrowing Costs | C17: =SUM('Historical Data'!C138)*1000 -> 0 | E17: =-'CF workings'!E99 -> -529323.4826 | G17: =-'CF workings'!G99 -> -209784.3328 | H17: =-'CF workings'!H99 -> -181182.1854 | I17: =-'CF workings'!I99 -> -148875.751 | J17: =-'CF workings'!J99 -> -115634.2465 | K17: =-'CF workings'!K99 -> -80383.49905 | L17: =-'CF workings'!L99 -> -35832.24636 | M17: =-'CF workings'!M99 -> 0 | N17: =-'CF workings'!N99 -> 0 | O17: =-'CF workings'!O99 -> 0 | P17: =-'CF workings'!P99 -> 0 | R17: Borrowing Costs | AZ17: end
A18: Bonds & Deposits Refunded | C18: =SUM('Historical Data'!C139)*1000 -> 0 | E18: =-'CF workings'!E105 -> 0 | G18: =-'CF workings'!G105 -> 0 | H18: =-'CF workings'!H105 -> 0 | I18: =-'CF workings'!I105 -> 0 | J18: =-'CF workings'!J105 -> 0 | K18: =-'CF workings'!K105 -> 0 | L18: =-'CF workings'!L105 -> 0 | M18: =-'CF workings'!M105 -> 0 | N18: =-'CF workings'!N105 -> 0 | O18: =-'CF workings'!O105 -> 0 | P18: =-'CF workings'!P105 -> 0 | AZ18: end
A19: Other | C19: =SUM('Historical Data'!C140)*1000 -> 0 | E19: =-'CF workings'!E116-SUM(E44)-SUM(E57)+E94+'BS workings'!E905+'BS workings'!E906 -> -3356804.459 | G19: =-'CF workings'!G116-SUM(G44)-SUM(G57)+G94+'BS workings'!G905+'BS workings'!G906 -> -3031266.163 | H19: =-'CF workings'!H116-SUM(H44)-SUM(H57)+H94+'BS workings'!H905+'BS workings'!H906 -> -2888196.612 | I19: =-'CF workings'!I116-SUM(I44)-SUM(I57)+I94+'BS workings'!I905+'BS workings'!I906 -> -2759666.453 | J19: =-'CF workings'!J116-SUM(J44)-SUM(J57)+J94+'BS workings'!J905+'BS workings'!J906 -> -2629230.582 | K19: =-'CF workings'!K116-SUM(K44)-SUM(K57)+K94+'BS workings'!K905+'BS workings'!K906 -> -2707833.672 | L19: =-'CF workings'!L116-SUM(L44)-SUM(L57)+L94+'BS workings'!L905+'BS workings'!L906 -> -2789064.096 | M19: =-'CF workings'!M116-SUM(M44)-SUM(M57)+M94+'BS workings'!M905+'BS workings'!M906 -> -2872731.275 | N19: =-'CF workings'!N116-SUM(N44)-SUM(N57)+N94+'BS workings'!N905+'BS workings'!N906 -> -2958908.317 | O19: =-'CF workings'!O116-SUM(O44)-SUM(O57)+O94+'BS workings'!O905+'BS workings'!O906 -> -3047670.449 | P19: =-'CF workings'!P116-SUM(P44)-SUM(P57)+P94+'BS workings'!P905+'BS workings'!P906 -> -3139095.277 | R19: =-'CF workings'!R116-SUM(R57)+R94+'BS workings'!R905+'BS workings'!R906 ->  | AZ19: end
AZ20: end
A21: Net Cash provided (or used in) Operating Activities | C21: =SUM(C7:C20) -> 0 | E21: =SUM(E7:E20) -> 5014207.509 | G21: =SUM(G7:G20) -> 4341447.145 | H21: 5313183.26 | I21: 4300820.64 | J21: 5065182.597 | K21: 5891624.743 | L21: 6215484.501 | M21: 6505195.438 | N21: 6756321.288 | O21: 7033685.921 | P21: 7317308.472 | AZ21: end
AZ22: end
A23: Cash Flows from Investing Activities | AZ23: end
A24: Receipts: | AZ24: end
A25: Sale of Investment Securities | C25: =SUM('Historical Data'!C149)*1000 -> 0 | E25: ='CF workings'!E125 -> 0 | G25: ='CF workings'!G125 -> 0 | H25: ='CF workings'!H125 -> 0 | I25: ='CF workings'!I125 -> 0 | J25: ='CF workings'!J125 -> 0 | K25: ='CF workings'!K125 -> 0 | L25: ='CF workings'!L125 -> 0 | M25: ='CF workings'!M125 -> 0 | N25: ='CF workings'!N125 -> 0 | O25: ='CF workings'!O125 -> 0 | P25: ='CF workings'!P125 -> 0 | AZ25: end
A26: Sale of Investment Property | C26: =SUM('Historical Data'!C150)*1000 -> 0 | E26: ='CF workings'!E130 -> 0 | G26: ='CF workings'!G130 -> 0 | H26: ='CF workings'!H130 -> 0 | I26: ='CF workings'!I130 -> 0 | J26: ='CF workings'!J130 -> 0 | K26: ='CF workings'!K130 -> 0 | L26: ='CF workings'!L130 -> 0 | M26: ='CF workings'!M130 -> 0 | N26: ='CF workings'!N130 -> 0 | O26: ='CF workings'!O130 -> 0 | P26: ='CF workings'!P130 -> 0 | AZ26: end
A27: Sale of Real Estate Assets | C27: =SUM('Historical Data'!C151)*1000 -> 0 | E27: ='CF workings'!E136 -> 0 | G27: ='CF workings'!G136 -> 0 | H27: ='CF workings'!H136 -> 500000 | I27: ='CF workings'!I136 -> 500000 | J27: ='CF workings'!J136 -> 0 | K27: ='CF workings'!K136 -> 0 | L27: ='CF workings'!L136 -> 0 | M27: ='CF workings'!M136 -> 0 | N27: ='CF workings'!N136 -> 0 | O27: ='CF workings'!O136 -> 0 | P27: ='CF workings'!P136 -> 0 | AZ27: end
A28: Sale of Infrastructure, Property, Plant & Equipment | C28: =SUM('Historical Data'!C152)*1000 -> 0 | E28: ='CF workings'!E145 -> 400000 | G28: ='CF workings'!G145 -> 0 | H28: ='CF workings'!H145 -> 0 | I28: ='CF workings'!I145 -> 0 | J28: ='CF workings'!J145 -> 0 | K28: ='CF workings'!K145 -> 0 | L28: ='CF workings'!L145 -> 0 | M28: ='CF workings'!M145 -> 0 | N28: ='CF workings'!N145 -> 0 | O28: ='CF workings'!O145 -> 0 | P28: ='CF workings'!P145 -> 0 | AZ28: end
A29: Sale of Interests in Joint Ventures & Associates | C29: =(SUM('Historical Data'!C153)+SUM('Historical Data'!C154))*1000 -> 0 | E29: ='CF workings'!E150 -> 0 | G29: ='CF workings'!G150 -> 0 | H29: ='CF workings'!H150 -> 0 | I29: ='CF workings'!I150 -> 0 | J29: ='CF workings'!J150 -> 0 | K29: ='CF workings'!K150 -> 0 | L29: ='CF workings'!L150 -> 0 | M29: ='CF workings'!M150 -> 0 | N29: ='CF workings'!N150 -> 0 | O29: ='CF workings'!O150 -> 0 | P29: ='CF workings'!P150 -> 0 | AZ29: end
A30: Sale of Intangible Assets | C30: 0 | E30: ='CF workings'!E155 -> 0 | G30: ='CF workings'!G155 -> 0 | H30: ='CF workings'!H155 -> 0 | I30: ='CF workings'!I155 -> 0 | J30: ='CF workings'!J155 -> 0 | K30: ='CF workings'!K155 -> 0 | L30: ='CF workings'!L155 -> 0 | M30: ='CF workings'!M155 -> 0 | N30: ='CF workings'!N155 -> 0 | O30: ='CF workings'!O155 -> 0 | P30: ='CF workings'!P155 -> 0 | AZ30: end
A31: Deferred Debtors Receipts | C31: =SUM('Historical Data'!C156)*1000 -> 0 | E31: ='CF workings'!E160 -> 0 | G31: ='CF workings'!G160 -> 0 | H31: ='CF workings'!H160 -> 0 | I31: ='CF workings'!I160 -> 0 | J31: ='CF workings'!J160 -> 0 | K31: ='CF workings'!K160 -> 0 | L31: ='CF workings'!L160 -> 0 | M31: ='CF workings'!M160 -> 0 | N31: ='CF workings'!N160 -> 0 | O31: ='CF workings'!O160 -> 0 | P31: ='CF workings'!P160 -> 0 | AZ31: end
A32: Sale of Disposal Groups | C32: =SUM('Historical Data'!C155)*1000 -> 0 | AZ32: end
A33: Distributions Received from Joint Ventures & Associates | C33: =SUM('Historical Data'!C157)*1000 -> 0 | E33: ='CF workings'!E165 -> 0 | G33: ='CF workings'!G165 -> 0 | H33: ='CF workings'!H165 -> 0 | I33: ='CF workings'!I165 -> 0 | J33: ='CF workings'!J165 -> 0 | K33: ='CF workings'!K165 -> 0 | L33: ='CF workings'!L165 -> 0 | M33: ='CF workings'!M165 -> 0 | N33: ='CF workings'!N165 -> 0 | O33: ='CF workings'!O165 -> 0 | P33: ='CF workings'!P165 -> 0 | AZ33: end
A34: Other Investing Activity Receipts | C34: =SUM('Historical Data'!C158)*1000 -> 0
A35: Payments: | AZ35: end
A36: Purchase of Investment Securities | C36: =SUM('Historical Data'!C161)*1000 -> 0 | E36: ='CF workings'!E170 -> 0 | G36: ='CF workings'!G170 -> 0 | H36: ='CF workings'!H170 -> 0 | I36: ='CF workings'!I170 -> 0 | J36: ='CF workings'!J170 -> 0 | K36: ='CF workings'!K170 -> 0 | L36: ='CF workings'!L170 -> 0 | M36: ='CF workings'!M170 -> 0 | N36: ='CF workings'!N170 -> 0 | O36: ='CF workings'!O170 -> 0 | P36: ='CF workings'!P170 -> 0 | AZ36: end
A37: Purchase of Investment Property | C37: =SUM('Historical Data'!C162)*1000 -> 0 | E37: =-'CF workings'!E175 -> 0 | G37: =-'CF workings'!G175 -> 0 | H37: =-'CF workings'!H175 -> 0 | I37: =-'CF workings'!I175 -> 0 | J37: =-'CF workings'!J175 -> 0 | K37: =-'CF workings'!K175 -> 0 | L37: =-'CF workings'!L175 -> 0 | M37: =-'CF workings'!M175 -> 0 | N37: =-'CF workings'!N175 -> 0 | O37: =-'CF workings'!O175 -> 0 | P37: =-'CF workings'!P175 -> 0 | AZ37: end
A38: Purchase of Infrastructure, Property, Plant & Equipment | C38: =SUM('Historical Data'!C163)*1000 -> 0 | E38: =-'CF workings'!E184 -> -7290657 | G38: =-'CF workings'!G184 -> -4781523 | H38: =-'CF workings'!H184 -> -5606196 | I38: =-'CF workings'!I184 -> -4232933.38 | J38: =-'CF workings'!J184 -> -4462973.56 | K38: =-'CF workings'!K184 -> -4979342.89 | L38: =-'CF workings'!L184 -> -5147689.98 | M38: =-'CF workings'!M184 -> -5422207.53 | N38: =-'CF workings'!N184 -> -5619955.67 | O38: =-'CF workings'!O184 -> -5826197.99 | P38: =-'CF workings'!P184 -> -6038218.6 | AZ38: end
A39: Purchase of Real Estate Assets | C39: =SUM('Historical Data'!C164)*1000 -> 0 | E39: =-'CF workings'!E189 -> -720090 | G39: =-'CF workings'!G189 -> 0 | H39: =-'CF workings'!H189 -> 0 | I39: =-'CF workings'!I189 -> 0 | J39: =-'CF workings'!J189 -> 0 | K39: =-'CF workings'!K189 -> 0 | L39: =-'CF workings'!L189 -> 0 | M39: =-'CF workings'!M189 -> 0 | N39: =-'CF workings'!N189 -> 0 | O39: =-'CF workings'!O189 -> 0 | P39: =-'CF workings'!P189 -> 0 | AZ39: end
A40: Purchase of Intangible Assets | C40: 0 | E40: =-'CF workings'!E194 -> 0 | G40: =-'CF workings'!G194 -> 0 | H40: =-'CF workings'!H194 -> 0 | I40: =-'CF workings'!I194 -> 0 | J40: =-'CF workings'!J194 -> 0 | K40: =-'CF workings'!K194 -> 0 | L40: =-'CF workings'!L194 -> 0 | M40: =-'CF workings'!M194 -> 0 | N40: =-'CF workings'!N194 -> 0 | O40: =-'CF workings'!O194 -> 0 | P40: =-'CF workings'!P194 -> 0 | AZ40: end
A41: Deferred Debtors & Advances Made | C41: =SUM('Historical Data'!C167)*1000 -> 0 | E41: =-'CF workings'!E199 -> 0 | G41: =-'CF workings'!G199 -> 0 | H41: =-'CF workings'!H199 -> 0 | I41: =-'CF workings'!I199 -> 0 | J41: =-'CF workings'!J199 -> 0 | K41: =-'CF workings'!K199 -> 0 | L41: =-'CF workings'!L199 -> 0 | M41: =-'CF workings'!M199 -> 0 | N41: =-'CF workings'!N199 -> 0 | O41: =-'CF workings'!O199 -> 0 | P41: =-'CF workings'!P199 -> 0 | AZ41: end
A42: Purchase of Interests in Joint Ventures & Associates | C42: =(SUM('Historical Data'!C165)+SUM('Historical Data'!C166))*1000 -> 0 | E42: =-'CF workings'!E204 -> 0 | G42: =-'CF workings'!G204 -> 0 | H42: =-'CF workings'!H204 -> 0 | I42: =-'CF workings'!I204 -> 0 | J42: =-'CF workings'!J204 -> 0 | K42: =-'CF workings'!K204 -> 0 | L42: =-'CF workings'!L204 -> 0 | M42: =-'CF workings'!M204 -> 0 | N42: =-'CF workings'!N204 -> 0 | O42: =-'CF workings'!O204 -> 0 | P42: =-'CF workings'!P204 -> 0 | AZ42: end
A43: Contributions Paid to Joint Ventures & Associates | C43: =SUM('Historical Data'!C168)*1000 -> 0 | E43: =-'CF workings'!E209 -> 0 | G43: =-'CF workings'!G209 -> 0 | H43: =-'CF workings'!H209 -> 0 | I43: =-'CF workings'!I209 -> 0 | J43: =-'CF workings'!J209 -> 0 | K43: =-'CF workings'!K209 -> 0 | L43: =-'CF workings'!L209 -> 0 | M43: =-'CF workings'!M209 -> 0 | N43: =-'CF workings'!N209 -> 0 | O43: =-'CF workings'!O209 -> 0 | P43: =-'CF workings'!P209 -> 0 | AZ43: end
A44: Other Investing Activity Payments | C44: =SUM('Historical Data'!C169)*1000 -> 0
AZ45: end
A46: Net Cash provided (or used in) Investing Activities | C46: =SUM(C24:C45) -> 0 | E46: -7610747 | G46: =SUM(G24:G45) -> -4781523 | H46: -5106196 | I46: -3732933.38 | J46: -4462973.56 | K46: -4979342.89 | L46: -5147689.98 | M46: -5422207.53 | N46: -5619955.67 | O46: -5826197.99 | P46: -6038218.6 | AZ46: end
AZ47: end
A48: Cash Flows from Financing Activities | AZ48: end
A49: Receipts: | AZ49: end
A50: Proceeds from Borrowings & Advances | C50: =SUM('Historical Data'!C176)*1000 -> 0 | E50: ='Loans - External'!J58+IF('BS workings'!E854>0,'BS workings'!E854,0)+'Loans Payable - Internal'!J42+'BS workings'!E852 -> 0 | G50: ='Loans - External'!K58+IF('BS workings'!G854>0,'BS workings'!G854,0)+'Loans Payable - Internal'!K42+'BS workings'!G852 -> 0 | H50: ='Loans - External'!L58+IF('BS workings'!H854>0,'BS workings'!H854,0)+'Loans Payable - Internal'!L42+'BS workings'!H852 -> 0 | I50: ='Loans - External'!M58+IF('BS workings'!I854>0,'BS workings'!I854,0)+'Loans Payable - Internal'!M42+'BS workings'!I852 -> 0 | J50: ='Loans - External'!N58+IF('BS workings'!J854>0,'BS workings'!J854,0)+'Loans Payable - Internal'!N42+'BS workings'!J852 -> 0 | K50: ='Loans - External'!O58+IF('BS workings'!K854>0,'BS workings'!K854,0)+'Loans Payable - Internal'!O42+'BS workings'!K852 -> 0 | L50: ='Loans - External'!P58+IF('BS workings'!L854>0,'BS workings'!L854,0)+'Loans Payable - Internal'!P42+'BS workings'!L852 -> 0 | M50: ='Loans - External'!Q58+IF('BS workings'!M854>0,'BS workings'!M854,0)+'Loans Payable - Internal'!Q42+'BS workings'!M852 -> 0 | N50: ='Loans - External'!R58+IF('BS workings'!N854>0,'BS workings'!N854,0)+'Loans Payable - Internal'!R42+'BS workings'!N852 -> 0 | O50: ='Loans - External'!S58+IF('BS workings'!O854>0,'BS workings'!O854,0)+'Loans Payable - Internal'!S42+'BS workings'!O852 -> 0 | P50: ='Loans - External'!T58+IF('BS workings'!P854>0,'BS workings'!P854,0)+'Loans Payable - Internal'!T42+'BS workings'!P852 -> 0 | AZ50: end
A51: Proceeds from Finance Leases | C51: =SUM('Historical Data'!C177)*1000 -> 0 | E51: ='Finance Leases'!J42 -> 0 | G51: ='Finance Leases'!K42 -> 0 | H51: ='Finance Leases'!L42 -> 0 | I51: ='Finance Leases'!M42 -> 0 | J51: ='Finance Leases'!N42 -> 0 | K51: ='Finance Leases'!O42 -> 0 | L51: ='Finance Leases'!P42 -> 0 | M51: ='Finance Leases'!Q42 -> 0 | N51: ='Finance Leases'!R42 -> 0 | O51: ='Finance Leases'!S42 -> 0 | P51: ='Finance Leases'!T42 -> 0 | AZ51: end
A52: Other Financing Activity Receipts | C52: =SUM('Historical Data'!C178)*1000 -> 0 | AZ52: end
A53: Payments: | AZ53: end
A54: Repayment of Borrowings & Advances | C54: =SUM('Historical Data'!C181)*1000 -> 0 | E54: =-'Loans - External'!J59+IF('BS workings'!E854>0,0,'BS workings'!E854)-'Loans Payable - Internal'!J43+'BS workings'!C849+'BS workings'!C850+'BS workings'!E853 -> -1280797.09 | G54: =-'Loans - External'!K59+IF('BS workings'!G854>0,0,'BS workings'!G854)-'Loans Payable - Internal'!K43+'BS workings'!G853 -> -510132 | H54: =-'Loans - External'!L59+IF('BS workings'!H854>0,0,'BS workings'!H854)-'Loans Payable - Internal'!L43+'BS workings'!H853 -> -539956 | I54: =-'Loans - External'!M59+IF('BS workings'!I854>0,0,'BS workings'!I854)-'Loans Payable - Internal'!M43+'BS workings'!I853 -> -573642 | J54: =-'Loans - External'!N59+IF('BS workings'!J854>0,0,'BS workings'!J854)-'Loans Payable - Internal'!N43+'BS workings'!J853 -> -608303 | K54: =-'Loans - External'!O59+IF('BS workings'!K854>0,0,'BS workings'!K854)-'Loans Payable - Internal'!O43+'BS workings'!K853 -> -645058 | L54: =-'Loans - External'!P59+IF('BS workings'!L854>0,0,'BS workings'!L854)-'Loans Payable - Internal'!P43+'BS workings'!L853 -> -508112 | M54: =-'Loans - External'!Q59+IF('BS workings'!M854>0,0,'BS workings'!M854)-'Loans Payable - Internal'!Q43+'BS workings'!M853 -> 0 | N54: =-'Loans - External'!R59+IF('BS workings'!N854>0,0,'BS workings'!N854)-'Loans Payable - Internal'!R43+'BS workings'!N853 -> 0 | O54: =-'Loans - External'!S59+IF('BS workings'!O854>0,0,'BS workings'!O854)-'Loans Payable - Internal'!S43+'BS workings'!O853 -> 0 | P54: =-'Loans - External'!T59+IF('BS workings'!P854>0,0,'BS workings'!P854)-'Loans Payable - Internal'!T43+'BS workings'!P853 -> 0 | AZ54: end
A55: Repayment of Finance Lease Liabilities | C55: =SUM('Historical Data'!C182)*1000 -> 0 | E55: =-'Finance Leases'!J43+'BS workings'!C851 -> 0 | G55: =-'Finance Leases'!K43 -> 0 | H55: =-'Finance Leases'!L43 -> 0 | I55: =-'Finance Leases'!M43 -> 0 | J55: =-'Finance Leases'!N43 -> 0 | K55: =-'Finance Leases'!O43 -> 0 | L55: =-'Finance Leases'!P43 -> 0 | M55: =-'Finance Leases'!Q43 -> 0 | N55: =-'Finance Leases'!R43 -> 0 | O55: =-'Finance Leases'!S43 -> 0 | P55: =-'Finance Leases'!T43 -> 0 | AZ55: end
A56: Distributions to Minority Interests | C56: =SUM('Historical Data'!C183)*1000 -> 0 | E56: =-'Budget Summary 1'!J109 -> 0 | G56: =-'Budget Summary 1'!L109 -> 0 | H56: =-'Budget Summary 1'!M109 -> 0 | I56: =-'Budget Summary 1'!N109 -> 0 | J56: =-'Budget Summary 1'!O109 -> 0 | K56: =-'Budget Summary 1'!P109 -> 0 | L56: =-'Budget Summary 1'!Q109 -> 0 | M56: =-'Budget Summary 1'!R109 -> 0 | N56: =-'Budget Summary 1'!S109 -> 0 | O56: =-'Budget Summary 1'!T109 -> 0 | P56: =-'Budget Summary 1'!U109 -> 0 | AZ56: end
A57: Other Financing Activity Payments | C57: =SUM('Historical Data'!C184)*1000 -> 0 | AZ57: end
AZ58: end
A59: Net Cash Flow provided (used in) Financing Activities | C59: =SUM(C49:C58) -> 0 | E59: -1280797.09 | G59: =SUM(G49:G58) -> -510132 | H59: -539956 | I59: -573642 | J59: -608303 | K59: -645058 | L59: -508112 | M59: 0 | N59: 0 | O59: 0 | P59: 0 | AZ59: end
AZ60: end
A61: Net Increase/(Decrease) in Cash & Cash Equivalents | C61: =C21+C46+C59 -> 0 | E61: =E21+E46+E59 -> -3877336.581 | G61: =G21+G46+G59 -> -950207.8546 | H61: -332968.7402 | I61: -5754.739871 | J61: -6093.962729 | K61: 267223.8532 | L61: 559682.521 | M61: 1082987.908 | N61: 1136365.618 | O61: 1207487.931 | P61: 1279089.872 | AZ61: end
AZ62: end
A63: plus: Cash, Cash Equivalents & Investments - beginning of year | C63: =SUM('Historical Data'!C192)*1000 -> 0 | E63: =(SUM('Historical Data'!C49)-SUM('Historical Data'!C493))*1000 -> 6283000 | G63: =E65 -> 2405663.419 | H63: =G65 -> 1455455.565 | I63: 1122486.825 | J63: 1116732.085 | K63: 1110638.122 | L63: 1377861.975 | M63: 1937544.496 | N63: 3020532.404 | O63: 4156898.022 | P63: 5364385.954 | AZ63: end
AZ64: end
A65: Cash & Cash Equivalents - end of the year | C65: =SUM('Historical Data'!C195)*1000 -> 6283000 | E65: =E61+E63 -> 2405663.419 | G65: =G61+G63 -> 1455455.565 | H65: 1122486.825 | I65: 1116732.085 | J65: 1110638.122 | K65: 1377861.975 | L65: 1937544.496 | M65: 3020532.404 | N65: 4156898.022 | O65: 5364385.954 | P65: 6643475.826 | AZ65: end
AZ66: end
AZ67: end
AZ68: end
A69: Cash & Cash Equivalents - end of the year | C69: =C65 -> 6283000 | E69: =E65 -> 2405663.419 | G69: =G65 -> 1455455.565 | H69: =H65 -> 1122486.825 | I69: 1116732.085 | J69: 1110638.122 | K69: 1377861.975 | L69: 1937544.496 | M69: 3020532.404 | N69: 4156898.022 | O69: 5364385.954 | P69: 6643475.826 | AZ69: end
A70: Investments - end of the year | C70: ='Balance Sheet'!C9+'Balance Sheet'!C18 -> 6311000 | E70: ='Balance Sheet'!E9+'Balance Sheet'!E18 -> 6311000 | G70: ='Balance Sheet'!G9+'Balance Sheet'!G18 -> 6311000 | H70: ='Balance Sheet'!H9+'Balance Sheet'!H18 -> 6311000 | I70: ='Balance Sheet'!I9+'Balance Sheet'!I18 -> 6311000 | J70: ='Balance Sheet'!J9+'Balance Sheet'!J18 -> 6311000 | K70: ='Balance Sheet'!K9+'Balance Sheet'!K18 -> 6311000 | L70: ='Balance Sheet'!L9+'Balance Sheet'!L18 -> 6311000 | M70: ='Balance Sheet'!M9+'Balance Sheet'!M18 -> 6311000 | N70: ='Balance Sheet'!N9+'Balance Sheet'!N18 -> 6311000 | O70: ='Balance Sheet'!O9+'Balance Sheet'!O18 -> 6311000 | P70: ='Balance Sheet'!P9+'Balance Sheet'!P18 -> 6311000 | AZ70: end
A71: Cash, Cash Equivalents & Investments - end of the year | C71: =C69+C70 -> 12594000 | E71: =E69+E70 -> 8716663.419 | G71: =G69+G70 -> 7766455.565 | H71: =H69+H70 -> 7433486.825 | I71: 7427732.085 | J71: 7421638.122 | K71: 7688861.975 | L71: 8248544.496 | M71: 9331532.404 | N71: 10467898.02 | O71: 11675385.95 | P71: 12954475.83 | AZ71: end
AZ72: end
A73: Representing: | AZ73: end
A74: - External Restrictions | C74: =('External Reserves'!C38) -> 7452567.32 | E74: =('External Reserves'!F38) -> 7164158.32 | G74: =('External Reserves'!I38) -> 6089926.32 | H74: =('External Reserves'!K38) -> 5555986.32 | I74: ='External Reserves'!M38 -> 5234352.32 | J74: ='External Reserves'!O38 -> 4952499.32 | K74: ='External Reserves'!Q38 -> 4665331.32 | L74: ='External Reserves'!S38 -> 4372847.32 | M74: ='External Reserves'!U38 -> 4132480.32 | N74: ='External Reserves'!W38 -> 3888788.32 | O74: ='External Reserves'!Y38 -> 3641863.32 | P74: ='External Reserves'!AA38 -> 3391811.32 | AZ74: end
A75: - Internal Restricitons | C75: ='Internal Reserves'!C109 -> 6040407.86 | E75: ='Internal Reserves'!F109 -> 3056651.86 | G75: ='Internal Reserves'!I109 -> 3198121.86 | H75: ='Internal Reserves'!K109 -> 3540085.86 | I75: ='Internal Reserves'!M109 -> 3914827.86 | J75: ='Internal Reserves'!O109 -> 4338280.86 | K75: ='Internal Reserves'!Q109 -> 5026109.86 | L75: ='Internal Reserves'!S109 -> 5965919.86 | M75: ='Internal Reserves'!U109 -> 7360390.86 | N75: ='Internal Reserves'!W109 -> 8813250.86 | O75: ='Internal Reserves'!Y109 -> 10344421.86 | P75: ='Internal Reserves'!AA109 -> 11952916.86 | AZ75: end
A76: - Unrestricted | C76: =C71-C74-C75 -> -898975.18 | E76: =E71-E74-E75 -> -1504146.761 | G76: =G71-G74-G75 -> -1521592.615 | H76: =H71-H74-H75 -> -1662585.355 | I76: -1721448.095 | J76: -1869142.058 | K76: -2002579.205 | L76: -2090222.684 | M76: -2161338.776 | N76: -2234141.158 | O76: -2310899.226 | P76: -2390252.354 | AZ76: end
C77: =SUM(C73:C76) -> 12594000 | E77: =SUM(E73:E76) -> 8716663.419 | G77: =SUM(G73:G76) -> 7766455.565 | H77: 7433486.825 | I77: 7427732.085 | J77: 7421638.122 | K77: 7688861.975 | L77: 8248544.496 | M77: 9331532.404 | N77: 10467898.02 | O77: 11675385.95 | P77: 12954475.83 | AZ77: end
AZ78: end
AZ79: end
AZ80: end
A81: Cash & Investments per Balance Sheet | E81: =('BS workings'!E47-'BS workings'!E48) -> 2405663.419 | G81: =('BS workings'!G47-'BS workings'!G48) -> 1455455.565 | H81: =('BS workings'!H47-'BS workings'!H48) -> 1122486.825 | I81: =('BS workings'!I47-'BS workings'!I48) -> 1116732.085 | J81: =('BS workings'!J47-'BS workings'!J48) -> 1110638.122 | K81: =('BS workings'!K47-'BS workings'!K48) -> 1377861.975 | L81: =('BS workings'!L47-'BS workings'!L48) -> 1937544.496 | M81: =('BS workings'!M47-'BS workings'!M48) -> 3020532.404 | N81: =('BS workings'!N47-'BS workings'!N48) -> 4156898.022 | O81: =('BS workings'!O47-'BS workings'!O48) -> 5364385.954 | P81: =('BS workings'!P47-'BS workings'!P48) -> 6643475.826 | AZ81: end
A82: Variance per Balance Sheet to Cash Flow | E82: =ROUND(E81-E65,0) -> 0 | G82: =ROUND(G81-G65,0) -> 0 | H82: 0 | I82: 0 | J82: 0 | K82: 0 | L82: 0 | M82: 0 | N82: 0 | O82: 0 | P82: 0 | AZ82: end
A83: Check that variance above is not greater than $2000 | E83: =IF(ABS(ROUND(E82,0))>2000,E$4,"") ->  | G83: =IF(ABS(ROUND(G82,0))>2000,IF(E83="",G$4,E83&", "&G$4),E83) ->  | H83: =IF(ABS(ROUND(H82,0))>2000,IF(G83="",H$4,G83&", "&H$4),G83) ->  | I83: =IF(ABS(ROUND(I82,0))>2000,IF(H83="",I$4,H83&", "&I$4),H83) ->  | AZ83: end
AZ84: end
A85: Other Cash adjustments | AZ85: end
A86: Change in other assets | AZ86: end
A87: Change in Inventories | AZ87: end
A88: Change in Liabilities associated with assets classified as "held for sale" | E88: ='BS workings'!E31 -> 0 | G88: ='BS workings'!G31 -> 0 | H88: ='BS workings'!H31 -> 0 | I88: ='BS workings'!I31 -> 0 | J88: ='BS workings'!J31 -> 0 | K88: ='BS workings'!K31 -> 0 | L88: ='BS workings'!L31 -> 0 | M88: ='BS workings'!M31 -> 0 | N88: ='BS workings'!N31 -> 0 | O88: ='BS workings'!O31 -> 0 | P88: ='BS workings'!P31 -> 0 | AZ88: end
AZ89: end
AZ90: end
E91: =SUM(E86:E90) -> 0 | G91: =SUM(G86:G90) -> 0 | H91: 0 | I91: 0 | J91: 0 | K91: 0 | L91: 0 | M91: 0 | N91: 0 | O91: 0 | P91: 0 | AZ91: end
AZ92: end
A93: Adjustment Other receipts | E93: =IF(E91>0,E91,0) -> 0 | G93: =IF(G91>0,G91,0) -> 0 | H93: 0 | I93: 0 | J93: 0 | K93: 0 | L93: 0 | M93: 0 | N93: 0 | O93: 0 | P93: 0 | AZ93: end
A94: Adjustment Other payments | E94: =IF(E91<0,E91,0) -> 0 | G94: =IF(G91<0,G91,0) -> 0 | H94: 0 | I94: 0 | J94: 0 | K94: 0 | L94: 0 | M94: 0 | N94: 0 | O94: 0 | P94: 0 | AZ94: end
AZ95: end
AZ96: end
AZ97: end
A98: New Internal Loans provided | E98: =+'Loans Receivable - Internal'!J42 -> 0 | G98: =+'Loans Receivable - Internal'!K42 -> 0 | H98: =+'Loans Receivable - Internal'!L42 -> 0 | I98: =+'Loans Receivable - Internal'!M42 -> 0 | J98: =+'Loans Receivable - Internal'!N42 -> 0 | K98: =+'Loans Receivable - Internal'!O42 -> 0 | L98: =+'Loans Receivable - Internal'!P42 -> 0 | M98: =+'Loans Receivable - Internal'!Q42 -> 0 | N98: =+'Loans Receivable - Internal'!R42 -> 0 | O98: =+'Loans Receivable - Internal'!S42 -> 0 | P98: =+'Loans Receivable - Internal'!T42 -> 0 | AZ98: end
A99: New Internal Loans taken up | E99: =+'Loans Payable - Internal'!J42 -> 0 | G99: =+'Loans Payable - Internal'!K42 -> 0 | H99: =+'Loans Payable - Internal'!L42 -> 0 | I99: =+'Loans Payable - Internal'!M42 -> 0 | J99: =+'Loans Payable - Internal'!N42 -> 0 | K99: =+'Loans Payable - Internal'!O42 -> 0 | L99: =+'Loans Payable - Internal'!P42 -> 0 | M99: =+'Loans Payable - Internal'!Q42 -> 0 | N99: =+'Loans Payable - Internal'!R42 -> 0 | O99: =+'Loans Payable - Internal'!S42 -> 0 | P99: =+'Loans Payable - Internal'!T42 -> 0 | AZ99: end
A100: Internal Loans Principal received | E100: =+'Loans Receivable - Internal'!J43 -> 0 | G100: =+'Loans Receivable - Internal'!K43 -> 0 | H100: =+'Loans Receivable - Internal'!L43 -> 0 | I100: =+'Loans Receivable - Internal'!M43 -> 0 | J100: =+'Loans Receivable - Internal'!N43 -> 0 | K100: =+'Loans Receivable - Internal'!O43 -> 0 | L100: =+'Loans Receivable - Internal'!P43 -> 0 | M100: =+'Loans Receivable - Internal'!Q43 -> 0 | N100: =+'Loans Receivable - Internal'!R43 -> 0 | O100: =+'Loans Receivable - Internal'!S43 -> 0 | P100: =+'Loans Receivable - Internal'!T43 -> 0 | AZ100: end
A101: Internal Loans Principal paid | E101: =+'Loans Payable - Internal'!J43 -> 0 | G101: =+'Loans Payable - Internal'!K43 -> 0 | H101: =+'Loans Payable - Internal'!L43 -> 0 | I101: =+'Loans Payable - Internal'!M43 -> 0 | J101: =+'Loans Payable - Internal'!N43 -> 0 | K101: =+'Loans Payable - Internal'!O43 -> 0 | L101: =+'Loans Payable - Internal'!P43 -> 0 | M101: =+'Loans Payable - Internal'!Q43 -> 0 | N101: =+'Loans Payable - Internal'!R43 -> 0 | O101: =+'Loans Payable - Internal'!S43 -> 0 | P101: =+'Loans Payable - Internal'!T43 -> 0 | AZ101: end
AZ102: end
AZ103: end
AZ104: end
AZ105: end
A106: end | B106: end | C106: end | D106: end | E106: end | F106: end | G106: end | H106: end | I106: end | J106: end | K106: end | L106: end | M106: end | N106: end | O106: end | P106: end | Q106: end | R106: end | S106: end | T106: end | U106: end | V106: end | W106: end | X106: end | Y106: end | Z106: end | AA106: end | AB106: end | AC106: end | AD106: end | AE106: end | AF106: end | AG106: end | AH106: end | AI106: end | AJ106: end | AK106: end | AL106: end | AM106: end | AN106: end | AO106: end | AP106: end | AQ106: end | AR106: end | AS106: end | AT106: end | AU106: end | AV106: end | AW106: end | AX106: end | AY106: end | AZ106: end

Sheet CF workings
A1: ='Cover Page'!$A$3 -> Yass Valley Council
A2: ='Cover Page'!$A$5 -> 10 Year Financial Plan for the Years ending 30 June 2025
A3: ="CASH FLOW - "&UPPER(general_fund_name)&" - WORKINGS" -> CASH FLOW - GENERAL FUND - WORKINGS | C3: Actuals | E3: Current Year | G3: Projected Years
A4: ="Scenario: "&general_scenario_name -> Scenario: Rural Road Maintenance With Revised Rate Peg, 1yr 6.7% SRV, $600k Efficiency, Revised Proj & 3yr 6% SRV | C4: =Starting_year_general-2&"/"&RIGHT(Starting_year_general-1,2) -> 2013/14 | E4: =Starting_year_general-1&"/"&RIGHT(Starting_year_general,2) -> 2014/15 | G4: =Starting_year_general&"/"&RIGHT(Starting_year_general+1,2) -> 2015/16 | H4: =Starting_year_general+1&"/"&RIGHT(Starting_year_general+2,2) -> 2016/17 | I4: =Starting_year_general+2&"/"&RIGHT(Starting_year_general+3,2) -> 2017/18 | J4: =Starting_year_general+3&"/"&RIGHT(Starting_year_general+4,2) -> 2018/19 | K4: =Starting_year_general+4&"/"&RIGHT(Starting_year_general+5,2) -> 2019/20 | L4: =Starting_year_general+5&"/"&RIGHT(Starting_year_general+6,2) -> 2020/21 | M4: =Starting_year_general+6&"/"&RIGHT(Starting_year_general+7,2) -> 2021/22 | N4: =Starting_year_general+7&"/"&RIGHT(Starting_year_general+8,2) -> 2022/23 | O4: =Starting_year_general+8&"/"&RIGHT(Starting_year_general+9,2) -> 2023/24 | P4: =Starting_year_general+9&"/"&RIGHT(Starting_year_general+10,2) -> 2024/25
C5: =IF('Cover Page'!$K$19=TRUE,"$","$") -> $ | E5: =IF('Cover Page'!$K$19=TRUE,"$","$") -> $ | G5: =IF('Cover Page'!$K$19=TRUE,"$","$") -> $ | H5: =IF('Cover Page'!$K$19=TRUE,"$","$") -> $ | I5: =IF('Cover Page'!$K$19=TRUE,"$","$") -> $ | J5: =IF('Cover Page'!$K$19=TRUE,"$","$") -> $ | K5: =IF('Cover Page'!$K$19=TRUE,"$","$") -> $ | L5: =IF('Cover Page'!$K$19=TRUE,"$","$") -> $ | M5: =IF('Cover Page'!$K$19=TRUE,"$","$") -> $ | N5: =IF('Cover Page'!$K$19=TRUE,"$","$") -> $ | O5: =IF('Cover Page'!$K$19=TRUE,"$","$") -> $ | P5: =IF('Cover Page'!$K$19=TRUE,"$","$") -> $
A7: Cash Flows from Operating Activities
A9: Receipts
A11: Rates & Annual Charges
A12: Income per Income Statement | E12: ='Income Statement'!F8 -> 7338485 | G12: ='Income Statement'!H8 -> 7526903.04 | H12: ='Income Statement'!I8 -> 8309684.11 | I12: ='Income Statement'!J8 -> 9174187.53 | J12: ='Income Statement'!K8 -> 10128945.1 | K12: ='Income Statement'!L8 -> 11183379.36 | L12: ='Income Statement'!M8 -> 11678633.8 | M12: ='Income Statement'!N8 -> 12195877.54 | N12: ='Income Statement'!O8 -> 12736086.9 | O12: ='Income Statement'!P8 -> 13300281.55 | P12: ='Income Statement'!Q8 -> 13889526.45
A13: Less: Non-cash Income | E13: =-'Income Statement'!BD8 -> 0 | G13: =-'Income Statement'!BE8 -> 0 | H13: =-'Income Statement'!BF8 -> 0 | I13: =-'Income Statement'!BG8 -> 0 | J13: =-'Income Statement'!BH8 -> 0 | K13: =-'Income Statement'!BI8 -> 0 | L13: =-'Income Statement'!BJ8 -> 0 | M13: =-'Income Statement'!BK8 -> 0 | N13: =-'Income Statement'!BL8 -> 0 | O13: =-'Income Statement'!BM8 -> 0 | P13: =-'Income Statement'!BN8 -> 0
A14: Less: Closing Balance Net Receivables per Balance Sheet workings | E14: =-'BS workings'!E98-'BS workings'!E99 -> -529071.9299 | G14: =-'BS workings'!G98-'BS workings'!G99 -> -542656.0275 | H14: =-'BS workings'!H98-'BS workings'!H99 -> -599091.0398 | I14: =-'BS workings'!I98-'BS workings'!I99 -> -661417.8678 | J14: =-'BS workings'!J98-'BS workings'!J99 -> -730251.6162 | K14: =-'BS workings'!K98-'BS workings'!K99 -> -806271.608 | L14: =-'BS workings'!L98-'BS workings'!L99 -> -841977.2369 | M14: =-'BS workings'!M98-'BS workings'!M99 -> -879268.196 | N14: =-'BS workings'!N98-'BS workings'!N99 -> -918214.8735 | O14: =-'BS workings'!O98-'BS workings'!O99 -> -958890.783 | P14: =-'BS workings'!P98-'BS workings'!P99 -> -1001372.704
A15: Add: Opening Balance Net Receivables | E15: =+'BS workings'!C85+'BS workings'!C93 -> 513000 | G15: =-E14 -> 529071.9299 | H15: =-G14 -> 542656.0275 | I15: =-H14 -> 599091.0398 | J15: 661417.8678 | K15: 730251.6162 | L15: 806271.608 | M15: 841977.2369 | N15: 879268.196 | O15: 918214.8735 | P15: 958890.783
A16: Cash Receipt of Income | E16: =SUM(E11:E15) -> 7322413.07 | G16: =SUM(G11:G15) -> 7513318.942 | H16: =SUM(H11:H15) -> 8253249.098 | I16: 9111860.702 | J16: 10060111.35 | K16: 11107359.37 | L16: 11642928.17 | M16: 12158586.58 | N16: 12697140.22 | O16: 13259605.64 | P16: 13847044.53
A19: User Charges & Fees
A20: Income per Income Statement | E20: ='Income Statement'!F9 -> 1919988 | G20: ='Income Statement'!H9 -> 1840888.64 | H20: ='Income Statement'!I9 -> 1873574.66 | I20: ='Income Statement'!J9 -> 1919789.04 | J20: ='Income Statement'!K9 -> 1967158.8 | K20: ='Income Statement'!L9 -> 2025423.57 | L20: ='Income Statement'!M9 -> 2085436.25 | M20: ='Income Statement'!N9 -> 2147249.31 | N20: ='Income Statement'!O9 -> 2210916.79 | O20: ='Income Statement'!P9 -> 2276494.25 | P20: ='Income Statement'!Q9 -> 2344039.09
A21: Less: Non-cash Income | E21: =-'Income Statement'!BD9 -> 0 | G21: =-'Income Statement'!BE9 -> 0 | H21: =-'Income Statement'!BF9 -> 0 | I21: =-'Income Statement'!BG9 -> 0 | J21: =-'Income Statement'!BH9 -> 0 | K21: =-'Income Statement'!BI9 -> 0 | L21: =-'Income Statement'!BJ9 -> 0 | M21: =-'Income Statement'!BK9 -> 0 | N21: =-'Income Statement'!BL9 -> 0 | O21: =-'Income Statement'!BM9 -> 0 | P21: =-'Income Statement'!BN9 -> 0
A22: Less: Closing Balance Net Receivables per Balance Sheet workings | E22: =-'BS workings'!E144-'BS workings'!E145 -> -737655.3436 | G22: =-'BS workings'!G144-'BS workings'!G145 -> -707265.5362 | H22: =-'BS workings'!H144-'BS workings'!H145 -> -719823.4362 | I22: =-'BS workings'!I144-'BS workings'!I145 -> -737578.9036 | J22: =-'BS workings'!J144-'BS workings'!J145 -> -755778.2656 | K22: =-'BS workings'!K144-'BS workings'!K145 -> -778163.4674 | L22: =-'BS workings'!L144-'BS workings'!L145 -> -801220.2126 | M22: =-'BS workings'!M144-'BS workings'!M145 -> -824968.66 | N22: =-'BS workings'!N144-'BS workings'!N145 -> -849429.5717 | O22: =-'BS workings'!O144-'BS workings'!O145 -> -874624.2936 | P22: =-'BS workings'!P144-'BS workings'!P145 -> -900574.8788
A23: Add: Opening Balance Net Receivables | E23: ='BS workings'!C131+'BS workings'!C139 -> 1280000 | G23: =-E22 -> 737655.3436 | H23: =-G22 -> 707265.5362 | I23: =-H22 -> 719823.4362 | J23: 737578.9036 | K23: 755778.2656 | L23: 778163.4674 | M23: 801220.2126 | N23: 824968.66 | O23: 849429.5717 | P23: 874624.2936
A24: Cash Receipt of Income | E24: =SUM(E19:E23) -> 2462332.656 | G24: =SUM(G19:G23) -> 1871278.447 | H24: 1861016.76 | I24: 1902033.573 | J24: 1948959.438 | K24: 2003038.368 | L24: 2062379.505 | M24: 2123500.863 | N24: 2186455.878 | O24: 2251299.528 | P24: 2318088.505
A27: Interest & Investment Revenue Received
A28: Income per Income Statement | E28: ='Income Statement'!F10 -> 735655 | G28: ='Income Statement'!H10 -> 389935 | H28: ='Income Statement'!I10 -> 389935 | I28: ='Income Statement'!J10 -> 389935 | J28: ='Income Statement'!K10 -> 389935 | K28: ='Income Statement'!L10 -> 389935 | L28: ='Income Statement'!M10 -> 389935 | M28: ='Income Statement'!N10 -> 389935 | N28: ='Income Statement'!O10 -> 389935 | O28: ='Income Statement'!P10 -> 389935 | P28: ='Income Statement'!Q10 -> 389935
A29: Less: Non-cash Income | E29: =-'Income Statement'!BD10 -> 0 | G29: =-'Income Statement'!BE10 -> 0 | H29: =-'Income Statement'!BF10 -> 0 | I29: =-'Income Statement'!BG10 -> 0 | J29: =-'Income Statement'!BH10 -> 0 | K29: =-'Income Statement'!BI10 -> 0 | L29: =-'Income Statement'!BJ10 -> 0 | M29: =-'Income Statement'!BK10 -> 0 | N29: =-'Income Statement'!BL10 -> 0 | O29: =-'Income Statement'!BM10 -> 0 | P29: =-'Income Statement'!BN10 -> 0
A30: Less: Closing Balance Net Receivables per Balance Sheet workings | E30: =-'BS workings'!E190-'BS workings'!E191-'BS workings'!E121-'BS workings'!E122 -> -60921.16062 | G30: =-'BS workings'!G190-'BS workings'!G191-'BS workings'!G121-'BS workings'!G122 -> -57308.52706 | H30: =-'BS workings'!H190-'BS workings'!H191-'BS workings'!H121-'BS workings'!H122 -> -59298.70579 | I30: =-'BS workings'!I190-'BS workings'!I191-'BS workings'!I121-'BS workings'!I122 -> -61978.55389 | J30: =-'BS workings'!J190-'BS workings'!J191-'BS workings'!J121-'BS workings'!J122 -> -65662.68744 | K30: =-'BS workings'!K190-'BS workings'!K191-'BS workings'!K121-'BS workings'!K122 -> -70504.44092 | L30: =-'BS workings'!L190-'BS workings'!L191-'BS workings'!L121-'BS workings'!L122 -> -74312.59904 | M30: =-'BS workings'!M190-'BS workings'!M191-'BS workings'!M121-'BS workings'!M122 -> -80483.33157 | N30: =-'BS workings'!N190-'BS workings'!N191-'BS workings'!N121-'BS workings'!N122 -> -86933.49321 | O30: =-'BS workings'!O190-'BS workings'!O191-'BS workings'!O121-'BS workings'!O122 -> -93761.46272 | P30: =-'BS workings'!P190-'BS workings'!P191-'BS workings'!P121-'BS workings'!P122 -> -100958.3673
A31: Add: Opening Balance Net Receivables | E31: ='BS workings'!C177+'BS workings'!C185+'BS workings'!C108+'BS workings'!C116 -> 90000 | G31: =-E30 -> 60921.16062 | H31: =-G30 -> 57308.52706 | I31: =-H30 -> 59298.70579 | J31: 61978.55389 | K31: 65662.68744 | L31: 70504.44092 | M31: 74312.59904 | N31: 80483.33157 | O31: 86933.49321 | P31: 93761.46272
A32: Cash Receipt of Income | E32: =SUM(E27:E31) -> 764733.8394 | G32: =SUM(G27:G31) -> 393547.6336 | H32: 387944.8213 | I32: 387255.1519 | J32: 386250.8665 | K32: 385093.2465 | L32: 386126.8419 | M32: 383764.2675 | N32: 383484.8384 | O32: 383107.0305 | P32: 382738.0955
A35: Grants & Contributions
A36: Income per Income Statement | E36: ='Income Statement'!F12+'Income Statement'!F13 -> 8261288 | G36: ='Income Statement'!H12+'Income Statement'!H13 -> 8117889.74 | H36: ='Income Statement'!I12+'Income Statement'!I13 -> 8516121.46 | I36: ='Income Statement'!J12+'Income Statement'!J13 -> 7329964.59 | J36: ='Income Statement'!K12+'Income Statement'!K13 -> 7490132.49 | K36: ='Income Statement'!L12+'Income Statement'!L13 -> 7722385.15 | L36: ='Income Statement'!M12+'Income Statement'!M13 -> 7926026.17 | M36: ='Income Statement'!N12+'Income Statement'!N13 -> 8145954.44 | N36: ='Income Statement'!O12+'Income Statement'!O13 -> 8354167.45 | O36: ='Income Statement'!P12+'Income Statement'!P13 -> 8585256.35 | P36: ='Income Statement'!Q12+'Income Statement'!Q13 -> 8815223.9
A37: Less: Non-cash Income | E37: =-'Income Statement'!BD12-'Income Statement'!BD13 -> 0 | G37: =-'Income Statement'!BE12-'Income Statement'!BE13 -> 0 | H37: =-'Income Statement'!BF12-'Income Statement'!BF13 -> 0 | I37: =-'Income Statement'!BG12-'Income Statement'!BG13 -> 0 | J37: =-'Income Statement'!BH12-'Income Statement'!BH13 -> 0 | K37: =-'Income Statement'!BI12-'Income Statement'!BI13 -> 0 | L37: =-'Income Statement'!BJ12-'Income Statement'!BJ13 -> 0 | M37: =-'Income Statement'!BK12-'Income Statement'!BK13 -> 0 | N37: =-'Income Statement'!BL12-'Income Statement'!BL13 -> 0 | O37: =-'Income Statement'!BM12-'Income Statement'!BM13 -> 0 | P37: =-'Income Statement'!BN12-'Income Statement'!BN13 -> 0
A38: Less: Closing Balance Net Receivables per Balance Sheet workings | E38: =-'BS workings'!E167-'BS workings'!E168 -> -459633.689 | G38: =-'BS workings'!G167-'BS workings'!G168 -> -440287.0885 | H38: =-'BS workings'!H167-'BS workings'!H168 -> -462093.8503 | I38: =-'BS workings'!I167-'BS workings'!I168 -> -395713.5175 | J38: =-'BS workings'!J167-'BS workings'!J168 -> -404221.5807 | K38: =-'BS workings'!K167-'BS workings'!K168 -> -416674.9033 | L38: =-'BS workings'!L167-'BS workings'!L168 -> -427513.213 | M38: =-'BS workings'!M167-'BS workings'!M168 -> -439233.4084 | N38: =-'BS workings'!N167-'BS workings'!N168 -> -450276.3129 | O38: =-'BS workings'!O167-'BS workings'!O168 -> -462565.2163 | P38: =-'BS workings'!P167-'BS workings'!P168 -> -474763.6616
A39: Add: Opening Balance Net Receivables | E39: ='BS workings'!C154+'BS workings'!C162 -> 0 | G39: =-E38 -> 459633.689 | H39: =-G38 -> 440287.0885 | I39: =-H38 -> 462093.8503 | J39: 395713.5175 | K39: 404221.5807 | L39: 416674.9033 | M39: 427513.213 | N39: 439233.4084 | O39: 450276.3129 | P39: 462565.2163
A40: Cash Receipt of Income | E40: =SUM(E35:E39) -> 7801654.311 | G40: =SUM(G35:G39) -> 8137236.341 | H40: 8494314.698 | I40: 7396344.923 | J40: 7481624.427 | K40: 7709931.827 | L40: 7915187.86 | M40: 8134234.245 | N40: 8343124.546 | O40: 8572967.447 | P40: 8803025.455
A43: Bonds & Deposits Received
A44: Receipt per Budget Summary | E44: ='Budget Summary 1'!J84 -> 0 | G44: ='Budget Summary 1'!L84 -> 0 | H44: ='Budget Summary 1'!M84 -> 0 | I44: ='Budget Summary 1'!N84 -> 0 | J44: ='Budget Summary 1'!O84 -> 0 | K44: ='Budget Summary 1'!P84 -> 0 | L44: ='Budget Summary 1'!Q84 -> 0 | M44: ='Budget Summary 1'!R84 -> 0 | N44: ='Budget Summary 1'!S84 -> 0 | O44: ='Budget Summary 1'!T84 -> 0 | P44: ='Budget Summary 1'!U84 -> 0
A45: Receipt per Balance Sheet workings (manual adjustment) | E45: ='BS workings'!E761 -> 0 | G45: ='BS workings'!G761 -> 0 | H45: ='BS workings'!H761 -> 0 | I45: ='BS workings'!I761 -> 0 | J45: ='BS workings'!J761 -> 0 | K45: ='BS workings'!K761 -> 0 | L45: ='BS workings'!L761 -> 0 | M45: ='BS workings'!M761 -> 0 | N45: ='BS workings'!N761 -> 0 | O45: ='BS workings'!O761 -> 0 | P45: ='BS workings'!P761 -> 0
A46: Cash Receipt of Income | E46: =SUM(E43:E45) -> 0 | G46: =SUM(G43:G45) -> 0 | H46: 0 | I46: 0 | J46: 0 | K46: 0 | L46: 0 | M46: 0 | N46: 0 | O46: 0 | P46: 0
A49: Other
A50: Income per Income Statement | E50: ='Income Statement'!F11 -> 4767629 | G50: ='Income Statement'!H11 -> 4628934.5 | H50: ='Income Statement'!I11 -> 4730610.52 | I50: ='Income Statement'!J11 -> 4846125.8 | J50: ='Income Statement'!K11 -> 4964528.94 | K50: ='Income Statement'!L11 -> 5110164.81 | L50: ='Income Statement'!M11 -> 5260169.76 | M50: ='Income Statement'!N11 -> 5414674.84 | N50: ='Income Statement'!O11 -> 5573815.07 | O50: ='Income Statement'!P11 -> 5737729.51 | P50: ='Income Statement'!Q11 -> 5906561.4
A51: Less: Non-cash Income | E51: =-'Income Statement'!BD11 -> 0 | G51: =-'Income Statement'!BE11 -> 0 | H51: =-'Income Statement'!BF11 -> 0 | I51: =-'Income Statement'!BG11 -> 0 | J51: =-'Income Statement'!BH11 -> 0 | K51: =-'Income Statement'!BI11 -> 0 | L51: =-'Income Statement'!BJ11 -> 0 | M51: =-'Income Statement'!BK11 -> 0 | N51: =-'Income Statement'!BL11 -> 0 | O51: =-'Income Statement'!BM11 -> 0 | P51: =-'Income Statement'!BN11 -> 0
A52: Less: Closing Balance Net Receivables per Balance Sheet workings | E52: =-'BS workings'!E213-'BS workings'!E214-'BS workings'!E300-'BS workings'!E301-'BS workings'!E349-'BS workings'!E350 -> -208833.8 | G52: =-'BS workings'!G213-'BS workings'!G214-'BS workings'!G300-'BS workings'!G301-'BS workings'!G349-'BS workings'!G350 -> -203348.9493 | H52: =-'BS workings'!H213-'BS workings'!H214-'BS workings'!H300-'BS workings'!H301-'BS workings'!H349-'BS workings'!H350 -> -208780.6177 | I52: =-'BS workings'!I213-'BS workings'!I214-'BS workings'!I300-'BS workings'!I301-'BS workings'!I349-'BS workings'!I350 -> -207572.7128 | J52: =-'BS workings'!J213-'BS workings'!J214-'BS workings'!J300-'BS workings'!J301-'BS workings'!J349-'BS workings'!J350 -> -212676.6931 | K52: =-'BS workings'!K213-'BS workings'!K214-'BS workings'!K300-'BS workings'!K301-'BS workings'!K349-'BS workings'!K350 -> -219071.8893 | L52: =-'BS workings'!L213-'BS workings'!L214-'BS workings'!L300-'BS workings'!L301-'BS workings'!L349-'BS workings'!L350 -> -225459.8236 | M52: =-'BS workings'!M213-'BS workings'!M214-'BS workings'!M300-'BS workings'!M301-'BS workings'!M349-'BS workings'!M350 -> -232089.4999 | N52: =-'BS workings'!N213-'BS workings'!N214-'BS workings'!N300-'BS workings'!N301-'BS workings'!N349-'BS workings'!N350 -> -238837.1377 | O52: =-'BS workings'!O213-'BS workings'!O214-'BS workings'!O300-'BS workings'!O301-'BS workings'!O349-'BS workings'!O350 -> -245867.3597 | P52: =-'BS workings'!P213-'BS workings'!P214-'BS workings'!P300-'BS workings'!P301-'BS workings'!P349-'BS workings'!P350 -> -253075.1504
A53: Add: Opening Balance Net Receivables | E53: ='BS workings'!C200+'BS workings'!C208+'BS workings'!C287+'BS workings'!C295+'BS workings'!C333+'BS workings'!C344 -> 40000 | G53: =-E52 -> 208833.8 | H53: =-G52 -> 203348.9493 | I53: =-H52 -> 208780.6177 | J53: 207572.7128 | K53: 212676.6931 | L53: 219071.8893 | M53: 225459.8236 | N53: 232089.4999 | O53: 238837.1377 | P53: 245867.3597
A54: Add: Closing Balance Payments rec'ed in advance per Balance Sheet workings | E54: ='BS workings'!E671 -> 0 | G54: ='BS workings'!G671 -> 0 | H54: ='BS workings'!H671 -> 0 | I54: ='BS workings'!I671 -> 0 | J54: ='BS workings'!J671 -> 0 | K54: ='BS workings'!K671 -> 0 | L54: ='BS workings'!L671 -> 0 | M54: ='BS workings'!M671 -> 0 | N54: ='BS workings'!N671 -> 0 | O54: ='BS workings'!O671 -> 0 | P54: ='BS workings'!P671 -> 0
A55: (Less): Opening Balance Payments rec'ed in advance | E55: =-'BS workings'!C671 -> 0 | G55: =-E54 -> 0 | H55: =-G54 -> 0 | I55: 0 | J55: 0 | K55: 0 | L55: 0 | M55: 0 | N55: 0 | O55: 0 | P55: 0
A56: ELE Provision Receipt (from other Councils) | E56: ='BS workings'!E884 -> 0 | G56: ='BS workings'!G884 -> 0 | H56: ='BS workings'!H884 -> 0 | I56: ='BS workings'!I884 -> 0 | J56: ='BS workings'!J884 -> 0 | K56: ='BS workings'!K884 -> 0 | L56: ='BS workings'!L884 -> 0 | M56: ='BS workings'!M884 -> 0 | N56: ='BS workings'!N884 -> 0 | O56: ='BS workings'!O884 -> 0 | P56: ='BS workings'!P884 -> 0
A57: Other Provisions - Receipt | E57: ='BS workings'!E920 -> 0 | G57: ='BS workings'!G920 -> 0 | H57: ='BS workings'!H920 -> 0 | I57: ='BS workings'!I920 -> 0 | J57: ='BS workings'!J920 -> 0 | K57: ='BS workings'!K920 -> 0 | L57: ='BS workings'!L920 -> 0 | M57: ='BS workings'!M920 -> 0 | N57: ='BS workings'!N920 -> 0 | O57: ='BS workings'!O920 -> 0 | P57: ='BS workings'!P920 -> 0
A58: (Less)/Add: Non-Cash movements per Budget Summary (cumulative) | E58: ='BS workings'!E334 -> 0 | G58: ='BS workings'!G334 -> 0 | H58: ='BS workings'!H334 -> 0 | I58: ='BS workings'!I334 -> 0 | J58: ='BS workings'!J334 -> 0 | K58: ='BS workings'!K334 -> 0 | L58: ='BS workings'!L334 -> 0 | M58: ='BS workings'!M334 -> 0 | N58: ='BS workings'!N334 -> 0 | O58: ='BS workings'!O334 -> 0 | P58: ='BS workings'!P334 -> 0
A59: Cash Receipt of Income | E59: =SUM(E49:E58) -> 4598795.2 | G59: =SUM(G49:G58) -> 4634419.351 | H59: =SUM(H49:H58) -> 4725178.852 | I59: 4847333.705 | J59: 4959424.96 | K59: 5103769.614 | L59: 5253781.826 | M59: 5408045.164 | N59: 5567067.432 | O59: 5730699.288 | P59: 5899353.609
... 47 more rows

Sheet Equity Statement
A1: ='Cover Page'!$A$3 -> Yass Valley Council
A2: ='Cover Page'!$A$5 -> 10 Year Financial Plan for the Years ending 30 June 2025
A3: ="EQUITY STATEMENT - "&UPPER(general_fund_name) -> EQUITY STATEMENT - GENERAL FUND | C3: Actuals | E3: Current Year | G3: Projected Years
A4: ="Scenario: "&general_scenario_name -> Scenario: Rural Road Maintenance With Revised Rate Peg, 1yr 6.7% SRV, $600k Efficiency, Revised Proj & 3yr 6% SRV | C4: =Starting_year_general-2&"/"&RIGHT(Starting_year_general-1,2) -> 2013/14 | E4: =Starting_year_general-1&"/"&RIGHT(Starting_year_general,2) -> 2014/15 | G4: =Starting_year_general&"/"&RIGHT(Starting_year_general+1,2) -> 2015/16 | H4: =Starting_year_general+1&"/"&RIGHT(Starting_year_general+2,2) -> 2016/17 | I4: =Starting_year_general+2&"/"&RIGHT(Starting_year_general+3,2) -> 2017/18 | J4: =Starting_year_general+3&"/"&RIGHT(Starting_year_general+4,2) -> 2018/19 | K4: =Starting_year_general+4&"/"&RIGHT(Starting_year_general+5,2) -> 2019/20 | L4: =Starting_year_general+5&"/"&RIGHT(Starting_year_general+6,2) -> 2020/21 | M4: =Starting_year_general+6&"/"&RIGHT(Starting_year_general+7,2) -> 2021/22 | N4: =Starting_year_general+7&"/"&RIGHT(Starting_year_general+8,2) -> 2022/23 | O4: =Starting_year_general+8&"/"&RIGHT(Starting_year_general+9,2) -> 2023/24 | P4: =Starting_year_general+9&"/"&RIGHT(Starting_year_general+10,2) -> 2024/25
C5: =IF('Cover Page'!$K$19=TRUE,"$","$'000") -> $ | E5: =IF('Cover Page'!$K$19=TRUE,"$","$'000") -> $ | G5: =IF('Cover Page'!$K$19=TRUE,"$","$'000") -> $ | H5: =IF('Cover Page'!$K$19=TRUE,"$","$'000") -> $ | I5: =IF('Cover Page'!$K$19=TRUE,"$","$'000") -> $ | J5: =IF('Cover Page'!$K$19=TRUE,"$","$'000") -> $ | K5: =IF('Cover Page'!$K$19=TRUE,"$","$'000") -> $ | L5: =IF('Cover Page'!$K$19=TRUE,"$","$'000") -> $ | M5: =IF('Cover Page'!$K$19=TRUE,"$","$'000") -> $ | N5: =IF('Cover Page'!$K$19=TRUE,"$","$'000") -> $ | O5: =IF('Cover Page'!$K$19=TRUE,"$","$'000") -> $ | P5: =IF('Cover Page'!$K$19=TRUE,"$","$'000") -> $
A7: Opening Balance | C7: =SUM('Historical Data'!C101)*1000 -> 353948000 | E7: =SUM('Historical Data'!C93)*1000 -> 352787000 | G7: =E23 -> 353110277 | H7: =G23 -> 352638082.4 | I7: =H23 -> 353129781.8 | J7: 352427144.4 | K7: 352474237.2 | L7: 353168276.6 | M7: 353985205.9 | N7: 354925911.7 | O7: 355942583.7 | P7: 357132790.3
A9: a. Current Year Income & Expenses Recognised direct to Equity
A10: - Transfers to/(from) Asset Revaluation Reserve | C10: =SUM('Historical Data'!C106)*1000 -> 451000 | E10: ='IPP&E Reconciliation'!D660-'IPP&E Reconciliation'!D661 -> 0 | G10: ='IPP&E Reconciliation'!E660-'IPP&E Reconciliation'!E661 -> 0 | H10: ='IPP&E Reconciliation'!F660-'IPP&E Reconciliation'!F661 -> 0 | I10: ='IPP&E Reconciliation'!G660-'IPP&E Reconciliation'!G661 -> 0 | J10: ='IPP&E Reconciliation'!H660-'IPP&E Reconciliation'!H661 -> 0 | K10: ='IPP&E Reconciliation'!I660-'IPP&E Reconciliation'!I661 -> 0 | L10: ='IPP&E Reconciliation'!J660-'IPP&E Reconciliation'!J661 -> 0 | M10: ='IPP&E Reconciliation'!K660-'IPP&E Reconciliation'!K661 -> 0 | N10: ='IPP&E Reconciliation'!L660-'IPP&E Reconciliation'!L661 -> 0 | O10: ='IPP&E Reconciliation'!M660-'IPP&E Reconciliation'!M661 -> 0 | P10: ='IPP&E Reconciliation'!N660-'IPP&E Reconciliation'!N661 -> 0
A11: - Transfers to/(from) Other Reserves | C11: =SUM('Historical Data'!C107)*1000 -> 0
A12: - Other Income/Expenses recognised | C12: =SUM('Historical Data'!C108,'Historical Data'!C109)*1000 -> 0
A13: - Other Adjustments | C13: =SUM('Historical Data'!C110)*1000 -> 0
A14: Net Income Recognised Directly in Equity | C14: =SUM(C9:C13) -> 451000 | E14: =SUM(E9:E13) -> 0 | G14: =SUM(G9:G13) -> 0 | H14: =SUM(H9:H13) -> 0 | I14: 0 | J14: 0 | K14: 0 | L14: 0 | M14: 0 | N14: 0 | O14: 0 | P14: 0
A16: b. Net Operating Result for the Year | C16: =SUM('Historical Data'!C103)*1000 -> -1637000 | E16: ='Income Statement'!F36 -> 323277 | G16: ='Income Statement'!H36 -> -472194.5698 | H16: ='Income Statement'!I36 -> 491699.379 | I16: ='Income Statement'!J36 -> -702637.401 | J16: ='Income Statement'!K36 -> 47092.75896 | K16: ='Income Statement'!L36 -> 694039.439 | L16: ='Income Statement'!M36 -> 816929.289 | M16: ='Income Statement'!N36 -> 940705.789 | N16: ='Income Statement'!O36 -> 1016672.029 | O16: ='Income Statement'!P36 -> 1190206.589 | P16: ='Income Statement'!Q36 -> 1314819.019
A18: Total Recognised Income & Expenses (c&d) | C18: =C14+C16 -> -1186000 | E18: =E14+E16 -> 323277 | G18: =G14+G16 -> -472194.5698 | H18: =H14+H16 -> 491699.379 | I18: -702637.401 | J18: 47092.75896 | K18: 694039.439 | L18: 816929.289 | M18: 940705.789 | N18: 1016672.029 | O18: 1190206.589 | P18: 1314819.019
A20: c. Distributions to/(Contributions from) Minority Interests | C20: =SUM('Historical Data'!C115)*1000 -> 0
A21: d. Transfers between Equity | C21: =SUM('Historical Data'!C116)*1000 -> 0
A23: Equity - Balance at end of the reporting period | C23: =C7+C18+C20+C21 -> 352762000 | E23: =E7+E18+E20+E21 -> 353110277 | G23: =G7+G18+G20+G21 -> 352638082.4 | H23: 353129781.8 | I23: 352427144.4 | J23: 352474237.2 | K23: 353168276.6 | L23: 353985205.9 | M23: 354925911.7 | N23: 355942583.7 | O23: 357132790.3 | P23: 358447609.3
A27: Equity per above | E27: =E23 -> 353110277 | G27: =G23 -> 352638082.4 | H27: 353129781.8 | I27: 352427144.4 | J27: 352474237.2 | K27: 353168276.6 | L27: 353985205.9 | M27: 354925911.7 | N27: 355942583.7 | O27: 357132790.3 | P27: 358447609.3
A28: per Balance Sheet | E28: ='Balance Sheet'!E54 -> 353110277 | G28: ='Balance Sheet'!G54 -> 352638082.4 | H28: ='Balance Sheet'!H54 -> 353129781.8 | I28: ='Balance Sheet'!I54 -> 352427144.4 | J28: ='Balance Sheet'!J54 -> 352474237.2 | K28: ='Balance Sheet'!K54 -> 353168276.6 | L28: ='Balance Sheet'!L54 -> 353985205.9 | M28: ='Balance Sheet'!M54 -> 354925911.7 | N28: ='Balance Sheet'!N54 -> 355942583.7 | O28: ='Balance Sheet'!O54 -> 357132790.3 | P28: ='Balance Sheet'!P54 -> 358447609.3
A29: Variance | E29: =E23-E28 -> 0 | G29: =G23-G28 -> 0 | H29: 0 | I29: 0 | J29: 0 | K29: 0 | L29: 0 | M29: 0 | N29: 0 | O29: 0 | P29: 0
A30: Check that variance above is NIL | E30: =IF(ABS(ROUND(E29,0))>0,E$4,"") ->  | G30: =IF(ABS(ROUND(G29,0))>0,IF(E30="",G$4,E30&", "&G$4),E30) ->  | H30: =IF(ABS(ROUND(H29,0))>0,IF(G30="",H$4,G30&", "&H$4),G30) -> 
A34: end | B34: end | C34: end | D34: end | E34: end | F34: end | G34: end | H34: end | I34: end | J34: end | K34: end | L34: end | M34: end | N34: end | O34: end | P34: end

Sheet TY-LY Comparison
A1: ='Cover Page'!$A$3 -> Yass Valley Council | S1: Paste the Primary Statement figures from LTFP V5 here
A2: ='Cover Page'!$A$5 -> 10 Year Financial Plan for the Years ending 30 June 2025
A3: ="PRIMARY STATEMENTS COMPARISON TO LAST YEAR'S LTFP - "&UPPER(general_fund_name) -> PRIMARY STATEMENTS COMPARISON TO LAST YEAR'S LTFP - GENERAL FUND | C3: Actuals | E3: Current Year | G3: Projected Years | U3: Projected Years
C4: =Starting_year_general-2&"/"&RIGHT(Starting_year_general-1,2) -> 2013/14 | E4: =Starting_year_general-1&"/"&RIGHT(Starting_year_general,2) -> 2014/15 | G4: =Starting_year_general&"/"&RIGHT(Starting_year_general+1,2) -> 2015/16 | H4: =Starting_year_general+1&"/"&RIGHT(Starting_year_general+2,2) -> 2016/17 | I4: =Starting_year_general+2&"/"&RIGHT(Starting_year_general+3,2) -> 2017/18 | J4: =Starting_year_general+3&"/"&RIGHT(Starting_year_general+4,2) -> 2018/19 | K4: =Starting_year_general+4&"/"&RIGHT(Starting_year_general+5,2) -> 2019/20 | L4: =Starting_year_general+5&"/"&RIGHT(Starting_year_general+6,2) -> 2020/21 | M4: =Starting_year_general+6&"/"&RIGHT(Starting_year_general+7,2) -> 2021/22 | N4: =Starting_year_general+7&"/"&RIGHT(Starting_year_general+8,2) -> 2022/23 | O4: =Starting_year_general+8&"/"&RIGHT(Starting_year_general+9,2) -> 2023/24 | S4: =Starting_year_general-2&"/"&RIGHT(Starting_year_general-1,2) -> 2013/14 | U4: =Starting_year_general-1&"/"&RIGHT(Starting_year_general,2) -> 2014/15 | V4: =Starting_year_general&"/"&RIGHT(Starting_year_general+1,2) -> 2015/16 | W4: =Starting_year_general+1&"/"&RIGHT(Starting_year_general+2,2) -> 2016/17 | X4: =Starting_year_general+2&"/"&RIGHT(Starting_year_general+3,2) -> 2017/18 | Y4: =Starting_year_general+3&"/"&RIGHT(Starting_year_general+4,2) -> 2018/19 | Z4: =Starting_year_general+4&"/"&RIGHT(Starting_year_general+5,2) -> 2019/20 | AA4: =Starting_year_general+5&"/"&RIGHT(Starting_year_general+6,2) -> 2020/21 | AB4: =Starting_year_general+6&"/"&RIGHT(Starting_year_general+7,2) -> 2021/22 | AC4: =Starting_year_general+7&"/"&RIGHT(Starting_year_general+8,2) -> 2022/23 | AD4: =Starting_year_general+8&"/"&RIGHT(Starting_year_general+9,2) -> 2023/24
A5: ="Scenario: "&general_scenario_name -> Scenario: Rural Road Maintenance With Revised Rate Peg, 1yr 6.7% SRV, $600k Efficiency, Revised Proj & 3yr 6% SRV | C5: =IF('Cover Page'!$K$19=TRUE,"$","$'000") -> $ | E5: =IF('Cover Page'!$K$19=TRUE,"$","$'000") -> $ | G5: =IF('Cover Page'!$K$19=TRUE,"$","$'000") -> $ | H5: =IF('Cover Page'!$K$19=TRUE,"$","$'000") -> $ | I5: =IF('Cover Page'!$K$19=TRUE,"$","$'000") -> $ | J5: =IF('Cover Page'!$K$19=TRUE,"$","$'000") -> $ | K5: =IF('Cover Page'!$K$19=TRUE,"$","$'000") -> $ | L5: =IF('Cover Page'!$K$19=TRUE,"$","$'000") -> $ | M5: =IF('Cover Page'!$K$19=TRUE,"$","$'000") -> $ | N5: =IF('Cover Page'!$K$19=TRUE,"$","$'000") -> $ | O5: =IF('Cover Page'!$K$19=TRUE,"$","$'000") -> $ | S5: =IF('Cover Page'!$K$19=TRUE,"$","$'000") -> $ | U5: =IF('Cover Page'!$K$19=TRUE,"$","$'000") -> $ | V5: =IF('Cover Page'!$K$19=TRUE,"$","$'000") -> $ | W5: =IF('Cover Page'!$K$19=TRUE,"$","$'000") -> $ | X5: =IF('Cover Page'!$K$19=TRUE,"$","$'000") -> $ | Y5: =IF('Cover Page'!$K$19=TRUE,"$","$'000") -> $ | Z5: =IF('Cover Page'!$K$19=TRUE,"$","$'000") -> $ | AA5: =IF('Cover Page'!$K$19=TRUE,"$","$'000") -> $ | AB5: =IF('Cover Page'!$K$19=TRUE,"$","$'000") -> $ | AC5: =IF('Cover Page'!$K$19=TRUE,"$","$'000") -> $ | AD5: =IF('Cover Page'!$K$19=TRUE,"$","$'000") -> $
A7: INCOME STATEMENT
A9: Income from Continuing Operations
A10: Revenue:
A11: Rates & Annual Charges | C11: =ROUND('Income Statement'!D8-S11,0) -> 7132000 | E11: =ROUND('Income Statement'!F8-U11,0) -> 8938 | G11: =ROUND('Income Statement'!H8-V11,0) -> -624876 | H11: =ROUND('Income Statement'!I8-W11,0) -> -158293 | I11: =ROUND('Income Statement'!J8-X11,0) -> 378214 | J11: =ROUND('Income Statement'!K8-Y11,0) -> 1016539 | K11: =ROUND('Income Statement'!L8-Z11,0) -> 1729288 | L11: =ROUND('Income Statement'!M8-AA11,0) -> 1873608 | M11: =ROUND('Income Statement'!N8-AB11,0) -> 2025734 | N11: =ROUND('Income Statement'!O8-AC11,0) -> 2188949 | O11: =ROUND('Income Statement'!P8-AD11,0) -> 2323333 | U11: 7329547 | V11: 8151778.623 | W11: 8467977.31 | X11: 8795973.765 | Y11: 9112406.136 | Z11: 9454090.883 | AA11: 9805026.064 | AB11: 10170143.69 | AC11: 10547138.14 | AD11: 10976948.45
A12: User Charges & Fees | C12: =ROUND('Income Statement'!D9-S12,0) -> 4712000 | E12: =ROUND('Income Statement'!F9-U12,0) -> 6240 | G12: =ROUND('Income Statement'!H9-V12,0) -> -139153 | H12: =ROUND('Income Statement'!I9-W12,0) -> -175204 | I12: =ROUND('Income Statement'!J9-X12,0) -> -200265 | J12: =ROUND('Income Statement'!K9-Y12,0) -> -226806 | K12: =ROUND('Income Statement'!L9-Z12,0) -> -245187 | L12: =ROUND('Income Statement'!M9-AA12,0) -> -264662 | M12: =ROUND('Income Statement'!N9-AB12,0) -> -285287 | N12: =ROUND('Income Statement'!O9-AC12,0) -> -307120 | O12: =ROUND('Income Statement'!P9-AD12,0) -> -330225 | U12: 1913748 | V12: 1980041.2 | W12: 2048778.694 | X12: 2120054.035 | Y12: 2193964.434 | Z12: 2270610.9 | AA12: 2350098.394 | AB12: 2432535.982 | AC12: 2518037.001 | AD12: 2606719.223
A13: Interest & Investment Revenue | C13: =ROUND('Income Statement'!D10-S13,0) -> 901000 | E13: =ROUND('Income Statement'!F10-U13,0) -> 70 | G13: =ROUND('Income Statement'!H10-V13,0) -> -345650 | H13: =ROUND('Income Statement'!I10-W13,0) -> -345650 | I13: =ROUND('Income Statement'!J10-X13,0) -> -345650 | J13: =ROUND('Income Statement'!K10-Y13,0) -> -345650 | K13: =ROUND('Income Statement'!L10-Z13,0) -> -345650 | L13: =ROUND('Income Statement'!M10-AA13,0) -> -345650 | M13: =ROUND('Income Statement'!N10-AB13,0) -> -345650 | N13: =ROUND('Income Statement'!O10-AC13,0) -> -345650 | O13: =ROUND('Income Statement'!P10-AD13,0) -> -345650 | U13: 735585 | V13: 735585 | W13: 735585 | X13: 735585 | Y13: 735585 | Z13: 735585 | AA13: 735585 | AB13: 735585 | AC13: 735585 | AD13: 735585
A14: Other Revenues | C14: =ROUND('Income Statement'!D11-S14,0) -> 383000 | E14: =ROUND('Income Statement'!F11-U14,0) -> 74684 | G14: =ROUND('Income Statement'!H11-V14,0) -> -64011 | H14: =ROUND('Income Statement'!I11-W14,0) -> 37666 | I14: =ROUND('Income Statement'!J11-X14,0) -> 153181 | J14: =ROUND('Income Statement'!K11-Y14,0) -> 271584 | K14: =ROUND('Income Statement'!L11-Z14,0) -> 417220 | L14: =ROUND('Income Statement'!M11-AA14,0) -> 567225 | M14: =ROUND('Income Statement'!N11-AB14,0) -> 721730 | N14: =ROUND('Income Statement'!O11-AC14,0) -> 880870 | O14: =ROUND('Income Statement'!P11-AD14,0) -> 1044785 | U14: 4692945 | V14: 4692945 | W14: 4692945 | X14: 4692945 | Y14: 4692945 | Z14: 4692945 | AA14: 4692945 | AB14: 4692945 | AC14: 4692945 | AD14: 4692945
A15: Grants & Contributions provided for Operating Purposes | C15: =ROUND('Income Statement'!D12-S15,0) -> 3063000 | E15: =ROUND('Income Statement'!F12-U15,0) -> 3100 | G15: =ROUND('Income Statement'!H12-V15,0) -> 2039927 | H15: =ROUND('Income Statement'!I12-W15,0) -> 2549578 | I15: =ROUND('Income Statement'!J12-X15,0) -> 1339475 | J15: =ROUND('Income Statement'!K12-Y15,0) -> 1474963 | K15: =ROUND('Income Statement'!L12-Z15,0) -> 1641613 | L15: =ROUND('Income Statement'!M12-AA15,0) -> 1813263 | M15: =ROUND('Income Statement'!N12-AB15,0) -> 2000063 | N15: =ROUND('Income Statement'!O12-AC15,0) -> 2182166 | O15: =ROUND('Income Statement'!P12-AD15,0) -> 2369733 | U15: 5075633 | V15: 5075633 | W15: 5075633 | X15: 5075633 | Y15: 5075633 | Z15: 5075633 | AA15: 5075633 | AB15: 5075633 | AC15: 5075633 | AD15: 5075633
A16: Grants & Contributions provided for Capital Purposes | C16: =ROUND('Income Statement'!D13-S16,0) -> 4116000 | E16: =ROUND('Income Statement'!F13-U16,0) -> 785483 | G16: =ROUND('Income Statement'!H13-V16,0) -> -2352342 | H16: =ROUND('Income Statement'!I13-W16,0) -> -1960162 | I16: =ROUND('Income Statement'!J13-X16,0) -> -1845715 | J16: =ROUND('Income Statement'!K13-Y16,0) -> -1821035 | K16: =ROUND('Income Statement'!L13-Z16,0) -> -1755433 | L16: =ROUND('Income Statement'!M13-AA16,0) -> -1723442 | M16: =ROUND('Income Statement'!N13-AB16,0) -> -1690313 | N16: =ROUND('Income Statement'!O13-AC16,0) -> -1664204 | O16: =ROUND('Income Statement'!P13-AD16,0) -> -1620681 | U16: 2397072 | V16: 3354672 | W16: 2851072 | X16: 2760572 | Y16: 2760572 | Z16: 2760572 | AA16: 2760572 | AB16: 2760572 | AC16: 2760572 | AD16: 2760572
A17: Other Income:
A18: Net gains from the disposal of assets | C18: =ROUND('Income Statement'!D15-S18,0) -> 294000 | E18: =ROUND('Income Statement'!F15-U18,0) -> 0 | G18: =ROUND('Income Statement'!H15-V18,0) -> 0 | H18: =ROUND('Income Statement'!I15-W18,0) -> 0 | I18: =ROUND('Income Statement'!J15-X18,0) -> 0 | J18: =ROUND('Income Statement'!K15-Y18,0) -> 0 | K18: =ROUND('Income Statement'!L15-Z18,0) -> 0 | L18: =ROUND('Income Statement'!M15-AA18,0) -> 0 | M18: =ROUND('Income Statement'!N15-AB18,0) -> 0 | N18: =ROUND('Income Statement'!O15-AC18,0) -> 0 | O18: =ROUND('Income Statement'!P15-AD18,0) -> 0 | U18: 0 | V18: 0 | W18: 0 | X18: 0 | Y18: 0 | Z18: 0 | AA18: 0 | AB18: 0 | AC18: 0 | AD18: 0
A19: Joint Ventures & Associated Entities | C19: =ROUND('Income Statement'!D16-S19,0) -> 0 | E19: =ROUND('Income Statement'!F16-U19,0) -> 0 | G19: =ROUND('Income Statement'!H16-V19,0) -> 0 | H19: =ROUND('Income Statement'!I16-W19,0) -> 0 | I19: =ROUND('Income Statement'!J16-X19,0) -> 0 | J19: =ROUND('Income Statement'!K16-Y19,0) -> 0 | K19: =ROUND('Income Statement'!L16-Z19,0) -> 0 | L19: =ROUND('Income Statement'!M16-AA19,0) -> 0 | M19: =ROUND('Income Statement'!N16-AB19,0) -> 0 | N19: =ROUND('Income Statement'!O16-AC19,0) -> 0 | O19: =ROUND('Income Statement'!P16-AD19,0) -> 0 | U19: 0 | V19: 0 | W19: 0 | X19: 0 | Y19: 0 | Z19: 0 | AA19: 0 | AB19: 0 | AC19: 0 | AD19: 0
A20: Total Income from Continuing Operations | C20: =SUM(C10:C19) -> 20601000 | E20: =SUM(E10:E19) -> 878515 | G20: -1486105 | H20: -52065 | I20: -520760 | J20: 369595 | K20: 1441851 | L20: 1920342 | M20: 2426277 | N20: 2935011 | O20: 3441295 | U20: 22144530 | V20: 23990654.82 | W20: 23871991 | X20: 24180762.8 | Y20: 24571105.57 | Z20: 24989436.78 | AA20: 25419859.46 | AB20: 25867414.67 | AC20: 26329910.14 | AD20: 26848402.68
A22: Expenses from Continuing Operations
A23: Employee Benefits & On-Costs | C23: =ROUND('Income Statement'!D20-S23,0) -> 8602000 | E23: =ROUND('Income Statement'!F20-U23,0) -> 110252 | G23: =ROUND('Income Statement'!H20-V23,0) -> -414660 | H23: =ROUND('Income Statement'!I20-W23,0) -> -427985 | I23: =ROUND('Income Statement'!J20-X23,0) -> -329741 | J23: =ROUND('Income Statement'!K20-Y23,0) -> -305434 | K23: =ROUND('Income Statement'!L20-Z23,0) -> -240109 | L23: =ROUND('Income Statement'!M20-AA23,0) -> -247823 | M23: =ROUND('Income Statement'!N20-AB23,0) -> -255769 | N23: =ROUND('Income Statement'!O20-AC23,0) -> -263953 | O23: =ROUND('Income Statement'!P20-AD23,0) -> -272383 | U23: 8206528 | V23: 8423265.016 | W23: 8653979.958 | X23: 8907361.714 | Y23: 9168888.367 | Z23: 9420063.288 | AA23: 9678773.456 | AB23: 9945244.93 | AC23: 10219710.55 | AD23: 10502410.13
A24: Borrowing Costs | C24: =ROUND('Income Statement'!D21-S24,0) -> 338000 | E24: =ROUND('Income Statement'!F21-U24,0) -> -25911 | G24: =ROUND('Income Statement'!H21-V24,0) -> -79567 | H24: =ROUND('Income Statement'!I21-W24,0) -> -55824 | I24: =ROUND('Income Statement'!J21-X24,0) -> -33686 | J24: =ROUND('Income Statement'!K21-Y24,0) -> -34661 | K24: =ROUND('Income Statement'!L21-Z24,0) -> -36756 | L24: =ROUND('Income Statement'!M21-AA24,0) -> -38943 | M24: =ROUND('Income Statement'!N21-AB24,0) -> -15023 | N24: =ROUND('Income Statement'!O21-AC24,0) -> 0 | O24: =ROUND('Income Statement'!P21-AD24,0) -> 0 | U24: 295871 | V24: 268460 | W24: 214893 | X24: 159069 | Y24: 125383 | Z24: 90722 | AA24: 53966 | AB24: 15023 | AC24: 0 | AD24: 0
A25: Materials & Contracts | C25: =ROUND('Income Statement'!D22-S25,0) -> 3100000 | E25: =ROUND('Income Statement'!F22-U25,0) -> -953156 | G25: =ROUND('Income Statement'!H22-V25,0) -> -475052 | H25: =ROUND('Income Statement'!I22-W25,0) -> -685928 | I25: =ROUND('Income Statement'!J22-X25,0) -> -367312 | J25: =ROUND('Income Statement'!K22-Y25,0) -> -507064 | K25: =ROUND('Income Statement'!L22-Z25,0) -> -656698 | L25: =ROUND('Income Statement'!M22-AA25,0) -> -810915 | M25: =ROUND('Income Statement'!N22-AB25,0) -> -976360 | N25: =ROUND('Income Statement'!O22-AC25,0) -> -1153741 | O25: =ROUND('Income Statement'!P22-AD25,0) -> -1343801 | U25: 6986524 | V25: 7372782 | W25: 7778331.9 | X25: 8204137.665 | Y25: 8651211.439 | Z25: 9120615.955 | AA25: 9613467.061 | AB25: 10130936.38 | AC25: 10674254.08 | AD25: 11244711.85
A26: Depreciation & Amortisation | C26: =ROUND('Income Statement'!D23-S26,0) -> 6145000 | E26: =ROUND('Income Statement'!F23-U26,0) -> -1909527 | G26: =ROUND('Income Statement'!H23-V26,0) -> -1806137 | H26: =ROUND('Income Statement'!I23-W26,0) -> -1693174 | I26: =ROUND('Income Statement'!J23-X26,0) -> -1593329 | J26: =ROUND('Income Statement'!K23-Y26,0) -> -1489867 | K26: =ROUND('Income Statement'!L23-Z26,0) -> -1324627 | L26: =ROUND('Income Statement'!M23-AA26,0) -> -1170542 | M26: =ROUND('Income Statement'!N23-AB26,0) -> -1020045 | N26: =ROUND('Income Statement'!O23-AC26,0) -> -843199 | O26: =ROUND('Income Statement'!P23-AD26,0) -> -735412 | U26: 6655650 | V26: 6655650 | W26: 6655650 | X26: 6655650 | Y26: 6655650 | Z26: 6655650 | AA26: 6655650 | AB26: 6655650 | AC26: 6655650 | AD26: 6655650
A27: Impairment | C27: =ROUND('Income Statement'!D24-S27,0) -> 0 | E27: =ROUND('Income Statement'!F24-U27,0) -> 0 | G27: =ROUND('Income Statement'!H24-V27,0) -> 0 | H27: =ROUND('Income Statement'!I24-W27,0) -> 0 | I27: =ROUND('Income Statement'!J24-X27,0) -> 0 | J27: =ROUND('Income Statement'!K24-Y27,0) -> 0 | K27: =ROUND('Income Statement'!L24-Z27,0) -> 0 | L27: =ROUND('Income Statement'!M24-AA27,0) -> 0 | M27: =ROUND('Income Statement'!N24-AB27,0) -> 0 | N27: =ROUND('Income Statement'!O24-AC27,0) -> 0 | O27: =ROUND('Income Statement'!P24-AD27,0) -> 0 | U27: 0 | V27: 0 | W27: 0 | X27: 0 | Y27: 0 | Z27: 0 | AA27: 0 | AB27: 0 | AC27: 0 | AD27: 0
A28: Other Expenses | C28: =ROUND('Income Statement'!D25-S28,0) -> 4053000 | E28: =ROUND('Income Statement'!F25-U28,0) -> -91994 | G28: =ROUND('Income Statement'!H25-V28,0) -> -496292 | H28: =ROUND('Income Statement'!I25-W28,0) -> -745864 | I28: =ROUND('Income Statement'!J25-X28,0) -> -982681 | J28: =ROUND('Income Statement'!K25-Y28,0) -> -1225964 | K28: =ROUND('Income Statement'!L25-Z28,0) -> -1262743 | L28: =ROUND('Income Statement'!M25-AA28,0) -> -1300625 | M28: =ROUND('Income Statement'!N25-AB28,0) -> -1339644 | N28: =ROUND('Income Statement'!O25-AC28,0) -> -1379833 | O28: =ROUND('Income Statement'!P25-AD28,0) -> -1421228 | U28: 3425531 | V28: 3528296.93 | W28: 3634145.838 | X28: 3743170.213 | Y28: 3855465.319 | Z28: 3971129.279 | AA28: 4090263.157 | AB28: 4212971.052 | AC28: 4339360.184 | AD28: 4469540.989
A29: Interest & Investment Losses | C29: =ROUND('Income Statement'!D26-S29,0) -> 0 | E29: =ROUND('Income Statement'!F26-U29,0) -> 0 | G29: =ROUND('Income Statement'!H26-V29,0) -> 0 | H29: =ROUND('Income Statement'!I26-W29,0) -> 0 | I29: =ROUND('Income Statement'!J26-X29,0) -> 0 | J29: =ROUND('Income Statement'!K26-Y29,0) -> 0 | K29: =ROUND('Income Statement'!L26-Z29,0) -> 0 | L29: =ROUND('Income Statement'!M26-AA29,0) -> 0 | M29: =ROUND('Income Statement'!N26-AB29,0) -> 0 | N29: =ROUND('Income Statement'!O26-AC29,0) -> 0 | O29: =ROUND('Income Statement'!P26-AD29,0) -> 0 | U29: 0 | V29: 0 | W29: 0 | X29: 0 | Y29: 0 | Z29: 0 | AA29: 0 | AB29: 0 | AC29: 0 | AD29: 0
A30: Net Losses from the Disposal of Assets | C30: =ROUND('Income Statement'!D27-S30,0) -> 0 | E30: =ROUND('Income Statement'!F27-U30,0) -> 0 | G30: =ROUND('Income Statement'!H27-V30,0) -> 0 | H30: =ROUND('Income Statement'!I27-W30,0) -> 0 | I30: =ROUND('Income Statement'!J27-X30,0) -> 0 | J30: =ROUND('Income Statement'!K27-Y30,0) -> 0 | K30: =ROUND('Income Statement'!L27-Z30,0) -> 0 | L30: =ROUND('Income Statement'!M27-AA30,0) -> 0 | M30: =ROUND('Income Statement'!N27-AB30,0) -> 0 | N30: =ROUND('Income Statement'!O27-AC30,0) -> 0 | O30: =ROUND('Income Statement'!P27-AD30,0) -> 0 | U30: 0 | V30: 0 | W30: 0 | X30: 0 | Y30: 0 | Z30: 0 | AA30: 0 | AB30: 0 | AC30: 0 | AD30: 0
A31: Joint Ventures & Associated Entities | C31: =ROUND('Income Statement'!D28-S31,0) -> 0 | E31: =ROUND('Income Statement'!F28-U31,0) -> 0 | G31: =ROUND('Income Statement'!H28-V31,0) -> 0 | H31: =ROUND('Income Statement'!I28-W31,0) -> 0 | I31: =ROUND('Income Statement'!J28-X31,0) -> 0 | J31: =ROUND('Income Statement'!K28-Y31,0) -> 0 | K31: =ROUND('Income Statement'!L28-Z31,0) -> 0 | L31: =ROUND('Income Statement'!M28-AA31,0) -> 0 | M31: =ROUND('Income Statement'!N28-AB31,0) -> 0 | N31: =ROUND('Income Statement'!O28-AC31,0) -> 0 | O31: =ROUND('Income Statement'!P28-AD31,0) -> 0 | U31: 0 | V31: 0 | W31: 0 | X31: 0 | Y31: 0 | Z31: 0 | AA31: 0 | AB31: 0 | AC31: 0 | AD31: 0
A32: Total Expenses from Continuing Operations | C32: =SUM(C23:C31) -> 22238000 | E32: =SUM(E23:E31) -> -2870336 | G32: =SUM(G23:G31) -> -3271708 | H32: =SUM(H23:H31) -> -3608775 | I32: =SUM(I23:I31) -> -3306749 | J32: -3562990 | K32: -3520933 | L32: -3568848 | M32: -3606841 | N32: -3640726 | O32: -3772824 | U32: 25570104 | V32: 26248453.95 | W32: 26937000.7 | X32: 27669388.59 | Y32: 28456598.13 | Z32: 29258180.52 | AA32: 30092119.67 | AB32: 30959825.36 | AC32: 31888974.82 | AD32: 32872312.97
A34: Operating Result from Continuing Operations | C34: =C20-C32 -> -1637000 | E34: =E20-E32 -> 3748851 | G34: =G20-G32 -> 1785603 | H34: 3556710 | I34: 2785989 | J34: 3932585 | K34: 4962784 | L34: 5489190 | M34: 6033118 | N34: 6575737 | O34: 7214119 | U34: -3425574 | V34: -2257799.123 | W34: -3065009.693 | X34: -3488625.792 | Y34: -3885492.556 | Z34: -4268743.739 | AA34: -4672260.217 | AB34: -5092410.688 | AC34: -5559064.677 | AD34: -6023910.297
A36: Discontinued Operations - Profit/(Loss) | C36: =ROUND('Income Statement'!D33-S36,0) -> 0 | E36: =ROUND('Income Statement'!F33-U36,0) -> 0 | G36: =ROUND('Income Statement'!H33-V36,0) -> 0 | H36: =ROUND('Income Statement'!I33-W36,0) -> 0 | I36: =ROUND('Income Statement'!J33-X36,0) -> 0 | J36: =ROUND('Income Statement'!K33-Y36,0) -> 0 | K36: =ROUND('Income Statement'!L33-Z36,0) -> 0 | L36: =ROUND('Income Statement'!M33-AA36,0) -> 0 | M36: =ROUND('Income Statement'!N33-AB36,0) -> 0 | N36: =ROUND('Income Statement'!O33-AC36,0) -> 0 | O36: =ROUND('Income Statement'!P33-AD36,0) -> 0 | U36: 0 | V36: 0 | W36: 0 | X36: 0 | Y36: 0 | Z36: 0 | AA36: 0 | AB36: 0 | AC36: 0 | AD36: 0
A37: Net Profit/(Loss) from Discontinued Operations | C37: =C36 -> 0 | E37: =E36 -> 0 | G37: =G36 -> 0 | H37: =H36 -> 0 | I37: 0 | J37: 0 | K37: 0 | L37: 0 | M37: 0 | N37: 0 | O37: 0 | U37: 0 | V37: 0 | W37: 0 | X37: 0 | Y37: 0 | Z37: 0 | AA37: 0 | AB37: 0 | AC37: 0 | AD37: 0
A39: Net Operating Result for the Year | C39: =C37+C34 -> -1637000 | E39: =E37+E34 -> 3748851 | G39: =G37+G34 -> 1785603 | H39: 3556710 | I39: 2785989 | J39: 3932585 | K39: 4962784 | L39: 5489190 | M39: 6033118 | N39: 6575737 | O39: 7214119 | U39: -3425574 | V39: -2257799.123 | W39: -3065009.693 | X39: -3488625.792 | Y39: -3885492.556 | Z39: -4268743.739 | AA39: -4672260.217 | AB39: -5092410.688 | AC39: -5559064.677 | AD39: -6023910.297
A41: Net Operating Result before Grants and Contributions provided for
A42: Capital Purposes | C42: =C39-C16 -> -5753000 | E42: =E39-E16 -> 2963368 | G42: =G39-G16 -> 4137945 | H42: 5516872 | I42: 4631704 | J42: 5753620 | K42: 6718217 | L42: 7212632 | M42: 7723431 | N42: 8239941 | O42: 8834800 | U42: -5822646 | V42: -5612471.123 | W42: -5916081.693 | X42: -6249197.792 | Y42: -6646064.556 | Z42: -7029315.739 | AA42: -7432832.217 | AB42: -7852982.688 | AC42: -8319636.677 | AD42: -8784482.297
A46: BALANCE SHEET
A48: ASSETS
A49: Current Assets
A50: Cash & Cash Equivalents | C50: =ROUND('Balance Sheet'!C8-S50,0) -> 6283000 | E50: =ROUND('Balance Sheet'!E8-U50,0) -> 2405663 | G50: =ROUND('Balance Sheet'!G8-V50,0) -> 1455456 | H50: =ROUND('Balance Sheet'!H8-W50,0) -> 1122487 | I50: =ROUND('Balance Sheet'!I8-X50,0) -> 1116732 | J50: =ROUND('Balance Sheet'!J8-Y50,0) -> 1110638 | K50: =ROUND('Balance Sheet'!K8-Z50,0) -> 1377862 | L50: =ROUND('Balance Sheet'!L8-AA50,0) -> 1937544 | M50: =ROUND('Balance Sheet'!M8-AB50,0) -> 3020532 | N50: =ROUND('Balance Sheet'!N8-AC50,0) -> 4156898 | O50: =ROUND('Balance Sheet'!O8-AD50,0) -> 5364386 | U50: 0 | V50: 0 | W50: 0 | X50: 0 | Y50: 0 | Z50: 0 | AA50: 0 | AB50: 0 | AC50: 0 | AD50: 0
A51: Investments | C51: =ROUND('Balance Sheet'!C9-S51,0) -> 0 | E51: =ROUND('Balance Sheet'!E9-U51,0) -> 0 | G51: =ROUND('Balance Sheet'!G9-V51,0) -> 0 | H51: =ROUND('Balance Sheet'!H9-W51,0) -> 0 | I51: =ROUND('Balance Sheet'!I9-X51,0) -> 0 | J51: =ROUND('Balance Sheet'!J9-Y51,0) -> 0 | K51: =ROUND('Balance Sheet'!K9-Z51,0) -> 0 | L51: =ROUND('Balance Sheet'!L9-AA51,0) -> 0 | M51: =ROUND('Balance Sheet'!M9-AB51,0) -> 0 | N51: =ROUND('Balance Sheet'!N9-AC51,0) -> 0 | O51: =ROUND('Balance Sheet'!O9-AD51,0) -> 0 | U51: 0 | V51: 0 | W51: 0 | X51: 0 | Y51: 0 | Z51: 0 | AA51: 0 | AB51: 0 | AC51: 0 | AD51: 0
A52: Receivables | C52: =ROUND('Balance Sheet'!C10-S52,0) -> 1923000 | E52: =ROUND('Balance Sheet'!E10-U52,0) -> -753317 | G52: =ROUND('Balance Sheet'!G10-V52,0) -> -1213392 | H52: =ROUND('Balance Sheet'!H10-W52,0) -> -996288 | I52: =ROUND('Balance Sheet'!I10-X52,0) -> -999491 | J52: =ROUND('Balance Sheet'!J10-Y52,0) -> -942445 | K52: =ROUND('Balance Sheet'!K10-Z52,0) -> -870848 | L52: =ROUND('Balance Sheet'!L10-AA52,0) -> -843051 | M52: =ROUND('Balance Sheet'!M10-AB52,0) -> -811547 | N52: =ROUND('Balance Sheet'!N10-AC52,0) -> -779781 | O52: =ROUND('Balance Sheet'!O10-AD52,0) -> -749919 | U52: 2749432.89 | V52: 3164258.155 | W52: 3045375.768 | X52: 3063752.233 | Y52: 3111035.708 | Z52: 3161533.884 | AA52: 3213534.525 | AB52: 3267590.349 | AC52: 3323472.002 | AD52: 3385628.28
A53: Inventories | C53: =ROUND('Balance Sheet'!C11-S53,0) -> 354000 | E53: =ROUND('Balance Sheet'!E11-U53,0) -> -125618 | G53: =ROUND('Balance Sheet'!G11-V53,0) -> -46357 | H53: =ROUND('Balance Sheet'!H11-W53,0) -> -75296 | I53: =ROUND('Balance Sheet'!I11-X53,0) -> -18705 | J53: =ROUND('Balance Sheet'!J11-Y53,0) -> -33054 | K53: =ROUND('Balance Sheet'!K11-Z53,0) -> -48602 | L53: =ROUND('Balance Sheet'!L11-AA53,0) -> -65484 | M53: =ROUND('Balance Sheet'!M11-AB53,0) -> -83790 | N53: =ROUND('Balance Sheet'!N11-AC53,0) -> -103613 | O53: =ROUND('Balance Sheet'!O11-AD53,0) -> -125054 | U53: 1180633.421 | V53: 1239558.305 | W53: 1301426.229 | X53: 1366384.25 | Y53: 1434586.773 | Z53: 1506195.922 | AA53: 1581381.922 | AB53: 1660323.509 | AC53: 1743208.349 | AD53: 1830233.492
A54: Other | C54: =ROUND('Balance Sheet'!C12-S54,0) -> 103000 | E54: =ROUND('Balance Sheet'!E12-U54,0) -> -145939 | G54: =ROUND('Balance Sheet'!G12-V54,0) -> -150610 | H54: =ROUND('Balance Sheet'!H12-W54,0) -> -162021 | I54: =ROUND('Balance Sheet'!I12-X54,0) -> -166989 | J54: =ROUND('Balance Sheet'!J12-Y54,0) -> -177786 | K54: =ROUND('Balance Sheet'!K12-Z54,0) -> -186519 | L54: =ROUND('Balance Sheet'!L12-AA54,0) -> -195695 | M54: =ROUND('Balance Sheet'!M12-AB54,0) -> -205337 | N54: =ROUND('Balance Sheet'!N12-AC54,0) -> -215468 | O54: =ROUND('Balance Sheet'!O12-AD54,0) -> -226113 | U54: 266893.9497 | V54: 278584.1548 | W54: 290809.2355 | X54: 303594.4463 | Y54: 316966.2602 | Z54: 330952.4275 | AA54: 345582.0388 | AB54: 360885.5904 | AC54: 376895.053 | AD54: 393643.9442
A55: Non-current assets classified as "held for sale" | C55: =ROUND('Balance Sheet'!C13-S55,0) -> 0 | E55: =ROUND('Balance Sheet'!E13-U55,0) -> 0 | G55: =ROUND('Balance Sheet'!G13-V55,0) -> 0 | H55: =ROUND('Balance Sheet'!H13-W55,0) -> 0 | I55: =ROUND('Balance Sheet'!I13-X55,0) -> 0 | J55: =ROUND('Balance Sheet'!J13-Y55,0) -> 0 | K55: =ROUND('Balance Sheet'!K13-Z55,0) -> 0 | L55: =ROUND('Balance Sheet'!L13-AA55,0) -> 0 | M55: =ROUND('Balance Sheet'!M13-AB55,0) -> 0 | N55: =ROUND('Balance Sheet'!N13-AC55,0) -> 0 | O55: =ROUND('Balance Sheet'!O13-AD55,0) -> 0 | U55: 0 | V55: 0 | W55: 0 | X55: 0 | Y55: 0 | Z55: 0 | AA55: 0 | AB55: 0 | AC55: 0 | AD55: 0
A56: Rounding adjustment (keep line always hidden!!!!!) | C56: =ROUND('Balance Sheet'!C14-S56,0) -> 0 | E56: =ROUND('Balance Sheet'!E14-U56,0) -> 0 | G56: =ROUND('Balance Sheet'!G14-V56,0) -> 0 | H56: =ROUND('Balance Sheet'!H14-W56,0) -> 0 | I56: =ROUND('Balance Sheet'!I14-X56,0) -> 0 | J56: =ROUND('Balance Sheet'!J14-Y56,0) -> 0 | K56: =ROUND('Balance Sheet'!K14-Z56,0) -> 0 | L56: =ROUND('Balance Sheet'!L14-AA56,0) -> 0 | M56: =ROUND('Balance Sheet'!M14-AB56,0) -> 0 | N56: =ROUND('Balance Sheet'!N14-AC56,0) -> 0 | O56: =ROUND('Balance Sheet'!O14-AD56,0) -> 0 | U56: 0 | V56: 0 | W56: 0 | X56: 0 | Y56: 0 | Z56: 0 | AA56: 0 | AB56: 0 | AC56: 0 | AD56: 0
A57: Total Current Assets | C57: =SUM(C48:C56) -> 8663000 | E57: =SUM(E48:E56) -> 1380789 | G57: 45097 | H57: -111118 | I57: -68453 | J57: -42647 | K57: 271893 | L57: 833314 | M57: 1919858 | N57: 3058036 | O57: 4263300 | U57: 4196960.261 | V57: 4682400.615 | W57: 4637611.232 | X57: 4733730.929 | Y57: 4862588.742 | Z57: 4998682.233 | AA57: 5140498.486 | AB57: 5288799.448 | AC57: 5443575.404 | AD57: 5609505.717
A59: Non-Current Assets
A60: Investments | C60: =ROUND('Balance Sheet'!C18-S60,0) -> 6311000 | E60: =ROUND('Balance Sheet'!E18-U60,0) -> 6311000 | G60: =ROUND('Balance Sheet'!G18-V60,0) -> 6311000 | H60: =ROUND('Balance Sheet'!H18-W60,0) -> 6311000 | I60: =ROUND('Balance Sheet'!I18-X60,0) -> 6311000 | J60: =ROUND('Balance Sheet'!J18-Y60,0) -> 6311000 | K60: =ROUND('Balance Sheet'!K18-Z60,0) -> 6311000 | L60: =ROUND('Balance Sheet'!L18-AA60,0) -> 6311000 | M60: =ROUND('Balance Sheet'!M18-AB60,0) -> 6311000 | N60: =ROUND('Balance Sheet'!N18-AC60,0) -> 6311000 | O60: =ROUND('Balance Sheet'!O18-AD60,0) -> 6311000 | U60: 0 | V60: 0 | W60: 0 | X60: 0 | Y60: 0 | Z60: 0 | AA60: 0 | AB60: 0 | AC60: 0 | AD60: 0
A61: Receivables | C61: =ROUND('Balance Sheet'!C19-S61,0) -> 0 | E61: =ROUND('Balance Sheet'!E19-U61,0) -> 8847 | G61: =ROUND('Balance Sheet'!G19-V61,0) -> 9839 | H61: =ROUND('Balance Sheet'!H19-W61,0) -> 10221 | I61: =ROUND('Balance Sheet'!I19-X61,0) -> 10617 | J61: =ROUND('Balance Sheet'!J19-Y61,0) -> 10999 | K61: =ROUND('Balance Sheet'!K19-Z61,0) -> 11411 | L61: =ROUND('Balance Sheet'!L19-AA61,0) -> 11835 | M61: =ROUND('Balance Sheet'!M19-AB61,0) -> 12275 | N61: =ROUND('Balance Sheet'!N19-AC61,0) -> 12730 | O61: =ROUND('Balance Sheet'!O19-AD61,0) -> 13249 | U61: -8846.808044 | V61: -9839.24664 | W61: -10220.90039 | X61: -10616.79412 | Y61: -10998.72992 | Z61: -11411.1455 | AA61: -11834.72641 | AB61: -12275.42562 | AC61: -12730.46022 | AD61: -13249.2439
A62: Inventories | C62: =ROUND('Balance Sheet'!C20-S62,0) -> 0 | E62: =ROUND('Balance Sheet'!E20-U62,0) -> -478440 | G62: =ROUND('Balance Sheet'!G20-V62,0) -> -2598530 | H62: =ROUND('Balance Sheet'!H20-W62,0) -> -11218620 | I62: =ROUND('Balance Sheet'!I20-X62,0) -> -11838710 | J62: =ROUND('Balance Sheet'!J20-Y62,0) -> -11958800 | K62: =ROUND('Balance Sheet'!K20-Z62,0) -> -12078890 | L62: =ROUND('Balance Sheet'!L20-AA62,0) -> -12198980 | M62: =ROUND('Balance Sheet'!M20-AB62,0) -> -12319070 | N62: =ROUND('Balance Sheet'!N20-AC62,0) -> -12439160 | O62: =ROUND('Balance Sheet'!O20-AD62,0) -> -12559250 | U62: 1198530 | V62: 3318620 | W62: 11438710 | X62: 11558800 | Y62: 11678890 | Z62: 11798980 | AA62: 11919070 | AB62: 12039160 | AC62: 12159250 | AD62: 12279340
... 53 more rows

Sheet Interest Calculation
A1: ='Cover Page'!$A$3 -> Yass Valley Council
A2: ='Cover Page'!$A$5 -> 10 Year Financial Plan for the Years ending 30 June 2025
A3: Cash & Investment Balance prediction
A4: and Calculation of Investment Revenue | D4: =Starting_year_general-1&"/"&RIGHT(Starting_year_general,2) -> 2014/15 | S4: =Starting_year_general&"/"&RIGHT(Starting_year_general+1,2) -> 2015/16 | AH4: =Starting_year_general+1&"/"&RIGHT(Starting_year_general+2,2) -> 2016/17 | AW4: =Starting_year_general+2&"/"&RIGHT(Starting_year_general+3,2) -> 2017/18 | BL4: =Starting_year_general+3&"/"&RIGHT(Starting_year_general+4,2) -> 2018/19 | CA4: =Starting_year_general+4&"/"&RIGHT(Starting_year_general+5,2) -> 2019/20 | CP4: =Starting_year_general+5&"/"&RIGHT(Starting_year_general+6,2) -> 2020/21 | DE4: =Starting_year_general+6&"/"&RIGHT(Starting_year_general+7,2) -> 2021/22 | DT4: =Starting_year_general+7&"/"&RIGHT(Starting_year_general+8,2) -> 2022/23 | EI4: =Starting_year_general+8&"/"&RIGHT(Starting_year_general+9,2) -> 2023/24 | EX4: =Starting_year_general+9&"/"&RIGHT(Starting_year_general+10,2) -> 2024/25
A5: ="Scenario: "&general_scenario_name -> Scenario: Rural Road Maintenance With Revised Rate Peg, 1yr 6.7% SRV, $600k Efficiency, Revised Proj & 3yr 6% SRV | B5: Time | C5: CF | D5: July | E5: August | F5: September | G5: October | H5: November | I5: December | J5: January | K5: February | L5: March | M5: April | N5: May | O5: June | P5: Total | S5: July | T5: August | U5: September | V5: October | W5: November | X5: December | Y5: January | Z5: February | AA5: March | AB5: April | AC5: May | AD5: June | AE5: Total | AH5: July | AI5: August | AJ5: September | AK5: October | AL5: November | AM5: December | AN5: January | AO5: February | AP5: March | AQ5: April | AR5: May | AS5: June | AT5: Total | AW5: July | AX5: August | AY5: September | AZ5: October | BA5: November | BB5: December | BC5: January | BD5: February | BE5: March | BF5: April | BG5: May | BH5: June | BI5: Total | BL5: July | BM5: August | BN5: September | BO5: October | BP5: November | BQ5: December | BR5: January | BS5: February | BT5: March | BU5: April | BV5: May | BW5: June | BX5: Total | CA5: July | CB5: August | CC5: September | CD5: October | CE5: November | CF5: December | CG5: January | CH5: February | CI5: March | CJ5: April | CK5: May | CL5: June | CM5: Total | CP5: July | CQ5: August | CR5: September | CS5: October | CT5: November | CU5: December | CV5: January | CW5: February | CX5: March | CY5: April | CZ5: May | DA5: June | DB5: Total | DE5: July | DF5: August | DG5: September | DH5: October | DI5: November | DJ5: December | DK5: January | DL5: February | DM5: March | DN5: April | DO5: May | DP5: June | DQ5: Total | DT5: July | DU5: August | DV5: September | DW5: October | DX5: November | DY5: December | DZ5: January | EA5: February | EB5: March | EC5: April | ED5: May | EE5: June | EF5: Total | EI5: July | EJ5: August | EK5: September | EL5: October | EM5: November | EN5: December | EO5: January | EP5: February | EQ5: March | ER5: April | ES5: May | ET5: June | EU5: Total | EX5: July | EY5: August | EZ5: September | FA5: October | FB5: November | FC5: December | FD5: January | FE5: February | FF5: March | FG5: April | FH5: May | FI5: June | FJ5: Total | GI5: ='Income Statement'!F4 -> 2014/15 | GJ5: ='Income Statement'!H4 -> 2015/16 | GK5: ='Income Statement'!I4 -> 2016/17 | GL5: ='Income Statement'!J4 -> 2017/18 | GM5: ='Income Statement'!K4 -> 2018/19 | GN5: ='Income Statement'!L4 -> 2019/20 | GO5: ='Income Statement'!M4 -> 2020/21 | GP5: ='Income Statement'!N4 -> 2021/22 | GQ5: ='Income Statement'!O4 -> 2022/23 | GR5: ='Income Statement'!P4 -> 2023/24 | GS5: ='Income Statement'!Q4 -> 2024/25 | GT5: ='Income Statement'!AG4 -> 2025/26 | GU5: ='Income Statement'!AH4 -> 2026/27 | GV5: ='Income Statement'!AI4 -> 2027/28 | GW5: ='Income Statement'!AJ4 -> 2028/29 | GX5: ='Income Statement'!AK4 -> 2029/30 | GY5: ='Income Statement'!AL4 -> 2030/31 | GZ5: ='Income Statement'!AM4 -> 2031/32 | HA5: ='Income Statement'!AN4 -> 2032/33 | HB5: ='Income Statement'!AO4 -> 2033/34 | HC5: ='Income Statement'!AP4 -> 2034/35
A6: Opening Balance Cash & Investments | B6: a) | C6: b) | D6: =('BS workings'!E9+'BS workings'!E55) -> 12594000 | E6: =D62 -> 11811530.91 | F6: 13958027.05 | G6: 12270497.67 | H6: 11488028.58 | I6: 12902283.41 | J6: 12119814.32 | K6: 11337345.23 | L6: 11653238.1 | M6: 9965708.728 | N6: 9183239.638 | O6: 9499132.509 | S6: =('BS workings'!$E47-'BS workings'!$E48+'Balance Sheet'!$E9+'Balance Sheet'!$E18) -> 8716663.419 | T6: =S62 -> 8071362.547 | U6: =T62 -> 10431389.25 | V6: 9426130.214 | W6: 8780829.342 | X6: 10389524.15 | Y6: 9744223.28 | Z6: 9098922.408 | AA6: 9580619.378 | AB6: 8575360.339 | AC6: 7930059.467 | AD6: 8411756.437 | AH6: =('BS workings'!$G47-'BS workings'!$G48+'Balance Sheet'!$G9+'Balance Sheet'!$G18) -> 7766455.565 | AI6: =AH62 -> 7111032.26 | AJ6: 9756908.595 | AK6: 8740916.198 | AL6: 8085492.894 | AM6: 9906044.318 | AN6: 9250621.014 | AO6: 8595197.71 | AP6: 9177761.77 | AQ6: 8161769.373 | AR6: 7506346.069 | AS6: 8088910.129 | AW6: =('BS workings'!$H47-'BS workings'!$H48+'Balance Sheet'!$H9+'Balance Sheet'!$H18) -> 7433486.825 | AX6: =AW62 -> 6733895.35 | AY6: 9679048.157 | AZ6: 8618197.807 | BA6: 7918606.333 | BB6: 9952573.069 | BC6: 9252981.595 | BD6: 8553390.121 | BE6: 9220577.752 | BF6: 8159727.402 | BG6: 7460135.928 | BH6: 8127323.559 | BL6: =('BS workings'!$I47-'BS workings'!$I48+'Balance Sheet'!$I9+'Balance Sheet'!$I18) -> 7427732.085 | BM6: =BL62 -> 6649209.746 | BN6: 9894731.947 | BO6: 8754240.985 | BP6: 7975718.646 | BQ6: 10215229.71 | BR6: 9436707.374 | BS6: 8658185.035 | BT6: 9388679.398 | BU6: 8248188.436 | BV6: 7469666.097 | BW6: 8200160.461 | CA6: =('BS workings'!$J47-'BS workings'!$J48+'Balance Sheet'!$J9+'Balance Sheet'!$J18) -> 7421638.122 | CB6: =CA62 -> 6578746.954 | CC6: 10178799.53 | CD6: 8973187.616 | CE6: 8130296.448 | CF6: 10619613.09 | CG6: 9776721.922 | CH6: 8933830.754 | CI6: 9757043.491 | CJ6: 8551431.574 | CK6: 7708540.406 | CL6: 8531753.143 | CP6: =('BS workings'!$K47-'BS workings'!$K48+'Balance Sheet'!$K9+'Balance Sheet'!$K18) -> 7688861.975 | CQ6: =CP62 -> 6810586.858 | CR6: 10589483.01 | CS6: 9439235.769 | CT6: 8560960.652 | CU6: 11175563.99 | CV6: 10297288.87 | CW6: 9419013.753 | CX6: 10287177.86 | CY6: 9136930.621 | CZ6: 8258655.504 | DA6: 9126819.613 | DE6: =('BS workings'!$L47-'BS workings'!$L48+'Balance Sheet'!$L9+'Balance Sheet'!$L18) -> 8248544.496 | DF6: =DE62 -> 7325577.94 | DG6: 11266046.02 | DH6: 10343079.46 | DI6: 9420112.904 | DJ6: 12144722.32 | DK6: 11221755.77 | DL6: 10298789.21 | DM6: 11199610.64 | DN6: 10276644.09 | DO6: 9353677.529 | DP6: 10254498.96 | DT6: =('BS workings'!$M47-'BS workings'!$M48+'Balance Sheet'!$M9+'Balance Sheet'!$M18) -> 9331532.404 | DU6: =DT62 -> 8368134.52 | DV6: 12483592.73 | DW6: 11520194.84 | DX6: 10556796.96 | DY6: 13402541.14 | DZ6: 12439143.26 | EA6: 11475745.37 | EB6: 12416918.52 | EC6: 11453520.64 | ED6: 10490122.76 | EE6: 11431295.91 | EI6: =('BS workings'!$N47-'BS workings'!$N48+'Balance Sheet'!$N9+'Balance Sheet'!$N18) -> 10467898.02 | EJ6: =EI62 -> 9463554.88 | EK6: 13763053.99 | EL6: 12758710.85 | EM6: 11754367.71 | EN6: 14727906.26 | EO6: 13723563.12 | EP6: 12719219.97 | EQ6: 13703817.68 | ER6: 12699474.53 | ES6: 11695131.39 | ET6: 12679729.1 | EX6: =('BS workings'!$O47-'BS workings'!$O48+'Balance Sheet'!$O9+'Balance Sheet'!$O18) -> 11675385.95 | EY6: =EX62 -> 10628056.4 | EZ6: 15119544.66 | FA6: 14072215.1 | FB6: 13024885.55 | FC6: 16131669.35 | FD6: 15084339.8 | FE6: 14037010.24 | FF6: 15066737.37 | FG6: 14019407.81 | FH6: 12972078.26 | FI6: 14001805.38
A8: Operating Inflow
A9: Rates & Annual Charges | B9: 1 | D9: ='Cash Flow'!$E8*SUMIF($B$78:$B$90,$B9,D$78:D$90) -> 0 | E9: ='Cash Flow'!$E8*SUMIF($B$78:$B$90,$B9,E$78:E$90) -> 2928965.228 | F9: ='Cash Flow'!$E8*SUMIF($B$78:$B$90,$B9,F$78:F$90) -> 0 | G9: ='Cash Flow'!$E8*SUMIF($B$78:$B$90,$B9,G$78:G$90) -> 0 | H9: ='Cash Flow'!$E8*SUMIF($B$78:$B$90,$B9,H$78:H$90) -> 2196723.921 | I9: ='Cash Flow'!$E8*SUMIF($B$78:$B$90,$B9,I$78:I$90) -> 0 | J9: ='Cash Flow'!$E8*SUMIF($B$78:$B$90,$B9,J$78:J$90) -> 0 | K9: ='Cash Flow'!$E8*SUMIF($B$78:$B$90,$B9,K$78:K$90) -> 1098361.961 | L9: ='Cash Flow'!$E8*SUMIF($B$78:$B$90,$B9,L$78:L$90) -> 0 | M9: ='Cash Flow'!$E8*SUMIF($B$78:$B$90,$B9,M$78:M$90) -> 0 | N9: ='Cash Flow'!$E8*SUMIF($B$78:$B$90,$B9,N$78:N$90) -> 1098361.961 | O9: ='Cash Flow'!$E8*SUMIF($B$78:$B$90,$B9,O$78:O$90) -> 0 | P9: =SUM(D9:O9) -> 7322413.07 | S9: ='Cash Flow'!$G8*SUMIF($B$78:$B$90,$B9,S$78:S$90) -> 0 | T9: ='Cash Flow'!$G8*SUMIF($B$78:$B$90,$B9,T$78:T$90) -> 3005327.577 | U9: ='Cash Flow'!$G8*SUMIF($B$78:$B$90,$B9,U$78:U$90) -> 0 | V9: ='Cash Flow'!$G8*SUMIF($B$78:$B$90,$B9,V$78:V$90) -> 0 | W9: ='Cash Flow'!$G8*SUMIF($B$78:$B$90,$B9,W$78:W$90) -> 2253995.683 | X9: ='Cash Flow'!$G8*SUMIF($B$78:$B$90,$B9,X$78:X$90) -> 0 | Y9: ='Cash Flow'!$G8*SUMIF($B$78:$B$90,$B9,Y$78:Y$90) -> 0 | Z9: ='Cash Flow'!$G8*SUMIF($B$78:$B$90,$B9,Z$78:Z$90) -> 1126997.841 | AA9: ='Cash Flow'!$G8*SUMIF($B$78:$B$90,$B9,AA$78:AA$90) -> 0 | AB9: ='Cash Flow'!$G8*SUMIF($B$78:$B$90,$B9,AB$78:AB$90) -> 0 | AC9: ='Cash Flow'!$G8*SUMIF($B$78:$B$90,$B9,AC$78:AC$90) -> 1126997.841 | AD9: ='Cash Flow'!$G8*SUMIF($B$78:$B$90,$B9,AD$78:AD$90) -> 0 | AE9: =SUM(S9:AD9) -> 7513318.942 | AH9: ='Cash Flow'!$H8*SUMIF($B$78:$B$90,$B9,AH$78:AH$90) -> 0 | AI9: ='Cash Flow'!$H8*SUMIF($B$78:$B$90,$B9,AI$78:AI$90) -> 3301299.639 | AJ9: ='Cash Flow'!$H8*SUMIF($B$78:$B$90,$B9,AJ$78:AJ$90) -> 0 | AK9: ='Cash Flow'!$H8*SUMIF($B$78:$B$90,$B9,AK$78:AK$90) -> 0 | AL9: ='Cash Flow'!$H8*SUMIF($B$78:$B$90,$B9,AL$78:AL$90) -> 2475974.729 | AM9: ='Cash Flow'!$H8*SUMIF($B$78:$B$90,$B9,AM$78:AM$90) -> 0 | AN9: ='Cash Flow'!$H8*SUMIF($B$78:$B$90,$B9,AN$78:AN$90) -> 0 | AO9: ='Cash Flow'!$H8*SUMIF($B$78:$B$90,$B9,AO$78:AO$90) -> 1237987.365 | AP9: ='Cash Flow'!$H8*SUMIF($B$78:$B$90,$B9,AP$78:AP$90) -> 0 | AQ9: ='Cash Flow'!$H8*SUMIF($B$78:$B$90,$B9,AQ$78:AQ$90) -> 0 | AR9: ='Cash Flow'!$H8*SUMIF($B$78:$B$90,$B9,AR$78:AR$90) -> 1237987.365 | AS9: ='Cash Flow'!$H8*SUMIF($B$78:$B$90,$B9,AS$78:AS$90) -> 0 | AT9: =SUM(AH9:AS9) -> 8253249.098 | AW9: ='Cash Flow'!$I8*SUMIF($B$78:$B$90,$B9,AW$78:AW$90) -> 0 | AX9: ='Cash Flow'!$I8*SUMIF($B$78:$B$90,$B9,AX$78:AX$90) -> 3644744.281 | AY9: ='Cash Flow'!$I8*SUMIF($B$78:$B$90,$B9,AY$78:AY$90) -> 0 | AZ9: ='Cash Flow'!$I8*SUMIF($B$78:$B$90,$B9,AZ$78:AZ$90) -> 0 | BA9: ='Cash Flow'!$I8*SUMIF($B$78:$B$90,$B9,BA$78:BA$90) -> 2733558.211 | BB9: ='Cash Flow'!$I8*SUMIF($B$78:$B$90,$B9,BB$78:BB$90) -> 0 | BC9: ='Cash Flow'!$I8*SUMIF($B$78:$B$90,$B9,BC$78:BC$90) -> 0 | BD9: ='Cash Flow'!$I8*SUMIF($B$78:$B$90,$B9,BD$78:BD$90) -> 1366779.105 | BE9: ='Cash Flow'!$I8*SUMIF($B$78:$B$90,$B9,BE$78:BE$90) -> 0 | BF9: ='Cash Flow'!$I8*SUMIF($B$78:$B$90,$B9,BF$78:BF$90) -> 0 | BG9: ='Cash Flow'!$I8*SUMIF($B$78:$B$90,$B9,BG$78:BG$90) -> 1366779.105 | BH9: ='Cash Flow'!$I8*SUMIF($B$78:$B$90,$B9,BH$78:BH$90) -> 0 | BI9: =SUM(AW9:BH9) -> 9111860.702 | BL9: ='Cash Flow'!$J8*SUMIF($B$78:$B$90,$B9,BL$78:BL$90) -> 0 | BM9: ='Cash Flow'!$J8*SUMIF($B$78:$B$90,$B9,BM$78:BM$90) -> 4024044.541 | BN9: ='Cash Flow'!$J8*SUMIF($B$78:$B$90,$B9,BN$78:BN$90) -> 0 | BO9: ='Cash Flow'!$J8*SUMIF($B$78:$B$90,$B9,BO$78:BO$90) -> 0 | BP9: ='Cash Flow'!$J8*SUMIF($B$78:$B$90,$B9,BP$78:BP$90) -> 3018033.405 | BQ9: ='Cash Flow'!$J8*SUMIF($B$78:$B$90,$B9,BQ$78:BQ$90) -> 0 | BR9: ='Cash Flow'!$J8*SUMIF($B$78:$B$90,$B9,BR$78:BR$90) -> 0 | BS9: ='Cash Flow'!$J8*SUMIF($B$78:$B$90,$B9,BS$78:BS$90) -> 1509016.703 | BT9: ='Cash Flow'!$J8*SUMIF($B$78:$B$90,$B9,BT$78:BT$90) -> 0 | BU9: ='Cash Flow'!$J8*SUMIF($B$78:$B$90,$B9,BU$78:BU$90) -> 0 | BV9: ='Cash Flow'!$J8*SUMIF($B$78:$B$90,$B9,BV$78:BV$90) -> 1509016.703 | BW9: ='Cash Flow'!$J8*SUMIF($B$78:$B$90,$B9,BW$78:BW$90) -> 0 | BX9: =SUM(BL9:BW9) -> 10060111.35 | CA9: ='Cash Flow'!$K8*SUMIF($B$78:$B$90,$B9,CA$78:CA$90) -> 0 | CB9: ='Cash Flow'!$K8*SUMIF($B$78:$B$90,$B9,CB$78:CB$90) -> 4442943.747 | CC9: ='Cash Flow'!$K8*SUMIF($B$78:$B$90,$B9,CC$78:CC$90) -> 0 | CD9: ='Cash Flow'!$K8*SUMIF($B$78:$B$90,$B9,CD$78:CD$90) -> 0 | CE9: ='Cash Flow'!$K8*SUMIF($B$78:$B$90,$B9,CE$78:CE$90) -> 3332207.81 | CF9: ='Cash Flow'!$K8*SUMIF($B$78:$B$90,$B9,CF$78:CF$90) -> 0 | CG9: ='Cash Flow'!$K8*SUMIF($B$78:$B$90,$B9,CG$78:CG$90) -> 0 | CH9: ='Cash Flow'!$K8*SUMIF($B$78:$B$90,$B9,CH$78:CH$90) -> 1666103.905 | CI9: ='Cash Flow'!$K8*SUMIF($B$78:$B$90,$B9,CI$78:CI$90) -> 0 | CJ9: ='Cash Flow'!$K8*SUMIF($B$78:$B$90,$B9,CJ$78:CJ$90) -> 0 | CK9: ='Cash Flow'!$K8*SUMIF($B$78:$B$90,$B9,CK$78:CK$90) -> 1666103.905 | CL9: ='Cash Flow'!$K8*SUMIF($B$78:$B$90,$B9,CL$78:CL$90) -> 0 | CM9: =SUM(CA9:CL9) -> 11107359.37 | CP9: ='Cash Flow'!$L8*SUMIF($B$78:$B$90,$B9,CP$78:CP$90) -> 0 | CQ9: ='Cash Flow'!$L8*SUMIF($B$78:$B$90,$B9,CQ$78:CQ$90) -> 4657171.268 | CR9: ='Cash Flow'!$L8*SUMIF($B$78:$B$90,$B9,CR$78:CR$90) -> 0 | CS9: ='Cash Flow'!$L8*SUMIF($B$78:$B$90,$B9,CS$78:CS$90) -> 0 | CT9: ='Cash Flow'!$L8*SUMIF($B$78:$B$90,$B9,CT$78:CT$90) -> 3492878.451 | CU9: ='Cash Flow'!$L8*SUMIF($B$78:$B$90,$B9,CU$78:CU$90) -> 0 | CV9: ='Cash Flow'!$L8*SUMIF($B$78:$B$90,$B9,CV$78:CV$90) -> 0 | CW9: ='Cash Flow'!$L8*SUMIF($B$78:$B$90,$B9,CW$78:CW$90) -> 1746439.226 | CX9: ='Cash Flow'!$L8*SUMIF($B$78:$B$90,$B9,CX$78:CX$90) -> 0 | CY9: ='Cash Flow'!$L8*SUMIF($B$78:$B$90,$B9,CY$78:CY$90) -> 0 | CZ9: ='Cash Flow'!$L8*SUMIF($B$78:$B$90,$B9,CZ$78:CZ$90) -> 1746439.226 | DA9: ='Cash Flow'!$L8*SUMIF($B$78:$B$90,$B9,DA$78:DA$90) -> 0 | DB9: =SUM(CP9:DA9) -> 11642928.17 | DE9: ='Cash Flow'!$M8*SUMIF($B$78:$B$90,$B9,DE$78:DE$90) -> 0 | DF9: ='Cash Flow'!$M8*SUMIF($B$78:$B$90,$B9,DF$78:DF$90) -> 4863434.632 | DG9: ='Cash Flow'!$M8*SUMIF($B$78:$B$90,$B9,DG$78:DG$90) -> 0 | DH9: ='Cash Flow'!$M8*SUMIF($B$78:$B$90,$B9,DH$78:DH$90) -> 0 | DI9: ='Cash Flow'!$M8*SUMIF($B$78:$B$90,$B9,DI$78:DI$90) -> 3647575.974 | DJ9: ='Cash Flow'!$M8*SUMIF($B$78:$B$90,$B9,DJ$78:DJ$90) -> 0 | DK9: ='Cash Flow'!$M8*SUMIF($B$78:$B$90,$B9,DK$78:DK$90) -> 0 | DL9: ='Cash Flow'!$M8*SUMIF($B$78:$B$90,$B9,DL$78:DL$90) -> 1823787.987 | DM9: ='Cash Flow'!$M8*SUMIF($B$78:$B$90,$B9,DM$78:DM$90) -> 0 | DN9: ='Cash Flow'!$M8*SUMIF($B$78:$B$90,$B9,DN$78:DN$90) -> 0 | DO9: ='Cash Flow'!$M8*SUMIF($B$78:$B$90,$B9,DO$78:DO$90) -> 1823787.987 | DP9: ='Cash Flow'!$M8*SUMIF($B$78:$B$90,$B9,DP$78:DP$90) -> 0 | DQ9: =SUM(DE9:DP9) -> 12158586.58 | DT9: ='Cash Flow'!$N8*SUMIF($B$78:$B$90,$B9,DT$78:DT$90) -> 0 | DU9: ='Cash Flow'!$N8*SUMIF($B$78:$B$90,$B9,DU$78:DU$90) -> 5078856.089 | DV9: ='Cash Flow'!$N8*SUMIF($B$78:$B$90,$B9,DV$78:DV$90) -> 0 | DW9: ='Cash Flow'!$N8*SUMIF($B$78:$B$90,$B9,DW$78:DW$90) -> 0 | DX9: ='Cash Flow'!$N8*SUMIF($B$78:$B$90,$B9,DX$78:DX$90) -> 3809142.067 | DY9: ='Cash Flow'!$N8*SUMIF($B$78:$B$90,$B9,DY$78:DY$90) -> 0 | DZ9: ='Cash Flow'!$N8*SUMIF($B$78:$B$90,$B9,DZ$78:DZ$90) -> 0 | EA9: ='Cash Flow'!$N8*SUMIF($B$78:$B$90,$B9,EA$78:EA$90) -> 1904571.033 | EB9: ='Cash Flow'!$N8*SUMIF($B$78:$B$90,$B9,EB$78:EB$90) -> 0 | EC9: ='Cash Flow'!$N8*SUMIF($B$78:$B$90,$B9,EC$78:EC$90) -> 0 | ED9: ='Cash Flow'!$N8*SUMIF($B$78:$B$90,$B9,ED$78:ED$90) -> 1904571.033 | EE9: ='Cash Flow'!$N8*SUMIF($B$78:$B$90,$B9,EE$78:EE$90) -> 0 | EF9: =SUM(DT9:EE9) -> 12697140.22 | EI9: ='Cash Flow'!$O8*SUMIF($B$78:$B$90,$B9,EI$78:EI$90) -> 0 | EJ9: ='Cash Flow'!$O8*SUMIF($B$78:$B$90,$B9,EJ$78:EJ$90) -> 5303842.256 | EK9: ='Cash Flow'!$O8*SUMIF($B$78:$B$90,$B9,EK$78:EK$90) -> 0 | EL9: ='Cash Flow'!$O8*SUMIF($B$78:$B$90,$B9,EL$78:EL$90) -> 0 | EM9: ='Cash Flow'!$O8*SUMIF($B$78:$B$90,$B9,EM$78:EM$90) -> 3977881.692 | EN9: ='Cash Flow'!$O8*SUMIF($B$78:$B$90,$B9,EN$78:EN$90) -> 0 | EO9: ='Cash Flow'!$O8*SUMIF($B$78:$B$90,$B9,EO$78:EO$90) -> 0 | EP9: ='Cash Flow'!$O8*SUMIF($B$78:$B$90,$B9,EP$78:EP$90) -> 1988940.846 | EQ9: ='Cash Flow'!$O8*SUMIF($B$78:$B$90,$B9,EQ$78:EQ$90) -> 0 | ER9: ='Cash Flow'!$O8*SUMIF($B$78:$B$90,$B9,ER$78:ER$90) -> 0 | ES9: ='Cash Flow'!$O8*SUMIF($B$78:$B$90,$B9,ES$78:ES$90) -> 1988940.846 | ET9: ='Cash Flow'!$O8*SUMIF($B$78:$B$90,$B9,ET$78:ET$90) -> 0 | EU9: =SUM(EI9:ET9) -> 13259605.64 | EX9: ='Cash Flow'!$P8*SUMIF($B$78:$B$90,$B9,EX$78:EX$90) -> 0 | EY9: ='Cash Flow'!$P8*SUMIF($B$78:$B$90,$B9,EY$78:EY$90) -> 5538817.812 | EZ9: ='Cash Flow'!$P8*SUMIF($B$78:$B$90,$B9,EZ$78:EZ$90) -> 0 | FA9: ='Cash Flow'!$P8*SUMIF($B$78:$B$90,$B9,FA$78:FA$90) -> 0 | FB9: ='Cash Flow'!$P8*SUMIF($B$78:$B$90,$B9,FB$78:FB$90) -> 4154113.359 | FC9: ='Cash Flow'!$P8*SUMIF($B$78:$B$90,$B9,FC$78:FC$90) -> 0 | FD9: ='Cash Flow'!$P8*SUMIF($B$78:$B$90,$B9,FD$78:FD$90) -> 0 | FE9: ='Cash Flow'!$P8*SUMIF($B$78:$B$90,$B9,FE$78:FE$90) -> 2077056.679 | FF9: ='Cash Flow'!$P8*SUMIF($B$78:$B$90,$B9,FF$78:FF$90) -> 0 | FG9: ='Cash Flow'!$P8*SUMIF($B$78:$B$90,$B9,FG$78:FG$90) -> 0 | FH9: ='Cash Flow'!$P8*SUMIF($B$78:$B$90,$B9,FH$78:FH$90) -> 2077056.679 | FI9: ='Cash Flow'!$P8*SUMIF($B$78:$B$90,$B9,FI$78:FI$90) -> 0 | FJ9: =SUM(EX9:FI9) -> 13847044.53
A10: User Charges & Fees | B10: 4 | D10: ='Cash Flow'!$E9*SUMIF($B$78:$B$90,$B10,D$78:D$90) -> 205194.388 | E10: ='Cash Flow'!$E9*SUMIF($B$78:$B$90,$B10,E$78:E$90) -> 205194.388 | F10: ='Cash Flow'!$E9*SUMIF($B$78:$B$90,$B10,F$78:F$90) -> 205194.388 | G10: ='Cash Flow'!$E9*SUMIF($B$78:$B$90,$B10,G$78:G$90) -> 205194.388 | H10: ='Cash Flow'!$E9*SUMIF($B$78:$B$90,$B10,H$78:H$90) -> 205194.388 | I10: ='Cash Flow'!$E9*SUMIF($B$78:$B$90,$B10,I$78:I$90) -> 205194.388 | J10: ='Cash Flow'!$E9*SUMIF($B$78:$B$90,$B10,J$78:J$90) -> 205194.388 | K10: ='Cash Flow'!$E9*SUMIF($B$78:$B$90,$B10,K$78:K$90) -> 205194.388 | L10: ='Cash Flow'!$E9*SUMIF($B$78:$B$90,$B10,L$78:L$90) -> 205194.388 | M10: ='Cash Flow'!$E9*SUMIF($B$78:$B$90,$B10,M$78:M$90) -> 205194.388 | N10: ='Cash Flow'!$E9*SUMIF($B$78:$B$90,$B10,N$78:N$90) -> 205194.388 | O10: ='Cash Flow'!$E9*SUMIF($B$78:$B$90,$B10,O$78:O$90) -> 205194.388 | P10: 2462332.656 | S10: ='Cash Flow'!$G9*SUMIF($B$78:$B$90,$B10,S$78:S$90) -> 155939.8706 | T10: ='Cash Flow'!$G9*SUMIF($B$78:$B$90,$B10,T$78:T$90) -> 155939.8706 | U10: ='Cash Flow'!$G9*SUMIF($B$78:$B$90,$B10,U$78:U$90) -> 155939.8706 | V10: ='Cash Flow'!$G9*SUMIF($B$78:$B$90,$B10,V$78:V$90) -> 155939.8706 | W10: ='Cash Flow'!$G9*SUMIF($B$78:$B$90,$B10,W$78:W$90) -> 155939.8706 | X10: ='Cash Flow'!$G9*SUMIF($B$78:$B$90,$B10,X$78:X$90) -> 155939.8706 | Y10: ='Cash Flow'!$G9*SUMIF($B$78:$B$90,$B10,Y$78:Y$90) -> 155939.8706 | Z10: ='Cash Flow'!$G9*SUMIF($B$78:$B$90,$B10,Z$78:Z$90) -> 155939.8706 | AA10: ='Cash Flow'!$G9*SUMIF($B$78:$B$90,$B10,AA$78:AA$90) -> 155939.8706 | AB10: ='Cash Flow'!$G9*SUMIF($B$78:$B$90,$B10,AB$78:AB$90) -> 155939.8706 | AC10: ='Cash Flow'!$G9*SUMIF($B$78:$B$90,$B10,AC$78:AC$90) -> 155939.8706 | AD10: ='Cash Flow'!$G9*SUMIF($B$78:$B$90,$B10,AD$78:AD$90) -> 155939.8706 | AE10: 1871278.447 | AH10: ='Cash Flow'!$H9*SUMIF($B$78:$B$90,$B10,AH$78:AH$90) -> 155084.73 | AI10: ='Cash Flow'!$H9*SUMIF($B$78:$B$90,$B10,AI$78:AI$90) -> 155084.73 | AJ10: ='Cash Flow'!$H9*SUMIF($B$78:$B$90,$B10,AJ$78:AJ$90) -> 155084.73 | AK10: ='Cash Flow'!$H9*SUMIF($B$78:$B$90,$B10,AK$78:AK$90) -> 155084.73 | AL10: ='Cash Flow'!$H9*SUMIF($B$78:$B$90,$B10,AL$78:AL$90) -> 155084.73 | AM10: ='Cash Flow'!$H9*SUMIF($B$78:$B$90,$B10,AM$78:AM$90) -> 155084.73 | AN10: ='Cash Flow'!$H9*SUMIF($B$78:$B$90,$B10,AN$78:AN$90) -> 155084.73 | AO10: ='Cash Flow'!$H9*SUMIF($B$78:$B$90,$B10,AO$78:AO$90) -> 155084.73 | AP10: ='Cash Flow'!$H9*SUMIF($B$78:$B$90,$B10,AP$78:AP$90) -> 155084.73 | AQ10: ='Cash Flow'!$H9*SUMIF($B$78:$B$90,$B10,AQ$78:AQ$90) -> 155084.73 | AR10: ='Cash Flow'!$H9*SUMIF($B$78:$B$90,$B10,AR$78:AR$90) -> 155084.73 | AS10: ='Cash Flow'!$H9*SUMIF($B$78:$B$90,$B10,AS$78:AS$90) -> 155084.73 | AT10: =SUM(AH10:AS10) -> 1861016.76 | AW10: ='Cash Flow'!$I9*SUMIF($B$78:$B$90,$B10,AW$78:AW$90) -> 158502.7977 | AX10: ='Cash Flow'!$I9*SUMIF($B$78:$B$90,$B10,AX$78:AX$90) -> 158502.7977 | AY10: ='Cash Flow'!$I9*SUMIF($B$78:$B$90,$B10,AY$78:AY$90) -> 158502.7977 | AZ10: ='Cash Flow'!$I9*SUMIF($B$78:$B$90,$B10,AZ$78:AZ$90) -> 158502.7977 | BA10: ='Cash Flow'!$I9*SUMIF($B$78:$B$90,$B10,BA$78:BA$90) -> 158502.7977 | BB10: ='Cash Flow'!$I9*SUMIF($B$78:$B$90,$B10,BB$78:BB$90) -> 158502.7977 | BC10: ='Cash Flow'!$I9*SUMIF($B$78:$B$90,$B10,BC$78:BC$90) -> 158502.7977 | BD10: ='Cash Flow'!$I9*SUMIF($B$78:$B$90,$B10,BD$78:BD$90) -> 158502.7977 | BE10: ='Cash Flow'!$I9*SUMIF($B$78:$B$90,$B10,BE$78:BE$90) -> 158502.7977 | BF10: ='Cash Flow'!$I9*SUMIF($B$78:$B$90,$B10,BF$78:BF$90) -> 158502.7977 | BG10: ='Cash Flow'!$I9*SUMIF($B$78:$B$90,$B10,BG$78:BG$90) -> 158502.7977 | BH10: ='Cash Flow'!$I9*SUMIF($B$78:$B$90,$B10,BH$78:BH$90) -> 158502.7977 | BI10: =SUM(AW10:BH10) -> 1902033.573 | BL10: ='Cash Flow'!$J9*SUMIF($B$78:$B$90,$B10,BL$78:BL$90) -> 162413.2865 | BM10: ='Cash Flow'!$J9*SUMIF($B$78:$B$90,$B10,BM$78:BM$90) -> 162413.2865 | BN10: ='Cash Flow'!$J9*SUMIF($B$78:$B$90,$B10,BN$78:BN$90) -> 162413.2865 | BO10: ='Cash Flow'!$J9*SUMIF($B$78:$B$90,$B10,BO$78:BO$90) -> 162413.2865 | BP10: ='Cash Flow'!$J9*SUMIF($B$78:$B$90,$B10,BP$78:BP$90) -> 162413.2865 | BQ10: ='Cash Flow'!$J9*SUMIF($B$78:$B$90,$B10,BQ$78:BQ$90) -> 162413.2865 | BR10: ='Cash Flow'!$J9*SUMIF($B$78:$B$90,$B10,BR$78:BR$90) -> 162413.2865 | BS10: ='Cash Flow'!$J9*SUMIF($B$78:$B$90,$B10,BS$78:BS$90) -> 162413.2865 | BT10: ='Cash Flow'!$J9*SUMIF($B$78:$B$90,$B10,BT$78:BT$90) -> 162413.2865 | BU10: ='Cash Flow'!$J9*SUMIF($B$78:$B$90,$B10,BU$78:BU$90) -> 162413.2865 | BV10: ='Cash Flow'!$J9*SUMIF($B$78:$B$90,$B10,BV$78:BV$90) -> 162413.2865 | BW10: ='Cash Flow'!$J9*SUMIF($B$78:$B$90,$B10,BW$78:BW$90) -> 162413.2865 | BX10: =SUM(BL10:BW10) -> 1948959.438 | CA10: ='Cash Flow'!$K9*SUMIF($B$78:$B$90,$B10,CA$78:CA$90) -> 166919.864 | CB10: ='Cash Flow'!$K9*SUMIF($B$78:$B$90,$B10,CB$78:CB$90) -> 166919.864 | CC10: ='Cash Flow'!$K9*SUMIF($B$78:$B$90,$B10,CC$78:CC$90) -> 166919.864 | CD10: ='Cash Flow'!$K9*SUMIF($B$78:$B$90,$B10,CD$78:CD$90) -> 166919.864 | CE10: ='Cash Flow'!$K9*SUMIF($B$78:$B$90,$B10,CE$78:CE$90) -> 166919.864 | CF10: ='Cash Flow'!$K9*SUMIF($B$78:$B$90,$B10,CF$78:CF$90) -> 166919.864 | CG10: ='Cash Flow'!$K9*SUMIF($B$78:$B$90,$B10,CG$78:CG$90) -> 166919.864 | CH10: ='Cash Flow'!$K9*SUMIF($B$78:$B$90,$B10,CH$78:CH$90) -> 166919.864 | CI10: ='Cash Flow'!$K9*SUMIF($B$78:$B$90,$B10,CI$78:CI$90) -> 166919.864 | CJ10: ='Cash Flow'!$K9*SUMIF($B$78:$B$90,$B10,CJ$78:CJ$90) -> 166919.864 | CK10: ='Cash Flow'!$K9*SUMIF($B$78:$B$90,$B10,CK$78:CK$90) -> 166919.864 | CL10: ='Cash Flow'!$K9*SUMIF($B$78:$B$90,$B10,CL$78:CL$90) -> 166919.864 | CM10: =SUM(CA10:CL10) -> 2003038.368 | CP10: ='Cash Flow'!$L9*SUMIF($B$78:$B$90,$B10,CP$78:CP$90) -> 171864.9587 | CQ10: ='Cash Flow'!$L9*SUMIF($B$78:$B$90,$B10,CQ$78:CQ$90) -> 171864.9587 | CR10: ='Cash Flow'!$L9*SUMIF($B$78:$B$90,$B10,CR$78:CR$90) -> 171864.9587 | CS10: ='Cash Flow'!$L9*SUMIF($B$78:$B$90,$B10,CS$78:CS$90) -> 171864.9587 | CT10: ='Cash Flow'!$L9*SUMIF($B$78:$B$90,$B10,CT$78:CT$90) -> 171864.9587 | CU10: ='Cash Flow'!$L9*SUMIF($B$78:$B$90,$B10,CU$78:CU$90) -> 171864.9587 | CV10: ='Cash Flow'!$L9*SUMIF($B$78:$B$90,$B10,CV$78:CV$90) -> 171864.9587 | CW10: ='Cash Flow'!$L9*SUMIF($B$78:$B$90,$B10,CW$78:CW$90) -> 171864.9587 | CX10: ='Cash Flow'!$L9*SUMIF($B$78:$B$90,$B10,CX$78:CX$90) -> 171864.9587 | CY10: ='Cash Flow'!$L9*SUMIF($B$78:$B$90,$B10,CY$78:CY$90) -> 171864.9587 | CZ10: ='Cash Flow'!$L9*SUMIF($B$78:$B$90,$B10,CZ$78:CZ$90) -> 171864.9587 | DA10: ='Cash Flow'!$L9*SUMIF($B$78:$B$90,$B10,DA$78:DA$90) -> 171864.9587 | DB10: =SUM(CP10:DA10) -> 2062379.505 | DE10: ='Cash Flow'!$M9*SUMIF($B$78:$B$90,$B10,DE$78:DE$90) -> 176958.4052 | DF10: ='Cash Flow'!$M9*SUMIF($B$78:$B$90,$B10,DF$78:DF$90) -> 176958.4052 | DG10: ='Cash Flow'!$M9*SUMIF($B$78:$B$90,$B10,DG$78:DG$90) -> 176958.4052 | DH10: ='Cash Flow'!$M9*SUMIF($B$78:$B$90,$B10,DH$78:DH$90) -> 176958.4052 | DI10: ='Cash Flow'!$M9*SUMIF($B$78:$B$90,$B10,DI$78:DI$90) -> 176958.4052 | DJ10: ='Cash Flow'!$M9*SUMIF($B$78:$B$90,$B10,DJ$78:DJ$90) -> 176958.4052 | DK10: ='Cash Flow'!$M9*SUMIF($B$78:$B$90,$B10,DK$78:DK$90) -> 176958.4052 | DL10: ='Cash Flow'!$M9*SUMIF($B$78:$B$90,$B10,DL$78:DL$90) -> 176958.4052 | DM10: ='Cash Flow'!$M9*SUMIF($B$78:$B$90,$B10,DM$78:DM$90) -> 176958.4052 | DN10: ='Cash Flow'!$M9*SUMIF($B$78:$B$90,$B10,DN$78:DN$90) -> 176958.4052 | DO10: ='Cash Flow'!$M9*SUMIF($B$78:$B$90,$B10,DO$78:DO$90) -> 176958.4052 | DP10: ='Cash Flow'!$M9*SUMIF($B$78:$B$90,$B10,DP$78:DP$90) -> 176958.4052 | DQ10: =SUM(DE10:DP10) -> 2123500.863 | DT10: ='Cash Flow'!$N9*SUMIF($B$78:$B$90,$B10,DT$78:DT$90) -> 182204.6565 | DU10: ='Cash Flow'!$N9*SUMIF($B$78:$B$90,$B10,DU$78:DU$90) -> 182204.6565 | DV10: ='Cash Flow'!$N9*SUMIF($B$78:$B$90,$B10,DV$78:DV$90) -> 182204.6565 | DW10: ='Cash Flow'!$N9*SUMIF($B$78:$B$90,$B10,DW$78:DW$90) -> 182204.6565 | DX10: ='Cash Flow'!$N9*SUMIF($B$78:$B$90,$B10,DX$78:DX$90) -> 182204.6565 | DY10: ='Cash Flow'!$N9*SUMIF($B$78:$B$90,$B10,DY$78:DY$90) -> 182204.6565 | DZ10: ='Cash Flow'!$N9*SUMIF($B$78:$B$90,$B10,DZ$78:DZ$90) -> 182204.6565 | EA10: ='Cash Flow'!$N9*SUMIF($B$78:$B$90,$B10,EA$78:EA$90) -> 182204.6565 | EB10: ='Cash Flow'!$N9*SUMIF($B$78:$B$90,$B10,EB$78:EB$90) -> 182204.6565 | EC10: ='Cash Flow'!$N9*SUMIF($B$78:$B$90,$B10,EC$78:EC$90) -> 182204.6565 | ED10: ='Cash Flow'!$N9*SUMIF($B$78:$B$90,$B10,ED$78:ED$90) -> 182204.6565 | EE10: ='Cash Flow'!$N9*SUMIF($B$78:$B$90,$B10,EE$78:EE$90) -> 182204.6565 | EF10: =SUM(DT10:EE10) -> 2186455.878 | EI10: ='Cash Flow'!$O9*SUMIF($B$78:$B$90,$B10,EI$78:EI$90) -> 187608.294 | EJ10: ='Cash Flow'!$O9*SUMIF($B$78:$B$90,$B10,EJ$78:EJ$90) -> 187608.294 | EK10: ='Cash Flow'!$O9*SUMIF($B$78:$B$90,$B10,EK$78:EK$90) -> 187608.294 | EL10: ='Cash Flow'!$O9*SUMIF($B$78:$B$90,$B10,EL$78:EL$90) -> 187608.294 | EM10: ='Cash Flow'!$O9*SUMIF($B$78:$B$90,$B10,EM$78:EM$90) -> 187608.294 | EN10: ='Cash Flow'!$O9*SUMIF($B$78:$B$90,$B10,EN$78:EN$90) -> 187608.294 | EO10: ='Cash Flow'!$O9*SUMIF($B$78:$B$90,$B10,EO$78:EO$90) -> 187608.294 | EP10: ='Cash Flow'!$O9*SUMIF($B$78:$B$90,$B10,EP$78:EP$90) -> 187608.294 | EQ10: ='Cash Flow'!$O9*SUMIF($B$78:$B$90,$B10,EQ$78:EQ$90) -> 187608.294 | ER10: ='Cash Flow'!$O9*SUMIF($B$78:$B$90,$B10,ER$78:ER$90) -> 187608.294 | ES10: ='Cash Flow'!$O9*SUMIF($B$78:$B$90,$B10,ES$78:ES$90) -> 187608.294 | ET10: ='Cash Flow'!$O9*SUMIF($B$78:$B$90,$B10,ET$78:ET$90) -> 187608.294 | EU10: =SUM(EI10:ET10) -> 2251299.528 | EX10: ='Cash Flow'!$P9*SUMIF($B$78:$B$90,$B10,EX$78:EX$90) -> 193174.0421 | EY10: ='Cash Flow'!$P9*SUMIF($B$78:$B$90,$B10,EY$78:EY$90) -> 193174.0421 | EZ10: ='Cash Flow'!$P9*SUMIF($B$78:$B$90,$B10,EZ$78:EZ$90) -> 193174.0421 | FA10: ='Cash Flow'!$P9*SUMIF($B$78:$B$90,$B10,FA$78:FA$90) -> 193174.0421 | FB10: ='Cash Flow'!$P9*SUMIF($B$78:$B$90,$B10,FB$78:FB$90) -> 193174.0421 | FC10: ='Cash Flow'!$P9*SUMIF($B$78:$B$90,$B10,FC$78:FC$90) -> 193174.0421 | FD10: ='Cash Flow'!$P9*SUMIF($B$78:$B$90,$B10,FD$78:FD$90) -> 193174.0421 | FE10: ='Cash Flow'!$P9*SUMIF($B$78:$B$90,$B10,FE$78:FE$90) -> 193174.0421 | FF10: ='Cash Flow'!$P9*SUMIF($B$78:$B$90,$B10,FF$78:FF$90) -> 193174.0421 | FG10: ='Cash Flow'!$P9*SUMIF($B$78:$B$90,$B10,FG$78:FG$90) -> 193174.0421 | FH10: ='Cash Flow'!$P9*SUMIF($B$78:$B$90,$B10,FH$78:FH$90) -> 193174.0421 | FI10: ='Cash Flow'!$P9*SUMIF($B$78:$B$90,$B10,FI$78:FI$90) -> 193174.0421 | FJ10: =SUM(EX10:FI10) -> 2318088.505
A11: Interest & Investment Revenue | B11: 4 | D11: ='Cash Flow'!$E10*SUMIF($B$78:$B$90,$B11,D$78:D$90) -> 63727.81995 | E11: ='Cash Flow'!$E10*SUMIF($B$78:$B$90,$B11,E$78:E$90) -> 63727.81995 | F11: ='Cash Flow'!$E10*SUMIF($B$78:$B$90,$B11,F$78:F$90) -> 63727.81995 | G11: ='Cash Flow'!$E10*SUMIF($B$78:$B$90,$B11,G$78:G$90) -> 63727.81995 | H11: ='Cash Flow'!$E10*SUMIF($B$78:$B$90,$B11,H$78:H$90) -> 63727.81995 | I11: ='Cash Flow'!$E10*SUMIF($B$78:$B$90,$B11,I$78:I$90) -> 63727.81995 | J11: ='Cash Flow'!$E10*SUMIF($B$78:$B$90,$B11,J$78:J$90) -> 63727.81995 | K11: ='Cash Flow'!$E10*SUMIF($B$78:$B$90,$B11,K$78:K$90) -> 63727.81995 | L11: ='Cash Flow'!$E10*SUMIF($B$78:$B$90,$B11,L$78:L$90) -> 63727.81995 | M11: ='Cash Flow'!$E10*SUMIF($B$78:$B$90,$B11,M$78:M$90) -> 63727.81995 | N11: ='Cash Flow'!$E10*SUMIF($B$78:$B$90,$B11,N$78:N$90) -> 63727.81995 | O11: ='Cash Flow'!$E10*SUMIF($B$78:$B$90,$B11,O$78:O$90) -> 63727.81995 | P11: 764733.8394 | S11: ='Cash Flow'!$G10*SUMIF($B$78:$B$90,$B11,S$78:S$90) -> 32795.63613 | T11: ='Cash Flow'!$G10*SUMIF($B$78:$B$90,$B11,T$78:T$90) -> 32795.63613 | U11: ='Cash Flow'!$G10*SUMIF($B$78:$B$90,$B11,U$78:U$90) -> 32795.63613 | V11: ='Cash Flow'!$G10*SUMIF($B$78:$B$90,$B11,V$78:V$90) -> 32795.63613 | W11: ='Cash Flow'!$G10*SUMIF($B$78:$B$90,$B11,W$78:W$90) -> 32795.63613 | X11: ='Cash Flow'!$G10*SUMIF($B$78:$B$90,$B11,X$78:X$90) -> 32795.63613 | Y11: ='Cash Flow'!$G10*SUMIF($B$78:$B$90,$B11,Y$78:Y$90) -> 32795.63613 | Z11: ='Cash Flow'!$G10*SUMIF($B$78:$B$90,$B11,Z$78:Z$90) -> 32795.63613 | AA11: ='Cash Flow'!$G10*SUMIF($B$78:$B$90,$B11,AA$78:AA$90) -> 32795.63613 | AB11: ='Cash Flow'!$G10*SUMIF($B$78:$B$90,$B11,AB$78:AB$90) -> 32795.63613 | AC11: ='Cash Flow'!$G10*SUMIF($B$78:$B$90,$B11,AC$78:AC$90) -> 32795.63613 | AD11: ='Cash Flow'!$G10*SUMIF($B$78:$B$90,$B11,AD$78:AD$90) -> 32795.63613 | AE11: 393547.6336 | AH11: ='Cash Flow'!$H10*SUMIF($B$78:$B$90,$B11,AH$78:AH$90) -> 32328.73511 | AI11: ='Cash Flow'!$H10*SUMIF($B$78:$B$90,$B11,AI$78:AI$90) -> 32328.73511 | AJ11: ='Cash Flow'!$H10*SUMIF($B$78:$B$90,$B11,AJ$78:AJ$90) -> 32328.73511 | AK11: ='Cash Flow'!$H10*SUMIF($B$78:$B$90,$B11,AK$78:AK$90) -> 32328.73511 | AL11: ='Cash Flow'!$H10*SUMIF($B$78:$B$90,$B11,AL$78:AL$90) -> 32328.73511 | AM11: ='Cash Flow'!$H10*SUMIF($B$78:$B$90,$B11,AM$78:AM$90) -> 32328.73511 | AN11: ='Cash Flow'!$H10*SUMIF($B$78:$B$90,$B11,AN$78:AN$90) -> 32328.73511 | AO11: ='Cash Flow'!$H10*SUMIF($B$78:$B$90,$B11,AO$78:AO$90) -> 32328.73511 | AP11: ='Cash Flow'!$H10*SUMIF($B$78:$B$90,$B11,AP$78:AP$90) -> 32328.73511 | AQ11: ='Cash Flow'!$H10*SUMIF($B$78:$B$90,$B11,AQ$78:AQ$90) -> 32328.73511 | AR11: ='Cash Flow'!$H10*SUMIF($B$78:$B$90,$B11,AR$78:AR$90) -> 32328.73511 | AS11: ='Cash Flow'!$H10*SUMIF($B$78:$B$90,$B11,AS$78:AS$90) -> 32328.73511 | AT11: 387944.8213 | AW11: ='Cash Flow'!$I10*SUMIF($B$78:$B$90,$B11,AW$78:AW$90) -> 32271.26266 | AX11: ='Cash Flow'!$I10*SUMIF($B$78:$B$90,$B11,AX$78:AX$90) -> 32271.26266 | AY11: ='Cash Flow'!$I10*SUMIF($B$78:$B$90,$B11,AY$78:AY$90) -> 32271.26266 | AZ11: ='Cash Flow'!$I10*SUMIF($B$78:$B$90,$B11,AZ$78:AZ$90) -> 32271.26266 | BA11: ='Cash Flow'!$I10*SUMIF($B$78:$B$90,$B11,BA$78:BA$90) -> 32271.26266 | BB11: ='Cash Flow'!$I10*SUMIF($B$78:$B$90,$B11,BB$78:BB$90) -> 32271.26266 | BC11: ='Cash Flow'!$I10*SUMIF($B$78:$B$90,$B11,BC$78:BC$90) -> 32271.26266 | BD11: ='Cash Flow'!$I10*SUMIF($B$78:$B$90,$B11,BD$78:BD$90) -> 32271.26266 | BE11: ='Cash Flow'!$I10*SUMIF($B$78:$B$90,$B11,BE$78:BE$90) -> 32271.26266 | BF11: ='Cash Flow'!$I10*SUMIF($B$78:$B$90,$B11,BF$78:BF$90) -> 32271.26266 | BG11: ='Cash Flow'!$I10*SUMIF($B$78:$B$90,$B11,BG$78:BG$90) -> 32271.26266 | BH11: ='Cash Flow'!$I10*SUMIF($B$78:$B$90,$B11,BH$78:BH$90) -> 32271.26266 | BI11: 387255.1519 | BL11: ='Cash Flow'!$J10*SUMIF($B$78:$B$90,$B11,BL$78:BL$90) -> 32187.5722 | BM11: ='Cash Flow'!$J10*SUMIF($B$78:$B$90,$B11,BM$78:BM$90) -> 32187.5722 | BN11: ='Cash Flow'!$J10*SUMIF($B$78:$B$90,$B11,BN$78:BN$90) -> 32187.5722 | BO11: ='Cash Flow'!$J10*SUMIF($B$78:$B$90,$B11,BO$78:BO$90) -> 32187.5722 | BP11: ='Cash Flow'!$J10*SUMIF($B$78:$B$90,$B11,BP$78:BP$90) -> 32187.5722 | BQ11: ='Cash Flow'!$J10*SUMIF($B$78:$B$90,$B11,BQ$78:BQ$90) -> 32187.5722 | BR11: ='Cash Flow'!$J10*SUMIF($B$78:$B$90,$B11,BR$78:BR$90) -> 32187.5722 | BS11: ='Cash Flow'!$J10*SUMIF($B$78:$B$90,$B11,BS$78:BS$90) -> 32187.5722 | BT11: ='Cash Flow'!$J10*SUMIF($B$78:$B$90,$B11,BT$78:BT$90) -> 32187.5722 | BU11: ='Cash Flow'!$J10*SUMIF($B$78:$B$90,$B11,BU$78:BU$90) -> 32187.5722 | BV11: ='Cash Flow'!$J10*SUMIF($B$78:$B$90,$B11,BV$78:BV$90) -> 32187.5722 | BW11: ='Cash Flow'!$J10*SUMIF($B$78:$B$90,$B11,BW$78:BW$90) -> 32187.5722 | BX11: 386250.8665 | CA11: ='Cash Flow'!$K10*SUMIF($B$78:$B$90,$B11,CA$78:CA$90) -> 32091.10388 | CB11: ='Cash Flow'!$K10*SUMIF($B$78:$B$90,$B11,CB$78:CB$90) -> 32091.10388 | CC11: ='Cash Flow'!$K10*SUMIF($B$78:$B$90,$B11,CC$78:CC$90) -> 32091.10388 | CD11: ='Cash Flow'!$K10*SUMIF($B$78:$B$90,$B11,CD$78:CD$90) -> 32091.10388 | CE11: ='Cash Flow'!$K10*SUMIF($B$78:$B$90,$B11,CE$78:CE$90) -> 32091.10388 | CF11: ='Cash Flow'!$K10*SUMIF($B$78:$B$90,$B11,CF$78:CF$90) -> 32091.10388 | CG11: ='Cash Flow'!$K10*SUMIF($B$78:$B$90,$B11,CG$78:CG$90) -> 32091.10388 | CH11: ='Cash Flow'!$K10*SUMIF($B$78:$B$90,$B11,CH$78:CH$90) -> 32091.10388 | CI11: ='Cash Flow'!$K10*SUMIF($B$78:$B$90,$B11,CI$78:CI$90) -> 32091.10388 | CJ11: ='Cash Flow'!$K10*SUMIF($B$78:$B$90,$B11,CJ$78:CJ$90) -> 32091.10388 | CK11: ='Cash Flow'!$K10*SUMIF($B$78:$B$90,$B11,CK$78:CK$90) -> 32091.10388 | CL11: ='Cash Flow'!$K10*SUMIF($B$78:$B$90,$B11,CL$78:CL$90) -> 32091.10388 | CM11: 385093.2465 | CP11: ='Cash Flow'!$L10*SUMIF($B$78:$B$90,$B11,CP$78:CP$90) -> 32177.23682 | CQ11: ='Cash Flow'!$L10*SUMIF($B$78:$B$90,$B11,CQ$78:CQ$90) -> 32177.23682 | CR11: ='Cash Flow'!$L10*SUMIF($B$78:$B$90,$B11,CR$78:CR$90) -> 32177.23682 | CS11: ='Cash Flow'!$L10*SUMIF($B$78:$B$90,$B11,CS$78:CS$90) -> 32177.23682 | CT11: ='Cash Flow'!$L10*SUMIF($B$78:$B$90,$B11,CT$78:CT$90) -> 32177.23682 | CU11: ='Cash Flow'!$L10*SUMIF($B$78:$B$90,$B11,CU$78:CU$90) -> 32177.23682 | CV11: ='Cash Flow'!$L10*SUMIF($B$78:$B$90,$B11,CV$78:CV$90) -> 32177.23682 | CW11: ='Cash Flow'!$L10*SUMIF($B$78:$B$90,$B11,CW$78:CW$90) -> 32177.23682 | CX11: ='Cash Flow'!$L10*SUMIF($B$78:$B$90,$B11,CX$78:CX$90) -> 32177.23682 | CY11: ='Cash Flow'!$L10*SUMIF($B$78:$B$90,$B11,CY$78:CY$90) -> 32177.23682 | CZ11: ='Cash Flow'!$L10*SUMIF($B$78:$B$90,$B11,CZ$78:CZ$90) -> 32177.23682 | DA11: ='Cash Flow'!$L10*SUMIF($B$78:$B$90,$B11,DA$78:DA$90) -> 32177.23682 | DB11: 386126.8419 | DE11: ='Cash Flow'!$M10*SUMIF($B$78:$B$90,$B11,DE$78:DE$90) -> 31980.35562 | DF11: ='Cash Flow'!$M10*SUMIF($B$78:$B$90,$B11,DF$78:DF$90) -> 31980.35562 | DG11: ='Cash Flow'!$M10*SUMIF($B$78:$B$90,$B11,DG$78:DG$90) -> 31980.35562 | DH11: ='Cash Flow'!$M10*SUMIF($B$78:$B$90,$B11,DH$78:DH$90) -> 31980.35562 | DI11: ='Cash Flow'!$M10*SUMIF($B$78:$B$90,$B11,DI$78:DI$90) -> 31980.35562 | DJ11: ='Cash Flow'!$M10*SUMIF($B$78:$B$90,$B11,DJ$78:DJ$90) -> 31980.35562 | DK11: ='Cash Flow'!$M10*SUMIF($B$78:$B$90,$B11,DK$78:DK$90) -> 31980.35562 | DL11: ='Cash Flow'!$M10*SUMIF($B$78:$B$90,$B11,DL$78:DL$90) -> 31980.35562 | DM11: ='Cash Flow'!$M10*SUMIF($B$78:$B$90,$B11,DM$78:DM$90) -> 31980.35562 | DN11: ='Cash Flow'!$M10*SUMIF($B$78:$B$90,$B11,DN$78:DN$90) -> 31980.35562 | DO11: ='Cash Flow'!$M10*SUMIF($B$78:$B$90,$B11,DO$78:DO$90) -> 31980.35562 | DP11: ='Cash Flow'!$M10*SUMIF($B$78:$B$90,$B11,DP$78:DP$90) -> 31980.35562 | DQ11: 383764.2675 | DT11: ='Cash Flow'!$N10*SUMIF($B$78:$B$90,$B11,DT$78:DT$90) -> 31957.06986 | DU11: ='Cash Flow'!$N10*SUMIF($B$78:$B$90,$B11,DU$78:DU$90) -> 31957.06986 | DV11: ='Cash Flow'!$N10*SUMIF($B$78:$B$90,$B11,DV$78:DV$90) -> 31957.06986 | DW11: ='Cash Flow'!$N10*SUMIF($B$78:$B$90,$B11,DW$78:DW$90) -> 31957.06986 | DX11: ='Cash Flow'!$N10*SUMIF($B$78:$B$90,$B11,DX$78:DX$90) -> 31957.06986 | DY11: ='Cash Flow'!$N10*SUMIF($B$78:$B$90,$B11,DY$78:DY$90) -> 31957.06986 | DZ11: ='Cash Flow'!$N10*SUMIF($B$78:$B$90,$B11,DZ$78:DZ$90) -> 31957.06986 | EA11: ='Cash Flow'!$N10*SUMIF($B$78:$B$90,$B11,EA$78:EA$90) -> 31957.06986 | EB11: ='Cash Flow'!$N10*SUMIF($B$78:$B$90,$B11,EB$78:EB$90) -> 31957.06986 | EC11: ='Cash Flow'!$N10*SUMIF($B$78:$B$90,$B11,EC$78:EC$90) -> 31957.06986 | ED11: ='Cash Flow'!$N10*SUMIF($B$78:$B$90,$B11,ED$78:ED$90) -> 31957.06986 | EE11: ='Cash Flow'!$N10*SUMIF($B$78:$B$90,$B11,EE$78:EE$90) -> 31957.06986 | EF11: 383484.8384 | EI11: ='Cash Flow'!$O10*SUMIF($B$78:$B$90,$B11,EI$78:EI$90) -> 31925.58587 | EJ11: ='Cash Flow'!$O10*SUMIF($B$78:$B$90,$B11,EJ$78:EJ$90) -> 31925.58587 | EK11: ='Cash Flow'!$O10*SUMIF($B$78:$B$90,$B11,EK$78:EK$90) -> 31925.58587 | EL11: ='Cash Flow'!$O10*SUMIF($B$78:$B$90,$B11,EL$78:EL$90) -> 31925.58587 | EM11: ='Cash Flow'!$O10*SUMIF($B$78:$B$90,$B11,EM$78:EM$90) -> 31925.58587 | EN11: ='Cash Flow'!$O10*SUMIF($B$78:$B$90,$B11,EN$78:EN$90) -> 31925.58587 | EO11: ='Cash Flow'!$O10*SUMIF($B$78:$B$90,$B11,EO$78:EO$90) -> 31925.58587 | EP11: ='Cash Flow'!$O10*SUMIF($B$78:$B$90,$B11,EP$78:EP$90) -> 31925.58587 | EQ11: ='Cash Flow'!$O10*SUMIF($B$78:$B$90,$B11,EQ$78:EQ$90) -> 31925.58587 | ER11: ='Cash Flow'!$O10*SUMIF($B$78:$B$90,$B11,ER$78:ER$90) -> 31925.58587 | ES11: ='Cash Flow'!$O10*SUMIF($B$78:$B$90,$B11,ES$78:ES$90) -> 31925.58587 | ET11: ='Cash Flow'!$O10*SUMIF($B$78:$B$90,$B11,ET$78:ET$90) -> 31925.58587 | EU11: 383107.0305 | EX11: ='Cash Flow'!$P10*SUMIF($B$78:$B$90,$B11,EX$78:EX$90) -> 31894.84129 | EY11: ='Cash Flow'!$P10*SUMIF($B$78:$B$90,$B11,EY$78:EY$90) -> 31894.84129 | EZ11: ='Cash Flow'!$P10*SUMIF($B$78:$B$90,$B11,EZ$78:EZ$90) -> 31894.84129 | FA11: ='Cash Flow'!$P10*SUMIF($B$78:$B$90,$B11,FA$78:FA$90) -> 31894.84129 | FB11: ='Cash Flow'!$P10*SUMIF($B$78:$B$90,$B11,FB$78:FB$90) -> 31894.84129 | FC11: ='Cash Flow'!$P10*SUMIF($B$78:$B$90,$B11,FC$78:FC$90) -> 31894.84129 | FD11: ='Cash Flow'!$P10*SUMIF($B$78:$B$90,$B11,FD$78:FD$90) -> 31894.84129 | FE11: ='Cash Flow'!$P10*SUMIF($B$78:$B$90,$B11,FE$78:FE$90) -> 31894.84129 | FF11: ='Cash Flow'!$P10*SUMIF($B$78:$B$90,$B11,FF$78:FF$90) -> 31894.84129 | FG11: ='Cash Flow'!$P10*SUMIF($B$78:$B$90,$B11,FG$78:FG$90) -> 31894.84129 | FH11: ='Cash Flow'!$P10*SUMIF($B$78:$B$90,$B11,FH$78:FH$90) -> 31894.84129 | FI11: ='Cash Flow'!$P10*SUMIF($B$78:$B$90,$B11,FI$78:FI$90) -> 31894.84129 | FJ11: 382738.0955
A12: Other Revenues | B12: 4 | D12: ='Cash Flow'!$E13*SUMIF($B$78:$B$90,$B12,D$78:D$90) -> 383232.9333 | E12: ='Cash Flow'!$E13*SUMIF($B$78:$B$90,$B12,E$78:E$90) -> 383232.9333 | F12: ='Cash Flow'!$E13*SUMIF($B$78:$B$90,$B12,F$78:F$90) -> 383232.9333 | G12: ='Cash Flow'!$E13*SUMIF($B$78:$B$90,$B12,G$78:G$90) -> 383232.9333 | H12: ='Cash Flow'!$E13*SUMIF($B$78:$B$90,$B12,H$78:H$90) -> 383232.9333 | I12: ='Cash Flow'!$E13*SUMIF($B$78:$B$90,$B12,I$78:I$90) -> 383232.9333 | J12: ='Cash Flow'!$E13*SUMIF($B$78:$B$90,$B12,J$78:J$90) -> 383232.9333 | K12: ='Cash Flow'!$E13*SUMIF($B$78:$B$90,$B12,K$78:K$90) -> 383232.9333 | L12: ='Cash Flow'!$E13*SUMIF($B$78:$B$90,$B12,L$78:L$90) -> 383232.9333 | M12: ='Cash Flow'!$E13*SUMIF($B$78:$B$90,$B12,M$78:M$90) -> 383232.9333 | N12: ='Cash Flow'!$E13*SUMIF($B$78:$B$90,$B12,N$78:N$90) -> 383232.9333 | O12: ='Cash Flow'!$E13*SUMIF($B$78:$B$90,$B12,O$78:O$90) -> 383232.9333 | P12: 4598795.2 | S12: ='Cash Flow'!$G13*SUMIF($B$78:$B$90,$B12,S$78:S$90) -> 386201.6126 | T12: ='Cash Flow'!$G13*SUMIF($B$78:$B$90,$B12,T$78:T$90) -> 386201.6126 | U12: ='Cash Flow'!$G13*SUMIF($B$78:$B$90,$B12,U$78:U$90) -> 386201.6126 | V12: ='Cash Flow'!$G13*SUMIF($B$78:$B$90,$B12,V$78:V$90) -> 386201.6126 | W12: ='Cash Flow'!$G13*SUMIF($B$78:$B$90,$B12,W$78:W$90) -> 386201.6126 | X12: ='Cash Flow'!$G13*SUMIF($B$78:$B$90,$B12,X$78:X$90) -> 386201.6126 | Y12: ='Cash Flow'!$G13*SUMIF($B$78:$B$90,$B12,Y$78:Y$90) -> 386201.6126 | Z12: ='Cash Flow'!$G13*SUMIF($B$78:$B$90,$B12,Z$78:Z$90) -> 386201.6126 | AA12: ='Cash Flow'!$G13*SUMIF($B$78:$B$90,$B12,AA$78:AA$90) -> 386201.6126 | AB12: ='Cash Flow'!$G13*SUMIF($B$78:$B$90,$B12,AB$78:AB$90) -> 386201.6126 | AC12: ='Cash Flow'!$G13*SUMIF($B$78:$B$90,$B12,AC$78:AC$90) -> 386201.6126 | AD12: ='Cash Flow'!$G13*SUMIF($B$78:$B$90,$B12,AD$78:AD$90) -> 386201.6126 | AE12: 4634419.351 | AH12: ='Cash Flow'!$H13*SUMIF($B$78:$B$90,$B12,AH$78:AH$90) -> 393764.9043 | AI12: ='Cash Flow'!$H13*SUMIF($B$78:$B$90,$B12,AI$78:AI$90) -> 393764.9043 | AJ12: ='Cash Flow'!$H13*SUMIF($B$78:$B$90,$B12,AJ$78:AJ$90) -> 393764.9043 | AK12: ='Cash Flow'!$H13*SUMIF($B$78:$B$90,$B12,AK$78:AK$90) -> 393764.9043 | AL12: ='Cash Flow'!$H13*SUMIF($B$78:$B$90,$B12,AL$78:AL$90) -> 393764.9043 | AM12: ='Cash Flow'!$H13*SUMIF($B$78:$B$90,$B12,AM$78:AM$90) -> 393764.9043 | AN12: ='Cash Flow'!$H13*SUMIF($B$78:$B$90,$B12,AN$78:AN$90) -> 393764.9043 | AO12: ='Cash Flow'!$H13*SUMIF($B$78:$B$90,$B12,AO$78:AO$90) -> 393764.9043 | AP12: ='Cash Flow'!$H13*SUMIF($B$78:$B$90,$B12,AP$78:AP$90) -> 393764.9043 | AQ12: ='Cash Flow'!$H13*SUMIF($B$78:$B$90,$B12,AQ$78:AQ$90) -> 393764.9043 | AR12: ='Cash Flow'!$H13*SUMIF($B$78:$B$90,$B12,AR$78:AR$90) -> 393764.9043 | AS12: ='Cash Flow'!$H13*SUMIF($B$78:$B$90,$B12,AS$78:AS$90) -> 393764.9043 | AT12: 4725178.852 | AW12: ='Cash Flow'!$I13*SUMIF($B$78:$B$90,$B12,AW$78:AW$90) -> 403944.4754 | AX12: ='Cash Flow'!$I13*SUMIF($B$78:$B$90,$B12,AX$78:AX$90) -> 403944.4754 | AY12: ='Cash Flow'!$I13*SUMIF($B$78:$B$90,$B12,AY$78:AY$90) -> 403944.4754 | AZ12: ='Cash Flow'!$I13*SUMIF($B$78:$B$90,$B12,AZ$78:AZ$90) -> 403944.4754 | BA12: ='Cash Flow'!$I13*SUMIF($B$78:$B$90,$B12,BA$78:BA$90) -> 403944.4754 | BB12: ='Cash Flow'!$I13*SUMIF($B$78:$B$90,$B12,BB$78:BB$90) -> 403944.4754 | BC12: ='Cash Flow'!$I13*SUMIF($B$78:$B$90,$B12,BC$78:BC$90) -> 403944.4754 | BD12: ='Cash Flow'!$I13*SUMIF($B$78:$B$90,$B12,BD$78:BD$90) -> 403944.4754 | BE12: ='Cash Flow'!$I13*SUMIF($B$78:$B$90,$B12,BE$78:BE$90) -> 403944.4754 | BF12: ='Cash Flow'!$I13*SUMIF($B$78:$B$90,$B12,BF$78:BF$90) -> 403944.4754 | BG12: ='Cash Flow'!$I13*SUMIF($B$78:$B$90,$B12,BG$78:BG$90) -> 403944.4754 | BH12: ='Cash Flow'!$I13*SUMIF($B$78:$B$90,$B12,BH$78:BH$90) -> 403944.4754 | BI12: 4847333.705 | BL12: ='Cash Flow'!$J13*SUMIF($B$78:$B$90,$B12,BL$78:BL$90) -> 413285.4133 | BM12: ='Cash Flow'!$J13*SUMIF($B$78:$B$90,$B12,BM$78:BM$90) -> 413285.4133 | BN12: ='Cash Flow'!$J13*SUMIF($B$78:$B$90,$B12,BN$78:BN$90) -> 413285.4133 | BO12: ='Cash Flow'!$J13*SUMIF($B$78:$B$90,$B12,BO$78:BO$90) -> 413285.4133 | BP12: ='Cash Flow'!$J13*SUMIF($B$78:$B$90,$B12,BP$78:BP$90) -> 413285.4133 | BQ12: ='Cash Flow'!$J13*SUMIF($B$78:$B$90,$B12,BQ$78:BQ$90) -> 413285.4133 | BR12: ='Cash Flow'!$J13*SUMIF($B$78:$B$90,$B12,BR$78:BR$90) -> 413285.4133 | BS12: ='Cash Flow'!$J13*SUMIF($B$78:$B$90,$B12,BS$78:BS$90) -> 413285.4133 | BT12: ='Cash Flow'!$J13*SUMIF($B$78:$B$90,$B12,BT$78:BT$90) -> 413285.4133 | BU12: ='Cash Flow'!$J13*SUMIF($B$78:$B$90,$B12,BU$78:BU$90) -> 413285.4133 | BV12: ='Cash Flow'!$J13*SUMIF($B$78:$B$90,$B12,BV$78:BV$90) -> 413285.4133 | BW12: ='Cash Flow'!$J13*SUMIF($B$78:$B$90,$B12,BW$78:BW$90) -> 413285.4133 | BX12: 4959424.96 | CA12: ='Cash Flow'!$K13*SUMIF($B$78:$B$90,$B12,CA$78:CA$90) -> 425314.1345 | CB12: ='Cash Flow'!$K13*SUMIF($B$78:$B$90,$B12,CB$78:CB$90) -> 425314.1345 | CC12: ='Cash Flow'!$K13*SUMIF($B$78:$B$90,$B12,CC$78:CC$90) -> 425314.1345 | CD12: ='Cash Flow'!$K13*SUMIF($B$78:$B$90,$B12,CD$78:CD$90) -> 425314.1345 | CE12: ='Cash Flow'!$K13*SUMIF($B$78:$B$90,$B12,CE$78:CE$90) -> 425314.1345 | CF12: ='Cash Flow'!$K13*SUMIF($B$78:$B$90,$B12,CF$78:CF$90) -> 425314.1345 | CG12: ='Cash Flow'!$K13*SUMIF($B$78:$B$90,$B12,CG$78:CG$90) -> 425314.1345 | CH12: ='Cash Flow'!$K13*SUMIF($B$78:$B$90,$B12,CH$78:CH$90) -> 425314.1345 | CI12: ='Cash Flow'!$K13*SUMIF($B$78:$B$90,$B12,CI$78:CI$90) -> 425314.1345 | CJ12: ='Cash Flow'!$K13*SUMIF($B$78:$B$90,$B12,CJ$78:CJ$90) -> 425314.1345 | CK12: ='Cash Flow'!$K13*SUMIF($B$78:$B$90,$B12,CK$78:CK$90) -> 425314.1345 | CL12: ='Cash Flow'!$K13*SUMIF($B$78:$B$90,$B12,CL$78:CL$90) -> 425314.1345 | CM12: 5103769.614 | CP12: ='Cash Flow'!$L13*SUMIF($B$78:$B$90,$B12,CP$78:CP$90) -> 437815.1521 | CQ12: ='Cash Flow'!$L13*SUMIF($B$78:$B$90,$B12,CQ$78:CQ$90) -> 437815.1521 | CR12: ='Cash Flow'!$L13*SUMIF($B$78:$B$90,$B12,CR$78:CR$90) -> 437815.1521 | CS12: ='Cash Flow'!$L13*SUMIF($B$78:$B$90,$B12,CS$78:CS$90) -> 437815.1521 | CT12: ='Cash Flow'!$L13*SUMIF($B$78:$B$90,$B12,CT$78:CT$90) -> 437815.1521 | CU12: ='Cash Flow'!$L13*SUMIF($B$78:$B$90,$B12,CU$78:CU$90) -> 437815.1521 | CV12: ='Cash Flow'!$L13*SUMIF($B$78:$B$90,$B12,CV$78:CV$90) -> 437815.1521 | CW12: ='Cash Flow'!$L13*SUMIF($B$78:$B$90,$B12,CW$78:CW$90) -> 437815.1521 | CX12: ='Cash Flow'!$L13*SUMIF($B$78:$B$90,$B12,CX$78:CX$90) -> 437815.1521 | CY12: ='Cash Flow'!$L13*SUMIF($B$78:$B$90,$B12,CY$78:CY$90) -> 437815.1521 | CZ12: ='Cash Flow'!$L13*SUMIF($B$78:$B$90,$B12,CZ$78:CZ$90) -> 437815.1521 | DA12: ='Cash Flow'!$L13*SUMIF($B$78:$B$90,$B12,DA$78:DA$90) -> 437815.1521 | DB12: 5253781.826 | DE12: ='Cash Flow'!$M13*SUMIF($B$78:$B$90,$B12,DE$78:DE$90) -> 450670.4303 | DF12: ='Cash Flow'!$M13*SUMIF($B$78:$B$90,$B12,DF$78:DF$90) -> 450670.4303 | DG12: ='Cash Flow'!$M13*SUMIF($B$78:$B$90,$B12,DG$78:DG$90) -> 450670.4303 | DH12: ='Cash Flow'!$M13*SUMIF($B$78:$B$90,$B12,DH$78:DH$90) -> 450670.4303 | DI12: ='Cash Flow'!$M13*SUMIF($B$78:$B$90,$B12,DI$78:DI$90) -> 450670.4303 | DJ12: ='Cash Flow'!$M13*SUMIF($B$78:$B$90,$B12,DJ$78:DJ$90) -> 450670.4303 | DK12: ='Cash Flow'!$M13*SUMIF($B$78:$B$90,$B12,DK$78:DK$90) -> 450670.4303 | DL12: ='Cash Flow'!$M13*SUMIF($B$78:$B$90,$B12,DL$78:DL$90) -> 450670.4303 | DM12: ='Cash Flow'!$M13*SUMIF($B$78:$B$90,$B12,DM$78:DM$90) -> 450670.4303 | DN12: ='Cash Flow'!$M13*SUMIF($B$78:$B$90,$B12,DN$78:DN$90) -> 450670.4303 | DO12: ='Cash Flow'!$M13*SUMIF($B$78:$B$90,$B12,DO$78:DO$90) -> 450670.4303 | DP12: ='Cash Flow'!$M13*SUMIF($B$78:$B$90,$B12,DP$78:DP$90) -> 450670.4303 | DQ12: 5408045.164 | DT12: ='Cash Flow'!$N13*SUMIF($B$78:$B$90,$B12,DT$78:DT$90) -> 463922.286 | DU12: ='Cash Flow'!$N13*SUMIF($B$78:$B$90,$B12,DU$78:DU$90) -> 463922.286 | DV12: ='Cash Flow'!$N13*SUMIF($B$78:$B$90,$B12,DV$78:DV$90) -> 463922.286 | DW12: ='Cash Flow'!$N13*SUMIF($B$78:$B$90,$B12,DW$78:DW$90) -> 463922.286 | DX12: ='Cash Flow'!$N13*SUMIF($B$78:$B$90,$B12,DX$78:DX$90) -> 463922.286 | DY12: ='Cash Flow'!$N13*SUMIF($B$78:$B$90,$B12,DY$78:DY$90) -> 463922.286 | DZ12: ='Cash Flow'!$N13*SUMIF($B$78:$B$90,$B12,DZ$78:DZ$90) -> 463922.286 | EA12: ='Cash Flow'!$N13*SUMIF($B$78:$B$90,$B12,EA$78:EA$90) -> 463922.286 | EB12: ='Cash Flow'!$N13*SUMIF($B$78:$B$90,$B12,EB$78:EB$90) -> 463922.286 | EC12: ='Cash Flow'!$N13*SUMIF($B$78:$B$90,$B12,EC$78:EC$90) -> 463922.286 | ED12: ='Cash Flow'!$N13*SUMIF($B$78:$B$90,$B12,ED$78:ED$90) -> 463922.286 | EE12: ='Cash Flow'!$N13*SUMIF($B$78:$B$90,$B12,EE$78:EE$90) -> 463922.286 | EF12: 5567067.432 | EI12: ='Cash Flow'!$O13*SUMIF($B$78:$B$90,$B12,EI$78:EI$90) -> 477558.274 | EJ12: ='Cash Flow'!$O13*SUMIF($B$78:$B$90,$B12,EJ$78:EJ$90) -> 477558.274 | EK12: ='Cash Flow'!$O13*SUMIF($B$78:$B$90,$B12,EK$78:EK$90) -> 477558.274 | EL12: ='Cash Flow'!$O13*SUMIF($B$78:$B$90,$B12,EL$78:EL$90) -> 477558.274 | EM12: ='Cash Flow'!$O13*SUMIF($B$78:$B$90,$B12,EM$78:EM$90) -> 477558.274 | EN12: ='Cash Flow'!$O13*SUMIF($B$78:$B$90,$B12,EN$78:EN$90) -> 477558.274 | EO12: ='Cash Flow'!$O13*SUMIF($B$78:$B$90,$B12,EO$78:EO$90) -> 477558.274 | EP12: ='Cash Flow'!$O13*SUMIF($B$78:$B$90,$B12,EP$78:EP$90) -> 477558.274 | EQ12: ='Cash Flow'!$O13*SUMIF($B$78:$B$90,$B12,EQ$78:EQ$90) -> 477558.274 | ER12: ='Cash Flow'!$O13*SUMIF($B$78:$B$90,$B12,ER$78:ER$90) -> 477558.274 | ES12: ='Cash Flow'!$O13*SUMIF($B$78:$B$90,$B12,ES$78:ES$90) -> 477558.274 | ET12: ='Cash Flow'!$O13*SUMIF($B$78:$B$90,$B12,ET$78:ET$90) -> 477558.274 | EU12: 5730699.288 | EX12: ='Cash Flow'!$P13*SUMIF($B$78:$B$90,$B12,EX$78:EX$90) -> 491612.8008 | EY12: ='Cash Flow'!$P13*SUMIF($B$78:$B$90,$B12,EY$78:EY$90) -> 491612.8008 | EZ12: ='Cash Flow'!$P13*SUMIF($B$78:$B$90,$B12,EZ$78:EZ$90) -> 491612.8008 | FA12: ='Cash Flow'!$P13*SUMIF($B$78:$B$90,$B12,FA$78:FA$90) -> 491612.8008 | FB12: ='Cash Flow'!$P13*SUMIF($B$78:$B$90,$B12,FB$78:FB$90) -> 491612.8008 | FC12: ='Cash Flow'!$P13*SUMIF($B$78:$B$90,$B12,FC$78:FC$90) -> 491612.8008 | FD12: ='Cash Flow'!$P13*SUMIF($B$78:$B$90,$B12,FD$78:FD$90) -> 491612.8008 | FE12: ='Cash Flow'!$P13*SUMIF($B$78:$B$90,$B12,FE$78:FE$90) -> 491612.8008 | FF12: ='Cash Flow'!$P13*SUMIF($B$78:$B$90,$B12,FF$78:FF$90) -> 491612.8008 | FG12: ='Cash Flow'!$P13*SUMIF($B$78:$B$90,$B12,FG$78:FG$90) -> 491612.8008 | FH12: ='Cash Flow'!$P13*SUMIF($B$78:$B$90,$B12,FH$78:FH$90) -> 491612.8008 | FI12: ='Cash Flow'!$P13*SUMIF($B$78:$B$90,$B12,FI$78:FI$90) -> 491612.8008 | FJ12: 5899353.609
A13: Grants & Contributions provided for Operating Purposes | B13: 2 | D13: ='Cash Flow'!$E11*SUMIF($B$78:$B$90,$B13,D$78:D$90) -> 650137.8592 | E13: ='Cash Flow'!$E11*SUMIF($B$78:$B$90,$B13,E$78:E$90) -> 650137.8592 | F13: ='Cash Flow'!$E11*SUMIF($B$78:$B$90,$B13,F$78:F$90) -> 650137.8592 | G13: ='Cash Flow'!$E11*SUMIF($B$78:$B$90,$B13,G$78:G$90) -> 650137.8592 | H13: ='Cash Flow'!$E11*SUMIF($B$78:$B$90,$B13,H$78:H$90) -> 650137.8592 | I13: ='Cash Flow'!$E11*SUMIF($B$78:$B$90,$B13,I$78:I$90) -> 650137.8592 | J13: ='Cash Flow'!$E11*SUMIF($B$78:$B$90,$B13,J$78:J$90) -> 650137.8592 | K13: ='Cash Flow'!$E11*SUMIF($B$78:$B$90,$B13,K$78:K$90) -> 650137.8592 | L13: ='Cash Flow'!$E11*SUMIF($B$78:$B$90,$B13,L$78:L$90) -> 650137.8592 | M13: ='Cash Flow'!$E11*SUMIF($B$78:$B$90,$B13,M$78:M$90) -> 650137.8592 | N13: ='Cash Flow'!$E11*SUMIF($B$78:$B$90,$B13,N$78:N$90) -> 650137.8592 | O13: ='Cash Flow'!$E11*SUMIF($B$78:$B$90,$B13,O$78:O$90) -> 650137.8592 | P13: 7801654.311 | S13: ='Cash Flow'!$G11*SUMIF($B$78:$B$90,$B13,S$78:S$90) -> 678103.0284 | T13: ='Cash Flow'!$G11*SUMIF($B$78:$B$90,$B13,T$78:T$90) -> 678103.0284 | U13: ='Cash Flow'!$G11*SUMIF($B$78:$B$90,$B13,U$78:U$90) -> 678103.0284 | V13: ='Cash Flow'!$G11*SUMIF($B$78:$B$90,$B13,V$78:V$90) -> 678103.0284 | W13: ='Cash Flow'!$G11*SUMIF($B$78:$B$90,$B13,W$78:W$90) -> 678103.0284 | X13: ='Cash Flow'!$G11*SUMIF($B$78:$B$90,$B13,X$78:X$90) -> 678103.0284 | Y13: ='Cash Flow'!$G11*SUMIF($B$78:$B$90,$B13,Y$78:Y$90) -> 678103.0284 | Z13: ='Cash Flow'!$G11*SUMIF($B$78:$B$90,$B13,Z$78:Z$90) -> 678103.0284 | AA13: ='Cash Flow'!$G11*SUMIF($B$78:$B$90,$B13,AA$78:AA$90) -> 678103.0284 | AB13: ='Cash Flow'!$G11*SUMIF($B$78:$B$90,$B13,AB$78:AB$90) -> 678103.0284 | AC13: ='Cash Flow'!$G11*SUMIF($B$78:$B$90,$B13,AC$78:AC$90) -> 678103.0284 | AD13: ='Cash Flow'!$G11*SUMIF($B$78:$B$90,$B13,AD$78:AD$90) -> 678103.0284 | AE13: 8137236.341 | AH13: ='Cash Flow'!$H11*SUMIF($B$78:$B$90,$B13,AH$78:AH$90) -> 707859.5582 | AI13: ='Cash Flow'!$H11*SUMIF($B$78:$B$90,$B13,AI$78:AI$90) -> 707859.5582 | AJ13: ='Cash Flow'!$H11*SUMIF($B$78:$B$90,$B13,AJ$78:AJ$90) -> 707859.5582 | AK13: ='Cash Flow'!$H11*SUMIF($B$78:$B$90,$B13,AK$78:AK$90) -> 707859.5582 | AL13: ='Cash Flow'!$H11*SUMIF($B$78:$B$90,$B13,AL$78:AL$90) -> 707859.5582 | AM13: ='Cash Flow'!$H11*SUMIF($B$78:$B$90,$B13,AM$78:AM$90) -> 707859.5582 | AN13: ='Cash Flow'!$H11*SUMIF($B$78:$B$90,$B13,AN$78:AN$90) -> 707859.5582 | AO13: ='Cash Flow'!$H11*SUMIF($B$78:$B$90,$B13,AO$78:AO$90) -> 707859.5582 | AP13: ='Cash Flow'!$H11*SUMIF($B$78:$B$90,$B13,AP$78:AP$90) -> 707859.5582 | AQ13: ='Cash Flow'!$H11*SUMIF($B$78:$B$90,$B13,AQ$78:AQ$90) -> 707859.5582 | AR13: ='Cash Flow'!$H11*SUMIF($B$78:$B$90,$B13,AR$78:AR$90) -> 707859.5582 | AS13: ='Cash Flow'!$H11*SUMIF($B$78:$B$90,$B13,AS$78:AS$90) -> 707859.5582 | AT13: 8494314.698 | AW13: ='Cash Flow'!$I11*SUMIF($B$78:$B$90,$B13,AW$78:AW$90) -> 616362.0769 | AX13: ='Cash Flow'!$I11*SUMIF($B$78:$B$90,$B13,AX$78:AX$90) -> 616362.0769 | AY13: ='Cash Flow'!$I11*SUMIF($B$78:$B$90,$B13,AY$78:AY$90) -> 616362.0769 | AZ13: ='Cash Flow'!$I11*SUMIF($B$78:$B$90,$B13,AZ$78:AZ$90) -> 616362.0769 | BA13: ='Cash Flow'!$I11*SUMIF($B$78:$B$90,$B13,BA$78:BA$90) -> 616362.0769 | BB13: ='Cash Flow'!$I11*SUMIF($B$78:$B$90,$B13,BB$78:BB$90) -> 616362.0769 | BC13: ='Cash Flow'!$I11*SUMIF($B$78:$B$90,$B13,BC$78:BC$90) -> 616362.0769 | BD13: ='Cash Flow'!$I11*SUMIF($B$78:$B$90,$B13,BD$78:BD$90) -> 616362.0769 | BE13: ='Cash Flow'!$I11*SUMIF($B$78:$B$90,$B13,BE$78:BE$90) -> 616362.0769 | BF13: ='Cash Flow'!$I11*SUMIF($B$78:$B$90,$B13,BF$78:BF$90) -> 616362.0769 | BG13: ='Cash Flow'!$I11*SUMIF($B$78:$B$90,$B13,BG$78:BG$90) -> 616362.0769 | BH13: ='Cash Flow'!$I11*SUMIF($B$78:$B$90,$B13,BH$78:BH$90) -> 616362.0769 | BI13: 7396344.923 | BL13: ='Cash Flow'!$J11*SUMIF($B$78:$B$90,$B13,BL$78:BL$90) -> 623468.7022 | BM13: ='Cash Flow'!$J11*SUMIF($B$78:$B$90,$B13,BM$78:BM$90) -> 623468.7022 | BN13: ='Cash Flow'!$J11*SUMIF($B$78:$B$90,$B13,BN$78:BN$90) -> 623468.7022 | BO13: ='Cash Flow'!$J11*SUMIF($B$78:$B$90,$B13,BO$78:BO$90) -> 623468.7022 | BP13: ='Cash Flow'!$J11*SUMIF($B$78:$B$90,$B13,BP$78:BP$90) -> 623468.7022 | BQ13: ='Cash Flow'!$J11*SUMIF($B$78:$B$90,$B13,BQ$78:BQ$90) -> 623468.7022 | BR13: ='Cash Flow'!$J11*SUMIF($B$78:$B$90,$B13,BR$78:BR$90) -> 623468.7022 | BS13: ='Cash Flow'!$J11*SUMIF($B$78:$B$90,$B13,BS$78:BS$90) -> 623468.7022 | BT13: ='Cash Flow'!$J11*SUMIF($B$78:$B$90,$B13,BT$78:BT$90) -> 623468.7022 | BU13: ='Cash Flow'!$J11*SUMIF($B$78:$B$90,$B13,BU$78:BU$90) -> 623468.7022 | BV13: ='Cash Flow'!$J11*SUMIF($B$78:$B$90,$B13,BV$78:BV$90) -> 623468.7022 | BW13: ='Cash Flow'!$J11*SUMIF($B$78:$B$90,$B13,BW$78:BW$90) -> 623468.7022 | BX13: 7481624.427 | CA13: ='Cash Flow'!$K11*SUMIF($B$78:$B$90,$B13,CA$78:CA$90) -> 642494.319 | CB13: ='Cash Flow'!$K11*SUMIF($B$78:$B$90,$B13,CB$78:CB$90) -> 642494.319 | CC13: ='Cash Flow'!$K11*SUMIF($B$78:$B$90,$B13,CC$78:CC$90) -> 642494.319 | CD13: ='Cash Flow'!$K11*SUMIF($B$78:$B$90,$B13,CD$78:CD$90) -> 642494.319 | CE13: ='Cash Flow'!$K11*SUMIF($B$78:$B$90,$B13,CE$78:CE$90) -> 642494.319 | CF13: ='Cash Flow'!$K11*SUMIF($B$78:$B$90,$B13,CF$78:CF$90) -> 642494.319 | CG13: ='Cash Flow'!$K11*SUMIF($B$78:$B$90,$B13,CG$78:CG$90) -> 642494.319 | CH13: ='Cash Flow'!$K11*SUMIF($B$78:$B$90,$B13,CH$78:CH$90) -> 642494.319 | CI13: ='Cash Flow'!$K11*SUMIF($B$78:$B$90,$B13,CI$78:CI$90) -> 642494.319 | CJ13: ='Cash Flow'!$K11*SUMIF($B$78:$B$90,$B13,CJ$78:CJ$90) -> 642494.319 | CK13: ='Cash Flow'!$K11*SUMIF($B$78:$B$90,$B13,CK$78:CK$90) -> 642494.319 | CL13: ='Cash Flow'!$K11*SUMIF($B$78:$B$90,$B13,CL$78:CL$90) -> 642494.319 | CM13: 7709931.827 | CP13: ='Cash Flow'!$L11*SUMIF($B$78:$B$90,$B13,CP$78:CP$90) -> 659598.9884 | CQ13: ='Cash Flow'!$L11*SUMIF($B$78:$B$90,$B13,CQ$78:CQ$90) -> 659598.9884 | CR13: ='Cash Flow'!$L11*SUMIF($B$78:$B$90,$B13,CR$78:CR$90) -> 659598.9884 | CS13: ='Cash Flow'!$L11*SUMIF($B$78:$B$90,$B13,CS$78:CS$90) -> 659598.9884 | CT13: ='Cash Flow'!$L11*SUMIF($B$78:$B$90,$B13,CT$78:CT$90) -> 659598.9884 | CU13: ='Cash Flow'!$L11*SUMIF($B$78:$B$90,$B13,CU$78:CU$90) -> 659598.9884 | CV13: ='Cash Flow'!$L11*SUMIF($B$78:$B$90,$B13,CV$78:CV$90) -> 659598.9884 | CW13: ='Cash Flow'!$L11*SUMIF($B$78:$B$90,$B13,CW$78:CW$90) -> 659598.9884 | CX13: ='Cash Flow'!$L11*SUMIF($B$78:$B$90,$B13,CX$78:CX$90) -> 659598.9884 | CY13: ='Cash Flow'!$L11*SUMIF($B$78:$B$90,$B13,CY$78:CY$90) -> 659598.9884 | CZ13: ='Cash Flow'!$L11*SUMIF($B$78:$B$90,$B13,CZ$78:CZ$90) -> 659598.9884 | DA13: ='Cash Flow'!$L11*SUMIF($B$78:$B$90,$B13,DA$78:DA$90) -> 659598.9884 | DB13: 7915187.86 | DE13: ='Cash Flow'!$M11*SUMIF($B$78:$B$90,$B13,DE$78:DE$90) -> 677852.8537 | DF13: ='Cash Flow'!$M11*SUMIF($B$78:$B$90,$B13,DF$78:DF$90) -> 677852.8537 | DG13: ='Cash Flow'!$M11*SUMIF($B$78:$B$90,$B13,DG$78:DG$90) -> 677852.8537 | DH13: ='Cash Flow'!$M11*SUMIF($B$78:$B$90,$B13,DH$78:DH$90) -> 677852.8537 | DI13: ='Cash Flow'!$M11*SUMIF($B$78:$B$90,$B13,DI$78:DI$90) -> 677852.8537 | DJ13: ='Cash Flow'!$M11*SUMIF($B$78:$B$90,$B13,DJ$78:DJ$90) -> 677852.8537 | DK13: ='Cash Flow'!$M11*SUMIF($B$78:$B$90,$B13,DK$78:DK$90) -> 677852.8537 | DL13: ='Cash Flow'!$M11*SUMIF($B$78:$B$90,$B13,DL$78:DL$90) -> 677852.8537 | DM13: ='Cash Flow'!$M11*SUMIF($B$78:$B$90,$B13,DM$78:DM$90) -> 677852.8537 | DN13: ='Cash Flow'!$M11*SUMIF($B$78:$B$90,$B13,DN$78:DN$90) -> 677852.8537 | DO13: ='Cash Flow'!$M11*SUMIF($B$78:$B$90,$B13,DO$78:DO$90) -> 677852.8537 | DP13: ='Cash Flow'!$M11*SUMIF($B$78:$B$90,$B13,DP$78:DP$90) -> 677852.8537 | DQ13: 8134234.245 | DT13: ='Cash Flow'!$N11*SUMIF($B$78:$B$90,$B13,DT$78:DT$90) -> 695260.3788 | DU13: ='Cash Flow'!$N11*SUMIF($B$78:$B$90,$B13,DU$78:DU$90) -> 695260.3788 | DV13: ='Cash Flow'!$N11*SUMIF($B$78:$B$90,$B13,DV$78:DV$90) -> 695260.3788 | DW13: ='Cash Flow'!$N11*SUMIF($B$78:$B$90,$B13,DW$78:DW$90) -> 695260.3788 | DX13: ='Cash Flow'!$N11*SUMIF($B$78:$B$90,$B13,DX$78:DX$90) -> 695260.3788 | DY13: ='Cash Flow'!$N11*SUMIF($B$78:$B$90,$B13,DY$78:DY$90) -> 695260.3788 | DZ13: ='Cash Flow'!$N11*SUMIF($B$78:$B$90,$B13,DZ$78:DZ$90) -> 695260.3788 | EA13: ='Cash Flow'!$N11*SUMIF($B$78:$B$90,$B13,EA$78:EA$90) -> 695260.3788 | EB13: ='Cash Flow'!$N11*SUMIF($B$78:$B$90,$B13,EB$78:EB$90) -> 695260.3788 | EC13: ='Cash Flow'!$N11*SUMIF($B$78:$B$90,$B13,EC$78:EC$90) -> 695260.3788 | ED13: ='Cash Flow'!$N11*SUMIF($B$78:$B$90,$B13,ED$78:ED$90) -> 695260.3788 | EE13: ='Cash Flow'!$N11*SUMIF($B$78:$B$90,$B13,EE$78:EE$90) -> 695260.3788 | EF13: 8343124.546 | EI13: ='Cash Flow'!$O11*SUMIF($B$78:$B$90,$B13,EI$78:EI$90) -> 714413.9539 | EJ13: ='Cash Flow'!$O11*SUMIF($B$78:$B$90,$B13,EJ$78:EJ$90) -> 714413.9539 | EK13: ='Cash Flow'!$O11*SUMIF($B$78:$B$90,$B13,EK$78:EK$90) -> 714413.9539 | EL13: ='Cash Flow'!$O11*SUMIF($B$78:$B$90,$B13,EL$78:EL$90) -> 714413.9539 | EM13: ='Cash Flow'!$O11*SUMIF($B$78:$B$90,$B13,EM$78:EM$90) -> 714413.9539 | EN13: ='Cash Flow'!$O11*SUMIF($B$78:$B$90,$B13,EN$78:EN$90) -> 714413.9539 | EO13: ='Cash Flow'!$O11*SUMIF($B$78:$B$90,$B13,EO$78:EO$90) -> 714413.9539 | EP13: ='Cash Flow'!$O11*SUMIF($B$78:$B$90,$B13,EP$78:EP$90) -> 714413.9539 | EQ13: ='Cash Flow'!$O11*SUMIF($B$78:$B$90,$B13,EQ$78:EQ$90) -> 714413.9539 | ER13: ='Cash Flow'!$O11*SUMIF($B$78:$B$90,$B13,ER$78:ER$90) -> 714413.9539 | ES13: ='Cash Flow'!$O11*SUMIF($B$78:$B$90,$B13,ES$78:ES$90) -> 714413.9539 | ET13: ='Cash Flow'!$O11*SUMIF($B$78:$B$90,$B13,ET$78:ET$90) -> 714413.9539 | EU13: 8572967.447 | EX13: ='Cash Flow'!$P11*SUMIF($B$78:$B$90,$B13,EX$78:EX$90) -> 733585.4546 | EY13: ='Cash Flow'!$P11*SUMIF($B$78:$B$90,$B13,EY$78:EY$90) -> 733585.4546 | EZ13: ='Cash Flow'!$P11*SUMIF($B$78:$B$90,$B13,EZ$78:EZ$90) -> 733585.4546 | FA13: ='Cash Flow'!$P11*SUMIF($B$78:$B$90,$B13,FA$78:FA$90) -> 733585.4546 | FB13: ='Cash Flow'!$P11*SUMIF($B$78:$B$90,$B13,FB$78:FB$90) -> 733585.4546 | FC13: ='Cash Flow'!$P11*SUMIF($B$78:$B$90,$B13,FC$78:FC$90) -> 733585.4546 | FD13: ='Cash Flow'!$P11*SUMIF($B$78:$B$90,$B13,FD$78:FD$90) -> 733585.4546 | FE13: ='Cash Flow'!$P11*SUMIF($B$78:$B$90,$B13,FE$78:FE$90) -> 733585.4546 | FF13: ='Cash Flow'!$P11*SUMIF($B$78:$B$90,$B13,FF$78:FF$90) -> 733585.4546 | FG13: ='Cash Flow'!$P11*SUMIF($B$78:$B$90,$B13,FG$78:FG$90) -> 733585.4546 | FH13: ='Cash Flow'!$P11*SUMIF($B$78:$B$90,$B13,FH$78:FH$90) -> 733585.4546 | FI13: ='Cash Flow'!$P11*SUMIF($B$78:$B$90,$B13,FI$78:FI$90) -> 733585.4546 | FJ13: 8803025.455
